Workbook

Sheet Cover

Sheet Model Index
B9: A. | E9: B. | H9: C. | K9: D.
B11: A. | E11: B. | H11: C. | K11: D.
B13: A. | E13: B. | H13: C.
B15: A. | E15: B. | H15: C. | K15: E.
H17: C.
B20: Version | D20: Date | F20: Description | L20: Approved By:
B21: 1 | D21: 2019-01-02 | F21: Final | L21: Ausgrid

Sheet A. Summary
A1: Asset Summary Information
A3: Data Inputs
B5: Data Inputs
B6: Population | C6: ='A. Age Profile'!L4 -> 5885.59915
B7: Object Types | C7: LV line (usage 'S/L')
B8: Conditional & Function Failures (count) | C8: 2819
B9: Analysis Period (Years) | C9: 6
B10: Asset RAB Life (Years) | C10: ='D. Risk Index Parameters'!E23 -> 52.07
B11: Planned Replacement Cost | C11: ='D. Risk Index Parameters'!$E$22 -> 16405.55738
B12: WACC | C12: ='D. Risk Index Parameters'!$E$21 -> 0.039
B15: Loss of Supply Consequence Information
B16: ='C. PoC Summary Stats & Para'!C16 -> Proportion Failures Resulting in Unserved Energy | C16: ='C. PoC Summary Stats & Para'!E16 -> 0
B17: Value of Customer Reliability (VCR) per kWh | C17: ='C. PoC Summary Stats & Para'!F14 -> 40.729
B18: Outage Type (HV / LV / CBD) | C18: ='C. PoC Summary Stats & Para'!F18 -> LV
B19: Automatic Protection Time (minutes) | C19: ='C. PoC Summary Stats & Para'!F19 -> 0
B20: Switching Time (hours) | C20: ='C. PoC Summary Stats & Para'!F20 -> 0
B21: Restoration/Repair Time (hours) | C21: ='C. PoC Summary Stats & Para'!F21 -> 0
B22: Automatic Protection (% load) | C22: ='C. PoC Summary Stats & Para'!F22 -> 0
B23: Switching (% load) | C23: ='C. PoC Summary Stats & Para'!F23 -> 0
B24: Restoration/Repair (% load) | C24: ='C. PoC Summary Stats & Para'!F24 -> 0
B25: Time without Supply (hours) | C25: ='C. PoC Summary Stats & Para'!F25 -> 0
B26: Avg. Value of Energy Unserved (per asset per event) | C26: =AVERAGE('C. Reliability Consequence'!H6:$H$1048576) -> 0
B29: Finance Consequence Information
B30: Annual Deferral Benefit of Replacement | C30: ='C. PoC Summary Stats & Para'!H31 -> 615.8005175
B31: Repair Cost | C31: ='C. PoC Summary Stats & Para'!E33 -> 1099
B32: Proportion Replacement | C32: ='C. PoC Summary Stats & Para'!E32 -> 0
B33: ='C. PoC Summary Stats & Para'!C35 -> Weighted Replacement / Repair Cost | C33: ='C. PoC Summary Stats & Para'!E35 -> 1099
B34: Maintenance original asset per annum | C34: ='C. PoC Summary Stats & Para'!E38 -> 0
B35: Maintenance replacement asset per annum | C35: ='C. PoC Summary Stats & Para'!E39 -> 0
B36: Maintenance benefit per asset per annum | C36: ='C. PoC Summary Stats & Para'!E40 -> 0
A39: Failure Model Parameters
B41: Weibull Parameters | E41: Crow-AMSAA Parameters
B42: βgood | C42: =IF('B. PoF Summary Stats & Params'!$C$12="C", "Not Applicable", 'B. PoF Summary Stats & Params'!M12) -> Not Applicable | E42: βgood | F42: =IF('B. PoF Summary Stats & Params'!$C$12="W", "Not Applicable", 'B. PoF Summary Stats & Params'!I12) -> 0.9244389648
B43: ηgood | C43: =IF('B. PoF Summary Stats & Params'!$C$12="C", "Not Applicable", 'B. PoF Summary Stats & Params'!O12) -> Not Applicable | E43: βaverage | F43: =IF('B. PoF Summary Stats & Params'!$C$12="W", "Not Applicable", 'B. PoF Summary Stats & Params'!I6) -> 1.221723099
B44: βaverage | C44: =IF('B. PoF Summary Stats & Params'!$C$12="C", "Not Applicable", 'B. PoF Summary Stats & Params'!M6) -> Not Applicable | E44: βpoor | F44: =IF('B. PoF Summary Stats & Params'!$C$12="W", "Not Applicable", 'B. PoF Summary Stats & Params'!I10) -> 1.519007232
B45: ηaverage | C45: =IF('B. PoF Summary Stats & Params'!$C$12="C", "Not Applicable", 'B. PoF Summary Stats & Params'!M8) -> Not Applicable | E45: λaverage | F45: =IF('B. PoF Summary Stats & Params'!$C$12="W", "Not Applicable", 'B. PoF Summary Stats & Params'!I8) -> 0.05693291107
B46: βpoor | C46: =IF('B. PoF Summary Stats & Params'!$C$12="C", "Not Applicable", 'B. PoF Summary Stats & Params'!M14) -> Not Applicable
B47: ηpoor | C47: =IF('B. PoF Summary Stats & Params'!$C$12="C", "Not Applicable", 'B. PoF Summary Stats & Params'!O14) -> Not Applicable
B48: b (intercept) | C48: =IF('B. PoF Summary Stats & Params'!$C$12="C", "Not Applicable", 'B. PoF Summary Stats & Params'!M10) -> Not Applicable
A51: Adjustments to Probability of Failure (PoF)
B53: PoF Adjustment Fators
B54: =IF(ISBLANK('A. Population Info'!G5), "", 'A. Population Info'!G5) -> 
B55: =IF(ISBLANK('A. Population Info'!H5), "", 'A. Population Info'!H5) -> 
B56: =IF(ISBLANK('A. Population Info'!I5), "", 'A. Population Info'!I5) -> LVConductor_construction
B57: =IF(ISBLANK('A. Population Info'!J5), "", 'A. Population Info'!J5) -> 
B58: =IF(ISBLANK('A. Population Info'!K5), "", 'A. Population Info'!K5) -> Age
A61: Adjustments to Probability of Consequence (PoC)
B63: PoC Adjustment Factors
B64: =IF(ISBLANK('A. Population Info'!L5), "", 'A. Population Info'!L5) -> School
B65: =IF(ISBLANK('A. Population Info'!M5), "", 'A. Population Info'!M5) -> _RiskValue_PeoplePresent
B66: =IF(ISBLANK('A. Population Info'!N5), "", 'A. Population Info'!N5) -> LVConductor_construction
B67: =IF(ISBLANK('A. Population Info'!O5), "", 'A. Population Info'!O5) -> GIS_POLE_FROM_BFA_category_2018
B68: =IF(ISBLANK('A. Population Info'!P5), "", 'A. Population Info'!P5) -> SL Replace Year
A71: Model Calculated Failures
E73: Financial Year | F73: FY19 | G73: FY20 | H73: FY21 | I73: FY22 | J73: FY23 | K73: FY24
E74: Model Calculated Failures | F74: ='B. Asset PoF & Health Index'!J4 -> 466.2798845 | G74: ='B. Asset PoF & Health Index'!K4 -> 615.5547426 | H74: ='B. Asset PoF & Health Index'!L4 -> 724.150124 | I74: ='B. Asset PoF & Health Index'!M4 -> 812.1854577 | J74: ='B. Asset PoF & Health Index'!N4 -> 888.2989451 | K74: ='B. Asset PoF & Health Index'!O4 -> 958.874125
A79: Asset Health Index
A118: Asset Risk Index

Sheet A. Population Info
C1: Asset Population Information
Q3: % Assets Converted to LED (associated length)
A4: Asset Identifier | B4: Asset Age | C4: Asset Length or Number within Asset ID | D4: Reliability Asset ID | E4: Average Energy Usage (kWh/day) | F4: Reliability Asset Voltage | G4: PoF Factor 1 | H4: PoF Factor 2 | I4: PoF Factor 3 | J4: PoF Factor 4 | K4: PoF Factor 5 | L4: Consequence Factor 1 | M4: Consequence Factor 2 | N4: Consequence Factor 3 | O4: Consequence Factor 4 | P4: Consequence Factor 5 | Q4: 0.25 | R4: =MIN(Q4+$AH$6, 100%) -> 0.45 | S4: =MIN(R4+$AH$6, 100%) -> 0.65 | T4: 0.85 | U4: 1 | V4: 1 | W4: 1 | X4: 1 | Y4: 1 | Z4: 1 | AA4: 1 | AB4: 1 | AC4: 1
I5: LVConductor_construction | K5: Age | L5: School | M5: _RiskValue_PeoplePresent | N5: LVConductor_construction | O5: GIS_POLE_FROM_BFA_category_2018 | P5: SL Replace Year | Q5: 2019 | R5: 2020 | S5: 2021 | T5: 2022 | U5: 2023 | V5: 2024 | W5: 2025 | X5: 2026 | Y5: 2027 | Z5: 2028 | AA5: 2029 | AB5: 2030 | AC5: 2031 | AF5: Original Number of Assets | AH5: LED Penetration Rate
A6: 1 | B6: 0 | C6: 0.74125 | E6: 44 | F6: LV | I6: Bare | K6: =B6 -> 0 | M6: 1 | N6: Bare | O6: 0 | P6: 1 | Q6: =IF($P6=1,$C6*(1-Q$4),OFFSET($C6,-$AF$6,)*Q$4) -> 0.5559375 | R6: 0.4076875 | S6: =IF($P6=1,$C6*(1-S$4),OFFSET($C6,-$AF$6,)*S$4) -> 0.2594375 | T6: =IF($P6=1,$C6*(1-T$4),OFFSET($C6,-$AF$6,)*T$4) -> 0.1111875 | U6: 0 | V6: 0 | W6: 0 | X6: 0 | Y6: 0 | Z6: 0 | AA6: 0 | AB6: 0 | AC6: 0 | AF6: =MAX($A$6:$A$3667*($P$6:$P$3667=1)) -> 1831 | AH6: 0.2
A7: 2 | B7: 0 | C7: 0.135 | E7: 44 | F7: LV | I7: Bare | K7: =B7 -> 0 | M7: 1 | N7: Bare | O7: 1 | P7: 1 | Q7: 0.10125 | R7: 0.07425 | S7: 0.04725 | T7: 0.02025 | U7: 0 | V7: 0 | W7: 0 | X7: 0 | Y7: 0 | Z7: 0 | AA7: 0 | AB7: 0 | AC7: 0
A8: 3 | B8: 0 | C8: 0.52238 | E8: 44 | F8: LV | I8: Bare | K8: 0 | M8: 1 | N8: Bare | P8: 1 | Q8: 0.391785 | R8: 0.287309 | S8: 0.182833 | T8: 0.078357 | U8: 0 | V8: 0 | W8: 0 | X8: 0 | Y8: 0 | Z8: 0 | AA8: 0 | AB8: 0 | AC8: 0
A9: 4 | B9: 0 | C9: 0.09065 | E9: 44 | F9: LV | I9: Insulated | K9: 0 | M9: 1 | N9: Insulated | O9: 0 | P9: 1 | Q9: 0.0679875 | R9: 0.0498575 | S9: 0.0317275 | T9: 0.0135975 | U9: 0 | V9: 0 | W9: 0 | X9: 0 | Y9: 0 | Z9: 0 | AA9: 0 | AB9: 0 | AC9: 0
A10: 5 | B10: 0 | C10: 0.37818 | E10: 44 | F10: LV | I10: Insulated | K10: 0 | M10: 1 | N10: Insulated | O10: 1 | P10: 1 | Q10: 0.283635 | R10: 0.207999 | S10: 0.132363 | T10: 0.056727 | U10: 0 | V10: 0 | W10: 0 | X10: 0 | Y10: 0 | Z10: 0 | AA10: 0 | AB10: 0 | AC10: 0
A11: 6 | B11: 0 | C11: 0.11269 | E11: 44 | F11: LV | I11: Insulated | K11: 0 | M11: 1 | N11: Insulated | P11: 1 | Q11: 0.0845175 | R11: 0.0619795 | S11: 0.0394415 | T11: 0.0169035 | U11: 0 | V11: 0 | W11: 0 | X11: 0 | Y11: 0 | Z11: 0 | AA11: 0 | AB11: 0 | AC11: 0
A12: 7 | B12: 0 | C12: 0.02481 | E12: 44 | F12: LV | I12: Bare | K12: 0 | M12: 2 | N12: Bare | O12: 0 | P12: 1 | Q12: 0.0186075 | R12: 0.0136455 | S12: 0.0086835 | T12: 0.0037215 | U12: 0 | V12: 0 | W12: 0 | X12: 0 | Y12: 0 | Z12: 0 | AA12: 0 | AB12: 0 | AC12: 0
A13: 8 | B13: 0 | C13: 0.4922 | E13: 44 | F13: LV | I13: Bare | K13: 0 | M13: 2 | N13: Bare | O13: 3 | P13: 1 | Q13: 0.36915 | R13: 0.27071 | S13: 0.17227 | T13: 0.07383 | U13: 0 | V13: 0 | W13: 0 | X13: 0 | Y13: 0 | Z13: 0 | AA13: 0 | AB13: 0 | AC13: 0
A14: 9 | B14: 0 | C14: 0.35892 | E14: 44 | F14: LV | I14: Bare | K14: 0 | M14: 2 | N14: Bare | P14: 1 | Q14: 0.26919 | R14: 0.197406 | S14: 0.125622 | T14: 0.053838 | U14: 0 | V14: 0 | W14: 0 | X14: 0 | Y14: 0 | Z14: 0 | AA14: 0 | AB14: 0 | AC14: 0
A15: 10 | B15: 0 | C15: 0.03807 | E15: 44 | F15: LV | I15: Insulated | K15: 0 | M15: 2 | N15: Insulated | P15: 1 | Q15: 0.0285525 | R15: 0.0209385 | S15: 0.0133245 | T15: 0.0057105 | U15: 0 | V15: 0 | W15: 0 | X15: 0 | Y15: 0 | Z15: 0 | AA15: 0 | AB15: 0 | AC15: 0
A16: 11 | B16: 0 | C16: 1.14774 | E16: 44 | F16: LV | I16: Bare | K16: 0 | M16: 3 | N16: Bare | O16: 0 | P16: 1 | Q16: 0.860805 | R16: 0.631257 | S16: 0.401709 | T16: 0.172161 | U16: 0 | V16: 0 | W16: 0 | X16: 0 | Y16: 0 | Z16: 0 | AA16: 0 | AB16: 0 | AC16: 0
A17: 12 | B17: 0 | C17: 0.12323 | E17: 44 | F17: LV | I17: Bare | K17: 0 | M17: 3 | N17: Bare | O17: 1 | P17: 1 | Q17: 0.0924225 | R17: 0.0677765 | S17: 0.0431305 | T17: 0.0184845 | U17: 0 | V17: 0 | W17: 0 | X17: 0 | Y17: 0 | Z17: 0 | AA17: 0 | AB17: 0 | AC17: 0
A18: 13 | B18: 0 | C18: 0.09626 | E18: 44 | F18: LV | I18: Bare | K18: 0 | M18: 3 | N18: Bare | O18: 3 | P18: 1 | Q18: 0.072195 | R18: 0.052943 | S18: 0.033691 | T18: 0.014439 | U18: 0 | V18: 0 | W18: 0 | X18: 0 | Y18: 0 | Z18: 0 | AA18: 0 | AB18: 0 | AC18: 0
A19: 14 | B19: 0 | C19: 2.07944 | E19: 44 | F19: LV | I19: Bare | K19: 0 | M19: 3 | N19: Bare | P19: 1 | Q19: 1.55958 | R19: 1.143692 | S19: 0.727804 | T19: 0.311916 | U19: 0 | V19: 0 | W19: 0 | X19: 0 | Y19: 0 | Z19: 0 | AA19: 0 | AB19: 0 | AC19: 0
A20: 15 | B20: 0 | C20: 0.56601 | E20: 44 | F20: LV | I20: Insulated | K20: 0 | M20: 3 | N20: Insulated | O20: 0 | P20: 1 | Q20: 0.4245075 | R20: 0.3113055 | S20: 0.1981035 | T20: 0.0849015 | U20: 0 | V20: 0 | W20: 0 | X20: 0 | Y20: 0 | Z20: 0 | AA20: 0 | AB20: 0 | AC20: 0
A21: 16 | B21: 0 | C21: 0.10941 | E21: 44 | F21: LV | I21: Insulated | K21: 0 | M21: 3 | N21: Insulated | O21: 1 | P21: 1 | Q21: 0.0820575 | R21: 0.0601755 | S21: 0.0382935 | T21: 0.0164115 | U21: 0 | V21: 0 | W21: 0 | X21: 0 | Y21: 0 | Z21: 0 | AA21: 0 | AB21: 0 | AC21: 0
A22: 17 | B22: 0 | C22: 0.57543 | E22: 44 | F22: LV | I22: Insulated | K22: 0 | M22: 3 | N22: Insulated | P22: 1 | Q22: 0.4315725 | R22: 0.3164865 | S22: 0.2014005 | T22: =IF($P22=1,$C22*(1-T$4),OFFSET($C22,-$AF$6,)*T$4) -> 0.0863145 | U22: 0 | V22: 0 | W22: 0 | X22: 0 | Y22: 0 | Z22: 0 | AA22: 0 | AB22: 0 | AC22: 0
A23: 18 | B23: 0 | C23: 0.88202 | E23: 44 | F23: LV | I23: Bare | K23: 0 | M23: 4 | N23: Bare | O23: 0 | P23: 1 | Q23: 0.661515 | R23: 0.485111 | S23: 0.308707 | T23: =IF($P23=1,$C23*(1-T$4),OFFSET($C23,-$AF$6,)*T$4) -> 0.132303 | U23: 0 | V23: 0 | W23: 0 | X23: 0 | Y23: 0 | Z23: 0 | AA23: 0 | AB23: 0 | AC23: 0
A24: 19 | B24: 0 | C24: 0.04405 | E24: 44 | F24: LV | I24: Bare | K24: 0 | M24: 4 | N24: Bare | O24: 1 | P24: 1 | Q24: 0.0330375 | R24: 0.0242275 | S24: 0.0154175 | T24: 0.0066075 | U24: 0 | V24: 0 | W24: 0 | X24: 0 | Y24: 0 | Z24: 0 | AA24: 0 | AB24: 0 | AC24: 0
A25: 20 | B25: 0 | C25: 1.55195 | E25: 44 | F25: LV | I25: Bare | K25: 0 | M25: 4 | N25: Bare | P25: 1 | Q25: 1.1639625 | R25: 0.8535725 | S25: 0.5431825 | T25: 0.2327925 | U25: 0 | V25: 0 | W25: 0 | X25: 0 | Y25: 0 | Z25: 0 | AA25: 0 | AB25: 0 | AC25: 0
A26: 21 | B26: 0 | C26: 0.24037 | E26: 44 | F26: LV | I26: Insulated | K26: 0 | M26: 4 | N26: Insulated | O26: 0 | P26: 1 | Q26: =IF($P26=1,$C26*(1-Q$4),OFFSET($C26,-$AF$6,)*Q$4) -> 0.1802775 | R26: 0.1322035 | S26: 0.0841295 | T26: 0.0360555 | U26: 0 | V26: 0 | W26: 0 | X26: 0 | Y26: 0 | Z26: 0 | AA26: 0 | AB26: 0 | AC26: 0
A27: 22 | B27: 0 | C27: 0.48456 | E27: 44 | F27: LV | I27: Insulated | K27: 0 | M27: 4 | N27: Insulated | P27: 1 | Q27: 0.36342 | R27: 0.266508 | S27: 0.169596 | T27: 0.072684 | U27: 0 | V27: 0 | W27: 0 | X27: 0 | Y27: 0 | Z27: 0 | AA27: 0 | AB27: 0 | AC27: 0
A28: 23 | B28: 0 | C28: 2.48406 | E28: 44 | F28: LV | I28: Bare | K28: 0 | L28: yes | M28: 1 | N28: Bare | O28: 0 | P28: 1 | Q28: 1.863045 | R28: 1.366233 | S28: 0.869421 | T28: 0.372609 | U28: 0 | V28: 0 | W28: 0 | X28: 0 | Y28: 0 | Z28: 0 | AA28: 0 | AB28: 0 | AC28: 0
A29: 24 | B29: 0 | C29: 0.29868 | E29: 44 | F29: LV | I29: Bare | K29: 0 | L29: yes | M29: 1 | N29: Bare | O29: 1 | P29: 1 | Q29: 0.22401 | R29: 0.164274 | S29: 0.104538 | T29: 0.044802 | U29: 0 | V29: 0 | W29: 0 | X29: 0 | Y29: 0 | Z29: 0 | AA29: 0 | AB29: 0 | AC29: 0
A30: 25 | B30: 0 | C30: 5.30267 | E30: 44 | F30: LV | I30: Bare | K30: 0 | L30: yes | M30: 1 | N30: Bare | P30: 1 | Q30: 3.9770025 | R30: 2.9164685 | S30: 1.8559345 | T30: 0.7954005 | U30: 0 | V30: 0 | W30: 0 | X30: 0 | Y30: 0 | Z30: 0 | AA30: 0 | AB30: 0 | AC30: 0
A31: 26 | B31: 0 | C31: 0.33275 | E31: 44 | F31: LV | I31: Insulated | K31: 0 | L31: yes | M31: 1 | N31: Insulated | O31: 0 | P31: 1 | Q31: 0.2495625 | R31: 0.1830125 | S31: 0.1164625 | T31: 0.0499125 | U31: 0 | V31: 0 | W31: 0 | X31: 0 | Y31: 0 | Z31: 0 | AA31: 0 | AB31: 0 | AC31: 0
A32: 27 | B32: 0 | C32: 0.21239 | E32: 44 | F32: LV | I32: Insulated | K32: 0 | L32: yes | M32: 1 | N32: Insulated | O32: 1 | P32: 1 | Q32: 0.1592925 | R32: 0.1168145 | S32: 0.0743365 | T32: 0.0318585 | U32: 0 | V32: 0 | W32: 0 | X32: 0 | Y32: 0 | Z32: 0 | AA32: 0 | AB32: 0 | AC32: 0
A33: 28 | B33: 0 | C33: 2.79464 | E33: 44 | F33: LV | I33: Insulated | K33: 0 | L33: yes | M33: 1 | N33: Insulated | P33: 1 | Q33: 2.09598 | R33: 1.537052 | S33: 0.978124 | T33: 0.419196 | U33: 0 | V33: 0 | W33: 0 | X33: 0 | Y33: 0 | Z33: 0 | AA33: 0 | AB33: 0 | AC33: 0
A34: 29 | B34: 0 | C34: 0.33438 | E34: 44 | F34: LV | I34: Bare | K34: 0 | L34: yes | M34: 2 | N34: Bare | O34: 0 | P34: 1 | Q34: 0.250785 | R34: 0.183909 | S34: 0.117033 | T34: 0.050157 | U34: 0 | V34: 0 | W34: 0 | X34: 0 | Y34: 0 | Z34: 0 | AA34: 0 | AB34: 0 | AC34: 0
A35: 30 | B35: 0 | C35: 0.15441 | E35: 44 | F35: LV | I35: Bare | K35: 0 | L35: yes | M35: 2 | N35: Bare | O35: 1 | P35: 1 | Q35: 0.1158075 | R35: 0.0849255 | S35: 0.0540435 | T35: 0.0231615 | U35: 0 | V35: 0 | W35: 0 | X35: 0 | Y35: 0 | Z35: 0 | AA35: 0 | AB35: 0 | AC35: 0
A36: 31 | B36: 0 | C36: 5.71179 | E36: 44 | F36: LV | I36: Bare | K36: 0 | L36: yes | M36: 2 | N36: Bare | P36: 1 | Q36: 4.2838425 | R36: 3.1414845 | S36: 1.9991265 | T36: 0.8567685 | U36: 0 | V36: 0 | W36: 0 | X36: 0 | Y36: 0 | Z36: 0 | AA36: 0 | AB36: 0 | AC36: 0
A37: 32 | B37: 0 | C37: 0.95365 | E37: 44 | F37: LV | I37: Insulated | K37: 0 | L37: yes | M37: 2 | N37: Insulated | O37: 0 | P37: 1 | Q37: 0.7152375 | R37: 0.5245075 | S37: 0.3337775 | T37: 0.1430475 | U37: 0 | V37: 0 | W37: 0 | X37: 0 | Y37: 0 | Z37: 0 | AA37: 0 | AB37: 0 | AC37: 0
A38: 33 | B38: 0 | C38: 1.94171 | E38: 44 | F38: LV | I38: Insulated | K38: 0 | L38: yes | M38: 2 | N38: Insulated | P38: 1 | Q38: 1.4562825 | R38: 1.0679405 | S38: 0.6795985 | T38: 0.2912565 | U38: 0 | V38: 0 | W38: 0 | X38: 0 | Y38: 0 | Z38: 0 | AA38: 0 | AB38: 0 | AC38: 0
A39: 34 | B39: 0 | C39: 3.05862 | E39: 44 | F39: LV | I39: Bare | K39: 0 | L39: yes | M39: 3 | N39: Bare | O39: 0 | P39: 1 | Q39: 2.293965 | R39: 1.682241 | S39: 1.070517 | T39: =IF($P39=1,$C39*(1-T$4),OFFSET($C39,-$AF$6,)*T$4) -> 0.458793 | U39: 0 | V39: 0 | W39: 0 | X39: 0 | Y39: 0 | Z39: 0 | AA39: 0 | AB39: 0 | AC39: 0
A40: 35 | B40: 0 | C40: 0.05704 | E40: 44 | F40: LV | I40: Bare | K40: 0 | L40: yes | M40: 3 | N40: Bare | O40: 1 | P40: 1 | Q40: 0.04278 | R40: 0.031372 | S40: 0.019964 | T40: 0.008556 | U40: 0 | V40: 0 | W40: 0 | X40: 0 | Y40: 0 | Z40: 0 | AA40: 0 | AB40: 0 | AC40: 0
A41: 36 | B41: 0 | C41: 0.03684 | E41: 44 | F41: LV | I41: Bare | K41: 0 | L41: yes | M41: 3 | N41: Bare | O41: 2 | P41: 1 | Q41: 0.02763 | R41: 0.020262 | S41: 0.012894 | T41: 0.005526 | U41: 0 | V41: 0 | W41: 0 | X41: 0 | Y41: 0 | Z41: 0 | AA41: 0 | AB41: 0 | AC41: 0
A42: 37 | B42: 0 | C42: 25.18153 | E42: 44 | F42: LV | I42: Bare | K42: 0 | L42: yes | M42: 3 | N42: Bare | P42: 1 | Q42: 18.8861475 | R42: 13.8498415 | S42: 8.8135355 | T42: 3.7772295 | U42: 0 | V42: 0 | W42: 0 | X42: 0 | Y42: 0 | Z42: 0 | AA42: 0 | AB42: 0 | AC42: 0
A43: 38 | B43: 0 | C43: 1.25407 | E43: 44 | F43: LV | I43: Insulated | K43: 0 | L43: yes | M43: 3 | N43: Insulated | O43: 0 | P43: 1 | Q43: 0.9405525 | R43: 0.6897385 | S43: 0.4389245 | T43: 0.1881105 | U43: 0 | V43: 0 | W43: 0 | X43: 0 | Y43: 0 | Z43: 0 | AA43: 0 | AB43: 0 | AC43: 0
A44: 39 | B44: 0 | C44: 0.06759 | E44: 44 | F44: LV | I44: Insulated | K44: 0 | L44: yes | M44: 3 | N44: Insulated | O44: 1 | P44: 1 | Q44: 0.0506925 | R44: 0.0371745 | S44: 0.0236565 | T44: 0.0101385 | U44: 0 | V44: 0 | W44: 0 | X44: 0 | Y44: 0 | Z44: 0 | AA44: 0 | AB44: 0 | AC44: 0
A45: 40 | B45: 0 | C45: 6.63156 | E45: 44 | F45: LV | I45: Insulated | K45: 0 | L45: yes | M45: 3 | N45: Insulated | P45: 1 | Q45: 4.97367 | R45: 3.647358 | S45: 2.321046 | T45: 0.994734 | U45: 0 | V45: 0 | W45: 0 | X45: 0 | Y45: 0 | Z45: 0 | AA45: 0 | AB45: 0 | AC45: 0
A46: 41 | B46: 0 | C46: 4.96029 | E46: 44 | F46: LV | I46: Bare | K46: 0 | L46: yes | M46: 4 | N46: Bare | O46: 0 | P46: 1 | Q46: =IF($P46=1,$C46*(1-Q$4),OFFSET($C46,-$AF$6,)*Q$4) -> 3.7202175 | R46: 2.7281595 | S46: 1.7361015 | T46: 0.7440435 | U46: 0 | V46: 0 | W46: 0 | X46: 0 | Y46: 0 | Z46: 0 | AA46: 0 | AB46: 0 | AC46: 0
A47: 42 | B47: 0 | C47: 0.1756 | E47: 44 | F47: LV | I47: Bare | K47: 0 | L47: yes | M47: 4 | N47: Bare | O47: 1 | P47: 1 | Q47: 0.1317 | R47: 0.09658 | S47: 0.06146 | T47: 0.02634 | U47: 0 | V47: 0 | W47: 0 | X47: 0 | Y47: 0 | Z47: 0 | AA47: 0 | AB47: 0 | AC47: 0
A48: 43 | B48: 0 | C48: 20.44726 | E48: 44 | F48: LV | I48: Bare | K48: 0 | L48: yes | M48: 4 | N48: Bare | P48: 1 | Q48: 15.335445 | R48: 11.245993 | S48: 7.156541 | T48: 3.067089 | U48: 0 | V48: 0 | W48: 0 | X48: 0 | Y48: 0 | Z48: 0 | AA48: 0 | AB48: 0 | AC48: 0
A49: 44 | B49: 0 | C49: 1.18364 | E49: 44 | F49: LV | I49: Insulated | K49: 0 | L49: yes | M49: 4 | N49: Insulated | O49: 0 | P49: 1 | Q49: 0.88773 | R49: 0.651002 | S49: 0.414274 | T49: 0.177546 | U49: 0 | V49: 0 | W49: 0 | X49: 0 | Y49: 0 | Z49: 0 | AA49: 0 | AB49: 0 | AC49: 0
A50: 45 | B50: 0 | C50: 6.41866 | E50: 44 | F50: LV | I50: Insulated | K50: 0 | L50: yes | M50: 4 | N50: Insulated | P50: 1 | Q50: 4.813995 | R50: 3.530263 | S50: 2.246531 | T50: 0.962799 | U50: 0 | V50: 0 | W50: 0 | X50: 0 | Y50: 0 | Z50: 0 | AA50: 0 | AB50: 0 | AC50: 0
A51: 46 | B51: 0 | C51: 0.22969 | E51: 44 | F51: LV | I51: Bare | K51: 0 | L51: yes | M51: 5 | N51: Bare | P51: 1 | Q51: 0.1722675 | R51: 0.1263295 | S51: 0.0803915 | T51: 0.0344535 | U51: 0 | V51: 0 | W51: 0 | X51: 0 | Y51: 0 | Z51: 0 | AA51: 0 | AB51: 0 | AC51: 0
A52: 47 | B52: 0 | C52: 0.27751 | E52: 44 | F52: LV | I52: Insulated | K52: 0 | L52: yes | M52: 5 | N52: Insulated | P52: 1 | Q52: 0.2081325 | R52: 0.1526305 | S52: 0.0971285 | T52: 0.0416265 | U52: 0 | V52: 0 | W52: 0 | X52: 0 | Y52: 0 | Z52: 0 | AA52: 0 | AB52: 0 | AC52: 0
A53: 48 | B53: 1 | C53: 0.07426 | E53: 44 | F53: LV | I53: Insulated | K53: 1 | M53: 2 | N53: Insulated | O53: 0 | P53: 1 | Q53: 0.055695 | R53: 0.040843 | S53: 0.025991 | T53: 0.011139 | U53: 0 | V53: 0 | W53: 0 | X53: 0 | Y53: 0 | Z53: 0 | AA53: 0 | AB53: 0 | AC53: 0
A54: 49 | B54: 1 | C54: 0.03251 | E54: 44 | F54: LV | I54: Insulated | K54: 1 | M54: 4 | N54: Insulated | O54: 0 | P54: 1 | Q54: 0.0243825 | R54: 0.0178805 | S54: 0.0113785 | T54: 0.0048765 | U54: 0 | V54: 0 | W54: 0 | X54: 0 | Y54: 0 | Z54: 0 | AA54: 0 | AB54: 0 | AC54: 0
A55: 50 | B55: 1 | C55: 0.02174 | E55: 44 | F55: LV | I55: Bare | K55: 1 | L55: yes | M55: 1 | N55: Bare | P55: 1 | Q55: 0.016305 | R55: 0.011957 | S55: 0.007609 | T55: =IF($P55=1,$C55*(1-T$4),OFFSET($C55,-$AF$6,)*T$4) -> 0.003261 | U55: 0 | V55: 0 | W55: 0 | X55: 0 | Y55: 0 | Z55: 0 | AA55: 0 | AB55: 0 | AC55: 0
A56: 51 | B56: 1 | C56: 0.18527 | E56: 44 | F56: LV | I56: Insulated | K56: 1 | L56: yes | M56: 1 | N56: Insulated | P56: 1 | Q56: 0.1389525 | R56: 0.1018985 | S56: 0.0648445 | T56: 0.0277905 | U56: 0 | V56: 0 | W56: 0 | X56: 0 | Y56: 0 | Z56: 0 | AA56: 0 | AB56: 0 | AC56: 0
A57: 52 | B57: 1 | C57: 0.04277 | E57: 44 | F57: LV | I57: Insulated | K57: 1 | L57: yes | M57: 2 | N57: Insulated | P57: 1 | Q57: 0.0320775 | R57: 0.0235235 | S57: 0.0149695 | T57: 0.0064155 | U57: 0 | V57: 0 | W57: 0 | X57: 0 | Y57: 0 | Z57: 0 | AA57: 0 | AB57: 0 | AC57: 0
A58: 53 | B58: 1 | C58: 0.32435 | E58: 44 | F58: LV | I58: Insulated | K58: 1 | L58: yes | M58: 3 | N58: Insulated | P58: 1 | Q58: 0.2432625 | R58: 0.1783925 | S58: 0.1135225 | T58: 0.0486525 | U58: 0 | V58: 0 | W58: 0 | X58: 0 | Y58: 0 | Z58: 0 | AA58: 0 | AB58: 0 | AC58: 0
A59: 54 | B59: 1 | C59: 0.12839 | E59: 44 | F59: LV | I59: Insulated | K59: 1 | L59: yes | M59: 4 | N59: Insulated | P59: 1 | Q59: 0.0962925 | R59: 0.0706145 | S59: 0.0449365 | T59: 0.0192585 | U59: 0 | V59: 0 | W59: 0 | X59: 0 | Y59: 0 | Z59: 0 | AA59: 0 | AB59: 0 | AC59: 0
A60: 55 | B60: 2 | C60: 0.1516 | E60: 44 | F60: LV | I60: Bare | K60: 2 | M60: 1 | N60: Bare | O60: 0 | P60: 1 | Q60: 0.1137 | R60: 0.08338 | S60: 0.05306 | T60: 0.02274 | U60: 0 | V60: 0 | W60: 0 | X60: 0 | Y60: 0 | Z60: 0 | AA60: 0 | AB60: 0 | AC60: 0
A61: 56 | B61: 2 | C61: 0.08051 | E61: 44 | F61: LV | I61: Insulated | K61: 2 | M61: 4 | N61: Insulated | P61: 1 | Q61: 0.0603825 | R61: 0.0442805 | S61: 0.0281785 | T61: 0.0120765 | U61: 0 | V61: 0 | W61: 0 | X61: 0 | Y61: 0 | Z61: 0 | AA61: 0 | AB61: 0 | AC61: 0
A62: 57 | B62: 2 | C62: 0.1561 | E62: 44 | F62: LV | I62: Insulated | K62: 2 | L62: yes | M62: 1 | N62: Insulated | P62: 1 | Q62: 0.117075 | R62: 0.085855 | S62: 0.054635 | T62: 0.023415 | U62: 0 | V62: 0 | W62: 0 | X62: 0 | Y62: 0 | Z62: 0 | AA62: 0 | AB62: 0 | AC62: 0
A63: 58 | B63: 2 | C63: 0.03139 | E63: 44 | F63: LV | I63: Insulated | K63: 2 | L63: yes | M63: 2 | N63: Insulated | P63: 1 | Q63: 0.0235425 | R63: 0.0172645 | S63: 0.0109865 | T63: 0.0047085 | U63: 0 | V63: 0 | W63: 0 | X63: 0 | Y63: 0 | Z63: 0 | AA63: 0 | AB63: 0 | AC63: 0
A64: 59 | B64: 2 | C64: 0.60214 | E64: 44 | F64: LV | I64: Insulated | K64: 2 | L64: yes | M64: 3 | N64: Insulated | P64: 1 | Q64: 0.451605 | R64: 0.331177 | S64: 0.210749 | T64: 0.090321 | U64: 0 | V64: 0 | W64: 0 | X64: 0 | Y64: 0 | Z64: 0 | AA64: 0 | AB64: 0 | AC64: 0
A65: 60 | B65: 2 | C65: 0.13476 | E65: 44 | F65: LV | I65: Insulated | K65: 2 | L65: yes | M65: 4 | N65: Insulated | P65: 1 | Q65: 0.10107 | R65: 0.074118 | S65: 0.047166 | T65: 0.020214 | U65: 0 | V65: 0 | W65: 0 | X65: 0 | Y65: 0 | Z65: 0 | AA65: 0 | AB65: 0 | AC65: 0
A66: 61 | B66: 2 | C66: 0.01757 | E66: 44 | F66: LV | I66: Insulated | K66: 2 | L66: yes | M66: 5 | N66: Insulated | P66: 1 | Q66: =IF($P66=1,$C66*(1-Q$4),OFFSET($C66,-$AF$6,)*Q$4) -> 0.0131775 | R66: 0.0096635 | S66: 0.0061495 | T66: 0.0026355 | U66: 0 | V66: 0 | W66: 0 | X66: 0 | Y66: 0 | Z66: 0 | AA66: 0 | AB66: 0 | AC66: 0
A67: 62 | B67: 3 | C67: 0.0263 | E67: 44 | F67: LV | I67: Insulated | K67: 3 | M67: 4 | N67: Insulated | P67: 1 | Q67: 0.019725 | R67: 0.014465 | S67: 0.009205 | T67: 0.003945 | U67: 0 | V67: 0 | W67: 0 | X67: 0 | Y67: 0 | Z67: 0 | AA67: 0 | AB67: 0 | AC67: 0
A68: 63 | B68: 3 | C68: 0.16739 | E68: 44 | F68: LV | I68: Insulated | K68: 3 | L68: yes | M68: 1 | N68: Insulated | P68: 1 | Q68: 0.1255425 | R68: 0.0920645 | S68: 0.0585865 | T68: 0.0251085 | U68: 0 | V68: 0 | W68: 0 | X68: 0 | Y68: 0 | Z68: 0 | AA68: 0 | AB68: 0 | AC68: 0
A69: 64 | B69: 3 | C69: 0.08026 | E69: 44 | F69: LV | I69: Insulated | K69: 3 | L69: yes | M69: 2 | N69: Insulated | P69: 1 | Q69: 0.060195 | R69: 0.044143 | S69: 0.028091 | T69: 0.012039 | U69: 0 | V69: 0 | W69: 0 | X69: 0 | Y69: 0 | Z69: 0 | AA69: 0 | AB69: 0 | AC69: 0
A70: 65 | B70: 3 | C70: 0.08043 | E70: 44 | F70: LV | I70: Insulated | K70: 3 | L70: yes | M70: 3 | N70: Insulated | O70: 0 | P70: 1 | Q70: 0.0603225 | R70: 0.0442365 | S70: 0.0281505 | T70: 0.0120645 | U70: 0 | V70: 0 | W70: 0 | X70: 0 | Y70: 0 | Z70: 0 | AA70: 0 | AB70: 0 | AC70: 0
A71: 66 | B71: 3 | C71: 0.19669 | E71: 44 | F71: LV | I71: Insulated | K71: =B71 -> 3 | L71: yes | M71: 3 | N71: Insulated | P71: 1 | Q71: 0.1475175 | R71: 0.1081795 | S71: 0.0688415 | T71: =IF($P71=1,$C71*(1-T$4),OFFSET($C71,-$AF$6,)*T$4) -> 0.0295035 | U71: 0 | V71: 0 | W71: 0 | X71: 0 | Y71: 0 | Z71: 0 | AA71: 0 | AB71: 0 | AC71: 0
A72: 67 | B72: 3 | C72: 0.33124 | E72: 44 | F72: LV | I72: Insulated | K72: 3 | L72: yes | M72: 4 | N72: Insulated | P72: 1 | Q72: 0.24843 | R72: 0.182182 | S72: 0.115934 | T72: 0.049686 | U72: 0 | V72: 0 | W72: 0 | X72: 0 | Y72: 0 | Z72: 0 | AA72: 0 | AB72: 0 | AC72: 0
A73: 68 | B73: 3 | C73: 0.03542 | E73: 44 | F73: LV | I73: Bare | K73: 3 | L73: yes | M73: 5 | N73: Bare | P73: 1 | Q73: 0.026565 | R73: 0.019481 | S73: 0.012397 | T73: 0.005313 | U73: 0 | V73: 0 | W73: 0 | X73: 0 | Y73: 0 | Z73: 0 | AA73: 0 | AB73: 0 | AC73: 0
A74: 69 | B74: 3 | C74: 0.04845 | E74: 44 | F74: LV | I74: Insulated | K74: 3 | L74: yes | M74: 5 | N74: Insulated | O74: 0 | P74: 1 | Q74: 0.0363375 | R74: 0.0266475 | S74: 0.0169575 | T74: 0.0072675 | U74: 0 | V74: 0 | W74: 0 | X74: 0 | Y74: 0 | Z74: 0 | AA74: 0 | AB74: 0 | AC74: 0
A75: 70 | B75: 3 | C75: 0.23823 | E75: 44 | F75: LV | I75: Insulated | K75: 3 | L75: yes | M75: 5 | N75: Insulated | P75: 1 | Q75: 0.1786725 | R75: 0.1310265 | S75: 0.0833805 | T75: 0.0357345 | U75: 0 | V75: 0 | W75: 0 | X75: 0 | Y75: 0 | Z75: 0 | AA75: 0 | AB75: 0 | AC75: 0
A76: 71 | B76: 4 | C76: 0.03383 | E76: 44 | F76: LV | I76: Insulated | K76: 4 | M76: 1 | N76: Insulated | P76: 1 | Q76: 0.0253725 | R76: 0.0186065 | S76: 0.0118405 | T76: 0.0050745 | U76: 0 | V76: 0 | W76: 0 | X76: 0 | Y76: 0 | Z76: 0 | AA76: 0 | AB76: 0 | AC76: 0
A77: 72 | B77: 4 | C77: 0.03786 | E77: 44 | F77: LV | I77: Insulated | K77: 4 | M77: 3 | N77: Insulated | O77: 0 | P77: 1 | Q77: 0.028395 | R77: 0.020823 | S77: 0.013251 | T77: 0.005679 | U77: 0 | V77: 0 | W77: 0 | X77: 0 | Y77: 0 | Z77: 0 | AA77: 0 | AB77: 0 | AC77: 0
A78: 73 | B78: 4 | C78: 0.01191 | E78: 44 | F78: LV | I78: Insulated | K78: 4 | M78: 3 | N78: Insulated | P78: 1 | Q78: 0.0089325 | R78: 0.0065505 | S78: 0.0041685 | T78: 0.0017865 | U78: 0 | V78: 0 | W78: 0 | X78: 0 | Y78: 0 | Z78: 0 | AA78: 0 | AB78: 0 | AC78: 0
A79: 74 | B79: 4 | C79: 0.03044 | E79: 44 | F79: LV | I79: Bare | K79: 4 | L79: yes | M79: 1 | N79: Bare | O79: 0 | P79: 1 | Q79: 0.02283 | R79: 0.016742 | S79: 0.010654 | T79: 0.004566 | U79: 0 | V79: 0 | W79: 0 | X79: 0 | Y79: 0 | Z79: 0 | AA79: 0 | AB79: 0 | AC79: 0
A80: 75 | B80: 4 | C80: 0.48281 | E80: 44 | F80: LV | I80: Insulated | K80: 4 | L80: yes | M80: 1 | N80: Insulated | P80: 1 | Q80: 0.3621075 | R80: 0.2655455 | S80: 0.1689835 | T80: 0.0724215 | U80: 0 | V80: 0 | W80: 0 | X80: 0 | Y80: 0 | Z80: 0 | AA80: 0 | AB80: 0 | AC80: 0
A81: 76 | B81: 4 | C81: 0.0702 | E81: 44 | F81: LV | I81: Insulated | K81: 4 | L81: yes | M81: 2 | N81: Insulated | P81: 1 | Q81: 0.05265 | R81: 0.03861 | S81: 0.02457 | T81: 0.01053 | U81: 0 | V81: 0 | W81: 0 | X81: 0 | Y81: 0 | Z81: 0 | AA81: 0 | AB81: 0 | AC81: 0
A82: 77 | B82: 4 | C82: 0.36844 | E82: 44 | F82: LV | I82: Insulated | K82: 4 | L82: yes | M82: 3 | N82: Insulated | P82: 1 | Q82: 0.27633 | R82: 0.202642 | S82: 0.128954 | T82: 0.055266 | U82: 0 | V82: 0 | W82: 0 | X82: 0 | Y82: 0 | Z82: 0 | AA82: 0 | AB82: 0 | AC82: 0
A83: 78 | B83: 4 | C83: 0.49118 | E83: 44 | F83: LV | I83: Insulated | K83: 4 | L83: yes | M83: 4 | N83: Insulated | P83: 1 | Q83: 0.368385 | R83: 0.270149 | S83: 0.171913 | T83: 0.073677 | U83: 0 | V83: 0 | W83: 0 | X83: 0 | Y83: 0 | Z83: 0 | AA83: 0 | AB83: 0 | AC83: 0
A84: 79 | B84: 4 | C84: 0.07567 | E84: 44 | F84: LV | I84: Insulated | K84: 4 | L84: yes | M84: 5 | N84: Insulated | P84: 1 | Q84: 0.0567525 | R84: 0.0416185 | S84: 0.0264845 | T84: 0.0113505 | U84: 0 | V84: 0 | W84: 0 | X84: 0 | Y84: 0 | Z84: 0 | AA84: 0 | AB84: 0 | AC84: 0
A85: 80 | B85: 5 | C85: 0.03464 | E85: 44 | F85: LV | I85: Insulated | K85: 5 | M85: 1 | N85: Insulated | P85: 1 | Q85: 0.02598 | R85: 0.019052 | S85: 0.012124 | T85: 0.005196 | U85: 0 | V85: 0 | W85: 0 | X85: 0 | Y85: 0 | Z85: 0 | AA85: 0 | AB85: 0 | AC85: 0
A86: 81 | B86: 5 | C86: 0.06383 | E86: 44 | F86: LV | I86: Insulated | K86: 5 | M86: 3 | N86: Insulated | P86: 1 | Q86: =IF($P86=1,$C86*(1-Q$4),OFFSET($C86,-$AF$6,)*Q$4) -> 0.0478725 | R86: 0.0351065 | S86: 0.0223405 | T86: 0.0095745 | U86: 0 | V86: 0 | W86: 0 | X86: 0 | Y86: 0 | Z86: 0 | AA86: 0 | AB86: 0 | AC86: 0
A87: 82 | B87: 5 | C87: 0.04483 | E87: 44 | F87: LV | I87: Bare | K87: 5 | L87: yes | M87: 1 | N87: Bare | P87: 1 | Q87: 0.0336225 | R87: 0.0246565 | S87: 0.0156905 | T87: =IF($P87=1,$C87*(1-T$4),OFFSET($C87,-$AF$6,)*T$4) -> 0.0067245 | U87: 0 | V87: 0 | W87: 0 | X87: 0 | Y87: 0 | Z87: 0 | AA87: 0 | AB87: 0 | AC87: 0
A88: 83 | B88: 5 | C88: 0.13138 | E88: 44 | F88: LV | I88: Insulated | K88: 5 | L88: yes | M88: 1 | N88: Insulated | P88: 1 | Q88: 0.098535 | R88: 0.072259 | S88: 0.045983 | T88: 0.019707 | U88: 0 | V88: 0 | W88: 0 | X88: 0 | Y88: 0 | Z88: 0 | AA88: 0 | AB88: 0 | AC88: 0
A89: 84 | B89: 5 | C89: 0.08724 | E89: 44 | F89: LV | I89: Insulated | K89: 5 | L89: yes | M89: 2 | N89: Insulated | P89: 1 | Q89: 0.06543 | R89: 0.047982 | S89: 0.030534 | T89: 0.013086 | U89: 0 | V89: 0 | W89: 0 | X89: 0 | Y89: 0 | Z89: 0 | AA89: 0 | AB89: 0 | AC89: 0
A90: 85 | B90: 5 | C90: 0.46515 | E90: 44 | F90: LV | I90: Insulated | K90: 5 | L90: yes | M90: 3 | N90: Insulated | P90: 1 | Q90: 0.3488625 | R90: 0.2558325 | S90: 0.1628025 | T90: 0.0697725 | U90: 0 | V90: 0 | W90: 0 | X90: 0 | Y90: 0 | Z90: 0 | AA90: 0 | AB90: 0 | AC90: 0
A91: 86 | B91: 5 | C91: 0.05351 | E91: 44 | F91: LV | I91: Bare | K91: 5 | L91: yes | M91: 4 | N91: Bare | P91: 1 | Q91: 0.0401325 | R91: 0.0294305 | S91: 0.0187285 | T91: 0.0080265 | U91: 0 | V91: 0 | W91: 0 | X91: 0 | Y91: 0 | Z91: 0 | AA91: 0 | AB91: 0 | AC91: 0
A92: 87 | B92: 5 | C92: 0.04894 | E92: 44 | F92: LV | I92: Insulated | K92: 5 | L92: yes | M92: 4 | N92: Insulated | O92: 0 | P92: 1 | Q92: 0.036705 | R92: 0.026917 | S92: 0.017129 | T92: 0.007341 | U92: 0 | V92: 0 | W92: 0 | X92: 0 | Y92: 0 | Z92: 0 | AA92: 0 | AB92: 0 | AC92: 0
A93: 88 | B93: 5 | C93: 0.2196 | E93: 44 | F93: LV | I93: Insulated | K93: 5 | L93: yes | M93: 4 | N93: Insulated | P93: 1 | Q93: 0.1647 | R93: 0.12078 | S93: 0.07686 | T93: 0.03294 | U93: 0 | V93: 0 | W93: 0 | X93: 0 | Y93: 0 | Z93: 0 | AA93: 0 | AB93: 0 | AC93: 0
A94: 89 | B94: 6 | C94: 0.14982 | E94: 44 | F94: LV | I94: Insulated | K94: 6 | L94: yes | M94: 1 | N94: Insulated | O94: 0 | P94: 1 | Q94: 0.112365 | R94: 0.082401 | S94: 0.052437 | T94: 0.022473 | U94: 0 | V94: 0 | W94: 0 | X94: 0 | Y94: 0 | Z94: 0 | AA94: 0 | AB94: 0 | AC94: 0
A95: 90 | B95: 6 | C95: 0.23059 | E95: 44 | F95: LV | I95: Insulated | K95: 6 | L95: yes | M95: 1 | N95: Insulated | P95: 1 | Q95: 0.1729425 | R95: 0.1268245 | S95: 0.0807065 | T95: 0.0345885 | U95: 0 | V95: 0 | W95: 0 | X95: 0 | Y95: 0 | Z95: 0 | AA95: 0 | AB95: 0 | AC95: 0
A96: 91 | B96: 6 | C96: 0.02717 | E96: 44 | F96: LV | I96: Insulated | K96: 6 | L96: yes | M96: 2 | N96: Insulated | P96: 1 | Q96: 0.0203775 | R96: 0.0149435 | S96: 0.0095095 | T96: 0.0040755 | U96: 0 | V96: 0 | W96: 0 | X96: 0 | Y96: 0 | Z96: 0 | AA96: 0 | AB96: 0 | AC96: 0
A97: 92 | B97: 6 | C97: 0.07431 | E97: 44 | F97: LV | I97: Bare | K97: 6 | L97: yes | M97: 3 | N97: Bare | P97: 1 | Q97: 0.0557325 | R97: 0.0408705 | S97: 0.0260085 | T97: 0.0111465 | U97: 0 | V97: 0 | W97: 0 | X97: 0 | Y97: 0 | Z97: 0 | AA97: 0 | AB97: 0 | AC97: 0
A98: 93 | B98: 6 | C98: 0.567 | E98: 44 | F98: LV | I98: Insulated | K98: 6 | L98: yes | M98: 3 | N98: Insulated | P98: 1 | Q98: 0.42525 | R98: 0.31185 | S98: 0.19845 | T98: 0.08505 | U98: 0 | V98: 0 | W98: 0 | X98: 0 | Y98: 0 | Z98: 0 | AA98: 0 | AB98: 0 | AC98: 0
A99: 94 | B99: 6 | C99: 1.02011 | E99: 44 | F99: LV | I99: Insulated | K99: 6 | L99: yes | M99: 4 | N99: Insulated | P99: 1 | Q99: 0.7650825 | R99: 0.5610605 | S99: 0.3570385 | T99: 0.1530165 | U99: 0 | V99: 0 | W99: 0 | X99: 0 | Y99: 0 | Z99: 0 | AA99: 0 | AB99: 0 | AC99: 0
A100: 95 | B100: 6 | C100: 0.04556 | E100: 44 | F100: LV | I100: Insulated | K100: 6 | L100: yes | M100: 5 | N100: Insulated | P100: 1 | Q100: 0.03417 | R100: 0.025058 | S100: 0.015946 | T100: 0.006834 | U100: 0 | V100: 0 | W100: 0 | X100: 0 | Y100: 0 | Z100: 0 | AA100: 0 | AB100: 0 | AC100: 0
A101: 96 | B101: 7 | C101: 0.07343 | E101: 44 | F101: LV | I101: Insulated | K101: 7 | M101: 4 | N101: Insulated | O101: 0 | P101: 1 | Q101: 0.0550725 | R101: 0.0403865 | S101: 0.0257005 | T101: 0.0110145 | U101: 0 | V101: 0 | W101: 0 | X101: 0 | Y101: 0 | Z101: 0 | AA101: 0 | AB101: 0 | AC101: 0
A102: 97 | B102: 7 | C102: 0.29689 | E102: 44 | F102: LV | I102: Insulated | K102: 7 | M102: 4 | N102: Insulated | P102: 1 | Q102: 0.2226675 | R102: 0.1632895 | S102: 0.1039115 | T102: 0.0445335 | U102: 0 | V102: 0 | W102: 0 | X102: 0 | Y102: 0 | Z102: 0 | AA102: 0 | AB102: 0 | AC102: 0
A103: 98 | B103: 7 | C103: 0.02782 | E103: 44 | F103: LV | I103: Insulated | K103: 7 | L103: yes | M103: 1 | N103: Insulated | O103: 0 | P103: 1 | Q103: 0.020865 | R103: 0.015301 | S103: 0.009737 | T103: =IF($P103=1,$C103*(1-T$4),OFFSET($C103,-$AF$6,)*T$4) -> 0.004173 | U103: 0 | V103: 0 | W103: 0 | X103: 0 | Y103: 0 | Z103: 0 | AA103: 0 | AB103: 0 | AC103: 0
A104: 99 | B104: 7 | C104: 0.74892 | E104: 44 | F104: LV | I104: Insulated | K104: 7 | L104: yes | M104: 1 | N104: Insulated | P104: 1 | Q104: 0.56169 | R104: 0.411906 | S104: 0.262122 | T104: 0.112338 | U104: 0 | V104: 0 | W104: 0 | X104: 0 | Y104: 0 | Z104: 0 | AA104: 0 | AB104: 0 | AC104: 0
A105: 100 | B105: 7 | C105: 0.06791 | E105: 44 | F105: LV | I105: Insulated | K105: 7 | L105: yes | M105: 2 | N105: Insulated | P105: 1 | Q105: 0.0509325 | R105: 0.0373505 | S105: 0.0237685 | T105: 0.0101865 | U105: 0 | V105: 0 | W105: 0 | X105: 0 | Y105: 0 | Z105: 0 | AA105: 0 | AB105: 0 | AC105: 0
A106: 101 | B106: 7 | C106: 0.02303 | E106: 44 | F106: LV | I106: Insulated | K106: 7 | L106: yes | M106: 3 | N106: Insulated | O106: 0 | P106: 1 | Q106: =IF($P106=1,$C106*(1-Q$4),OFFSET($C106,-$AF$6,)*Q$4) -> 0.0172725 | R106: 0.0126665 | S106: 0.0080605 | T106: 0.0034545 | U106: 0 | V106: 0 | W106: 0 | X106: 0 | Y106: 0 | Z106: 0 | AA106: 0 | AB106: 0 | AC106: 0
A107: 102 | B107: 7 | C107: 1.42199 | E107: 44 | F107: LV | I107: Insulated | K107: 7 | L107: yes | M107: 3 | N107: Insulated | P107: 1 | Q107: 1.0664925 | R107: 0.7820945 | S107: 0.4976965 | T107: 0.2132985 | U107: 0 | V107: 0 | W107: 0 | X107: 0 | Y107: 0 | Z107: 0 | AA107: 0 | AB107: 0 | AC107: 0
A108: 103 | B108: 7 | C108: 1.33868 | E108: 44 | F108: LV | I108: Insulated | K108: 7 | L108: yes | M108: 4 | N108: Insulated | P108: 1 | Q108: 1.00401 | R108: 0.736274 | S108: 0.468538 | T108: 0.200802 | U108: 0 | V108: 0 | W108: 0 | X108: 0 | Y108: 0 | Z108: 0 | AA108: 0 | AB108: 0 | AC108: 0
A109: 104 | B109: 7 | C109: 0.04514 | E109: 44 | F109: LV | I109: Insulated | K109: 7 | L109: yes | M109: 5 | N109: Insulated | P109: 1 | Q109: 0.033855 | R109: 0.024827 | S109: 0.015799 | T109: 0.006771 | U109: 0 | V109: 0 | W109: 0 | X109: 0 | Y109: 0 | Z109: 0 | AA109: 0 | AB109: 0 | AC109: 0
A110: 105 | B110: 8 | C110: 0.03519 | E110: 44 | F110: LV | I110: Bare | K110: 8 | L110: yes | M110: 1 | N110: Bare | P110: 1 | Q110: 0.0263925 | R110: 0.0193545 | S110: 0.0123165 | T110: 0.0052785 | U110: 0 | V110: 0 | W110: 0 | X110: 0 | Y110: 0 | Z110: 0 | AA110: 0 | AB110: 0 | AC110: 0
A111: 106 | B111: 8 | C111: 0.02905 | E111: 44 | F111: LV | I111: Insulated | K111: 8 | L111: yes | M111: 1 | N111: Insulated | O111: 1 | P111: 1 | Q111: 0.0217875 | R111: 0.0159775 | S111: 0.0101675 | T111: 0.0043575 | U111: 0 | V111: 0 | W111: 0 | X111: 0 | Y111: 0 | Z111: 0 | AA111: 0 | AB111: 0 | AC111: 0
A112: 107 | B112: 8 | C112: 0.60692 | E112: 44 | F112: LV | I112: Insulated | K112: 8 | L112: yes | M112: 1 | N112: Insulated | P112: 1 | Q112: 0.45519 | R112: 0.333806 | S112: 0.212422 | T112: 0.091038 | U112: 0 | V112: 0 | W112: 0 | X112: 0 | Y112: 0 | Z112: 0 | AA112: 0 | AB112: 0 | AC112: 0
A113: 108 | B113: 8 | C113: 0.42713 | E113: 44 | F113: LV | I113: Insulated | K113: 8 | L113: yes | M113: 2 | N113: Insulated | P113: 1 | Q113: 0.3203475 | R113: 0.2349215 | S113: 0.1494955 | T113: 0.0640695 | U113: 0 | V113: 0 | W113: 0 | X113: 0 | Y113: 0 | Z113: 0 | AA113: 0 | AB113: 0 | AC113: 0
A114: 109 | B114: 8 | C114: 0.53819 | E114: 44 | F114: LV | I114: Insulated | K114: 8 | L114: yes | M114: 3 | N114: Insulated | P114: 1 | Q114: 0.4036425 | R114: 0.2960045 | S114: 0.1883665 | T114: 0.0807285 | U114: 0 | V114: 0 | W114: 0 | X114: 0 | Y114: 0 | Z114: 0 | AA114: 0 | AB114: 0 | AC114: 0
A115: 110 | B115: 8 | C115: 0.04763 | E115: 44 | F115: LV | I115: Insulated | K115: 8 | L115: yes | M115: 4 | N115: Insulated | O115: 0 | P115: 1 | Q115: 0.0357225 | R115: 0.0261965 | S115: 0.0166705 | T115: 0.0071445 | U115: 0 | V115: 0 | W115: 0 | X115: 0 | Y115: 0 | Z115: 0 | AA115: 0 | AB115: 0 | AC115: 0
A116: 111 | B116: 8 | C116: 1.07305 | E116: 44 | F116: LV | I116: Insulated | K116: 8 | L116: yes | M116: 4 | N116: Insulated | P116: 1 | Q116: 0.8047875 | R116: 0.5901775 | S116: 0.3755675 | T116: 0.1609575 | U116: 0 | V116: 0 | W116: 0 | X116: 0 | Y116: 0 | Z116: 0 | AA116: 0 | AB116: 0 | AC116: 0
A117: 112 | B117: 8 | C117: 0.03375 | E117: 44 | F117: LV | I117: Insulated | K117: 8 | L117: yes | M117: 5 | N117: Insulated | P117: 1 | Q117: 0.0253125 | R117: 0.0185625 | S117: 0.0118125 | T117: 0.0050625 | U117: 0 | V117: 0 | W117: 0 | X117: 0 | Y117: 0 | Z117: 0 | AA117: 0 | AB117: 0 | AC117: 0
A118: 113 | B118: 9 | C118: 0.14799 | E118: 44 | F118: LV | I118: Insulated | K118: 9 | L118: yes | M118: 1 | N118: Insulated | O118: 0 | P118: 1 | Q118: 0.1109925 | R118: 0.0813945 | S118: 0.0517965 | T118: 0.0221985 | U118: 0 | V118: 0 | W118: 0 | X118: 0 | Y118: 0 | Z118: 0 | AA118: 0 | AB118: 0 | AC118: 0
A119: 114 | B119: 9 | C119: 0.60564 | E119: 44 | F119: LV | I119: Insulated | K119: 9 | L119: yes | M119: 1 | N119: Insulated | P119: 1 | Q119: 0.45423 | R119: 0.333102 | S119: 0.211974 | T119: =IF($P119=1,$C119*(1-T$4),OFFSET($C119,-$AF$6,)*T$4) -> 0.090846 | U119: 0 | V119: 0 | W119: 0 | X119: 0 | Y119: 0 | Z119: 0 | AA119: 0 | AB119: 0 | AC119: 0
A120: 115 | B120: 9 | C120: 0.0691 | E120: 44 | F120: LV | I120: Bare | K120: 9 | L120: yes | M120: 2 | N120: Bare | P120: 1 | Q120: 0.051825 | R120: 0.038005 | S120: 0.024185 | T120: 0.010365 | U120: 0 | V120: 0 | W120: 0 | X120: 0 | Y120: 0 | Z120: 0 | AA120: 0 | AB120: 0 | AC120: 0
A121: 116 | B121: 9 | C121: 0.07978 | E121: 44 | F121: LV | I121: Insulated | K121: 9 | L121: yes | M121: 2 | N121: Insulated | P121: 1 | Q121: 0.059835 | R121: 0.043879 | S121: 0.027923 | T121: 0.011967 | U121: 0 | V121: 0 | W121: 0 | X121: 0 | Y121: 0 | Z121: 0 | AA121: 0 | AB121: 0 | AC121: 0
A122: 117 | B122: 9 | C122: 0.45341 | E122: 44 | F122: LV | I122: Insulated | K122: 9 | L122: yes | M122: 3 | N122: Insulated | P122: 1 | Q122: 0.3400575 | R122: 0.2493755 | S122: 0.1586935 | T122: 0.0680115 | U122: 0 | V122: 0 | W122: 0 | X122: 0 | Y122: 0 | Z122: 0 | AA122: 0 | AB122: 0 | AC122: 0
A123: 118 | B123: 9 | C123: 0.08796 | E123: 44 | F123: LV | I123: Insulated | K123: 9 | L123: yes | M123: 4 | N123: Insulated | O123: 0 | P123: 1 | Q123: 0.06597 | R123: 0.048378 | S123: 0.030786 | T123: 0.013194 | U123: 0 | V123: 0 | W123: 0 | X123: 0 | Y123: 0 | Z123: 0 | AA123: 0 | AB123: 0 | AC123: 0
A124: 119 | B124: 9 | C124: 1.21183 | E124: 44 | F124: LV | I124: Insulated | K124: 9 | L124: yes | M124: 4 | N124: Insulated | P124: 1 | Q124: 0.9088725 | R124: 0.6665065 | S124: 0.4241405 | T124: 0.1817745 | U124: 0 | V124: 0 | W124: 0 | X124: 0 | Y124: 0 | Z124: 0 | AA124: 0 | AB124: 0 | AC124: 0
A125: 120 | B125: 9 | C125: 0.08873 | E125: 44 | F125: LV | I125: Insulated | K125: 9 | L125: yes | M125: 5 | N125: Insulated | P125: 1 | Q125: 0.0665475 | R125: 0.0488015 | S125: 0.0310555 | T125: 0.0133095 | U125: 0 | V125: 0 | W125: 0 | X125: 0 | Y125: 0 | Z125: 0 | AA125: 0 | AB125: 0 | AC125: 0
A126: 121 | B126: 10 | C126: 0.02923 | E126: 44 | F126: LV | I126: Insulated | K126: 10 | M126: 4 | N126: Insulated | O126: 0 | P126: 1 | Q126: =IF($P126=1,$C126*(1-Q$4),OFFSET($C126,-$AF$6,)*Q$4) -> 0.0219225 | R126: 0.0160765 | S126: 0.0102305 | T126: 0.0043845 | U126: 0 | V126: 0 | W126: 0 | X126: 0 | Y126: 0 | Z126: 0 | AA126: 0 | AB126: 0 | AC126: 0
A127: 122 | B127: 10 | C127: 0.64598 | E127: 44 | F127: LV | I127: Insulated | K127: 10 | L127: yes | M127: 1 | N127: Insulated | P127: 1 | Q127: 0.484485 | R127: 0.355289 | S127: 0.226093 | T127: 0.096897 | U127: 0 | V127: 0 | W127: 0 | X127: 0 | Y127: 0 | Z127: 0 | AA127: 0 | AB127: 0 | AC127: 0
A128: 123 | B128: 10 | C128: 0.79345 | E128: 44 | F128: LV | I128: Insulated | K128: 10 | L128: yes | M128: 3 | N128: Insulated | P128: 1 | Q128: 0.5950875 | R128: 0.4363975 | S128: 0.2777075 | T128: 0.1190175 | U128: 0 | V128: 0 | W128: 0 | X128: 0 | Y128: 0 | Z128: 0 | AA128: 0 | AB128: 0 | AC128: 0
A129: 124 | B129: 10 | C129: 0.06654 | E129: 44 | F129: LV | I129: Insulated | K129: 10 | L129: yes | M129: 4 | N129: Insulated | O129: 0 | P129: 1 | Q129: 0.049905 | R129: 0.036597 | S129: 0.023289 | T129: 0.009981 | U129: 0 | V129: 0 | W129: 0 | X129: 0 | Y129: 0 | Z129: 0 | AA129: 0 | AB129: 0 | AC129: 0
A130: 125 | B130: 10 | C130: 0.80925 | E130: 44 | F130: LV | I130: Insulated | K130: 10 | L130: yes | M130: 4 | N130: Insulated | P130: 1 | Q130: 0.6069375 | R130: 0.4450875 | S130: 0.2832375 | T130: 0.1213875 | U130: 0 | V130: 0 | W130: 0 | X130: 0 | Y130: 0 | Z130: 0 | AA130: 0 | AB130: 0 | AC130: 0
A131: 126 | B131: 11 | C131: 0.14839 | E131: 44 | F131: LV | I131: Insulated | K131: 11 | M131: 1 | N131: Insulated | P131: 1 | Q131: 0.1112925 | R131: 0.0816145 | S131: 0.0519365 | T131: 0.0222585 | U131: 0 | V131: 0 | W131: 0 | X131: 0 | Y131: 0 | Z131: 0 | AA131: 0 | AB131: 0 | AC131: 0
A132: 127 | B132: 11 | C132: 0.08397 | E132: 44 | F132: LV | I132: Insulated | K132: 11 | M132: 4 | N132: Insulated | P132: 1 | Q132: 0.0629775 | R132: 0.0461835 | S132: 0.0293895 | T132: 0.0125955 | U132: 0 | V132: 0 | W132: 0 | X132: 0 | Y132: 0 | Z132: 0 | AA132: 0 | AB132: 0 | AC132: 0
A133: 128 | B133: 11 | C133: 0.87774 | E133: 44 | F133: LV | I133: Insulated | K133: 11 | L133: yes | M133: 1 | N133: Insulated | P133: 1 | Q133: 0.658305 | R133: 0.482757 | S133: 0.307209 | T133: 0.131661 | U133: 0 | V133: 0 | W133: 0 | X133: 0 | Y133: 0 | Z133: 0 | AA133: 0 | AB133: 0 | AC133: 0
A134: 129 | B134: 11 | C134: 0.56615 | E134: 44 | F134: LV | I134: Insulated | K134: 11 | L134: yes | M134: 3 | N134: Insulated | P134: 1 | Q134: 0.4246125 | R134: 0.3113825 | S134: 0.1981525 | T134: 0.0849225 | U134: 0 | V134: 0 | W134: 0 | X134: 0 | Y134: 0 | Z134: 0 | AA134: 0 | AB134: 0 | AC134: 0
A135: 130 | B135: 11 | C135: 0.10479 | E135: 44 | F135: LV | I135: Bare | K135: =B135 -> 11 | L135: yes | M135: 4 | N135: Bare | P135: 1 | Q135: 0.0785925 | R135: 0.0576345 | S135: 0.0366765 | T135: =IF($P135=1,$C135*(1-T$4),OFFSET($C135,-$AF$6,)*T$4) -> 0.0157185 | U135: 0 | V135: 0 | W135: 0 | X135: 0 | Y135: 0 | Z135: 0 | AA135: 0 | AB135: 0 | AC135: 0
A136: 131 | B136: 11 | C136: 0.08331 | E136: 44 | F136: LV | I136: Insulated | K136: 11 | L136: yes | M136: 4 | N136: Insulated | O136: 0 | P136: 1 | Q136: 0.0624825 | R136: 0.0458205 | S136: 0.0291585 | T136: 0.0124965 | U136: 0 | V136: 0 | W136: 0 | X136: 0 | Y136: 0 | Z136: 0 | AA136: 0 | AB136: 0 | AC136: 0
A137: 132 | B137: 11 | C137: 0.65739 | E137: 44 | F137: LV | I137: Insulated | K137: 11 | L137: yes | M137: 4 | N137: Insulated | P137: 1 | Q137: 0.4930425 | R137: 0.3615645 | S137: 0.2300865 | T137: 0.0986085 | U137: 0 | V137: 0 | W137: 0 | X137: 0 | Y137: 0 | Z137: 0 | AA137: 0 | AB137: 0 | AC137: 0
A138: 133 | B138: 11 | C138: 0.13509 | E138: 44 | F138: LV | I138: Insulated | K138: 11 | L138: yes | M138: 5 | N138: Insulated | P138: 1 | Q138: 0.1013175 | R138: 0.0742995 | S138: 0.0472815 | T138: 0.0202635 | U138: 0 | V138: 0 | W138: 0 | X138: 0 | Y138: 0 | Z138: 0 | AA138: 0 | AB138: 0 | AC138: 0
A139: 134 | B139: 12 | C139: 0.01882 | E139: 44 | F139: LV | I139: Insulated | K139: 12 | M139: 2 | N139: Insulated | P139: 1 | Q139: 0.014115 | R139: 0.010351 | S139: 0.006587 | T139: 0.002823 | U139: 0 | V139: 0 | W139: 0 | X139: 0 | Y139: 0 | Z139: 0 | AA139: 0 | AB139: 0 | AC139: 0
A140: 135 | B140: 12 | C140: 0.13199 | E140: 44 | F140: LV | I140: Bare | K140: 12 | L140: yes | M140: 1 | N140: Bare | P140: 1 | Q140: 0.0989925 | R140: 0.0725945 | S140: 0.0461965 | T140: 0.0197985 | U140: 0 | V140: 0 | W140: 0 | X140: 0 | Y140: 0 | Z140: 0 | AA140: 0 | AB140: 0 | AC140: 0
A141: 136 | B141: 12 | C141: 0.06083 | E141: 44 | F141: LV | I141: Insulated | K141: 12 | L141: yes | M141: 1 | N141: Insulated | O141: 0 | P141: 1 | Q141: 0.0456225 | R141: 0.0334565 | S141: 0.0212905 | T141: 0.0091245 | U141: 0 | V141: 0 | W141: 0 | X141: 0 | Y141: 0 | Z141: 0 | AA141: 0 | AB141: 0 | AC141: 0
A142: 137 | B142: 12 | C142: 0.3278 | E142: 44 | F142: LV | I142: Insulated | K142: 12 | L142: yes | M142: 1 | N142: Insulated | P142: 1 | Q142: 0.24585 | R142: 0.18029 | S142: 0.11473 | T142: 0.04917 | U142: 0 | V142: 0 | W142: 0 | X142: 0 | Y142: 0 | Z142: 0 | AA142: 0 | AB142: 0 | AC142: 0
A143: 138 | B143: 12 | C143: 0.11717 | E143: 44 | F143: LV | I143: Insulated | K143: 12 | L143: yes | M143: 2 | N143: Insulated | P143: 1 | Q143: 0.0878775 | R143: 0.0644435 | S143: 0.0410095 | T143: 0.0175755 | U143: 0 | V143: 0 | W143: 0 | X143: 0 | Y143: 0 | Z143: 0 | AA143: 0 | AB143: 0 | AC143: 0
A144: 139 | B144: 12 | C144: 0.67803 | E144: 44 | F144: LV | I144: Insulated | K144: 12 | L144: yes | M144: 3 | N144: Insulated | P144: 1 | Q144: 0.5085225 | R144: 0.3729165 | S144: 0.2373105 | T144: 0.1017045 | U144: 0 | V144: 0 | W144: 0 | X144: 0 | Y144: 0 | Z144: 0 | AA144: 0 | AB144: 0 | AC144: 0
A145: 140 | B145: 12 | C145: 0.03529 | E145: 44 | F145: LV | I145: Bare | K145: 12 | L145: yes | M145: 4 | N145: Bare | O145: 0 | P145: 1 | Q145: 0.0264675 | R145: 0.0194095 | S145: 0.0123515 | T145: 0.0052935 | U145: 0 | V145: 0 | W145: 0 | X145: 0 | Y145: 0 | Z145: 0 | AA145: 0 | AB145: 0 | AC145: 0
A146: 141 | B146: 12 | C146: 1.10644 | E146: 44 | F146: LV | I146: Insulated | K146: 12 | L146: yes | M146: 4 | N146: Insulated | P146: 1 | Q146: =IF($P146=1,$C146*(1-Q$4),OFFSET($C146,-$AF$6,)*Q$4) -> 0.82983 | R146: 0.608542 | S146: 0.387254 | T146: 0.165966 | U146: 0 | V146: 0 | W146: 0 | X146: 0 | Y146: 0 | Z146: 0 | AA146: 0 | AB146: 0 | AC146: 0
A147: 142 | B147: 12 | C147: 0.21983 | E147: 44 | F147: LV | I147: Insulated | K147: 12 | L147: yes | M147: 5 | N147: Insulated | P147: 1 | Q147: 0.1648725 | R147: 0.1209065 | S147: 0.0769405 | T147: 0.0329745 | U147: 0 | V147: 0 | W147: 0 | X147: 0 | Y147: 0 | Z147: 0 | AA147: 0 | AB147: 0 | AC147: 0
A148: 143 | B148: 13 | C148: 0.01349 | E148: 44 | F148: LV | I148: Insulated | K148: 13 | M148: 3 | N148: Insulated | P148: 1 | Q148: 0.0101175 | R148: 0.0074195 | S148: 0.0047215 | T148: 0.0020235 | U148: 0 | V148: 0 | W148: 0 | X148: 0 | Y148: 0 | Z148: 0 | AA148: 0 | AB148: 0 | AC148: 0
A149: 144 | B149: 13 | C149: 0.04749 | E149: 44 | F149: LV | I149: Bare | K149: 13 | M149: 4 | N149: Bare | P149: 1 | Q149: 0.0356175 | R149: 0.0261195 | S149: 0.0166215 | T149: 0.0071235 | U149: 0 | V149: 0 | W149: 0 | X149: 0 | Y149: 0 | Z149: 0 | AA149: 0 | AB149: 0 | AC149: 0
A150: 145 | B150: 13 | C150: 0.17685 | E150: 44 | F150: LV | I150: Bare | K150: 13 | L150: yes | M150: 1 | N150: Bare | P150: 1 | Q150: 0.1326375 | R150: 0.0972675 | S150: 0.0618975 | T150: 0.0265275 | U150: 0 | V150: 0 | W150: 0 | X150: 0 | Y150: 0 | Z150: 0 | AA150: 0 | AB150: 0 | AC150: 0
A151: 146 | B151: 13 | C151: 0.41554 | E151: 44 | F151: LV | I151: Insulated | K151: 13 | L151: yes | M151: 1 | N151: Insulated | P151: 1 | Q151: 0.311655 | R151: 0.228547 | S151: 0.145439 | T151: =IF($P151=1,$C151*(1-T$4),OFFSET($C151,-$AF$6,)*T$4) -> 0.062331 | U151: 0 | V151: 0 | W151: 0 | X151: 0 | Y151: 0 | Z151: 0 | AA151: 0 | AB151: 0 | AC151: 0
A152: 147 | B152: 13 | C152: 0.01012 | E152: 44 | F152: LV | I152: Bare | K152: 13 | L152: yes | M152: 2 | N152: Bare | P152: 1 | Q152: 0.00759 | R152: 0.005566 | S152: 0.003542 | T152: 0.001518 | U152: 0 | V152: 0 | W152: 0 | X152: 0 | Y152: 0 | Z152: 0 | AA152: 0 | AB152: 0 | AC152: 0
A153: 148 | B153: 13 | C153: 0.08349 | E153: 44 | F153: LV | I153: Insulated | K153: 13 | L153: yes | M153: 2 | N153: Insulated | P153: 1 | Q153: 0.0626175 | R153: 0.0459195 | S153: 0.0292215 | T153: 0.0125235 | U153: 0 | V153: 0 | W153: 0 | X153: 0 | Y153: 0 | Z153: 0 | AA153: 0 | AB153: 0 | AC153: 0
A154: 149 | B154: 13 | C154: 0.23314 | E154: 44 | F154: LV | I154: Bare | K154: 13 | L154: yes | M154: 3 | N154: Bare | O154: 0 | P154: 1 | Q154: 0.174855 | R154: 0.128227 | S154: 0.081599 | T154: 0.034971 | U154: 0 | V154: 0 | W154: 0 | X154: 0 | Y154: 0 | Z154: 0 | AA154: 0 | AB154: 0 | AC154: 0
A155: 150 | B155: 13 | C155: 0.88389 | E155: 44 | F155: LV | I155: Bare | K155: 13 | L155: yes | M155: 3 | N155: Bare | P155: 1 | Q155: 0.6629175 | R155: 0.4861395 | S155: 0.3093615 | T155: 0.1325835 | U155: 0 | V155: 0 | W155: 0 | X155: 0 | Y155: 0 | Z155: 0 | AA155: 0 | AB155: 0 | AC155: 0
A156: 151 | B156: 13 | C156: 0.03347 | E156: 44 | F156: LV | I156: Insulated | K156: 13 | L156: yes | M156: 3 | N156: Insulated | O156: 0 | P156: 1 | Q156: 0.0251025 | R156: 0.0184085 | S156: 0.0117145 | T156: 0.0050205 | U156: 0 | V156: 0 | W156: 0 | X156: 0 | Y156: 0 | Z156: 0 | AA156: 0 | AB156: 0 | AC156: 0
A157: 152 | B157: 13 | C157: 1.04002 | E157: 44 | F157: LV | I157: Insulated | K157: 13 | L157: yes | M157: 3 | N157: Insulated | P157: 1 | Q157: 0.780015 | R157: 0.572011 | S157: 0.364007 | T157: 0.156003 | U157: 0 | V157: 0 | W157: 0 | X157: 0 | Y157: 0 | Z157: 0 | AA157: 0 | AB157: 0 | AC157: 0
A158: 153 | B158: 13 | C158: 0.66029 | E158: 44 | F158: LV | I158: Bare | K158: 13 | L158: yes | M158: 4 | N158: Bare | P158: 1 | Q158: 0.4952175 | R158: 0.3631595 | S158: 0.2311015 | T158: 0.0990435 | U158: 0 | V158: 0 | W158: 0 | X158: 0 | Y158: 0 | Z158: 0 | AA158: 0 | AB158: 0 | AC158: 0
A159: 154 | B159: 13 | C159: 0.16689 | E159: 44 | F159: LV | I159: Insulated | K159: 13 | L159: yes | M159: 4 | N159: Insulated | P159: 1 | Q159: 0.1251675 | R159: 0.0917895 | S159: 0.0584115 | T159: 0.0250335 | U159: 0 | V159: 0 | W159: 0 | X159: 0 | Y159: 0 | Z159: 0 | AA159: 0 | AB159: 0 | AC159: 0
A160: 155 | B160: 13 | C160: 0.03494 | E160: 44 | F160: LV | I160: Bare | K160: 13 | L160: yes | M160: 5 | N160: Bare | P160: 1 | Q160: 0.026205 | R160: 0.019217 | S160: 0.012229 | T160: 0.005241 | U160: 0 | V160: 0 | W160: 0 | X160: 0 | Y160: 0 | Z160: 0 | AA160: 0 | AB160: 0 | AC160: 0
A161: 156 | B161: 14 | C161: 0.09255 | E161: 44 | F161: LV | I161: Insulated | K161: 14 | M161: 3 | N161: Insulated | P161: 1 | Q161: 0.0694125 | R161: 0.0509025 | S161: 0.0323925 | T161: 0.0138825 | U161: 0 | V161: 0 | W161: 0 | X161: 0 | Y161: 0 | Z161: 0 | AA161: 0 | AB161: 0 | AC161: 0
A162: 157 | B162: 14 | C162: 0.05442 | E162: 44 | F162: LV | I162: Bare | K162: 14 | L162: yes | M162: 1 | N162: Bare | O162: 0 | P162: 1 | Q162: 0.040815 | R162: 0.029931 | S162: 0.019047 | T162: 0.008163 | U162: 0 | V162: 0 | W162: 0 | X162: 0 | Y162: 0 | Z162: 0 | AA162: 0 | AB162: 0 | AC162: 0
A163: 158 | B163: 14 | C163: 0.04906 | E163: 44 | F163: LV | I163: Insulated | K163: 14 | L163: yes | M163: 1 | N163: Insulated | O163: 0 | P163: 1 | Q163: 0.036795 | R163: 0.026983 | S163: 0.017171 | T163: 0.007359 | U163: 0 | V163: 0 | W163: 0 | X163: 0 | Y163: 0 | Z163: 0 | AA163: 0 | AB163: 0 | AC163: 0
A164: 159 | B164: 14 | C164: 0.0459 | E164: 44 | F164: LV | I164: Insulated | K164: 14 | L164: yes | M164: 1 | N164: Insulated | O164: 1 | P164: 1 | Q164: 0.034425 | R164: 0.025245 | S164: 0.016065 | T164: 0.006885 | U164: 0 | V164: 0 | W164: 0 | X164: 0 | Y164: 0 | Z164: 0 | AA164: 0 | AB164: 0 | AC164: 0
A165: 160 | B165: 14 | C165: 0.3537 | E165: 44 | F165: LV | I165: Insulated | K165: 14 | L165: yes | M165: 1 | N165: Insulated | P165: 1 | Q165: 0.265275 | R165: 0.194535 | S165: 0.123795 | T165: 0.053055 | U165: 0 | V165: 0 | W165: 0 | X165: 0 | Y165: 0 | Z165: 0 | AA165: 0 | AB165: 0 | AC165: 0
A166: 161 | B166: 14 | C166: 0.05554 | E166: 44 | F166: LV | I166: Bare | K166: 14 | L166: yes | M166: 2 | N166: Bare | P166: 1 | Q166: =IF($P166=1,$C166*(1-Q$4),OFFSET($C166,-$AF$6,)*Q$4) -> 0.041655 | R166: 0.030547 | S166: 0.019439 | T166: 0.008331 | U166: 0 | V166: 0 | W166: 0 | X166: 0 | Y166: 0 | Z166: 0 | AA166: 0 | AB166: 0 | AC166: 0
A167: 162 | B167: 14 | C167: 0.03787 | E167: 44 | F167: LV | I167: Insulated | K167: 14 | L167: yes | M167: 2 | N167: Insulated | P167: 1 | Q167: 0.0284025 | R167: 0.0208285 | S167: 0.0132545 | T167: =IF($P167=1,$C167*(1-T$4),OFFSET($C167,-$AF$6,)*T$4) -> 0.0056805 | U167: 0 | V167: 0 | W167: 0 | X167: 0 | Y167: 0 | Z167: 0 | AA167: 0 | AB167: 0 | AC167: 0
A168: 163 | B168: 14 | C168: 0.01318 | E168: 44 | F168: LV | I168: Bare | K168: 14 | L168: yes | M168: 3 | N168: Bare | O168: 0 | P168: 1 | Q168: 0.009885 | R168: 0.007249 | S168: 0.004613 | T168: 0.001977 | U168: 0 | V168: 0 | W168: 0 | X168: 0 | Y168: 0 | Z168: 0 | AA168: 0 | AB168: 0 | AC168: 0
A169: 164 | B169: 14 | C169: 0.09992 | E169: 44 | F169: LV | I169: Bare | K169: 14 | L169: yes | M169: 3 | N169: Bare | P169: 1 | Q169: 0.07494 | R169: 0.054956 | S169: 0.034972 | T169: 0.014988 | U169: 0 | V169: 0 | W169: 0 | X169: 0 | Y169: 0 | Z169: 0 | AA169: 0 | AB169: 0 | AC169: 0
A170: 165 | B170: 14 | C170: 0.52787 | E170: 44 | F170: LV | I170: Insulated | K170: 14 | L170: yes | M170: 3 | N170: Insulated | P170: 1 | Q170: 0.3959025 | R170: 0.2903285 | S170: 0.1847545 | T170: 0.0791805 | U170: 0 | V170: 0 | W170: 0 | X170: 0 | Y170: 0 | Z170: 0 | AA170: 0 | AB170: 0 | AC170: 0
A171: 166 | B171: 14 | C171: 0.15676 | E171: 44 | F171: LV | I171: Bare | K171: 14 | L171: yes | M171: 4 | N171: Bare | P171: 1 | Q171: 0.11757 | R171: 0.086218 | S171: 0.054866 | T171: 0.023514 | U171: 0 | V171: 0 | W171: 0 | X171: 0 | Y171: 0 | Z171: 0 | AA171: 0 | AB171: 0 | AC171: 0
A172: 167 | B172: 14 | C172: 0.66644 | E172: 44 | F172: LV | I172: Insulated | K172: 14 | L172: yes | M172: 4 | N172: Insulated | P172: 1 | Q172: 0.49983 | R172: 0.366542 | S172: 0.233254 | T172: 0.099966 | U172: 0 | V172: 0 | W172: 0 | X172: 0 | Y172: 0 | Z172: 0 | AA172: 0 | AB172: 0 | AC172: 0
A173: 168 | B173: 14 | C173: 0.08489 | E173: 44 | F173: LV | I173: Insulated | K173: 14 | L173: yes | M173: 5 | N173: Insulated | P173: 1 | Q173: 0.0636675 | R173: 0.0466895 | S173: 0.0297115 | T173: 0.0127335 | U173: 0 | V173: 0 | W173: 0 | X173: 0 | Y173: 0 | Z173: 0 | AA173: 0 | AB173: 0 | AC173: 0
A174: 169 | B174: 15 | C174: 0.0474 | E174: 44 | F174: LV | I174: Bare | K174: 15 | M174: 2 | N174: Bare | O174: 0 | P174: 1 | Q174: 0.03555 | R174: 0.02607 | S174: 0.01659 | T174: 0.00711 | U174: 0 | V174: 0 | W174: 0 | X174: 0 | Y174: 0 | Z174: 0 | AA174: 0 | AB174: 0 | AC174: 0
A175: 170 | B175: 15 | C175: 0.02699 | E175: 44 | F175: LV | I175: Insulated | K175: 15 | M175: 2 | N175: Insulated | O175: 0 | P175: 1 | Q175: 0.0202425 | R175: 0.0148445 | S175: 0.0094465 | T175: 0.0040485 | U175: 0 | V175: 0 | W175: 0 | X175: 0 | Y175: 0 | Z175: 0 | AA175: 0 | AB175: 0 | AC175: 0
A176: 171 | B176: 15 | C176: 0.18038 | E176: 44 | F176: LV | I176: Bare | K176: 15 | M176: 3 | N176: Bare | P176: 1 | Q176: 0.135285 | R176: 0.099209 | S176: 0.063133 | T176: 0.027057 | U176: 0 | V176: 0 | W176: 0 | X176: 0 | Y176: 0 | Z176: 0 | AA176: 0 | AB176: 0 | AC176: 0
A177: 172 | B177: 15 | C177: 0.1377 | E177: 44 | F177: LV | I177: Insulated | K177: 15 | M177: 3 | N177: Insulated | O177: 0 | P177: 1 | Q177: 0.103275 | R177: 0.075735 | S177: 0.048195 | T177: 0.020655 | U177: 0 | V177: 0 | W177: 0 | X177: 0 | Y177: 0 | Z177: 0 | AA177: 0 | AB177: 0 | AC177: 0
A178: 173 | B178: 15 | C178: 0.11374 | E178: 44 | F178: LV | I178: Insulated | K178: 15 | M178: 3 | N178: Insulated | P178: 1 | Q178: 0.085305 | R178: 0.062557 | S178: 0.039809 | T178: 0.017061 | U178: 0 | V178: 0 | W178: 0 | X178: 0 | Y178: 0 | Z178: 0 | AA178: 0 | AB178: 0 | AC178: 0
A179: 174 | B179: 15 | C179: 0.07443 | E179: 44 | F179: LV | I179: Bare | K179: 15 | M179: 4 | N179: Bare | O179: 0 | P179: 1 | Q179: 0.0558225 | R179: 0.0409365 | S179: 0.0260505 | T179: 0.0111645 | U179: 0 | V179: 0 | W179: 0 | X179: 0 | Y179: 0 | Z179: 0 | AA179: 0 | AB179: 0 | AC179: 0
A180: 175 | B180: 15 | C180: 0.13121 | E180: 44 | F180: LV | I180: Bare | K180: 15 | M180: 4 | N180: Bare | P180: 1 | Q180: 0.0984075 | R180: 0.0721655 | S180: 0.0459235 | T180: 0.0196815 | U180: 0 | V180: 0 | W180: 0 | X180: 0 | Y180: 0 | Z180: 0 | AA180: 0 | AB180: 0 | AC180: 0
A181: 176 | B181: 15 | C181: 0.04574 | E181: 44 | F181: LV | I181: Bare | K181: 15 | L181: yes | M181: 1 | N181: Bare | O181: 0 | P181: 1 | Q181: 0.034305 | R181: 0.025157 | S181: 0.016009 | T181: 0.006861 | U181: 0 | V181: 0 | W181: 0 | X181: 0 | Y181: 0 | Z181: 0 | AA181: 0 | AB181: 0 | AC181: 0
A182: 177 | B182: 15 | C182: 0.12061 | E182: 44 | F182: LV | I182: Bare | K182: 15 | L182: yes | M182: 1 | N182: Bare | P182: 1 | Q182: 0.0904575 | R182: 0.0663355 | S182: 0.0422135 | T182: 0.0180915 | U182: 0 | V182: 0 | W182: 0 | X182: 0 | Y182: 0 | Z182: 0 | AA182: 0 | AB182: 0 | AC182: 0
A183: 178 | B183: 15 | C183: 0.31792 | E183: 44 | F183: LV | I183: Insulated | K183: 15 | L183: yes | M183: 1 | N183: Insulated | P183: 1 | Q183: 0.23844 | R183: 0.174856 | S183: 0.111272 | T183: =IF($P183=1,$C183*(1-T$4),OFFSET($C183,-$AF$6,)*T$4) -> 0.047688 | U183: 0 | V183: 0 | W183: 0 | X183: 0 | Y183: 0 | Z183: 0 | AA183: 0 | AB183: 0 | AC183: 0
A184: 179 | B184: 15 | C184: 0.10621 | E184: 44 | F184: LV | I184: Insulated | K184: 15 | L184: yes | M184: 2 | N184: Insulated | P184: 1 | Q184: 0.0796575 | R184: 0.0584155 | S184: 0.0371735 | T184: 0.0159315 | U184: 0 | V184: 0 | W184: 0 | X184: 0 | Y184: 0 | Z184: 0 | AA184: 0 | AB184: 0 | AC184: 0
A185: 180 | B185: 15 | C185: 0.07507 | E185: 44 | F185: LV | I185: Bare | K185: 15 | L185: yes | M185: 3 | N185: Bare | O185: 0 | P185: 1 | Q185: 0.0563025 | R185: 0.0412885 | S185: 0.0262745 | T185: 0.0112605 | U185: 0 | V185: 0 | W185: 0 | X185: 0 | Y185: 0 | Z185: 0 | AA185: 0 | AB185: 0 | AC185: 0
A186: 181 | B186: 15 | C186: 0.14217 | E186: 44 | F186: LV | I186: Bare | K186: 15 | L186: yes | M186: 3 | N186: Bare | P186: 1 | Q186: =IF($P186=1,$C186*(1-Q$4),OFFSET($C186,-$AF$6,)*Q$4) -> 0.1066275 | R186: 0.0781935 | S186: 0.0497595 | T186: 0.0213255 | U186: 0 | V186: 0 | W186: 0 | X186: 0 | Y186: 0 | Z186: 0 | AA186: 0 | AB186: 0 | AC186: 0
A187: 182 | B187: 15 | C187: 0.7673 | E187: 44 | F187: LV | I187: Insulated | K187: 15 | L187: yes | M187: 3 | N187: Insulated | P187: 1 | Q187: 0.575475 | R187: 0.422015 | S187: 0.268555 | T187: 0.115095 | U187: 0 | V187: 0 | W187: 0 | X187: 0 | Y187: 0 | Z187: 0 | AA187: 0 | AB187: 0 | AC187: 0
A188: 183 | B188: 15 | C188: 0.03256 | E188: 44 | F188: LV | I188: Bare | K188: 15 | L188: yes | M188: 4 | N188: Bare | O188: 0 | P188: 1 | Q188: 0.02442 | R188: 0.017908 | S188: 0.011396 | T188: 0.004884 | U188: 0 | V188: 0 | W188: 0 | X188: 0 | Y188: 0 | Z188: 0 | AA188: 0 | AB188: 0 | AC188: 0
A189: 184 | B189: 15 | C189: 0.26591 | E189: 44 | F189: LV | I189: Bare | K189: 15 | L189: yes | M189: 4 | N189: Bare | P189: 1 | Q189: 0.1994325 | R189: 0.1462505 | S189: 0.0930685 | T189: 0.0398865 | U189: 0 | V189: 0 | W189: 0 | X189: 0 | Y189: 0 | Z189: 0 | AA189: 0 | AB189: 0 | AC189: 0
A190: 185 | B190: 15 | C190: 0.98705 | E190: 44 | F190: LV | I190: Insulated | K190: 15 | L190: yes | M190: 4 | N190: Insulated | P190: 1 | Q190: 0.7402875 | R190: 0.5428775 | S190: 0.3454675 | T190: 0.1480575 | U190: 0 | V190: 0 | W190: 0 | X190: 0 | Y190: 0 | Z190: 0 | AA190: 0 | AB190: 0 | AC190: 0
A191: 186 | B191: 16 | C191: 0.03609 | E191: 44 | F191: LV | I191: Bare | K191: 16 | M191: 4 | N191: Bare | P191: 1 | Q191: 0.0270675 | R191: 0.0198495 | S191: 0.0126315 | T191: 0.0054135 | U191: 0 | V191: 0 | W191: 0 | X191: 0 | Y191: 0 | Z191: 0 | AA191: 0 | AB191: 0 | AC191: 0
A192: 187 | B192: 16 | C192: 0.06612 | E192: 44 | F192: LV | I192: Bare | K192: 16 | L192: yes | M192: 1 | N192: Bare | P192: 1 | Q192: 0.04959 | R192: 0.036366 | S192: 0.023142 | T192: 0.009918 | U192: 0 | V192: 0 | W192: 0 | X192: 0 | Y192: 0 | Z192: 0 | AA192: 0 | AB192: 0 | AC192: 0
A193: 188 | B193: 16 | C193: 0.07784 | E193: 44 | F193: LV | I193: Insulated | K193: 16 | L193: yes | M193: 1 | N193: Insulated | P193: 1 | Q193: 0.05838 | R193: 0.042812 | S193: 0.027244 | T193: 0.011676 | U193: 0 | V193: 0 | W193: 0 | X193: 0 | Y193: 0 | Z193: 0 | AA193: 0 | AB193: 0 | AC193: 0
A194: 189 | B194: 16 | C194: 0.01765 | E194: 44 | F194: LV | I194: Bare | K194: 16 | L194: yes | M194: 2 | N194: Bare | P194: 1 | Q194: 0.0132375 | R194: 0.0097075 | S194: 0.0061775 | T194: 0.0026475 | U194: 0 | V194: 0 | W194: 0 | X194: 0 | Y194: 0 | Z194: 0 | AA194: 0 | AB194: 0 | AC194: 0
A195: 190 | B195: 16 | C195: 0.05246 | E195: 44 | F195: LV | I195: Insulated | K195: 16 | L195: yes | M195: 2 | N195: Insulated | P195: 1 | Q195: 0.039345 | R195: 0.028853 | S195: 0.018361 | T195: 0.007869 | U195: 0 | V195: 0 | W195: 0 | X195: 0 | Y195: 0 | Z195: 0 | AA195: 0 | AB195: 0 | AC195: 0
A196: 191 | B196: 16 | C196: 0.7195 | E196: 44 | F196: LV | I196: Bare | K196: 16 | L196: yes | M196: 3 | N196: Bare | P196: 1 | Q196: 0.539625 | R196: 0.395725 | S196: 0.251825 | T196: 0.107925 | U196: 0 | V196: 0 | W196: 0 | X196: 0 | Y196: 0 | Z196: 0 | AA196: 0 | AB196: 0 | AC196: 0
A197: 192 | B197: 16 | C197: 0.45951 | E197: 44 | F197: LV | I197: Insulated | K197: 16 | L197: yes | M197: 3 | N197: Insulated | P197: 1 | Q197: 0.3446325 | R197: 0.2527305 | S197: 0.1608285 | T197: 0.0689265 | U197: 0 | V197: 0 | W197: 0 | X197: 0 | Y197: 0 | Z197: 0 | AA197: 0 | AB197: 0 | AC197: 0
A198: 193 | B198: 16 | C198: 0.33603 | E198: 44 | F198: LV | I198: Bare | K198: 16 | L198: yes | M198: 4 | N198: Bare | P198: 1 | Q198: 0.2520225 | R198: 0.1848165 | S198: 0.1176105 | T198: 0.0504045 | U198: 0 | V198: 0 | W198: 0 | X198: 0 | Y198: 0 | Z198: 0 | AA198: 0 | AB198: 0 | AC198: 0
A199: 194 | B199: 16 | C199: 0.04025 | E199: 44 | F199: LV | I199: Insulated | K199: =B199 -> 16 | L199: yes | M199: 4 | N199: Insulated | O199: 0 | P199: 1 | Q199: 0.0301875 | R199: 0.0221375 | S199: 0.0140875 | T199: =IF($P199=1,$C199*(1-T$4),OFFSET($C199,-$AF$6,)*T$4) -> 0.0060375 | U199: 0 | V199: 0 | W199: 0 | X199: 0 | Y199: 0 | Z199: 0 | AA199: 0 | AB199: 0 | AC199: 0
A200: 195 | B200: 16 | C200: 0.42406 | E200: 44 | F200: LV | I200: Insulated | K200: 16 | L200: yes | M200: 4 | N200: Insulated | P200: 1 | Q200: 0.318045 | R200: 0.233233 | S200: 0.148421 | T200: 0.063609 | U200: 0 | V200: 0 | W200: 0 | X200: 0 | Y200: 0 | Z200: 0 | AA200: 0 | AB200: 0 | AC200: 0
A201: 196 | B201: 16 | C201: 0.00571 | E201: 44 | F201: LV | I201: Bare | K201: 16 | L201: yes | M201: 5 | N201: Bare | P201: 1 | Q201: 0.0042825 | R201: 0.0031405 | S201: 0.0019985 | T201: 0.0008565 | U201: 0 | V201: 0 | W201: 0 | X201: 0 | Y201: 0 | Z201: 0 | AA201: 0 | AB201: 0 | AC201: 0
... 924 more rows

Sheet A. Age Profile
C1: Asset Population Age Profile
A3: Asset Age | B3: Median Age (x) | C3: Freq. (length) of x (f) | D3: Cumulative Freq. of x (F) | E3: f.x | G3: E(f) | H3: No. of Circuits | K3: Summary Statisitics | N3: Additional Information for Graph
A4: 0 | B4: 0.5 | C4: =SUMIF('A. Population Info'!$B:$B, A4,'A. Population Info'!$C:$C) -> 101.29565 | D4: =SUM($C$4:C4) -> 101.29565 | E4: =B4*C4 -> 50.647825 | F4: =(B4-$L$6)^2*C4 -> 279243.858 | G4: =_xlfn.NORM.DIST(B4,$L$6,$L$7,FALSE)*$L$4 -> 0.01097735061 | H4: =COUNTIF('A. Population Info'!$B$6:$B$1836, 'A. Age Profile'!A4) -> 47 | K4: No. of Asset Units (km) | L4: =SUM(C:C) -> 5885.59915
A5: 1 | B5: 1.5 | C5: =SUMIF('A. Population Info'!$B:$B, A5,'A. Population Info'!$C:$C) -> 0.80929 | D5: =SUM($C$4:C5) -> 102.10494 | E5: =B5*C5 -> 1.213935 | F5: 2146.813416 | G5: =_xlfn.NORM.DIST(B5,$L$6,$L$7,FALSE)*$L$4 -> 0.01588833313 | H5: =COUNTIF('A. Population Info'!$B$6:$B$1836, 'A. Age Profile'!A5) -> 7 | K5: Population Bins (n) | L5: =SUM(H:H) -> 1828
A6: 2 | B6: 2.5 | C6: =SUMIF('A. Population Info'!$B:$B, A6,'A. Population Info'!$C:$C) -> 1.17407 | D6: =SUM($C$4:C6) -> 103.27901 | E6: =B6*C6 -> 2.935175 | F6: 2994.704078 | G6: 0.02283343827 | H6: =COUNTIF('A. Population Info'!$B$6:$B$1836, 'A. Age Profile'!A6) -> 7 | K6: Mean Age | L6: =SUM(E:E)/SUM(C:C) -> 53.00448669 | N6: Mean Marker | O6: =MATCH(L6,$A$4:$A$104,1) -> 54 | P6: =P8 -> 438.14577
A7: 3 | B7: 3.5 | C7: =SUMIF('A. Population Info'!$B:$B, A7,'A. Population Info'!$C:$C) -> 1.20441 | D7: =SUM($C$4:C7) -> 104.48342 | E7: 4.215435 | F7: 2951.640605 | G7: 0.0325819042 | H7: =COUNTIF('A. Population Info'!$B$6:$B$1836, 'A. Age Profile'!A7) -> 9 | K7: Standard Deviation | L7: =(SUM(F:F)/SUM(C:C))^0.5 -> 11.85948286
A8: 4 | B8: 4.5 | C8: =SUMIF('A. Population Info'!$B:$B, A8,'A. Population Info'!$C:$C) -> 1.60234 | D8: =SUM($C$4:C8) -> 106.08576 | E8: 7.21053 | F8: 3769.801651 | G8: 0.04616297467 | H8: =COUNTIF('A. Population Info'!$B$6:$B$1836, 'A. Age Profile'!A8) -> 9 | K8: Median Age | L8: =L13+(((L4/2)-L10)/L11)*L12 -> 54.58606143 | N8: Median Marker | O8: =MATCH(L8,$A$4:$A$104,1) -> 55 | P8: =INDEX($C$4:$C$104,O8)+15 -> 438.14577
A9: 5 | B9: 5.5 | C9: =SUMIF('A. Population Info'!$B:$B, A9,'A. Population Info'!$C:$C) -> 1.14912 | D9: =SUM($C$4:C9) -> 107.23488 | E9: 6.32016 | F9: 2593.191819 | G9: 0.06494164484 | H9: =COUNTIF('A. Population Info'!$B$6:$B$1836, 'A. Age Profile'!A9) -> 9 | K9: Mode Age | L9: =MATCH(MAX(C4:C104),C4:C104,0) -> 56
A10: 6 | B10: 6.5 | C10: =SUMIF('A. Population Info'!$B:$B, A10,'A. Population Info'!$C:$C) -> 2.11456 | D10: =SUM($C$4:C10) -> 109.34944 | E10: 13.74464 | F10: 4573.089729 | G10: 0.09071204469 | H10: =COUNTIF('A. Population Info'!$B$6:$B$1836, 'A. Age Profile'!A10) -> 7 | K10: F | L10: =INDEX(D4:D104,MATCH(L4/2,$D$4:$D$104,1)) -> 2694.81016
A11: 7 | B11: 7.5 | C11: =SUMIF('A. Population Info'!$B:$B, A11,'A. Population Info'!$C:$C) -> 4.04381 | D11: =SUM($C$4:C11) -> 113.39325 | E11: 30.328575 | F11: 8373.348778 | G11: 0.1258110545 | H11: =COUNTIF('A. Population Info'!$B$6:$B$1836, 'A. Age Profile'!A11) -> 9 | K11: fm | L11: =INDEX(C4:C104,MATCH(L4/2,$D$4:$D$104,1)+1) -> 423.14577
A12: 8 | B12: 8.5 | C12: =SUMIF('A. Population Info'!$B:$B, A12,'A. Population Info'!$C:$C) -> 2.79091 | D12: =SUM($C$4:C12) -> 116.18416 | E12: 23.722735 | F12: 5527.814038 | G12: 0.1732546193 | H12: =COUNTIF('A. Population Info'!$B$6:$B$1836, 'A. Age Profile'!A12) -> 8 | K12: i | L12: =B6-B5 -> 1
A13: 9 | B13: 9.5 | C13: =SUMIF('A. Population Info'!$B:$B, A13,'A. Population Info'!$C:$C) -> 2.74444 | D13: =SUM($C$4:C13) -> 118.9286 | E13: 26.07218 | F13: 5194.237917 | G13: 0.2368988851 | H13: =COUNTIF('A. Population Info'!$B$6:$B$1836, 'A. Age Profile'!A13) -> 8 | K13: Lm | L13: =INDEX(B4:B104,MATCH(L4/2,$D$4:$D$104,1))+L12/2 -> 54
A14: 10 | B14: 10.5 | C14: =SUMIF('A. Population Info'!$B:$B, A14,'A. Population Info'!$C:$C) -> 2.34445 | D14: =SUM($C$4:C14) -> 121.27305 | E14: 24.616725 | F14: 4235.55696 | G14: 0.3216276557 | H14: =COUNTIF('A. Population Info'!$B$6:$B$1836, 'A. Age Profile'!A14) -> 5
A15: 11 | B15: 11.5 | C15: =SUMIF('A. Population Info'!$B:$B, A15,'A. Population Info'!$C:$C) -> 2.65683 | D15: =SUM($C$4:C15) -> 123.92988 | E15: 30.553545 | F15: 4576.714913 | G15: 0.4335667087 | H15: =COUNTIF('A. Population Info'!$B$6:$B$1836, 'A. Age Profile'!A15) -> 8
A16: 12 | B16: 12.5 | C16: =SUMIF('A. Population Info'!$B:$B, A16,'A. Population Info'!$C:$C) -> 2.6962 | D16: =SUM($C$4:C16) -> 126.62608 | E16: 33.7025 | F16: 4423.421963 | G16: 0.5803241503 | H16: =COUNTIF('A. Population Info'!$B$6:$B$1836, 'A. Age Profile'!A16) -> 9
A17: 13 | B17: 13.5 | C17: =SUMIF('A. Population Info'!$B:$B, A17,'A. Population Info'!$C:$C) -> 3.79962 | D17: =SUM($C$4:C17) -> 130.4257 | E17: 51.29487 | F17: 5929.703952 | G17: 0.7712541872 | H17: =COUNTIF('A. Population Info'!$B$6:$B$1836, 'A. Age Profile'!A17) -> 13
A18: 14 | B18: 14.5 | C18: =SUMIF('A. Population Info'!$B:$B, A18,'A. Population Info'!$C:$C) -> 2.2381 | D18: =SUM($C$4:C18) -> 132.6638 | E18: 32.45245 | F18: 3318.196979 | G18: 1.017739428 | H18: =COUNTIF('A. Population Info'!$B$6:$B$1836, 'A. Age Profile'!A18) -> 13
A19: 15 | B19: 15.5 | C19: =SUMIF('A. Population Info'!$B:$B, A19,'A. Population Info'!$C:$C) -> 3.57239 | D19: =SUM($C$4:C19) -> 136.23619 | E19: 55.372045 | F19: 5024.875626 | G19: 1.33348409 | H19: =COUNTIF('A. Population Info'!$B$6:$B$1836, 'A. Age Profile'!A19) -> 17
A20: 16 | B20: 16.5 | C20: =SUMIF('A. Population Info'!$B:$B, A20,'A. Population Info'!$C:$C) -> 2.37126 | D20: =SUM($C$4:C20) -> 138.60745 | E20: 39.12579 | F20: 3159.887838 | G20: 1.734807341 | H20: =COUNTIF('A. Population Info'!$B$6:$B$1836, 'A. Age Profile'!A20) -> 12
A21: 17 | B21: 17.5 | C21: =SUMIF('A. Population Info'!$B:$B, A21,'A. Population Info'!$C:$C) -> 4.85898 | D21: =SUM($C$4:C21) -> 143.46643 | E21: 85.03215 | F21: 6125.077497 | G21: 2.240922506 | H21: =COUNTIF('A. Population Info'!$B$6:$B$1836, 'A. Age Profile'!A21) -> 16
A22: 18 | B22: 18.5 | C22: =SUMIF('A. Population Info'!$B:$B, A22,'A. Population Info'!$C:$C) -> 5.22195 | D22: =SUM($C$4:C22) -> 148.68838 | E22: 96.606075 | F22: 6217.042714 | G22: 2.874184211 | H22: =COUNTIF('A. Population Info'!$B$6:$B$1836, 'A. Age Profile'!A22) -> 16
A23: 19 | B23: 19.5 | C23: =SUMIF('A. Population Info'!$B:$B, A23,'A. Population Info'!$C:$C) -> 3.26599 | D23: =SUM($C$4:C23) -> 151.95437 | E23: 63.686805 | F23: 3666.239128 | G23: 3.660281902 | H23: =COUNTIF('A. Population Info'!$B$6:$B$1836, 'A. Age Profile'!A23) -> 10
A24: 20 | B24: 20.5 | C24: =SUMIF('A. Population Info'!$B:$B, A24,'A. Population Info'!$C:$C) -> 3.42103 | D24: =SUM($C$4:C24) -> 155.3754 | E24: 70.131115 | F24: 3614.460699 | G24: 4.628354801 | H24: =COUNTIF('A. Population Info'!$B$6:$B$1836, 'A. Age Profile'!A24) -> 13
A25: 21 | B25: 21.5 | C25: =SUMIF('A. Population Info'!$B:$B, A25,'A. Population Info'!$C:$C) -> 3.02262 | D25: =SUM($C$4:C25) -> 158.39802 | E25: 64.98633 | F25: 3000.049135 | G25: 5.811000691 | H25: =COUNTIF('A. Population Info'!$B$6:$B$1836, 'A. Age Profile'!A25) -> 13
A26: 22 | B26: 22.5 | C26: =SUMIF('A. Population Info'!$B:$B, A26,'A. Population Info'!$C:$C) -> 4.62007 | D26: =SUM($C$4:C26) -> 163.01809 | E26: 103.951575 | F26: 4299.08467 | G26: 7.244149168 | H26: =COUNTIF('A. Population Info'!$B$6:$B$1836, 'A. Age Profile'!A26) -> 13
A27: 23 | B27: 23.5 | C27: =SUMIF('A. Population Info'!$B:$B, A27,'A. Population Info'!$C:$C) -> 4.77736 | D27: =SUM($C$4:C27) -> 167.79545 | E27: 112.26796 | F27: 4158.762275 | G27: 8.966769708 | H27: =COUNTIF('A. Population Info'!$B$6:$B$1836, 'A. Age Profile'!A27) -> 20
A28: 24 | B28: 24.5 | C28: =SUMIF('A. Population Info'!$B:$B, A28,'A. Population Info'!$C:$C) -> 4.89072 | D28: =SUM($C$4:C28) -> 172.68617 | E28: 119.82264 | F28: 3973.738179 | G28: 11.02038639 | H28: =COUNTIF('A. Population Info'!$B$6:$B$1836, 'A. Age Profile'!A28) -> 19
A29: 25 | B29: 25.5 | C29: =SUMIF('A. Population Info'!$B:$B, A29,'A. Population Info'!$C:$C) -> 6.75417 | D29: =SUM($C$4:C29) -> 179.44034 | E29: 172.231335 | F29: 5109.507913 | G29: 13.44837471 | H29: =COUNTIF('A. Population Info'!$B$6:$B$1836, 'A. Age Profile'!A29) -> 20
A30: 26 | B30: 26.5 | C30: =SUMIF('A. Population Info'!$B:$B, A30,'A. Population Info'!$C:$C) -> 6.64907 | D30: =SUM($C$4:C30) -> 186.08941 | E30: 176.200355 | F30: 4670.890656 | G30: 16.29502215 | H30: =COUNTIF('A. Population Info'!$B$6:$B$1836, 'A. Age Profile'!A30) -> 15
A31: 27 | B31: 27.5 | C31: =SUMIF('A. Population Info'!$B:$B, A31,'A. Population Info'!$C:$C) -> 7.53532 | D31: =SUM($C$4:C31) -> 193.62473 | E31: 207.2213 | F31: 4901.566224 | G31: 19.60434257 | H31: =COUNTIF('A. Population Info'!$B$6:$B$1836, 'A. Age Profile'!A31) -> 17
A32: 28 | B32: 28.5 | C32: =SUMIF('A. Population Info'!$B:$B, A32,'A. Population Info'!$C:$C) -> 14.08757 | D32: =SUM($C$4:C32) -> 207.7123 | E32: 401.495745 | F32: 8459.161301 | G32: 23.41864617 | H32: =COUNTIF('A. Population Info'!$B$6:$B$1836, 'A. Age Profile'!A32) -> 28
A33: 29 | B33: 29.5 | C33: =SUMIF('A. Population Info'!$B:$B, A33,'A. Population Info'!$C:$C) -> 12.16992 | D33: =SUM($C$4:C33) -> 219.88222 | E33: 359.01264 | F33: 6723.404892 | G33: 27.77687989 | H33: =COUNTIF('A. Population Info'!$B$6:$B$1836, 'A. Age Profile'!A33) -> 26
A34: 30 | B34: 30.5 | C34: =SUMIF('A. Population Info'!$B:$B, A34,'A. Population Info'!$C:$C) -> 6.01979 | D34: =SUM($C$4:C34) -> 225.90201 | E34: 183.603595 | F34: 3048.734212 | G34: 32.71276931 | H34: =COUNTIF('A. Population Info'!$B$6:$B$1836, 'A. Age Profile'!A34) -> 19
A35: 31 | B35: 31.5 | C35: =SUMIF('A. Population Info'!$B:$B, A35,'A. Population Info'!$C:$C) -> 10.21174 | D35: =SUM($C$4:C35) -> 236.11375 | E35: 321.66981 | F35: 4722.34715 | G35: 38.25280929 | H35: =COUNTIF('A. Population Info'!$B$6:$B$1836, 'A. Age Profile'!A35) -> 24
A36: 32 | B36: 32.5 | C36: =SUMIF('A. Population Info'!$B:$B, A36,'A. Population Info'!$C:$C) -> 10.65314 | D36: =SUM($C$4:C36) -> 246.76689 | E36: 346.22705 | F36: =(B36-$L$6)^2*C36 -> 4478.941992 | G36: 44.41416826 | H36: =COUNTIF('A. Population Info'!$B$6:$B$1836, 'A. Age Profile'!A36) -> 29
A37: 33 | B37: 33.5 | C37: =SUMIF('A. Population Info'!$B:$B, A37,'A. Population Info'!$C:$C) -> 15.42205 | D37: =SUM($C$4:C37) -> 262.18894 | E37: 516.638675 | F37: 5866.93339 | G37: 51.20258721 | H37: =COUNTIF('A. Population Info'!$B$6:$B$1836, 'A. Age Profile'!A37) -> 27
A38: 34 | B38: 34.5 | C38: =SUMIF('A. Population Info'!$B:$B, A38,'A. Population Info'!$C:$C) -> 20.21944 | D38: =SUM($C$4:C38) -> 282.40838 | E38: 697.57068 | F38: 6923.46033 | G38: 58.61036856 | H38: =COUNTIF('A. Population Info'!$B$6:$B$1836, 'A. Age Profile'!A38) -> 30
A39: 35 | B39: 35.5 | C39: =SUMIF('A. Population Info'!$B:$B, A39,'A. Population Info'!$C:$C) -> 19.9954 | D39: =SUM($C$4:C39) -> 302.40378 | E39: 709.8367 | F39: 6126.731616 | G39: 66.61456143 | H39: =COUNTIF('A. Population Info'!$B$6:$B$1836, 'A. Age Profile'!A39) -> 32
A40: 36 | B40: 36.5 | C40: =SUMIF('A. Population Info'!$B:$B, A40,'A. Population Info'!$C:$C) -> 23.24145 | D40: =SUM($C$4:C40) -> 325.64523 | E40: 848.312925 | F40: 6330.926381 | G40: 75.17545539 | H40: =COUNTIF('A. Population Info'!$B$6:$B$1836, 'A. Age Profile'!A40) -> 33
A41: 37 | B41: 37.5 | C41: =SUMIF('A. Population Info'!$B:$B, A41,'A. Population Info'!$C:$C) -> 30.69754 | D41: =SUM($C$4:C41) -> 356.34277 | E41: 1151.15775 | F41: 7379.354248 | G41: 84.23549578 | H41: =COUNTIF('A. Population Info'!$B$6:$B$1836, 'A. Age Profile'!A41) -> 31
A42: 38 | B42: 38.5 | C42: =SUMIF('A. Population Info'!$B:$B, A42,'A. Population Info'!$C:$C) -> 59.72976 | D42: =SUM($C$4:C42) -> 416.07253 | E42: 2299.59576 | F42: 12565.95493 | G42: 93.71872663 | H42: =COUNTIF('A. Population Info'!$B$6:$B$1836, 'A. Age Profile'!A42) -> 43
A43: 39 | B43: 39.5 | C43: =SUMIF('A. Population Info'!$B:$B, A43,'A. Population Info'!$C:$C) -> 57.61748 | D43: =SUM($C$4:C43) -> 473.69001 | E43: 2275.89046 | F43: 10507.76671 | G43: 103.5308539 | H43: =COUNTIF('A. Population Info'!$B$6:$B$1836, 'A. Age Profile'!A43) -> 35
A44: 40 | B44: 40.5 | C44: =SUMIF('A. Population Info'!$B:$B, A44,'A. Population Info'!$C:$C) -> 40.24689 | D44: =SUM($C$4:C44) -> 513.9369 | E44: 1629.999045 | F44: 6293.09176 | G44: 113.5600008 | H44: =COUNTIF('A. Population Info'!$B$6:$B$1836, 'A. Age Profile'!A44) -> 32
A45: 41 | B45: 41.5 | C45: =SUMIF('A. Population Info'!$B:$B, A45,'A. Population Info'!$C:$C) -> 59.61769 | D45: =SUM($C$4:C45) -> 573.55459 | E45: 2474.134135 | F45: 7890.592889 | G45: 123.6781989 | H45: =COUNTIF('A. Population Info'!$B$6:$B$1836, 'A. Age Profile'!A45) -> 33
A46: 42 | B46: 42.5 | C46: =SUMIF('A. Population Info'!$B:$B, A46,'A. Population Info'!$C:$C) -> 55.52257 | D46: =SUM($C$4:C46) -> 629.07716 | E46: 2359.709225 | F46: 6126.595829 | G46: 133.7436253 | H46: =COUNTIF('A. Population Info'!$B$6:$B$1836, 'A. Age Profile'!A46) -> 35
A47: 43 | B47: 43.5 | C47: =SUMIF('A. Population Info'!$B:$B, A47,'A. Population Info'!$C:$C) -> 74.07763 | D47: =SUM($C$4:C47) -> 703.15479 | E47: 3222.376905 | F47: 6691.822509 | G47: 143.6035594 | H47: =COUNTIF('A. Population Info'!$B$6:$B$1836, 'A. Age Profile'!A47) -> 39
A48: 44 | B48: 44.5 | C48: =SUMIF('A. Population Info'!$B:$B, A48,'A. Population Info'!$C:$C) -> 127.68811 | D48: =SUM($C$4:C48) -> 830.8429 | E48: 5682.120895 | F48: 9235.207776 | G48: 153.097991 | H48: =COUNTIF('A. Population Info'!$B$6:$B$1836, 'A. Age Profile'!A48) -> 44
A49: 45 | B49: 45.5 | C49: =SUMIF('A. Population Info'!$B:$B, A49,'A. Population Info'!$C:$C) -> 92.88342 | D49: =SUM($C$4:C49) -> 923.72632 | E49: 4226.19561 | F49: 5230.945338 | G49: 162.0637759 | H49: =COUNTIF('A. Population Info'!$B$6:$B$1836, 'A. Age Profile'!A49) -> 35
A50: 46 | B50: 46.5 | C50: =SUMIF('A. Population Info'!$B:$B, A50,'A. Population Info'!$C:$C) -> 106.41964 | D50: =SUM($C$4:C50) -> 1030.14596 | E50: 4948.51326 | F50: 4502.439074 | G50: 170.3391944 | H50: =COUNTIF('A. Population Info'!$B$6:$B$1836, 'A. Age Profile'!A50) -> 35
A51: 47 | B51: 47.5 | C51: =SUMIF('A. Population Info'!$B:$B, A51,'A. Population Info'!$C:$C) -> 136.42537 | D51: =SUM($C$4:C51) -> 1166.57133 | E51: 6480.205075 | F51: 4133.603277 | G51: 177.7687417 | H51: =COUNTIF('A. Population Info'!$B$6:$B$1836, 'A. Age Profile'!A51) -> 36
A52: 48 | B52: 48.5 | C52: =SUMIF('A. Population Info'!$B:$B, A52,'A. Population Info'!$C:$C) -> 169.5795 | D52: =SUM($C$4:C52) -> 1336.15083 | E52: 8224.60575 | F52: 3440.835951 | G52: 184.2079554 | H52: =COUNTIF('A. Population Info'!$B$6:$B$1836, 'A. Age Profile'!A52) -> 41
A53: 49 | B53: 49.5 | C53: =SUMIF('A. Population Info'!$B:$B, A53,'A. Population Info'!$C:$C) -> 163.62378 | D53: =SUM($C$4:C53) -> 1499.77461 | E53: 8099.37711 | F53: 2009.533508 | G53: 189.5280699 | H53: =COUNTIF('A. Population Info'!$B$6:$B$1836, 'A. Age Profile'!A53) -> 38
A54: 50 | B54: 50.5 | C54: =SUMIF('A. Population Info'!$B:$B, A54,'A. Population Info'!$C:$C) -> 238.26953 | D54: =SUM($C$4:C54) -> 1738.04414 | E54: 12032.61126 | F54: 1494.534572 | G54: 193.6202925 | H54: =COUNTIF('A. Population Info'!$B$6:$B$1836, 'A. Age Profile'!A54) -> 44
A55: 51 | B55: 51.5 | C55: =SUMIF('A. Population Info'!$B:$B, A55,'A. Population Info'!$C:$C) -> 313.08185 | D55: =SUM($C$4:C55) -> 2051.12599 | E55: 16123.71527 | F55: 708.6545728 | G55: 196.3995 | H55: =COUNTIF('A. Population Info'!$B$6:$B$1836, 'A. Age Profile'!A55) -> 43
A56: 52 | B56: 52.5 | C56: =SUMIF('A. Population Info'!$B:$B, A56,'A. Population Info'!$C:$C) -> 318.76273 | D56: =SUM($C$4:C56) -> 2369.88872 | E56: 16735.04332 | F56: 81.1272903 | G56: 197.8071828 | H56: =COUNTIF('A. Population Info'!$B$6:$B$1836, 'A. Age Profile'!A56) -> 39
A57: 53 | B57: 53.5 | C57: =SUMIF('A. Population Info'!$B:$B, A57,'A. Population Info'!$C:$C) -> 324.92144 | D57: =SUM($C$4:C57) -> 2694.81016 | E57: 17383.29704 | F57: 79.77907759 | G57: 197.8134931 | H57: =COUNTIF('A. Population Info'!$B$6:$B$1836, 'A. Age Profile'!A57) -> 40
A58: 54 | B58: 54.5 | C58: =SUMIF('A. Population Info'!$B:$B, A58,'A. Population Info'!$C:$C) -> 423.14577 | D58: =SUM($C$4:C58) -> 3117.95593 | E58: 23061.44447 | F58: 946.3909233 | G58: 196.4182965 | H58: =COUNTIF('A. Population Info'!$B$6:$B$1836, 'A. Age Profile'!A58) -> 41
A59: 55 | B59: 55.5 | C59: =SUMIF('A. Population Info'!$B:$B, A59,'A. Population Info'!$C:$C) -> 430.58054 | D59: =SUM($C$4:C59) -> 3548.53647 | E59: 23897.21997 | F59: 2681.477626 | G59: 193.6511777 | H59: =COUNTIF('A. Population Info'!$B$6:$B$1836, 'A. Age Profile'!A59) -> 44
A60: 56 | B60: 56.5 | C60: =SUMIF('A. Population Info'!$B:$B, A60,'A. Population Info'!$C:$C) -> 419.60017 | D60: =SUM($C$4:C60) -> 3968.13664 | E60: 23707.4096 | F60: 5126.932205 | G60: 189.5703967 | H60: =COUNTIF('A. Population Info'!$B$6:$B$1836, 'A. Age Profile'!A60) -> 44
A61: 57 | B61: 57.5 | C61: =SUMIF('A. Population Info'!$B:$B, A61,'A. Population Info'!$C:$C) -> 342.53 | D61: =SUM($C$4:C61) -> 4310.66664 | E61: 19695.475 | F61: 6922.407948 | G61: 184.2608496 | H61: =COUNTIF('A. Population Info'!$B$6:$B$1836, 'A. Age Profile'!A61) -> 39
A62: 58 | B62: 58.5 | C62: =SUMIF('A. Population Info'!$B:$B, A62,'A. Population Info'!$C:$C) -> 364.76891 | D62: =SUM($C$4:C62) -> 4675.43555 | E62: 21338.98123 | F62: 11016.2642 | G62: 177.8311324 | H62: =COUNTIF('A. Population Info'!$B$6:$B$1836, 'A. Age Profile'!A62) -> 41
A63: 59 | B63: 59.5 | C63: =SUMIF('A. Population Info'!$B:$B, A63,'A. Population Info'!$C:$C) -> 259.26425 | D63: =SUM($C$4:C63) -> 4934.6998 | E63: 15426.22288 | F63: 10938.79767 | G63: 170.4098494 | H63: =COUNTIF('A. Population Info'!$B$6:$B$1836, 'A. Age Profile'!A63) -> 31
A64: 60 | B64: 60.5 | C64: =SUMIF('A. Population Info'!$B:$B, A64,'A. Population Info'!$C:$C) -> 202.67875 | D64: =SUM($C$4:C64) -> 5137.37855 | E64: 12262.06437 | F64: 11387.0434 | G64: 162.1413428 | H64: =COUNTIF('A. Population Info'!$B$6:$B$1836, 'A. Age Profile'!A64) -> 41
A65: 61 | B65: 61.5 | C65: =SUMIF('A. Population Info'!$B:$B, A65,'A. Population Info'!$C:$C) -> 126.43837 | D65: =SUM($C$4:C65) -> 5263.81692 | E65: 7775.959755 | F65: 9125.530842 | G65: 153.1810394 | H65: =COUNTIF('A. Population Info'!$B$6:$B$1836, 'A. Age Profile'!A65) -> 23
A66: 62 | B66: 62.5 | C66: =SUMIF('A. Population Info'!$B:$B, A66,'A. Population Info'!$C:$C) -> 181.08355 | D66: =SUM($C$4:C66) -> 5444.90047 | E66: 11317.72187 | F66: 16327.35717 | G66: 143.6906248 | H66: =COUNTIF('A. Population Info'!$B$6:$B$1836, 'A. Age Profile'!A66) -> 30
A67: 63 | B67: 63.5 | C67: =SUMIF('A. Population Info'!$B:$B, A67,'A. Population Info'!$C:$C) -> 94.29727 | D67: =SUM($C$4:C67) -> 5539.19774 | E67: 5987.876645 | F67: 10387.39117 | G67: 133.8332511 | H67: =COUNTIF('A. Population Info'!$B$6:$B$1836, 'A. Age Profile'!A67) -> 20
A68: 64 | B68: 64.5 | C68: =SUMIF('A. Population Info'!$B:$B, A68,'A. Population Info'!$C:$C) -> 35.64365 | D68: =SUM($C$4:C68) -> 5574.84139 | E68: 2299.015425 | F68: =(B68-$L$6)^2*C68 -> 4710.19522 | G68: 123.7689758 | H68: =COUNTIF('A. Population Info'!$B$6:$B$1836, 'A. Age Profile'!A68) -> 14
A69: 65 | B69: 65.5 | C69: =SUMIF('A. Population Info'!$B:$B, A69,'A. Population Info'!$C:$C) -> 12.03907 | D69: =SUM($C$4:C69) -> 5586.88046 | E69: 788.559085 | F69: 1879.754539 | G69: =_xlfn.NORM.DIST(B69,$L$6,$L$7,FALSE)*$L$4 -> 113.650602 | H69: =COUNTIF('A. Population Info'!$B$6:$B$1836, 'A. Age Profile'!A69) -> 13
A70: 66 | B70: 66.5 | C70: =SUMIF('A. Population Info'!$B:$B, A70,'A. Population Info'!$C:$C) -> 42.08739 | D70: =SUM($C$4:C70) -> 5628.96785 | E70: =B70*C70 -> 2798.811435 | F70: 7665.329177 | G70: 103.6200643 | H70: =COUNTIF('A. Population Info'!$B$6:$B$1836, 'A. Age Profile'!A70) -> 16
A71: 67 | B71: 67.5 | C71: =SUMIF('A. Population Info'!$B:$B, A71,'A. Population Info'!$C:$C) -> 25.36267 | D71: =SUM($C$4:C71) -> 5654.33052 | E71: 1711.980225 | F71: 5329.201836 | G71: 93.8054668 | H71: =COUNTIF('A. Population Info'!$B$6:$B$1836, 'A. Age Profile'!A71) -> 10
A72: 68 | B72: 68.5 | C72: =SUMIF('A. Population Info'!$B:$B, A72,'A. Population Info'!$C:$C) -> 20.3274 | D72: =SUM($C$4:C72) -> 5674.65792 | E72: 1392.4269 | F72: 4880.830971 | G72: 84.31883829 | H72: =COUNTIF('A. Population Info'!$B$6:$B$1836, 'A. Age Profile'!A72) -> 11
A73: 69 | B73: 69.5 | C73: =SUMIF('A. Population Info'!$B:$B, A73,'A. Population Info'!$C:$C) -> 18.50386 | D73: =SUM($C$4:C73) -> 5693.16178 | E73: 1286.01827 | F73: 5034.936559 | G73: 75.25463504 | H73: =COUNTIF('A. Population Info'!$B$6:$B$1836, 'A. Age Profile'!A73) -> 10
A74: 70 | B74: 70.5 | C74: =SUMIF('A. Population Info'!$B:$B, A74,'A. Population Info'!$C:$C) -> 19.28008 | D74: =SUM($C$4:C74) -> 5712.44186 | E74: 1359.24564 | F74: 5901.497254 | G74: 66.68897886 | H74: =COUNTIF('A. Population Info'!$B$6:$B$1836, 'A. Age Profile'!A74) -> 9
A75: 71 | B75: 71.5 | C75: =SUMIF('A. Population Info'!$B:$B, A75,'A. Population Info'!$C:$C) -> 5.21753 | D75: =SUM($C$4:C75) -> 5717.65939 | E75: 373.053395 | F75: 1784.833597 | G75: 58.67958791 | H75: =COUNTIF('A. Population Info'!$B$6:$B$1836, 'A. Age Profile'!A75) -> 8
A76: 72 | B76: 72.5 | C76: =SUMIF('A. Population Info'!$B:$B, A76,'A. Population Info'!$C:$C) -> 5.46852 | D76: =SUM($C$4:C76) -> 5723.12791 | E76: 396.4677 | F76: 2078.447953 | G76: 51.26632862 | H76: =COUNTIF('A. Population Info'!$B$6:$B$1836, 'A. Age Profile'!A76) -> 9
A77: 73 | B77: 73.5 | C77: =SUMIF('A. Population Info'!$B:$B, A77,'A. Population Info'!$C:$C) -> 13.43673 | D77: =SUM($C$4:C77) -> 5736.56464 | E77: 987.599655 | F77: 5644.314306 | G77: 44.47229613 | H77: =COUNTIF('A. Population Info'!$B$6:$B$1836, 'A. Age Profile'!A77) -> 7
A78: 74 | B78: 74.5 | C78: =SUMIF('A. Population Info'!$B:$B, A78,'A. Population Info'!$C:$C) -> 22.81201 | D78: =SUM($C$4:C78) -> 5759.37665 | E78: 1699.494745 | F78: 10540.45101 | G78: 38.30531719 | H78: =COUNTIF('A. Population Info'!$B$6:$B$1836, 'A. Age Profile'!A78) -> 13
A79: 75 | B79: 75.5 | C79: =SUMIF('A. Population Info'!$B:$B, A79,'A. Population Info'!$C:$C) -> 3.06188 | D79: =SUM($C$4:C79) -> 5762.43853 | E79: 231.17194 | F79: 1549.458614 | G79: 32.75976268 | H79: =COUNTIF('A. Population Info'!$B$6:$B$1836, 'A. Age Profile'!A79) -> 3
A80: 76 | B80: 76.5 | C80: =SUMIF('A. Population Info'!$B:$B, A80,'A. Population Info'!$C:$C) -> 1.37352 | D80: =SUM($C$4:C80) -> 5763.81205 | E80: 105.07428 | F80: 758.2368071 | G80: 27.81855742 | H80: =COUNTIF('A. Population Info'!$B$6:$B$1836, 'A. Age Profile'!A80) -> 4
A81: 77 | B81: 77.5 | C81: =SUMIF('A. Population Info'!$B:$B, A81,'A. Population Info'!$C:$C) -> 2.65962 | D81: =SUM($C$4:C81) -> 5766.47167 | E81: 206.12055 | F81: 1595.852246 | G81: 23.45528084 | H81: =COUNTIF('A. Population Info'!$B$6:$B$1836, 'A. Age Profile'!A81) -> 6
A82: 78 | B82: 78.5 | C82: =SUMIF('A. Population Info'!$B:$B, A82,'A. Population Info'!$C:$C) -> 24.27577 | D82: =SUM($C$4:C82) -> 5790.74744 | E82: 1905.647945 | F82: 15779.76512 | G82: 19.63626315 | H82: =COUNTIF('A. Population Info'!$B$6:$B$1836, 'A. Age Profile'!A82) -> 11
A83: 79 | B83: 79.5 | C83: =SUMIF('A. Population Info'!$B:$B, A83,'A. Population Info'!$C:$C) -> 1.36472 | D83: =SUM($C$4:C83) -> 5792.11216 | E83: 108.49524 | F83: 958.0501241 | G83: 16.32259572 | H83: =COUNTIF('A. Population Info'!$B$6:$B$1836, 'A. Age Profile'!A83) -> 3
A84: 80 | B84: 80.5 | C84: =SUMIF('A. Population Info'!$B:$B, A84,'A. Population Info'!$C:$C) -> 1.65281 | D84: =SUM($C$4:C84) -> 5793.76497 | E84: 133.051205 | F84: 1249.529735 | G84: 13.47199083 | H84: =COUNTIF('A. Population Info'!$B$6:$B$1836, 'A. Age Profile'!A84) -> 3
A85: 81 | B85: 81.5 | C85: =SUMIF('A. Population Info'!$B:$B, A85,'A. Population Info'!$C:$C) -> 1.79879 | D85: =SUM($C$4:C85) -> 5795.56376 | E85: 146.601385 | F85: 1460.607188 | G85: 11.04044318 | H85: =COUNTIF('A. Population Info'!$B$6:$B$1836, 'A. Age Profile'!A85) -> 2
A86: 82 | B86: 82.5 | C86: =SUMIF('A. Population Info'!$B:$B, A86,'A. Population Info'!$C:$C) -> 1.22846 | D86: =SUM($C$4:C86) -> 5796.79222 | E86: 101.34795 | F86: 1068.742148 | G86: 8.983662125 | H86: =COUNTIF('A. Population Info'!$B$6:$B$1836, 'A. Age Profile'!A86) -> 3
A87: 83 | B87: 83.5 | C87: =SUMIF('A. Population Info'!$B:$B, A87,'A. Population Info'!$C:$C) -> 2.07133 | D87: =SUM($C$4:C87) -> 5798.86355 | E87: 172.956055 | F87: 1926.287875 | G87: 7.258259422 | H87: =COUNTIF('A. Population Info'!$B$6:$B$1836, 'A. Age Profile'!A87) -> 4
A88: 84 | B88: 84.5 | C88: =SUMIF('A. Population Info'!$B:$B, A88,'A. Population Info'!$C:$C) -> 3.5537 | D88: =SUM($C$4:C88) -> 5802.41725 | E88: 300.28765 | F88: 3525.154401 | G88: 5.822690918 | H88: =COUNTIF('A. Population Info'!$B$6:$B$1836, 'A. Age Profile'!A88) -> 4
A89: 85 | B89: 85.5 | C89: =SUMIF('A. Population Info'!$B:$B, A89,'A. Population Info'!$C:$C) -> 1.87859 | D89: =SUM($C$4:C89) -> 5804.29584 | E89: 160.619445 | F89: 1983.712862 | G89: 4.637961746 | H89: =COUNTIF('A. Population Info'!$B$6:$B$1836, 'A. Age Profile'!A89) -> 5
A90: 86 | B90: 86.5 | C90: =SUMIF('A. Population Info'!$B:$B, A90,'A. Population Info'!$C:$C) -> 1.47662 | D90: =SUM($C$4:C90) -> 5805.77246 | E90: 127.72763 | F90: 1656.69294 | G90: 3.668113466 | H90: =COUNTIF('A. Population Info'!$B$6:$B$1836, 'A. Age Profile'!A90) -> 3
A91: 87 | B91: 87.5 | C91: =SUMIF('A. Population Info'!$B:$B, A91,'A. Population Info'!$C:$C) -> 0.99121 | D91: =SUM($C$4:C91) -> 5806.76367 | E91: 86.730875 | F91: 1179.480862 | G91: 2.880517609 | H91: =COUNTIF('A. Population Info'!$B$6:$B$1836, 'A. Age Profile'!A91) -> 1
A92: 88 | B92: 88.5 | C92: =SUMIF('A. Population Info'!$B:$B, A92,'A. Population Info'!$C:$C) -> 0.61 | D92: =SUM($C$4:C92) -> 5807.37367 | E92: 53.985 | F92: 768.5581935 | G92: 2.246003774 | H92: =COUNTIF('A. Population Info'!$B$6:$B$1836, 'A. Age Profile'!A92) -> 1
A93: 89 | B93: 89.5 | C93: =SUMIF('A. Population Info'!$B:$B, A93,'A. Population Info'!$C:$C) -> 0 | D93: =SUM($C$4:C93) -> 5807.37367 | E93: 0 | F93: 0 | G93: 1.738851935 | H93: =COUNTIF('A. Population Info'!$B$6:$B$1836, 'A. Age Profile'!A93) -> 0
A94: 90 | B94: 90.5 | C94: =SUMIF('A. Population Info'!$B:$B, A94,'A. Population Info'!$C:$C) -> 36.78463 | D94: =SUM($C$4:C94) -> 5844.1583 | E94: =B94*C94 -> 3329.009015 | F94: 51716.00857 | G94: 1.336678302 | H94: =COUNTIF('A. Population Info'!$B$6:$B$1836, 'A. Age Profile'!A94) -> 29
A95: 91 | B95: 91.5 | C95: =SUMIF('A. Population Info'!$B:$B, A95,'A. Population Info'!$C:$C) -> 41.16244 | D95: =SUM($C$4:C95) -> 5885.32074 | E95: =B95*C95 -> 3766.36326 | F95: 60998.80691 | G95: 1.020242399 | H95: =COUNTIF('A. Population Info'!$B$6:$B$1836, 'A. Age Profile'!A95) -> 10
A96: 92 | B96: 92.5 | C96: =SUMIF('A. Population Info'!$B:$B, A96,'A. Population Info'!$C:$C) -> 0.16066 | D96: =SUM($C$4:C96) -> 5885.4814 | E96: 14.86105 | F96: 250.6128225 | G96: 0.7732002953 | H96: =COUNTIF('A. Population Info'!$B$6:$B$1836, 'A. Age Profile'!A96) -> 1
A97: 93 | B97: 93.5 | C97: =SUMIF('A. Population Info'!$B:$B, A97,'A. Population Info'!$C:$C) -> 0 | D97: =SUM($C$4:C97) -> 5885.4814 | E97: 0 | F97: 0 | G97: 0.5818256038 | H97: =COUNTIF('A. Population Info'!$B$6:$B$1836, 'A. Age Profile'!A97) -> 0
A98: 94 | B98: 94.5 | C98: =SUMIF('A. Population Info'!$B:$B, A98,'A. Population Info'!$C:$C) -> 0 | D98: =SUM($C$4:C98) -> 5885.4814 | E98: 0 | F98: 0 | G98: 0.4347161958 | H98: =COUNTIF('A. Population Info'!$B$6:$B$1836, 'A. Age Profile'!A98) -> 0
A99: 95 | B99: 95.5 | C99: =SUMIF('A. Population Info'!$B:$B, A99,'A. Population Info'!$C:$C) -> 0 | D99: =SUM($C$4:C99) -> 5885.4814 | E99: 0 | F99: 0 | G99: 0.3225009411 | H99: =COUNTIF('A. Population Info'!$B$6:$B$1836, 'A. Age Profile'!A99) -> 0
A100: 96 | B100: 96.5 | C100: =SUMIF('A. Population Info'!$B:$B, A100,'A. Population Info'!$C:$C) -> 0 | D100: =SUM($C$4:C100) -> 5885.4814 | E100: 0 | F100: 0 | G100: 0.2375572703 | H100: =COUNTIF('A. Population Info'!$B$6:$B$1836, 'A. Age Profile'!A100) -> 0
A101: 97 | B101: 97.5 | C101: =SUMIF('A. Population Info'!$B:$B, A101,'A. Population Info'!$C:$C) -> 0.11775 | D101: =SUM($C$4:C101) -> 5885.59915 | E101: 11.480625 | F101: 233.1274204 | G101: 0.1737472103 | H101: =COUNTIF('A. Population Info'!$B$6:$B$1836, 'A. Age Profile'!A101) -> 1
A102: 98 | B102: 98.5 | C102: =SUMIF('A. Population Info'!$B:$B, A102,'A. Population Info'!$C:$C) -> 0 | D102: =SUM($C$4:C102) -> 5885.59915 | E102: 0 | F102: 0 | G102: 0.1261768056 | H102: =COUNTIF('A. Population Info'!$B$6:$B$1836, 'A. Age Profile'!A102) -> 0
A103: 99 | B103: 99.5 | C103: =SUMIF('A. Population Info'!$B:$B, A103,'A. Population Info'!$C:$C) -> 0 | D103: =SUM($C$4:C103) -> 5885.59915 | E103: 0 | F103: 0 | G103: 0.09098156237 | H103: =COUNTIF('A. Population Info'!$B$6:$B$1836, 'A. Age Profile'!A103) -> 0
A104: 100 | B104: 100.5 | C104: =SUMIF('A. Population Info'!$B:$B, A104,'A. Population Info'!$C:$C) -> 0 | D104: =SUM($C$4:C104) -> 5885.59915 | E104: 0 | F104: 0 | G104: 0.06513875096 | H104: =COUNTIF('A. Population Info'!$B$6:$B$1836, 'A. Age Profile'!A104) -> 0

Sheet A. Initial PoF
B1: Initial Probability of Failure
A3: Age Label | B3: No. of Asset Units | C3: PoFpoor (Upper 95%) | D3: PoFavg | E3: PoFgood (Lower 95%)
A4: 0 | B4: 1 | C4: =IF('B. PoF Summary Stats & Params'!$C$12="C", B4*'B. PoF Summary Stats & Params'!$I$8*'B. PoF Summary Stats & Params'!$I$10*A4^('B. PoF Summary Stats & Params'!$I$10-1), IF('B. PoF Summary Stats & Params'!$C$12="W", B4*(('B. PoF Summary Stats & Params'!$M$14/'B. PoF Summary Stats & Params'!$O$14)*((A4)/'B. PoF Summary Stats & Params'!$O$14)^('B. PoF Summary Stats & Params'!$M$14-1)), "Choose Model")) -> 0 | D4: =IF('B. PoF Summary Stats & Params'!$C$12="C", B4*'B. PoF Summary Stats & Params'!$I$8*'B. PoF Summary Stats & Params'!$I$6*A4^('B. PoF Summary Stats & Params'!$I$6-1), IF('B. PoF Summary Stats & Params'!$C$12="W", B4*(('B. PoF Summary Stats & Params'!$M$6/'B. PoF Summary Stats & Params'!$M$8)*((A4)/'B. PoF Summary Stats & Params'!$M$8)^('B. PoF Summary Stats & Params'!$M$6-1)), "Choose Model")) -> 0 | E4: =IF('B. PoF Summary Stats & Params'!$C$12="C", B4*'B. PoF Summary Stats & Params'!$I$8*'B. PoF Summary Stats & Params'!$I$12*A4^('B. PoF Summary Stats & Params'!$I$12-1), IF('B. PoF Summary Stats & Params'!$C$12="W", B4*(('B. PoF Summary Stats & Params'!$M$12/'B. PoF Summary Stats & Params'!$O$12)*((A4)/'B. PoF Summary Stats & Params'!$O$12)^('B. PoF Summary Stats & Params'!$M$12-1)), "Choose Model")) -> 
A5: 1 | B5: 1 | C5: =IF('B. PoF Summary Stats & Params'!$C$12="C", B5*'B. PoF Summary Stats & Params'!$I$8*'B. PoF Summary Stats & Params'!$I$10*A5^('B. PoF Summary Stats & Params'!$I$10-1), IF('B. PoF Summary Stats & Params'!$C$12="W", B5*(('B. PoF Summary Stats & Params'!$M$14/'B. PoF Summary Stats & Params'!$O$14)*((A5)/'B. PoF Summary Stats & Params'!$O$14)^('B. PoF Summary Stats & Params'!$M$14-1)), "Choose Model")) -> 0.08648150368 | D5: =IF('B. PoF Summary Stats & Params'!$C$12="C", B5*'B. PoF Summary Stats & Params'!$I$8*'B. PoF Summary Stats & Params'!$I$6*A5^('B. PoF Summary Stats & Params'!$I$6-1), IF('B. PoF Summary Stats & Params'!$C$12="W", B5*(('B. PoF Summary Stats & Params'!$M$6/'B. PoF Summary Stats & Params'!$M$8)*((A5)/'B. PoF Summary Stats & Params'!$M$8)^('B. PoF Summary Stats & Params'!$M$6-1)), "Choose Model")) -> 0.06955625253 | E5: =IF('B. PoF Summary Stats & Params'!$C$12="C", B5*'B. PoF Summary Stats & Params'!$I$8*'B. PoF Summary Stats & Params'!$I$12*A5^('B. PoF Summary Stats & Params'!$I$12-1), IF('B. PoF Summary Stats & Params'!$C$12="W", B5*(('B. PoF Summary Stats & Params'!$M$12/'B. PoF Summary Stats & Params'!$O$12)*((A5)/'B. PoF Summary Stats & Params'!$O$12)^('B. PoF Summary Stats & Params'!$M$12-1)), "Choose Model")) -> 0.05263100138
A6: 2 | B6: 1 | C6: =IF('B. PoF Summary Stats & Params'!$C$12="C", B6*'B. PoF Summary Stats & Params'!$I$8*'B. PoF Summary Stats & Params'!$I$10*A6^('B. PoF Summary Stats & Params'!$I$10-1), IF('B. PoF Summary Stats & Params'!$C$12="W", B6*(('B. PoF Summary Stats & Params'!$M$14/'B. PoF Summary Stats & Params'!$O$14)*((A6)/'B. PoF Summary Stats & Params'!$O$14)^('B. PoF Summary Stats & Params'!$M$14-1)), "Choose Model")) -> 0.1239252995 | D6: =IF('B. PoF Summary Stats & Params'!$C$12="C", B6*'B. PoF Summary Stats & Params'!$I$8*'B. PoF Summary Stats & Params'!$I$6*A6^('B. PoF Summary Stats & Params'!$I$6-1), IF('B. PoF Summary Stats & Params'!$C$12="W", B6*(('B. PoF Summary Stats & Params'!$M$6/'B. PoF Summary Stats & Params'!$M$8)*((A6)/'B. PoF Summary Stats & Params'!$M$8)^('B. PoF Summary Stats & Params'!$M$6-1)), "Choose Model")) -> 0.08111132183 | E6: =IF('B. PoF Summary Stats & Params'!$C$12="C", B6*'B. PoF Summary Stats & Params'!$I$8*'B. PoF Summary Stats & Params'!$I$12*A6^('B. PoF Summary Stats & Params'!$I$12-1), IF('B. PoF Summary Stats & Params'!$C$12="W", B6*(('B. PoF Summary Stats & Params'!$M$12/'B. PoF Summary Stats & Params'!$O$12)*((A6)/'B. PoF Summary Stats & Params'!$O$12)^('B. PoF Summary Stats & Params'!$M$12-1)), "Choose Model")) -> 0.04994539993
A7: 3 | B7: 1 | C7: =IF('B. PoF Summary Stats & Params'!$C$12="C", B7*'B. PoF Summary Stats & Params'!$I$8*'B. PoF Summary Stats & Params'!$I$10*A7^('B. PoF Summary Stats & Params'!$I$10-1), IF('B. PoF Summary Stats & Params'!$C$12="W", B7*(('B. PoF Summary Stats & Params'!$M$14/'B. PoF Summary Stats & Params'!$O$14)*((A7)/'B. PoF Summary Stats & Params'!$O$14)^('B. PoF Summary Stats & Params'!$M$14-1)), "Choose Model")) -> 0.1529511033 | D7: =IF('B. PoF Summary Stats & Params'!$C$12="C", B7*'B. PoF Summary Stats & Params'!$I$8*'B. PoF Summary Stats & Params'!$I$6*A7^('B. PoF Summary Stats & Params'!$I$6-1), IF('B. PoF Summary Stats & Params'!$C$12="W", B7*(('B. PoF Summary Stats & Params'!$M$6/'B. PoF Summary Stats & Params'!$M$8)*((A7)/'B. PoF Summary Stats & Params'!$M$8)^('B. PoF Summary Stats & Params'!$M$6-1)), "Choose Model")) -> 0.0887411349 | E7: =IF('B. PoF Summary Stats & Params'!$C$12="C", B7*'B. PoF Summary Stats & Params'!$I$8*'B. PoF Summary Stats & Params'!$I$12*A7^('B. PoF Summary Stats & Params'!$I$12-1), IF('B. PoF Summary Stats & Params'!$C$12="W", B7*(('B. PoF Summary Stats & Params'!$M$12/'B. PoF Summary Stats & Params'!$O$12)*((A7)/'B. PoF Summary Stats & Params'!$O$12)^('B. PoF Summary Stats & Params'!$M$12-1)), "Choose Model")) -> 0.04843840758
A8: 4 | B8: 1 | C8: =IF('B. PoF Summary Stats & Params'!$C$12="C", B8*'B. PoF Summary Stats & Params'!$I$8*'B. PoF Summary Stats & Params'!$I$10*A8^('B. PoF Summary Stats & Params'!$I$10-1), IF('B. PoF Summary Stats & Params'!$C$12="W", B8*(('B. PoF Summary Stats & Params'!$M$14/'B. PoF Summary Stats & Params'!$O$14)*((A8)/'B. PoF Summary Stats & Params'!$O$14)^('B. PoF Summary Stats & Params'!$M$14-1)), "Choose Model")) -> 0.1775810919 | D8: =IF('B. PoF Summary Stats & Params'!$C$12="C", B8*'B. PoF Summary Stats & Params'!$I$8*'B. PoF Summary Stats & Params'!$I$6*A8^('B. PoF Summary Stats & Params'!$I$6-1), IF('B. PoF Summary Stats & Params'!$C$12="W", B8*(('B. PoF Summary Stats & Params'!$M$6/'B. PoF Summary Stats & Params'!$M$8)*((A8)/'B. PoF Summary Stats & Params'!$M$8)^('B. PoF Summary Stats & Params'!$M$6-1)), "Choose Model")) -> 0.09458598315 | E8: =IF('B. PoF Summary Stats & Params'!$C$12="C", B8*'B. PoF Summary Stats & Params'!$I$8*'B. PoF Summary Stats & Params'!$I$12*A8^('B. PoF Summary Stats & Params'!$I$12-1), IF('B. PoF Summary Stats & Params'!$C$12="W", B8*(('B. PoF Summary Stats & Params'!$M$12/'B. PoF Summary Stats & Params'!$O$12)*((A8)/'B. PoF Summary Stats & Params'!$O$12)^('B. PoF Summary Stats & Params'!$M$12-1)), "Choose Model")) -> 0.04739683664
A9: 5 | B9: 1 | C9: =IF('B. PoF Summary Stats & Params'!$C$12="C", B9*'B. PoF Summary Stats & Params'!$I$8*'B. PoF Summary Stats & Params'!$I$10*A9^('B. PoF Summary Stats & Params'!$I$10-1), IF('B. PoF Summary Stats & Params'!$C$12="W", B9*(('B. PoF Summary Stats & Params'!$M$14/'B. PoF Summary Stats & Params'!$O$14)*((A9)/'B. PoF Summary Stats & Params'!$O$14)^('B. PoF Summary Stats & Params'!$M$14-1)), "Choose Model")) -> 0.1993855679 | D9: =IF('B. PoF Summary Stats & Params'!$C$12="C", B9*'B. PoF Summary Stats & Params'!$I$8*'B. PoF Summary Stats & Params'!$I$6*A9^('B. PoF Summary Stats & Params'!$I$6-1), IF('B. PoF Summary Stats & Params'!$C$12="W", B9*(('B. PoF Summary Stats & Params'!$M$6/'B. PoF Summary Stats & Params'!$M$8)*((A9)/'B. PoF Summary Stats & Params'!$M$8)^('B. PoF Summary Stats & Params'!$M$6-1)), "Choose Model")) -> 0.09938342756 | E9: =IF('B. PoF Summary Stats & Params'!$C$12="C", B9*'B. PoF Summary Stats & Params'!$I$8*'B. PoF Summary Stats & Params'!$I$12*A9^('B. PoF Summary Stats & Params'!$I$12-1), IF('B. PoF Summary Stats & Params'!$C$12="W", B9*(('B. PoF Summary Stats & Params'!$M$12/'B. PoF Summary Stats & Params'!$O$12)*((A9)/'B. PoF Summary Stats & Params'!$O$12)^('B. PoF Summary Stats & Params'!$M$12-1)), "Choose Model")) -> 0.04660438014
A10: 6 | B10: 1 | C10: =IF('B. PoF Summary Stats & Params'!$C$12="C", B10*'B. PoF Summary Stats & Params'!$I$8*'B. PoF Summary Stats & Params'!$I$10*A10^('B. PoF Summary Stats & Params'!$I$10-1), IF('B. PoF Summary Stats & Params'!$C$12="W", B10*(('B. PoF Summary Stats & Params'!$M$14/'B. PoF Summary Stats & Params'!$O$14)*((A10)/'B. PoF Summary Stats & Params'!$O$14)^('B. PoF Summary Stats & Params'!$M$14-1)), "Choose Model")) -> 0.2191741642 | D10: =IF('B. PoF Summary Stats & Params'!$C$12="C", B10*'B. PoF Summary Stats & Params'!$I$8*'B. PoF Summary Stats & Params'!$I$6*A10^('B. PoF Summary Stats & Params'!$I$6-1), IF('B. PoF Summary Stats & Params'!$C$12="W", B10*(('B. PoF Summary Stats & Params'!$M$6/'B. PoF Summary Stats & Params'!$M$8)*((A10)/'B. PoF Summary Stats & Params'!$M$8)^('B. PoF Summary Stats & Params'!$M$6-1)), "Choose Model")) -> 0.1034833029 | E10: =IF('B. PoF Summary Stats & Params'!$C$12="C", B10*'B. PoF Summary Stats & Params'!$I$8*'B. PoF Summary Stats & Params'!$I$12*A10^('B. PoF Summary Stats & Params'!$I$12-1), IF('B. PoF Summary Stats & Params'!$C$12="W", B10*(('B. PoF Summary Stats & Params'!$M$12/'B. PoF Summary Stats & Params'!$O$12)*((A10)/'B. PoF Summary Stats & Params'!$O$12)^('B. PoF Summary Stats & Params'!$M$12-1)), "Choose Model")) -> 0.04596674157
A11: 7 | B11: 1 | C11: =IF('B. PoF Summary Stats & Params'!$C$12="C", B11*'B. PoF Summary Stats & Params'!$I$8*'B. PoF Summary Stats & Params'!$I$10*A11^('B. PoF Summary Stats & Params'!$I$10-1), IF('B. PoF Summary Stats & Params'!$C$12="W", B11*(('B. PoF Summary Stats & Params'!$M$14/'B. PoF Summary Stats & Params'!$O$14)*((A11)/'B. PoF Summary Stats & Params'!$O$14)^('B. PoF Summary Stats & Params'!$M$14-1)), "Choose Model")) -> 0.2374298002 | D11: =IF('B. PoF Summary Stats & Params'!$C$12="C", B11*'B. PoF Summary Stats & Params'!$I$8*'B. PoF Summary Stats & Params'!$I$6*A11^('B. PoF Summary Stats & Params'!$I$6-1), IF('B. PoF Summary Stats & Params'!$C$12="W", B11*(('B. PoF Summary Stats & Params'!$M$6/'B. PoF Summary Stats & Params'!$M$8)*((A11)/'B. PoF Summary Stats & Params'!$M$8)^('B. PoF Summary Stats & Params'!$M$6-1)), "Choose Model")) -> 0.1070813731 | E11: =IF('B. PoF Summary Stats & Params'!$C$12="C", B11*'B. PoF Summary Stats & Params'!$I$8*'B. PoF Summary Stats & Params'!$I$12*A11^('B. PoF Summary Stats & Params'!$I$12-1), IF('B. PoF Summary Stats & Params'!$C$12="W", B11*(('B. PoF Summary Stats & Params'!$M$12/'B. PoF Summary Stats & Params'!$O$12)*((A11)/'B. PoF Summary Stats & Params'!$O$12)^('B. PoF Summary Stats & Params'!$M$12-1)), "Choose Model")) -> 0.04543443695
A12: 8 | B12: 1 | C12: =IF('B. PoF Summary Stats & Params'!$C$12="C", B12*'B. PoF Summary Stats & Params'!$I$8*'B. PoF Summary Stats & Params'!$I$10*A12^('B. PoF Summary Stats & Params'!$I$10-1), IF('B. PoF Summary Stats & Params'!$C$12="W", B12*(('B. PoF Summary Stats & Params'!$M$14/'B. PoF Summary Stats & Params'!$O$14)*((A12)/'B. PoF Summary Stats & Params'!$O$14)^('B. PoF Summary Stats & Params'!$M$14-1)), "Choose Model")) -> 0.2544681702 | D12: =IF('B. PoF Summary Stats & Params'!$C$12="C", B12*'B. PoF Summary Stats & Params'!$I$8*'B. PoF Summary Stats & Params'!$I$6*A12^('B. PoF Summary Stats & Params'!$I$6-1), IF('B. PoF Summary Stats & Params'!$C$12="W", B12*(('B. PoF Summary Stats & Params'!$M$6/'B. PoF Summary Stats & Params'!$M$8)*((A12)/'B. PoF Summary Stats & Params'!$M$8)^('B. PoF Summary Stats & Params'!$M$6-1)), "Choose Model")) -> 0.1102991297 | E12: =IF('B. PoF Summary Stats & Params'!$C$12="C", B12*'B. PoF Summary Stats & Params'!$I$8*'B. PoF Summary Stats & Params'!$I$12*A12^('B. PoF Summary Stats & Params'!$I$12-1), IF('B. PoF Summary Stats & Params'!$C$12="W", B12*(('B. PoF Summary Stats & Params'!$M$12/'B. PoF Summary Stats & Params'!$O$12)*((A12)/'B. PoF Summary Stats & Params'!$O$12)^('B. PoF Summary Stats & Params'!$M$12-1)), "Choose Model")) -> 0.04497831885
A13: 9 | B13: 1 | C13: =IF('B. PoF Summary Stats & Params'!$C$12="C", B13*'B. PoF Summary Stats & Params'!$I$8*'B. PoF Summary Stats & Params'!$I$10*A13^('B. PoF Summary Stats & Params'!$I$10-1), IF('B. PoF Summary Stats & Params'!$C$12="W", B13*(('B. PoF Summary Stats & Params'!$M$14/'B. PoF Summary Stats & Params'!$O$14)*((A13)/'B. PoF Summary Stats & Params'!$O$14)^('B. PoF Summary Stats & Params'!$M$14-1)), "Choose Model")) -> 0.2705091726 | D13: =IF('B. PoF Summary Stats & Params'!$C$12="C", B13*'B. PoF Summary Stats & Params'!$I$8*'B. PoF Summary Stats & Params'!$I$6*A13^('B. PoF Summary Stats & Params'!$I$6-1), IF('B. PoF Summary Stats & Params'!$C$12="W", B13*(('B. PoF Summary Stats & Params'!$M$6/'B. PoF Summary Stats & Params'!$M$8)*((A13)/'B. PoF Summary Stats & Params'!$M$8)^('B. PoF Summary Stats & Params'!$M$6-1)), "Choose Model")) -> 0.1132175575 | E13: =IF('B. PoF Summary Stats & Params'!$C$12="C", B13*'B. PoF Summary Stats & Params'!$I$8*'B. PoF Summary Stats & Params'!$I$12*A13^('B. PoF Summary Stats & Params'!$I$12-1), IF('B. PoF Summary Stats & Params'!$C$12="W", B13*(('B. PoF Summary Stats & Params'!$M$12/'B. PoF Summary Stats & Params'!$O$12)*((A13)/'B. PoF Summary Stats & Params'!$O$12)^('B. PoF Summary Stats & Params'!$M$12-1)), "Choose Model")) -> 0.04457979646
A14: 10 | B14: 1 | C14: =IF('B. PoF Summary Stats & Params'!$C$12="C", B14*'B. PoF Summary Stats & Params'!$I$8*'B. PoF Summary Stats & Params'!$I$10*A14^('B. PoF Summary Stats & Params'!$I$10-1), IF('B. PoF Summary Stats & Params'!$C$12="W", B14*(('B. PoF Summary Stats & Params'!$M$14/'B. PoF Summary Stats & Params'!$O$14)*((A14)/'B. PoF Summary Stats & Params'!$O$14)^('B. PoF Summary Stats & Params'!$M$14-1)), "Choose Model")) -> 0.2857133048 | D14: =IF('B. PoF Summary Stats & Params'!$C$12="C", B14*'B. PoF Summary Stats & Params'!$I$8*'B. PoF Summary Stats & Params'!$I$6*A14^('B. PoF Summary Stats & Params'!$I$6-1), IF('B. PoF Summary Stats & Params'!$C$12="W", B14*(('B. PoF Summary Stats & Params'!$M$6/'B. PoF Summary Stats & Params'!$M$8)*((A14)/'B. PoF Summary Stats & Params'!$M$8)^('B. PoF Summary Stats & Params'!$M$6-1)), "Choose Model")) -> 0.1158935521 | E14: =IF('B. PoF Summary Stats & Params'!$C$12="C", B14*'B. PoF Summary Stats & Params'!$I$8*'B. PoF Summary Stats & Params'!$I$12*A14^('B. PoF Summary Stats & Params'!$I$12-1), IF('B. PoF Summary Stats & Params'!$C$12="W", B14*(('B. PoF Summary Stats & Params'!$M$12/'B. PoF Summary Stats & Params'!$O$12)*((A14)/'B. PoF Summary Stats & Params'!$O$12)^('B. PoF Summary Stats & Params'!$M$12-1)), "Choose Model")) -> 0.04422629902
A15: 11 | B15: 1 | C15: =IF('B. PoF Summary Stats & Params'!$C$12="C", B15*'B. PoF Summary Stats & Params'!$I$8*'B. PoF Summary Stats & Params'!$I$10*A15^('B. PoF Summary Stats & Params'!$I$10-1), IF('B. PoF Summary Stats & Params'!$C$12="W", B15*(('B. PoF Summary Stats & Params'!$M$14/'B. PoF Summary Stats & Params'!$O$14)*((A15)/'B. PoF Summary Stats & Params'!$O$14)^('B. PoF Summary Stats & Params'!$M$14-1)), "Choose Model")) -> 0.3002019905 | D15: =IF('B. PoF Summary Stats & Params'!$C$12="C", B15*'B. PoF Summary Stats & Params'!$I$8*'B. PoF Summary Stats & Params'!$I$6*A15^('B. PoF Summary Stats & Params'!$I$6-1), IF('B. PoF Summary Stats & Params'!$C$12="W", B15*(('B. PoF Summary Stats & Params'!$M$6/'B. PoF Summary Stats & Params'!$M$8)*((A15)/'B. PoF Summary Stats & Params'!$M$8)^('B. PoF Summary Stats & Params'!$M$6-1)), "Choose Model")) -> 0.1183687301 | E15: =IF('B. PoF Summary Stats & Params'!$C$12="C", B15*'B. PoF Summary Stats & Params'!$I$8*'B. PoF Summary Stats & Params'!$I$12*A15^('B. PoF Summary Stats & Params'!$I$12-1), IF('B. PoF Summary Stats & Params'!$C$12="W", B15*(('B. PoF Summary Stats & Params'!$M$12/'B. PoF Summary Stats & Params'!$O$12)*((A15)/'B. PoF Summary Stats & Params'!$O$12)^('B. PoF Summary Stats & Params'!$M$12-1)), "Choose Model")) -> 0.04390893705
A16: 12 | B16: 1 | C16: =IF('B. PoF Summary Stats & Params'!$C$12="C", B16*'B. PoF Summary Stats & Params'!$I$8*'B. PoF Summary Stats & Params'!$I$10*A16^('B. PoF Summary Stats & Params'!$I$10-1), IF('B. PoF Summary Stats & Params'!$C$12="W", B16*(('B. PoF Summary Stats & Params'!$M$14/'B. PoF Summary Stats & Params'!$O$14)*((A16)/'B. PoF Summary Stats & Params'!$O$14)^('B. PoF Summary Stats & Params'!$M$14-1)), "Choose Model")) -> 0.3140697465 | D16: =IF('B. PoF Summary Stats & Params'!$C$12="C", B16*'B. PoF Summary Stats & Params'!$I$8*'B. PoF Summary Stats & Params'!$I$6*A16^('B. PoF Summary Stats & Params'!$I$6-1), IF('B. PoF Summary Stats & Params'!$C$12="W", B16*(('B. PoF Summary Stats & Params'!$M$6/'B. PoF Summary Stats & Params'!$M$8)*((A16)/'B. PoF Summary Stats & Params'!$M$8)^('B. PoF Summary Stats & Params'!$M$6-1)), "Choose Model")) -> 0.1206745215 | E16: =IF('B. PoF Summary Stats & Params'!$C$12="C", B16*'B. PoF Summary Stats & Params'!$I$8*'B. PoF Summary Stats & Params'!$I$12*A16^('B. PoF Summary Stats & Params'!$I$12-1), IF('B. PoF Summary Stats & Params'!$C$12="W", B16*(('B. PoF Summary Stats & Params'!$M$12/'B. PoF Summary Stats & Params'!$O$12)*((A16)/'B. PoF Summary Stats & Params'!$O$12)^('B. PoF Summary Stats & Params'!$M$12-1)), "Choose Model")) -> 0.04362119722
A17: 13 | B17: 1 | C17: =IF('B. PoF Summary Stats & Params'!$C$12="C", B17*'B. PoF Summary Stats & Params'!$I$8*'B. PoF Summary Stats & Params'!$I$10*A17^('B. PoF Summary Stats & Params'!$I$10-1), IF('B. PoF Summary Stats & Params'!$C$12="W", B17*(('B. PoF Summary Stats & Params'!$M$14/'B. PoF Summary Stats & Params'!$O$14)*((A17)/'B. PoF Summary Stats & Params'!$O$14)^('B. PoF Summary Stats & Params'!$M$14-1)), "Choose Model")) -> 0.3273918685 | D17: =IF('B. PoF Summary Stats & Params'!$C$12="C", B17*'B. PoF Summary Stats & Params'!$I$8*'B. PoF Summary Stats & Params'!$I$6*A17^('B. PoF Summary Stats & Params'!$I$6-1), IF('B. PoF Summary Stats & Params'!$C$12="W", B17*(('B. PoF Summary Stats & Params'!$M$6/'B. PoF Summary Stats & Params'!$M$8)*((A17)/'B. PoF Summary Stats & Params'!$M$8)^('B. PoF Summary Stats & Params'!$M$6-1)), "Choose Model")) -> 0.1228352877 | E17: =IF('B. PoF Summary Stats & Params'!$C$12="C", B17*'B. PoF Summary Stats & Params'!$I$8*'B. PoF Summary Stats & Params'!$I$12*A17^('B. PoF Summary Stats & Params'!$I$12-1), IF('B. PoF Summary Stats & Params'!$C$12="W", B17*(('B. PoF Summary Stats & Params'!$M$12/'B. PoF Summary Stats & Params'!$O$12)*((A17)/'B. PoF Summary Stats & Params'!$O$12)^('B. PoF Summary Stats & Params'!$M$12-1)), "Choose Model")) -> 0.04335816765
A18: 14 | B18: 1 | C18: =IF('B. PoF Summary Stats & Params'!$C$12="C", B18*'B. PoF Summary Stats & Params'!$I$8*'B. PoF Summary Stats & Params'!$I$10*A18^('B. PoF Summary Stats & Params'!$I$10-1), IF('B. PoF Summary Stats & Params'!$C$12="W", B18*(('B. PoF Summary Stats & Params'!$M$14/'B. PoF Summary Stats & Params'!$O$14)*((A18)/'B. PoF Summary Stats & Params'!$O$14)^('B. PoF Summary Stats & Params'!$M$14-1)), "Choose Model")) -> 0.3402295039 | D18: =IF('B. PoF Summary Stats & Params'!$C$12="C", B18*'B. PoF Summary Stats & Params'!$I$8*'B. PoF Summary Stats & Params'!$I$6*A18^('B. PoF Summary Stats & Params'!$I$6-1), IF('B. PoF Summary Stats & Params'!$C$12="W", B18*(('B. PoF Summary Stats & Params'!$M$6/'B. PoF Summary Stats & Params'!$M$8)*((A18)/'B. PoF Summary Stats & Params'!$M$8)^('B. PoF Summary Stats & Params'!$M$6-1)), "Choose Model")) -> 0.124870323 | E18: =IF('B. PoF Summary Stats & Params'!$C$12="C", B18*'B. PoF Summary Stats & Params'!$I$8*'B. PoF Summary Stats & Params'!$I$12*A18^('B. PoF Summary Stats & Params'!$I$12-1), IF('B. PoF Summary Stats & Params'!$C$12="W", B18*(('B. PoF Summary Stats & Params'!$M$12/'B. PoF Summary Stats & Params'!$O$12)*((A18)/'B. PoF Summary Stats & Params'!$O$12)^('B. PoF Summary Stats & Params'!$M$12-1)), "Choose Model")) -> 0.04311605451
A19: 15 | B19: 1 | C19: =IF('B. PoF Summary Stats & Params'!$C$12="C", B19*'B. PoF Summary Stats & Params'!$I$8*'B. PoF Summary Stats & Params'!$I$10*A19^('B. PoF Summary Stats & Params'!$I$10-1), IF('B. PoF Summary Stats & Params'!$C$12="W", B19*(('B. PoF Summary Stats & Params'!$M$14/'B. PoF Summary Stats & Params'!$O$14)*((A19)/'B. PoF Summary Stats & Params'!$O$14)^('B. PoF Summary Stats & Params'!$M$14-1)), "Choose Model")) -> 0.3526331216 | D19: =IF('B. PoF Summary Stats & Params'!$C$12="C", B19*'B. PoF Summary Stats & Params'!$I$8*'B. PoF Summary Stats & Params'!$I$6*A19^('B. PoF Summary Stats & Params'!$I$6-1), IF('B. PoF Summary Stats & Params'!$C$12="W", B19*(('B. PoF Summary Stats & Params'!$M$6/'B. PoF Summary Stats & Params'!$M$8)*((A19)/'B. PoF Summary Stats & Params'!$M$8)^('B. PoF Summary Stats & Params'!$M$6-1)), "Choose Model")) -> 0.1267951885 | E19: =IF('B. PoF Summary Stats & Params'!$C$12="C", B19*'B. PoF Summary Stats & Params'!$I$8*'B. PoF Summary Stats & Params'!$I$12*A19^('B. PoF Summary Stats & Params'!$I$12-1), IF('B. PoF Summary Stats & Params'!$C$12="W", B19*(('B. PoF Summary Stats & Params'!$M$12/'B. PoF Summary Stats & Params'!$O$12)*((A19)/'B. PoF Summary Stats & Params'!$O$12)^('B. PoF Summary Stats & Params'!$M$12-1)), "Choose Model")) -> 0.04289186793
A20: 16 | B20: 1 | C20: =IF('B. PoF Summary Stats & Params'!$C$12="C", B20*'B. PoF Summary Stats & Params'!$I$8*'B. PoF Summary Stats & Params'!$I$10*A20^('B. PoF Summary Stats & Params'!$I$10-1), IF('B. PoF Summary Stats & Params'!$C$12="W", B20*(('B. PoF Summary Stats & Params'!$M$14/'B. PoF Summary Stats & Params'!$O$14)*((A20)/'B. PoF Summary Stats & Params'!$O$14)^('B. PoF Summary Stats & Params'!$M$14-1)), "Choose Model")) -> 0.3646449571 | D20: =IF('B. PoF Summary Stats & Params'!$C$12="C", B20*'B. PoF Summary Stats & Params'!$I$8*'B. PoF Summary Stats & Params'!$I$6*A20^('B. PoF Summary Stats & Params'!$I$6-1), IF('B. PoF Summary Stats & Params'!$C$12="W", B20*(('B. PoF Summary Stats & Params'!$M$6/'B. PoF Summary Stats & Params'!$M$8)*((A20)/'B. PoF Summary Stats & Params'!$M$8)^('B. PoF Summary Stats & Params'!$M$6-1)), "Choose Model")) -> 0.1286226311 | E20: =IF('B. PoF Summary Stats & Params'!$C$12="C", B20*'B. PoF Summary Stats & Params'!$I$8*'B. PoF Summary Stats & Params'!$I$12*A20^('B. PoF Summary Stats & Params'!$I$12-1), IF('B. PoF Summary Stats & Params'!$C$12="W", B20*(('B. PoF Summary Stats & Params'!$M$12/'B. PoF Summary Stats & Params'!$O$12)*((A20)/'B. PoF Summary Stats & Params'!$O$12)^('B. PoF Summary Stats & Params'!$M$12-1)), "Choose Model")) -> 0.04268321074
A21: 17 | B21: 1 | C21: =IF('B. PoF Summary Stats & Params'!$C$12="C", B21*'B. PoF Summary Stats & Params'!$I$8*'B. PoF Summary Stats & Params'!$I$10*A21^('B. PoF Summary Stats & Params'!$I$10-1), IF('B. PoF Summary Stats & Params'!$C$12="W", B21*(('B. PoF Summary Stats & Params'!$M$14/'B. PoF Summary Stats & Params'!$O$14)*((A21)/'B. PoF Summary Stats & Params'!$O$14)^('B. PoF Summary Stats & Params'!$M$14-1)), "Choose Model")) -> 0.3763007825 | D21: =IF('B. PoF Summary Stats & Params'!$C$12="C", B21*'B. PoF Summary Stats & Params'!$I$8*'B. PoF Summary Stats & Params'!$I$6*A21^('B. PoF Summary Stats & Params'!$I$6-1), IF('B. PoF Summary Stats & Params'!$C$12="W", B21*(('B. PoF Summary Stats & Params'!$M$6/'B. PoF Summary Stats & Params'!$M$8)*((A21)/'B. PoF Summary Stats & Params'!$M$8)^('B. PoF Summary Stats & Params'!$M$6-1)), "Choose Model")) -> 0.1303632332 | E21: =IF('B. PoF Summary Stats & Params'!$C$12="C", B21*'B. PoF Summary Stats & Params'!$I$8*'B. PoF Summary Stats & Params'!$I$12*A21^('B. PoF Summary Stats & Params'!$I$12-1), IF('B. PoF Summary Stats & Params'!$C$12="W", B21*(('B. PoF Summary Stats & Params'!$M$12/'B. PoF Summary Stats & Params'!$O$12)*((A21)/'B. PoF Summary Stats & Params'!$O$12)^('B. PoF Summary Stats & Params'!$M$12-1)), "Choose Model")) -> 0.04248813212
A22: 18 | B22: 1 | C22: =IF('B. PoF Summary Stats & Params'!$C$12="C", B22*'B. PoF Summary Stats & Params'!$I$8*'B. PoF Summary Stats & Params'!$I$10*A22^('B. PoF Summary Stats & Params'!$I$10-1), IF('B. PoF Summary Stats & Params'!$C$12="W", B22*(('B. PoF Summary Stats & Params'!$M$14/'B. PoF Summary Stats & Params'!$O$14)*((A22)/'B. PoF Summary Stats & Params'!$O$14)^('B. PoF Summary Stats & Params'!$M$14-1)), "Choose Model")) -> 0.3876312137 | D22: =IF('B. PoF Summary Stats & Params'!$C$12="C", B22*'B. PoF Summary Stats & Params'!$I$8*'B. PoF Summary Stats & Params'!$I$6*A22^('B. PoF Summary Stats & Params'!$I$6-1), IF('B. PoF Summary Stats & Params'!$C$12="W", B22*(('B. PoF Summary Stats & Params'!$M$6/'B. PoF Summary Stats & Params'!$M$8)*((A22)/'B. PoF Summary Stats & Params'!$M$8)^('B. PoF Summary Stats & Params'!$M$6-1)), "Choose Model")) -> 0.1320258843 | E22: =IF('B. PoF Summary Stats & Params'!$C$12="C", B22*'B. PoF Summary Stats & Params'!$I$8*'B. PoF Summary Stats & Params'!$I$12*A22^('B. PoF Summary Stats & Params'!$I$12-1), IF('B. PoF Summary Stats & Params'!$C$12="W", B22*(('B. PoF Summary Stats & Params'!$M$12/'B. PoF Summary Stats & Params'!$O$12)*((A22)/'B. PoF Summary Stats & Params'!$O$12)^('B. PoF Summary Stats & Params'!$M$12-1)), "Choose Model")) -> 0.04230502375
A23: 19 | B23: 1 | C23: =IF('B. PoF Summary Stats & Params'!$C$12="C", B23*'B. PoF Summary Stats & Params'!$I$8*'B. PoF Summary Stats & Params'!$I$10*A23^('B. PoF Summary Stats & Params'!$I$10-1), IF('B. PoF Summary Stats & Params'!$C$12="W", B23*(('B. PoF Summary Stats & Params'!$M$14/'B. PoF Summary Stats & Params'!$O$14)*((A23)/'B. PoF Summary Stats & Params'!$O$14)^('B. PoF Summary Stats & Params'!$M$14-1)), "Choose Model")) -> 0.3986626961 | D23: =IF('B. PoF Summary Stats & Params'!$C$12="C", B23*'B. PoF Summary Stats & Params'!$I$8*'B. PoF Summary Stats & Params'!$I$6*A23^('B. PoF Summary Stats & Params'!$I$6-1), IF('B. PoF Summary Stats & Params'!$C$12="W", B23*(('B. PoF Summary Stats & Params'!$M$6/'B. PoF Summary Stats & Params'!$M$8)*((A23)/'B. PoF Summary Stats & Params'!$M$8)^('B. PoF Summary Stats & Params'!$M$6-1)), "Choose Model")) -> 0.133618129 | E23: =IF('B. PoF Summary Stats & Params'!$C$12="C", B23*'B. PoF Summary Stats & Params'!$I$8*'B. PoF Summary Stats & Params'!$I$12*A23^('B. PoF Summary Stats & Params'!$I$12-1), IF('B. PoF Summary Stats & Params'!$C$12="W", B23*(('B. PoF Summary Stats & Params'!$M$12/'B. PoF Summary Stats & Params'!$O$12)*((A23)/'B. PoF Summary Stats & Params'!$O$12)^('B. PoF Summary Stats & Params'!$M$12-1)), "Choose Model")) -> 0.04213254441
A24: 20 | B24: 1 | C24: =IF('B. PoF Summary Stats & Params'!$C$12="C", B24*'B. PoF Summary Stats & Params'!$I$8*'B. PoF Summary Stats & Params'!$I$10*A24^('B. PoF Summary Stats & Params'!$I$10-1), IF('B. PoF Summary Stats & Params'!$C$12="W", B24*(('B. PoF Summary Stats & Params'!$M$14/'B. PoF Summary Stats & Params'!$O$14)*((A24)/'B. PoF Summary Stats & Params'!$O$14)^('B. PoF Summary Stats & Params'!$M$14-1)), "Choose Model")) -> 0.4094182612 | D24: =IF('B. PoF Summary Stats & Params'!$C$12="C", B24*'B. PoF Summary Stats & Params'!$I$8*'B. PoF Summary Stats & Params'!$I$6*A24^('B. PoF Summary Stats & Params'!$I$6-1), IF('B. PoF Summary Stats & Params'!$C$12="W", B24*(('B. PoF Summary Stats & Params'!$M$6/'B. PoF Summary Stats & Params'!$M$8)*((A24)/'B. PoF Summary Stats & Params'!$M$8)^('B. PoF Summary Stats & Params'!$M$6-1)), "Choose Model")) -> 0.1351464299 | E24: =IF('B. PoF Summary Stats & Params'!$C$12="C", B24*'B. PoF Summary Stats & Params'!$I$8*'B. PoF Summary Stats & Params'!$I$12*A24^('B. PoF Summary Stats & Params'!$I$12-1), IF('B. PoF Summary Stats & Params'!$C$12="W", B24*(('B. PoF Summary Stats & Params'!$M$12/'B. PoF Summary Stats & Params'!$O$12)*((A24)/'B. PoF Summary Stats & Params'!$O$12)^('B. PoF Summary Stats & Params'!$M$12-1)), "Choose Model")) -> 0.04196956422
A25: 21 | B25: 1 | C25: =IF('B. PoF Summary Stats & Params'!$C$12="C", B25*'B. PoF Summary Stats & Params'!$I$8*'B. PoF Summary Stats & Params'!$I$10*A25^('B. PoF Summary Stats & Params'!$I$10-1), IF('B. PoF Summary Stats & Params'!$C$12="W", B25*(('B. PoF Summary Stats & Params'!$M$14/'B. PoF Summary Stats & Params'!$O$14)*((A25)/'B. PoF Summary Stats & Params'!$O$14)^('B. PoF Summary Stats & Params'!$M$14-1)), "Choose Model")) -> 0.4199181138 | D25: =IF('B. PoF Summary Stats & Params'!$C$12="C", B25*'B. PoF Summary Stats & Params'!$I$8*'B. PoF Summary Stats & Params'!$I$6*A25^('B. PoF Summary Stats & Params'!$I$6-1), IF('B. PoF Summary Stats & Params'!$C$12="W", B25*(('B. PoF Summary Stats & Params'!$M$6/'B. PoF Summary Stats & Params'!$M$8)*((A25)/'B. PoF Summary Stats & Params'!$M$8)^('B. PoF Summary Stats & Params'!$M$6-1)), "Choose Model")) -> 0.1366163678 | E25: =IF('B. PoF Summary Stats & Params'!$C$12="C", B25*'B. PoF Summary Stats & Params'!$I$8*'B. PoF Summary Stats & Params'!$I$12*A25^('B. PoF Summary Stats & Params'!$I$12-1), IF('B. PoF Summary Stats & Params'!$C$12="W", B25*(('B. PoF Summary Stats & Params'!$M$12/'B. PoF Summary Stats & Params'!$O$12)*((A25)/'B. PoF Summary Stats & Params'!$O$12)^('B. PoF Summary Stats & Params'!$M$12-1)), "Choose Model")) -> 0.0418151226
A26: 22 | B26: 1 | C26: =IF('B. PoF Summary Stats & Params'!$C$12="C", B26*'B. PoF Summary Stats & Params'!$I$8*'B. PoF Summary Stats & Params'!$I$10*A26^('B. PoF Summary Stats & Params'!$I$10-1), IF('B. PoF Summary Stats & Params'!$C$12="W", B26*(('B. PoF Summary Stats & Params'!$M$14/'B. PoF Summary Stats & Params'!$O$14)*((A26)/'B. PoF Summary Stats & Params'!$O$14)^('B. PoF Summary Stats & Params'!$M$14-1)), "Choose Model")) -> 0.4301800963 | D26: =IF('B. PoF Summary Stats & Params'!$C$12="C", B26*'B. PoF Summary Stats & Params'!$I$8*'B. PoF Summary Stats & Params'!$I$6*A26^('B. PoF Summary Stats & Params'!$I$6-1), IF('B. PoF Summary Stats & Params'!$C$12="W", B26*(('B. PoF Summary Stats & Params'!$M$6/'B. PoF Summary Stats & Params'!$M$8)*((A26)/'B. PoF Summary Stats & Params'!$M$8)^('B. PoF Summary Stats & Params'!$M$6-1)), "Choose Model")) -> 0.1380327982 | E26: =IF('B. PoF Summary Stats & Params'!$C$12="C", B26*'B. PoF Summary Stats & Params'!$I$8*'B. PoF Summary Stats & Params'!$I$12*A26^('B. PoF Summary Stats & Params'!$I$12-1), IF('B. PoF Summary Stats & Params'!$C$12="W", B26*(('B. PoF Summary Stats & Params'!$M$12/'B. PoF Summary Stats & Params'!$O$12)*((A26)/'B. PoF Summary Stats & Params'!$O$12)^('B. PoF Summary Stats & Params'!$M$12-1)), "Choose Model")) -> 0.04166839627
A27: 23 | B27: 1 | C27: =IF('B. PoF Summary Stats & Params'!$C$12="C", B27*'B. PoF Summary Stats & Params'!$I$8*'B. PoF Summary Stats & Params'!$I$10*A27^('B. PoF Summary Stats & Params'!$I$10-1), IF('B. PoF Summary Stats & Params'!$C$12="W", B27*(('B. PoF Summary Stats & Params'!$M$14/'B. PoF Summary Stats & Params'!$O$14)*((A27)/'B. PoF Summary Stats & Params'!$O$14)^('B. PoF Summary Stats & Params'!$M$14-1)), "Choose Model")) -> 0.440220059 | D27: =IF('B. PoF Summary Stats & Params'!$C$12="C", B27*'B. PoF Summary Stats & Params'!$I$8*'B. PoF Summary Stats & Params'!$I$6*A27^('B. PoF Summary Stats & Params'!$I$6-1), IF('B. PoF Summary Stats & Params'!$C$12="W", B27*(('B. PoF Summary Stats & Params'!$M$6/'B. PoF Summary Stats & Params'!$M$8)*((A27)/'B. PoF Summary Stats & Params'!$M$8)^('B. PoF Summary Stats & Params'!$M$6-1)), "Choose Model")) -> 0.1393999734 | E27: =IF('B. PoF Summary Stats & Params'!$C$12="C", B27*'B. PoF Summary Stats & Params'!$I$8*'B. PoF Summary Stats & Params'!$I$12*A27^('B. PoF Summary Stats & Params'!$I$12-1), IF('B. PoF Summary Stats & Params'!$C$12="W", B27*(('B. PoF Summary Stats & Params'!$M$12/'B. PoF Summary Stats & Params'!$O$12)*((A27)/'B. PoF Summary Stats & Params'!$O$12)^('B. PoF Summary Stats & Params'!$M$12-1)), "Choose Model")) -> 0.04152867436
A28: 24 | B28: 1 | C28: =IF('B. PoF Summary Stats & Params'!$C$12="C", B28*'B. PoF Summary Stats & Params'!$I$8*'B. PoF Summary Stats & Params'!$I$10*A28^('B. PoF Summary Stats & Params'!$I$10-1), IF('B. PoF Summary Stats & Params'!$C$12="W", B28*(('B. PoF Summary Stats & Params'!$M$14/'B. PoF Summary Stats & Params'!$O$14)*((A28)/'B. PoF Summary Stats & Params'!$O$14)^('B. PoF Summary Stats & Params'!$M$14-1)), "Choose Model")) -> 0.4500521584 | D28: =IF('B. PoF Summary Stats & Params'!$C$12="C", B28*'B. PoF Summary Stats & Params'!$I$8*'B. PoF Summary Stats & Params'!$I$6*A28^('B. PoF Summary Stats & Params'!$I$6-1), IF('B. PoF Summary Stats & Params'!$C$12="W", B28*(('B. PoF Summary Stats & Params'!$M$6/'B. PoF Summary Stats & Params'!$M$8)*((A28)/'B. PoF Summary Stats & Params'!$M$8)^('B. PoF Summary Stats & Params'!$M$6-1)), "Choose Model")) -> 0.1407216403 | E28: =IF('B. PoF Summary Stats & Params'!$C$12="C", B28*'B. PoF Summary Stats & Params'!$I$8*'B. PoF Summary Stats & Params'!$I$12*A28^('B. PoF Summary Stats & Params'!$I$12-1), IF('B. PoF Summary Stats & Params'!$C$12="W", B28*(('B. PoF Summary Stats & Params'!$M$12/'B. PoF Summary Stats & Params'!$O$12)*((A28)/'B. PoF Summary Stats & Params'!$O$12)^('B. PoF Summary Stats & Params'!$M$12-1)), "Choose Model")) -> 0.04139533894
A29: 25 | B29: 1 | C29: =IF('B. PoF Summary Stats & Params'!$C$12="C", B29*'B. PoF Summary Stats & Params'!$I$8*'B. PoF Summary Stats & Params'!$I$10*A29^('B. PoF Summary Stats & Params'!$I$10-1), IF('B. PoF Summary Stats & Params'!$C$12="W", B29*(('B. PoF Summary Stats & Params'!$M$14/'B. PoF Summary Stats & Params'!$O$14)*((A29)/'B. PoF Summary Stats & Params'!$O$14)^('B. PoF Summary Stats & Params'!$M$14-1)), "Choose Model")) -> 0.4596891012 | D29: =IF('B. PoF Summary Stats & Params'!$C$12="C", B29*'B. PoF Summary Stats & Params'!$I$8*'B. PoF Summary Stats & Params'!$I$6*A29^('B. PoF Summary Stats & Params'!$I$6-1), IF('B. PoF Summary Stats & Params'!$C$12="W", B29*(('B. PoF Summary Stats & Params'!$M$6/'B. PoF Summary Stats & Params'!$M$8)*((A29)/'B. PoF Summary Stats & Params'!$M$8)^('B. PoF Summary Stats & Params'!$M$6-1)), "Choose Model")) -> 0.1420011187 | E29: =IF('B. PoF Summary Stats & Params'!$C$12="C", B29*'B. PoF Summary Stats & Params'!$I$8*'B. PoF Summary Stats & Params'!$I$12*A29^('B. PoF Summary Stats & Params'!$I$12-1), IF('B. PoF Summary Stats & Params'!$C$12="W", B29*(('B. PoF Summary Stats & Params'!$M$12/'B. PoF Summary Stats & Params'!$O$12)*((A29)/'B. PoF Summary Stats & Params'!$O$12)^('B. PoF Summary Stats & Params'!$M$12-1)), "Choose Model")) -> 0.04126784958
A30: 26 | B30: 1 | C30: =IF('B. PoF Summary Stats & Params'!$C$12="C", B30*'B. PoF Summary Stats & Params'!$I$8*'B. PoF Summary Stats & Params'!$I$10*A30^('B. PoF Summary Stats & Params'!$I$10-1), IF('B. PoF Summary Stats & Params'!$C$12="W", B30*(('B. PoF Summary Stats & Params'!$M$14/'B. PoF Summary Stats & Params'!$O$14)*((A30)/'B. PoF Summary Stats & Params'!$O$14)^('B. PoF Summary Stats & Params'!$M$14-1)), "Choose Model")) -> 0.469142344 | D30: =IF('B. PoF Summary Stats & Params'!$C$12="C", B30*'B. PoF Summary Stats & Params'!$I$8*'B. PoF Summary Stats & Params'!$I$6*A30^('B. PoF Summary Stats & Params'!$I$6-1), IF('B. PoF Summary Stats & Params'!$C$12="W", B30*(('B. PoF Summary Stats & Params'!$M$6/'B. PoF Summary Stats & Params'!$M$8)*((A30)/'B. PoF Summary Stats & Params'!$M$8)^('B. PoF Summary Stats & Params'!$M$6-1)), "Choose Model")) -> 0.1432413649 | E30: =IF('B. PoF Summary Stats & Params'!$C$12="C", B30*'B. PoF Summary Stats & Params'!$I$8*'B. PoF Summary Stats & Params'!$I$12*A30^('B. PoF Summary Stats & Params'!$I$12-1), IF('B. PoF Summary Stats & Params'!$C$12="W", B30*(('B. PoF Summary Stats & Params'!$M$12/'B. PoF Summary Stats & Params'!$O$12)*((A30)/'B. PoF Summary Stats & Params'!$O$12)^('B. PoF Summary Stats & Params'!$M$12-1)), "Choose Model")) -> 0.04114573097
A31: 27 | B31: 1 | C31: =IF('B. PoF Summary Stats & Params'!$C$12="C", B31*'B. PoF Summary Stats & Params'!$I$8*'B. PoF Summary Stats & Params'!$I$10*A31^('B. PoF Summary Stats & Params'!$I$10-1), IF('B. PoF Summary Stats & Params'!$C$12="W", B31*(('B. PoF Summary Stats & Params'!$M$14/'B. PoF Summary Stats & Params'!$O$14)*((A31)/'B. PoF Summary Stats & Params'!$O$14)^('B. PoF Summary Stats & Params'!$M$14-1)), "Choose Model")) -> 0.4784222597 | D31: =IF('B. PoF Summary Stats & Params'!$C$12="C", B31*'B. PoF Summary Stats & Params'!$I$8*'B. PoF Summary Stats & Params'!$I$6*A31^('B. PoF Summary Stats & Params'!$I$6-1), IF('B. PoF Summary Stats & Params'!$C$12="W", B31*(('B. PoF Summary Stats & Params'!$M$6/'B. PoF Summary Stats & Params'!$M$8)*((A31)/'B. PoF Summary Stats & Params'!$M$8)^('B. PoF Summary Stats & Params'!$M$6-1)), "Choose Model")) -> 0.1444450237 | E31: =IF('B. PoF Summary Stats & Params'!$C$12="C", B31*'B. PoF Summary Stats & Params'!$I$8*'B. PoF Summary Stats & Params'!$I$12*A31^('B. PoF Summary Stats & Params'!$I$12-1), IF('B. PoF Summary Stats & Params'!$C$12="W", B31*(('B. PoF Summary Stats & Params'!$M$12/'B. PoF Summary Stats & Params'!$O$12)*((A31)/'B. PoF Summary Stats & Params'!$O$12)^('B. PoF Summary Stats & Params'!$M$12-1)), "Choose Model")) -> 0.04102856291
A32: 28 | B32: 1 | C32: =IF('B. PoF Summary Stats & Params'!$C$12="C", B32*'B. PoF Summary Stats & Params'!$I$8*'B. PoF Summary Stats & Params'!$I$10*A32^('B. PoF Summary Stats & Params'!$I$10-1), IF('B. PoF Summary Stats & Params'!$C$12="W", B32*(('B. PoF Summary Stats & Params'!$M$14/'B. PoF Summary Stats & Params'!$O$14)*((A32)/'B. PoF Summary Stats & Params'!$O$14)^('B. PoF Summary Stats & Params'!$M$14-1)), "Choose Model")) -> 0.4875382755 | D32: =IF('B. PoF Summary Stats & Params'!$C$12="C", B32*'B. PoF Summary Stats & Params'!$I$8*'B. PoF Summary Stats & Params'!$I$6*A32^('B. PoF Summary Stats & Params'!$I$6-1), IF('B. PoF Summary Stats & Params'!$C$12="W", B32*(('B. PoF Summary Stats & Params'!$M$6/'B. PoF Summary Stats & Params'!$M$8)*((A32)/'B. PoF Summary Stats & Params'!$M$8)^('B. PoF Summary Stats & Params'!$M$6-1)), "Choose Model")) -> 0.1456144715 | E32: =IF('B. PoF Summary Stats & Params'!$C$12="C", B32*'B. PoF Summary Stats & Params'!$I$8*'B. PoF Summary Stats & Params'!$I$12*A32^('B. PoF Summary Stats & Params'!$I$12-1), IF('B. PoF Summary Stats & Params'!$C$12="W", B32*(('B. PoF Summary Stats & Params'!$M$12/'B. PoF Summary Stats & Params'!$O$12)*((A32)/'B. PoF Summary Stats & Params'!$O$12)^('B. PoF Summary Stats & Params'!$M$12-1)), "Choose Model")) -> 0.04091597214
A33: 29 | B33: 1 | C33: =IF('B. PoF Summary Stats & Params'!$C$12="C", B33*'B. PoF Summary Stats & Params'!$I$8*'B. PoF Summary Stats & Params'!$I$10*A33^('B. PoF Summary Stats & Params'!$I$10-1), IF('B. PoF Summary Stats & Params'!$C$12="W", B33*(('B. PoF Summary Stats & Params'!$M$14/'B. PoF Summary Stats & Params'!$O$14)*((A33)/'B. PoF Summary Stats & Params'!$O$14)^('B. PoF Summary Stats & Params'!$M$14-1)), "Choose Model")) -> 0.4964989904 | D33: =IF('B. PoF Summary Stats & Params'!$C$12="C", B33*'B. PoF Summary Stats & Params'!$I$8*'B. PoF Summary Stats & Params'!$I$6*A33^('B. PoF Summary Stats & Params'!$I$6-1), IF('B. PoF Summary Stats & Params'!$C$12="W", B33*(('B. PoF Summary Stats & Params'!$M$6/'B. PoF Summary Stats & Params'!$M$8)*((A33)/'B. PoF Summary Stats & Params'!$M$8)^('B. PoF Summary Stats & Params'!$M$6-1)), "Choose Model")) -> 0.1467518521 | E33: =IF('B. PoF Summary Stats & Params'!$C$12="C", B33*'B. PoF Summary Stats & Params'!$I$8*'B. PoF Summary Stats & Params'!$I$12*A33^('B. PoF Summary Stats & Params'!$I$12-1), IF('B. PoF Summary Stats & Params'!$C$12="W", B33*(('B. PoF Summary Stats & Params'!$M$12/'B. PoF Summary Stats & Params'!$O$12)*((A33)/'B. PoF Summary Stats & Params'!$O$12)^('B. PoF Summary Stats & Params'!$M$12-1)), "Choose Model")) -> 0.04080762565
A34: 30 | B34: 1 | C34: =IF('B. PoF Summary Stats & Params'!$C$12="C", B34*'B. PoF Summary Stats & Params'!$I$8*'B. PoF Summary Stats & Params'!$I$10*A34^('B. PoF Summary Stats & Params'!$I$10-1), IF('B. PoF Summary Stats & Params'!$C$12="W", B34*(('B. PoF Summary Stats & Params'!$M$14/'B. PoF Summary Stats & Params'!$O$14)*((A34)/'B. PoF Summary Stats & Params'!$O$14)^('B. PoF Summary Stats & Params'!$M$14-1)), "Choose Model")) -> 0.505312273 | D34: =IF('B. PoF Summary Stats & Params'!$C$12="C", B34*'B. PoF Summary Stats & Params'!$I$8*'B. PoF Summary Stats & Params'!$I$6*A34^('B. PoF Summary Stats & Params'!$I$6-1), IF('B. PoF Summary Stats & Params'!$C$12="W", B34*(('B. PoF Summary Stats & Params'!$M$6/'B. PoF Summary Stats & Params'!$M$8)*((A34)/'B. PoF Summary Stats & Params'!$M$8)^('B. PoF Summary Stats & Params'!$M$6-1)), "Choose Model")) -> 0.1478591064 | E34: =IF('B. PoF Summary Stats & Params'!$C$12="C", B34*'B. PoF Summary Stats & Params'!$I$8*'B. PoF Summary Stats & Params'!$I$12*A34^('B. PoF Summary Stats & Params'!$I$12-1), IF('B. PoF Summary Stats & Params'!$C$12="W", B34*(('B. PoF Summary Stats & Params'!$M$12/'B. PoF Summary Stats & Params'!$O$12)*((A34)/'B. PoF Summary Stats & Params'!$O$12)^('B. PoF Summary Stats & Params'!$M$12-1)), "Choose Model")) -> 0.04070322513
A35: 31 | B35: 1 | C35: =IF('B. PoF Summary Stats & Params'!$C$12="C", B35*'B. PoF Summary Stats & Params'!$I$8*'B. PoF Summary Stats & Params'!$I$10*A35^('B. PoF Summary Stats & Params'!$I$10-1), IF('B. PoF Summary Stats & Params'!$C$12="W", B35*(('B. PoF Summary Stats & Params'!$M$14/'B. PoF Summary Stats & Params'!$O$14)*((A35)/'B. PoF Summary Stats & Params'!$O$14)^('B. PoF Summary Stats & Params'!$M$14-1)), "Choose Model")) -> 0.5139853462 | D35: =IF('B. PoF Summary Stats & Params'!$C$12="C", B35*'B. PoF Summary Stats & Params'!$I$8*'B. PoF Summary Stats & Params'!$I$6*A35^('B. PoF Summary Stats & Params'!$I$6-1), IF('B. PoF Summary Stats & Params'!$C$12="W", B35*(('B. PoF Summary Stats & Params'!$M$6/'B. PoF Summary Stats & Params'!$M$8)*((A35)/'B. PoF Summary Stats & Params'!$M$8)^('B. PoF Summary Stats & Params'!$M$6-1)), "Choose Model")) -> 0.1489379979 | E35: =IF('B. PoF Summary Stats & Params'!$C$12="C", B35*'B. PoF Summary Stats & Params'!$I$8*'B. PoF Summary Stats & Params'!$I$12*A35^('B. PoF Summary Stats & Params'!$I$12-1), IF('B. PoF Summary Stats & Params'!$C$12="W", B35*(('B. PoF Summary Stats & Params'!$M$12/'B. PoF Summary Stats & Params'!$O$12)*((A35)/'B. PoF Summary Stats & Params'!$O$12)^('B. PoF Summary Stats & Params'!$M$12-1)), "Choose Model")) -> 0.0406025023
A36: 32 | B36: 1 | C36: =IF('B. PoF Summary Stats & Params'!$C$12="C", B36*'B. PoF Summary Stats & Params'!$I$8*'B. PoF Summary Stats & Params'!$I$10*A36^('B. PoF Summary Stats & Params'!$I$10-1), IF('B. PoF Summary Stats & Params'!$C$12="W", B36*(('B. PoF Summary Stats & Params'!$M$14/'B. PoF Summary Stats & Params'!$O$14)*((A36)/'B. PoF Summary Stats & Params'!$O$14)^('B. PoF Summary Stats & Params'!$M$14-1)), "Choose Model")) -> 0.522524859 | D36: =IF('B. PoF Summary Stats & Params'!$C$12="C", B36*'B. PoF Summary Stats & Params'!$I$8*'B. PoF Summary Stats & Params'!$I$6*A36^('B. PoF Summary Stats & Params'!$I$6-1), IF('B. PoF Summary Stats & Params'!$C$12="W", B36*(('B. PoF Summary Stats & Params'!$M$6/'B. PoF Summary Stats & Params'!$M$8)*((A36)/'B. PoF Summary Stats & Params'!$M$8)^('B. PoF Summary Stats & Params'!$M$6-1)), "Choose Model")) -> 0.1499901338 | E36: =IF('B. PoF Summary Stats & Params'!$C$12="C", B36*'B. PoF Summary Stats & Params'!$I$8*'B. PoF Summary Stats & Params'!$I$12*A36^('B. PoF Summary Stats & Params'!$I$12-1), IF('B. PoF Summary Stats & Params'!$C$12="W", B36*(('B. PoF Summary Stats & Params'!$M$12/'B. PoF Summary Stats & Params'!$O$12)*((A36)/'B. PoF Summary Stats & Params'!$O$12)^('B. PoF Summary Stats & Params'!$M$12-1)), "Choose Model")) -> 0.04050521508
A37: 33 | B37: 1 | C37: =IF('B. PoF Summary Stats & Params'!$C$12="C", B37*'B. PoF Summary Stats & Params'!$I$8*'B. PoF Summary Stats & Params'!$I$10*A37^('B. PoF Summary Stats & Params'!$I$10-1), IF('B. PoF Summary Stats & Params'!$C$12="W", B37*(('B. PoF Summary Stats & Params'!$M$14/'B. PoF Summary Stats & Params'!$O$14)*((A37)/'B. PoF Summary Stats & Params'!$O$14)^('B. PoF Summary Stats & Params'!$M$14-1)), "Choose Model")) -> 0.5309369485 | D37: =IF('B. PoF Summary Stats & Params'!$C$12="C", B37*'B. PoF Summary Stats & Params'!$I$8*'B. PoF Summary Stats & Params'!$I$6*A37^('B. PoF Summary Stats & Params'!$I$6-1), IF('B. PoF Summary Stats & Params'!$C$12="W", B37*(('B. PoF Summary Stats & Params'!$M$6/'B. PoF Summary Stats & Params'!$M$8)*((A37)/'B. PoF Summary Stats & Params'!$M$8)^('B. PoF Summary Stats & Params'!$M$6-1)), "Choose Model")) -> 0.1510169836 | E37: =IF('B. PoF Summary Stats & Params'!$C$12="C", B37*'B. PoF Summary Stats & Params'!$I$8*'B. PoF Summary Stats & Params'!$I$12*A37^('B. PoF Summary Stats & Params'!$I$12-1), IF('B. PoF Summary Stats & Params'!$C$12="W", B37*(('B. PoF Summary Stats & Params'!$M$12/'B. PoF Summary Stats & Params'!$O$12)*((A37)/'B. PoF Summary Stats & Params'!$O$12)^('B. PoF Summary Stats & Params'!$M$12-1)), "Choose Model")) -> 0.04041114426
A38: 34 | B38: 1 | C38: =IF('B. PoF Summary Stats & Params'!$C$12="C", B38*'B. PoF Summary Stats & Params'!$I$8*'B. PoF Summary Stats & Params'!$I$10*A38^('B. PoF Summary Stats & Params'!$I$10-1), IF('B. PoF Summary Stats & Params'!$C$12="W", B38*(('B. PoF Summary Stats & Params'!$M$14/'B. PoF Summary Stats & Params'!$O$14)*((A38)/'B. PoF Summary Stats & Params'!$O$14)^('B. PoF Summary Stats & Params'!$M$14-1)), "Choose Model")) -> 0.5392272936 | D38: =IF('B. PoF Summary Stats & Params'!$C$12="C", B38*'B. PoF Summary Stats & Params'!$I$8*'B. PoF Summary Stats & Params'!$I$6*A38^('B. PoF Summary Stats & Params'!$I$6-1), IF('B. PoF Summary Stats & Params'!$C$12="W", B38*(('B. PoF Summary Stats & Params'!$M$6/'B. PoF Summary Stats & Params'!$M$8)*((A38)/'B. PoF Summary Stats & Params'!$M$8)^('B. PoF Summary Stats & Params'!$M$6-1)), "Choose Model")) -> 0.1520198944 | E38: =IF('B. PoF Summary Stats & Params'!$C$12="C", B38*'B. PoF Summary Stats & Params'!$I$8*'B. PoF Summary Stats & Params'!$I$12*A38^('B. PoF Summary Stats & Params'!$I$12-1), IF('B. PoF Summary Stats & Params'!$C$12="W", B38*(('B. PoF Summary Stats & Params'!$M$12/'B. PoF Summary Stats & Params'!$O$12)*((A38)/'B. PoF Summary Stats & Params'!$O$12)^('B. PoF Summary Stats & Params'!$M$12-1)), "Choose Model")) -> 0.04032009074
A39: 35 | B39: 1 | C39: =IF('B. PoF Summary Stats & Params'!$C$12="C", B39*'B. PoF Summary Stats & Params'!$I$8*'B. PoF Summary Stats & Params'!$I$10*A39^('B. PoF Summary Stats & Params'!$I$10-1), IF('B. PoF Summary Stats & Params'!$C$12="W", B39*(('B. PoF Summary Stats & Params'!$M$14/'B. PoF Summary Stats & Params'!$O$14)*((A39)/'B. PoF Summary Stats & Params'!$O$14)^('B. PoF Summary Stats & Params'!$M$14-1)), "Choose Model")) -> 0.5474011614 | D39: =IF('B. PoF Summary Stats & Params'!$C$12="C", B39*'B. PoF Summary Stats & Params'!$I$8*'B. PoF Summary Stats & Params'!$I$6*A39^('B. PoF Summary Stats & Params'!$I$6-1), IF('B. PoF Summary Stats & Params'!$C$12="W", B39*(('B. PoF Summary Stats & Params'!$M$6/'B. PoF Summary Stats & Params'!$M$8)*((A39)/'B. PoF Summary Stats & Params'!$M$8)^('B. PoF Summary Stats & Params'!$M$6-1)), "Choose Model")) -> 0.1530001043 | E39: =IF('B. PoF Summary Stats & Params'!$C$12="C", B39*'B. PoF Summary Stats & Params'!$I$8*'B. PoF Summary Stats & Params'!$I$12*A39^('B. PoF Summary Stats & Params'!$I$12-1), IF('B. PoF Summary Stats & Params'!$C$12="W", B39*(('B. PoF Summary Stats & Params'!$M$12/'B. PoF Summary Stats & Params'!$O$12)*((A39)/'B. PoF Summary Stats & Params'!$O$12)^('B. PoF Summary Stats & Params'!$M$12-1)), "Choose Model")) -> 0.04023187315
A40: 36 | B40: 1 | C40: =IF('B. PoF Summary Stats & Params'!$C$12="C", B40*'B. PoF Summary Stats & Params'!$I$8*'B. PoF Summary Stats & Params'!$I$10*A40^('B. PoF Summary Stats & Params'!$I$10-1), IF('B. PoF Summary Stats & Params'!$C$12="W", B40*(('B. PoF Summary Stats & Params'!$M$14/'B. PoF Summary Stats & Params'!$O$14)*((A40)/'B. PoF Summary Stats & Params'!$O$14)^('B. PoF Summary Stats & Params'!$M$14-1)), "Choose Model")) -> 0.5554634482 | D40: =IF('B. PoF Summary Stats & Params'!$C$12="C", B40*'B. PoF Summary Stats & Params'!$I$8*'B. PoF Summary Stats & Params'!$I$6*A40^('B. PoF Summary Stats & Params'!$I$6-1), IF('B. PoF Summary Stats & Params'!$C$12="W", B40*(('B. PoF Summary Stats & Params'!$M$6/'B. PoF Summary Stats & Params'!$M$8)*((A40)/'B. PoF Summary Stats & Params'!$M$8)^('B. PoF Summary Stats & Params'!$M$6-1)), "Choose Model")) -> 0.1539587542 | E40: =IF('B. PoF Summary Stats & Params'!$C$12="C", B40*'B. PoF Summary Stats & Params'!$I$8*'B. PoF Summary Stats & Params'!$I$12*A40^('B. PoF Summary Stats & Params'!$I$12-1), IF('B. PoF Summary Stats & Params'!$C$12="W", B40*(('B. PoF Summary Stats & Params'!$M$12/'B. PoF Summary Stats & Params'!$O$12)*((A40)/'B. PoF Summary Stats & Params'!$O$12)^('B. PoF Summary Stats & Params'!$M$12-1)), "Choose Model")) -> 0.04014632583
A41: 37 | B41: 1 | C41: =IF('B. PoF Summary Stats & Params'!$C$12="C", B41*'B. PoF Summary Stats & Params'!$I$8*'B. PoF Summary Stats & Params'!$I$10*A41^('B. PoF Summary Stats & Params'!$I$10-1), IF('B. PoF Summary Stats & Params'!$C$12="W", B41*(('B. PoF Summary Stats & Params'!$M$14/'B. PoF Summary Stats & Params'!$O$14)*((A41)/'B. PoF Summary Stats & Params'!$O$14)^('B. PoF Summary Stats & Params'!$M$14-1)), "Choose Model")) -> 0.563418715 | D41: =IF('B. PoF Summary Stats & Params'!$C$12="C", B41*'B. PoF Summary Stats & Params'!$I$8*'B. PoF Summary Stats & Params'!$I$6*A41^('B. PoF Summary Stats & Params'!$I$6-1), IF('B. PoF Summary Stats & Params'!$C$12="W", B41*(('B. PoF Summary Stats & Params'!$M$6/'B. PoF Summary Stats & Params'!$M$8)*((A41)/'B. PoF Summary Stats & Params'!$M$8)^('B. PoF Summary Stats & Params'!$M$6-1)), "Choose Model")) -> 0.1548968982 | E41: =IF('B. PoF Summary Stats & Params'!$C$12="C", B41*'B. PoF Summary Stats & Params'!$I$8*'B. PoF Summary Stats & Params'!$I$12*A41^('B. PoF Summary Stats & Params'!$I$12-1), IF('B. PoF Summary Stats & Params'!$C$12="W", B41*(('B. PoF Summary Stats & Params'!$M$12/'B. PoF Summary Stats & Params'!$O$12)*((A41)/'B. PoF Summary Stats & Params'!$O$12)^('B. PoF Summary Stats & Params'!$M$12-1)), "Choose Model")) -> 0.04006329708
A42: 38 | B42: 1 | C42: =IF('B. PoF Summary Stats & Params'!$C$12="C", B42*'B. PoF Summary Stats & Params'!$I$8*'B. PoF Summary Stats & Params'!$I$10*A42^('B. PoF Summary Stats & Params'!$I$10-1), IF('B. PoF Summary Stats & Params'!$C$12="W", B42*(('B. PoF Summary Stats & Params'!$M$14/'B. PoF Summary Stats & Params'!$O$14)*((A42)/'B. PoF Summary Stats & Params'!$O$14)^('B. PoF Summary Stats & Params'!$M$14-1)), "Choose Model")) -> 0.5712712188 | D42: =IF('B. PoF Summary Stats & Params'!$C$12="C", B42*'B. PoF Summary Stats & Params'!$I$8*'B. PoF Summary Stats & Params'!$I$6*A42^('B. PoF Summary Stats & Params'!$I$6-1), IF('B. PoF Summary Stats & Params'!$C$12="W", B42*(('B. PoF Summary Stats & Params'!$M$6/'B. PoF Summary Stats & Params'!$M$8)*((A42)/'B. PoF Summary Stats & Params'!$M$8)^('B. PoF Summary Stats & Params'!$M$6-1)), "Choose Model")) -> 0.1558155115 | E42: =IF('B. PoF Summary Stats & Params'!$C$12="C", B42*'B. PoF Summary Stats & Params'!$I$8*'B. PoF Summary Stats & Params'!$I$12*A42^('B. PoF Summary Stats & Params'!$I$12-1), IF('B. PoF Summary Stats & Params'!$C$12="W", B42*(('B. PoF Summary Stats & Params'!$M$12/'B. PoF Summary Stats & Params'!$O$12)*((A42)/'B. PoF Summary Stats & Params'!$O$12)^('B. PoF Summary Stats & Params'!$M$12-1)), "Choose Model")) -> 0.0399826476
A43: 39 | B43: 1 | C43: =IF('B. PoF Summary Stats & Params'!$C$12="C", B43*'B. PoF Summary Stats & Params'!$I$8*'B. PoF Summary Stats & Params'!$I$10*A43^('B. PoF Summary Stats & Params'!$I$10-1), IF('B. PoF Summary Stats & Params'!$C$12="W", B43*(('B. PoF Summary Stats & Params'!$M$14/'B. PoF Summary Stats & Params'!$O$14)*((A43)/'B. PoF Summary Stats & Params'!$O$14)^('B. PoF Summary Stats & Params'!$M$14-1)), "Choose Model")) -> 0.5790249402 | D43: =IF('B. PoF Summary Stats & Params'!$C$12="C", B43*'B. PoF Summary Stats & Params'!$I$8*'B. PoF Summary Stats & Params'!$I$6*A43^('B. PoF Summary Stats & Params'!$I$6-1), IF('B. PoF Summary Stats & Params'!$C$12="W", B43*(('B. PoF Summary Stats & Params'!$M$6/'B. PoF Summary Stats & Params'!$M$8)*((A43)/'B. PoF Summary Stats & Params'!$M$8)^('B. PoF Summary Stats & Params'!$M$6-1)), "Choose Model")) -> 0.1567154991 | E43: =IF('B. PoF Summary Stats & Params'!$C$12="C", B43*'B. PoF Summary Stats & Params'!$I$8*'B. PoF Summary Stats & Params'!$I$12*A43^('B. PoF Summary Stats & Params'!$I$12-1), IF('B. PoF Summary Stats & Params'!$C$12="W", B43*(('B. PoF Summary Stats & Params'!$M$12/'B. PoF Summary Stats & Params'!$O$12)*((A43)/'B. PoF Summary Stats & Params'!$O$12)^('B. PoF Summary Stats & Params'!$M$12-1)), "Choose Model")) -> 0.03990424924
A44: 40 | B44: 1 | C44: =IF('B. PoF Summary Stats & Params'!$C$12="C", B44*'B. PoF Summary Stats & Params'!$I$8*'B. PoF Summary Stats & Params'!$I$10*A44^('B. PoF Summary Stats & Params'!$I$10-1), IF('B. PoF Summary Stats & Params'!$C$12="W", B44*(('B. PoF Summary Stats & Params'!$M$14/'B. PoF Summary Stats & Params'!$O$14)*((A44)/'B. PoF Summary Stats & Params'!$O$14)^('B. PoF Summary Stats & Params'!$M$14-1)), "Choose Model")) -> 0.5866836083 | D44: =IF('B. PoF Summary Stats & Params'!$C$12="C", B44*'B. PoF Summary Stats & Params'!$I$8*'B. PoF Summary Stats & Params'!$I$6*A44^('B. PoF Summary Stats & Params'!$I$6-1), IF('B. PoF Summary Stats & Params'!$C$12="W", B44*(('B. PoF Summary Stats & Params'!$M$6/'B. PoF Summary Stats & Params'!$M$8)*((A44)/'B. PoF Summary Stats & Params'!$M$8)^('B. PoF Summary Stats & Params'!$M$6-1)), "Choose Model")) -> 0.1575977021 | E44: =IF('B. PoF Summary Stats & Params'!$C$12="C", B44*'B. PoF Summary Stats & Params'!$I$8*'B. PoF Summary Stats & Params'!$I$12*A44^('B. PoF Summary Stats & Params'!$I$12-1), IF('B. PoF Summary Stats & Params'!$C$12="W", B44*(('B. PoF Summary Stats & Params'!$M$12/'B. PoF Summary Stats & Params'!$O$12)*((A44)/'B. PoF Summary Stats & Params'!$O$12)^('B. PoF Summary Stats & Params'!$M$12-1)), "Choose Model")) -> 0.03982798379
A45: 41 | B45: 1 | C45: =IF('B. PoF Summary Stats & Params'!$C$12="C", B45*'B. PoF Summary Stats & Params'!$I$8*'B. PoF Summary Stats & Params'!$I$10*A45^('B. PoF Summary Stats & Params'!$I$10-1), IF('B. PoF Summary Stats & Params'!$C$12="W", B45*(('B. PoF Summary Stats & Params'!$M$14/'B. PoF Summary Stats & Params'!$O$14)*((A45)/'B. PoF Summary Stats & Params'!$O$14)^('B. PoF Summary Stats & Params'!$M$14-1)), "Choose Model")) -> 0.5942507221 | D45: =IF('B. PoF Summary Stats & Params'!$C$12="C", B45*'B. PoF Summary Stats & Params'!$I$8*'B. PoF Summary Stats & Params'!$I$6*A45^('B. PoF Summary Stats & Params'!$I$6-1), IF('B. PoF Summary Stats & Params'!$C$12="W", B45*(('B. PoF Summary Stats & Params'!$M$6/'B. PoF Summary Stats & Params'!$M$8)*((A45)/'B. PoF Summary Stats & Params'!$M$8)^('B. PoF Summary Stats & Params'!$M$6-1)), "Choose Model")) -> 0.1584629036 | E45: =IF('B. PoF Summary Stats & Params'!$C$12="C", B45*'B. PoF Summary Stats & Params'!$I$8*'B. PoF Summary Stats & Params'!$I$12*A45^('B. PoF Summary Stats & Params'!$I$12-1), IF('B. PoF Summary Stats & Params'!$C$12="W", B45*(('B. PoF Summary Stats & Params'!$M$12/'B. PoF Summary Stats & Params'!$O$12)*((A45)/'B. PoF Summary Stats & Params'!$O$12)^('B. PoF Summary Stats & Params'!$M$12-1)), "Choose Model")) -> 0.03975374205
A46: 42 | B46: 1 | C46: =IF('B. PoF Summary Stats & Params'!$C$12="C", B46*'B. PoF Summary Stats & Params'!$I$8*'B. PoF Summary Stats & Params'!$I$10*A46^('B. PoF Summary Stats & Params'!$I$10-1), IF('B. PoF Summary Stats & Params'!$C$12="W", B46*(('B. PoF Summary Stats & Params'!$M$14/'B. PoF Summary Stats & Params'!$O$14)*((A46)/'B. PoF Summary Stats & Params'!$O$14)^('B. PoF Summary Stats & Params'!$M$14-1)), "Choose Model")) -> 0.6017295698 | D46: =IF('B. PoF Summary Stats & Params'!$C$12="C", B46*'B. PoF Summary Stats & Params'!$I$8*'B. PoF Summary Stats & Params'!$I$6*A46^('B. PoF Summary Stats & Params'!$I$6-1), IF('B. PoF Summary Stats & Params'!$C$12="W", B46*(('B. PoF Summary Stats & Params'!$M$6/'B. PoF Summary Stats & Params'!$M$8)*((A46)/'B. PoF Summary Stats & Params'!$M$8)^('B. PoF Summary Stats & Params'!$M$6-1)), "Choose Model")) -> 0.1593118343 | E46: =IF('B. PoF Summary Stats & Params'!$C$12="C", B46*'B. PoF Summary Stats & Params'!$I$8*'B. PoF Summary Stats & Params'!$I$12*A46^('B. PoF Summary Stats & Params'!$I$12-1), IF('B. PoF Summary Stats & Params'!$C$12="W", B46*(('B. PoF Summary Stats & Params'!$M$12/'B. PoF Summary Stats & Params'!$O$12)*((A46)/'B. PoF Summary Stats & Params'!$O$12)^('B. PoF Summary Stats & Params'!$M$12-1)), "Choose Model")) -> 0.03968142287
A47: 43 | B47: 1 | C47: =IF('B. PoF Summary Stats & Params'!$C$12="C", B47*'B. PoF Summary Stats & Params'!$I$8*'B. PoF Summary Stats & Params'!$I$10*A47^('B. PoF Summary Stats & Params'!$I$10-1), IF('B. PoF Summary Stats & Params'!$C$12="W", B47*(('B. PoF Summary Stats & Params'!$M$14/'B. PoF Summary Stats & Params'!$O$14)*((A47)/'B. PoF Summary Stats & Params'!$O$14)^('B. PoF Summary Stats & Params'!$M$14-1)), "Choose Model")) -> 0.609123247 | D47: =IF('B. PoF Summary Stats & Params'!$C$12="C", B47*'B. PoF Summary Stats & Params'!$I$8*'B. PoF Summary Stats & Params'!$I$6*A47^('B. PoF Summary Stats & Params'!$I$6-1), IF('B. PoF Summary Stats & Params'!$C$12="W", B47*(('B. PoF Summary Stats & Params'!$M$6/'B. PoF Summary Stats & Params'!$M$8)*((A47)/'B. PoF Summary Stats & Params'!$M$8)^('B. PoF Summary Stats & Params'!$M$6-1)), "Choose Model")) -> 0.1601451767 | E47: =IF('B. PoF Summary Stats & Params'!$C$12="C", B47*'B. PoF Summary Stats & Params'!$I$8*'B. PoF Summary Stats & Params'!$I$12*A47^('B. PoF Summary Stats & Params'!$I$12-1), IF('B. PoF Summary Stats & Params'!$C$12="W", B47*(('B. PoF Summary Stats & Params'!$M$12/'B. PoF Summary Stats & Params'!$O$12)*((A47)/'B. PoF Summary Stats & Params'!$O$12)^('B. PoF Summary Stats & Params'!$M$12-1)), "Choose Model")) -> 0.03961093243
A48: 44 | B48: 1 | C48: =IF('B. PoF Summary Stats & Params'!$C$12="C", B48*'B. PoF Summary Stats & Params'!$I$8*'B. PoF Summary Stats & Params'!$I$10*A48^('B. PoF Summary Stats & Params'!$I$10-1), IF('B. PoF Summary Stats & Params'!$C$12="W", B48*(('B. PoF Summary Stats & Params'!$M$14/'B. PoF Summary Stats & Params'!$O$14)*((A48)/'B. PoF Summary Stats & Params'!$O$14)^('B. PoF Summary Stats & Params'!$M$14-1)), "Choose Model")) -> 0.616434671 | D48: =IF('B. PoF Summary Stats & Params'!$C$12="C", B48*'B. PoF Summary Stats & Params'!$I$8*'B. PoF Summary Stats & Params'!$I$6*A48^('B. PoF Summary Stats & Params'!$I$6-1), IF('B. PoF Summary Stats & Params'!$C$12="W", B48*(('B. PoF Summary Stats & Params'!$M$6/'B. PoF Summary Stats & Params'!$M$8)*((A48)/'B. PoF Summary Stats & Params'!$M$8)^('B. PoF Summary Stats & Params'!$M$6-1)), "Choose Model")) -> 0.1609635699 | E48: =IF('B. PoF Summary Stats & Params'!$C$12="C", B48*'B. PoF Summary Stats & Params'!$I$8*'B. PoF Summary Stats & Params'!$I$12*A48^('B. PoF Summary Stats & Params'!$I$12-1), IF('B. PoF Summary Stats & Params'!$C$12="W", B48*(('B. PoF Summary Stats & Params'!$M$12/'B. PoF Summary Stats & Params'!$O$12)*((A48)/'B. PoF Summary Stats & Params'!$O$12)^('B. PoF Summary Stats & Params'!$M$12-1)), "Choose Model")) -> 0.03954218354
A49: 45 | B49: 1 | C49: =IF('B. PoF Summary Stats & Params'!$C$12="C", B49*'B. PoF Summary Stats & Params'!$I$8*'B. PoF Summary Stats & Params'!$I$10*A49^('B. PoF Summary Stats & Params'!$I$10-1), IF('B. PoF Summary Stats & Params'!$C$12="W", B49*(('B. PoF Summary Stats & Params'!$M$14/'B. PoF Summary Stats & Params'!$O$14)*((A49)/'B. PoF Summary Stats & Params'!$O$14)^('B. PoF Summary Stats & Params'!$M$14-1)), "Choose Model")) -> 0.6236665959 | D49: =IF('B. PoF Summary Stats & Params'!$C$12="C", B49*'B. PoF Summary Stats & Params'!$I$8*'B. PoF Summary Stats & Params'!$I$6*A49^('B. PoF Summary Stats & Params'!$I$6-1), IF('B. PoF Summary Stats & Params'!$C$12="W", B49*(('B. PoF Summary Stats & Params'!$M$6/'B. PoF Summary Stats & Params'!$M$8)*((A49)/'B. PoF Summary Stats & Params'!$M$8)^('B. PoF Summary Stats & Params'!$M$6-1)), "Choose Model")) -> 0.1617676128 | E49: =IF('B. PoF Summary Stats & Params'!$C$12="C", B49*'B. PoF Summary Stats & Params'!$I$8*'B. PoF Summary Stats & Params'!$I$12*A49^('B. PoF Summary Stats & Params'!$I$12-1), IF('B. PoF Summary Stats & Params'!$C$12="W", B49*(('B. PoF Summary Stats & Params'!$M$12/'B. PoF Summary Stats & Params'!$O$12)*((A49)/'B. PoF Summary Stats & Params'!$O$12)^('B. PoF Summary Stats & Params'!$M$12-1)), "Choose Model")) -> 0.03947509503
A50: 46 | B50: 1 | C50: =IF('B. PoF Summary Stats & Params'!$C$12="C", B50*'B. PoF Summary Stats & Params'!$I$8*'B. PoF Summary Stats & Params'!$I$10*A50^('B. PoF Summary Stats & Params'!$I$10-1), IF('B. PoF Summary Stats & Params'!$C$12="W", B50*(('B. PoF Summary Stats & Params'!$M$14/'B. PoF Summary Stats & Params'!$O$14)*((A50)/'B. PoF Summary Stats & Params'!$O$14)^('B. PoF Summary Stats & Params'!$M$14-1)), "Choose Model")) -> 0.6308216246 | D50: =IF('B. PoF Summary Stats & Params'!$C$12="C", B50*'B. PoF Summary Stats & Params'!$I$8*'B. PoF Summary Stats & Params'!$I$6*A50^('B. PoF Summary Stats & Params'!$I$6-1), IF('B. PoF Summary Stats & Params'!$C$12="W", B50*(('B. PoF Summary Stats & Params'!$M$6/'B. PoF Summary Stats & Params'!$M$8)*((A50)/'B. PoF Summary Stats & Params'!$M$8)^('B. PoF Summary Stats & Params'!$M$6-1)), "Choose Model")) -> 0.1625578678 | E50: =IF('B. PoF Summary Stats & Params'!$C$12="C", B50*'B. PoF Summary Stats & Params'!$I$8*'B. PoF Summary Stats & Params'!$I$12*A50^('B. PoF Summary Stats & Params'!$I$12-1), IF('B. PoF Summary Stats & Params'!$C$12="W", B50*(('B. PoF Summary Stats & Params'!$M$12/'B. PoF Summary Stats & Params'!$O$12)*((A50)/'B. PoF Summary Stats & Params'!$O$12)^('B. PoF Summary Stats & Params'!$M$12-1)), "Choose Model")) -> 0.03940959122
A51: 47 | B51: 1 | C51: =IF('B. PoF Summary Stats & Params'!$C$12="C", B51*'B. PoF Summary Stats & Params'!$I$8*'B. PoF Summary Stats & Params'!$I$10*A51^('B. PoF Summary Stats & Params'!$I$10-1), IF('B. PoF Summary Stats & Params'!$C$12="W", B51*(('B. PoF Summary Stats & Params'!$M$14/'B. PoF Summary Stats & Params'!$O$14)*((A51)/'B. PoF Summary Stats & Params'!$O$14)^('B. PoF Summary Stats & Params'!$M$14-1)), "Choose Model")) -> 0.6379022202 | D51: =IF('B. PoF Summary Stats & Params'!$C$12="C", B51*'B. PoF Summary Stats & Params'!$I$8*'B. PoF Summary Stats & Params'!$I$6*A51^('B. PoF Summary Stats & Params'!$I$6-1), IF('B. PoF Summary Stats & Params'!$C$12="W", B51*(('B. PoF Summary Stats & Params'!$M$6/'B. PoF Summary Stats & Params'!$M$8)*((A51)/'B. PoF Summary Stats & Params'!$M$8)^('B. PoF Summary Stats & Params'!$M$6-1)), "Choose Model")) -> 0.1633348634 | E51: =IF('B. PoF Summary Stats & Params'!$C$12="C", B51*'B. PoF Summary Stats & Params'!$I$8*'B. PoF Summary Stats & Params'!$I$12*A51^('B. PoF Summary Stats & Params'!$I$12-1), IF('B. PoF Summary Stats & Params'!$C$12="W", B51*(('B. PoF Summary Stats & Params'!$M$12/'B. PoF Summary Stats & Params'!$O$12)*((A51)/'B. PoF Summary Stats & Params'!$O$12)^('B. PoF Summary Stats & Params'!$M$12-1)), "Choose Model")) -> 0.03934560141
A52: 48 | B52: 1 | C52: =IF('B. PoF Summary Stats & Params'!$C$12="C", B52*'B. PoF Summary Stats & Params'!$I$8*'B. PoF Summary Stats & Params'!$I$10*A52^('B. PoF Summary Stats & Params'!$I$10-1), IF('B. PoF Summary Stats & Params'!$C$12="W", B52*(('B. PoF Summary Stats & Params'!$M$14/'B. PoF Summary Stats & Params'!$O$14)*((A52)/'B. PoF Summary Stats & Params'!$O$14)^('B. PoF Summary Stats & Params'!$M$14-1)), "Choose Model")) -> 0.6449107166 | D52: =IF('B. PoF Summary Stats & Params'!$C$12="C", B52*'B. PoF Summary Stats & Params'!$I$8*'B. PoF Summary Stats & Params'!$I$6*A52^('B. PoF Summary Stats & Params'!$I$6-1), IF('B. PoF Summary Stats & Params'!$C$12="W", B52*(('B. PoF Summary Stats & Params'!$M$6/'B. PoF Summary Stats & Params'!$M$8)*((A52)/'B. PoF Summary Stats & Params'!$M$8)^('B. PoF Summary Stats & Params'!$M$6-1)), "Choose Model")) -> 0.1640990973 | E52: =IF('B. PoF Summary Stats & Params'!$C$12="C", B52*'B. PoF Summary Stats & Params'!$I$8*'B. PoF Summary Stats & Params'!$I$12*A52^('B. PoF Summary Stats & Params'!$I$12-1), IF('B. PoF Summary Stats & Params'!$C$12="W", B52*(('B. PoF Summary Stats & Params'!$M$12/'B. PoF Summary Stats & Params'!$O$12)*((A52)/'B. PoF Summary Stats & Params'!$O$12)^('B. PoF Summary Stats & Params'!$M$12-1)), "Choose Model")) -> 0.0392830595
A53: 49 | B53: 1 | C53: =IF('B. PoF Summary Stats & Params'!$C$12="C", B53*'B. PoF Summary Stats & Params'!$I$8*'B. PoF Summary Stats & Params'!$I$10*A53^('B. PoF Summary Stats & Params'!$I$10-1), IF('B. PoF Summary Stats & Params'!$C$12="W", B53*(('B. PoF Summary Stats & Params'!$M$14/'B. PoF Summary Stats & Params'!$O$14)*((A53)/'B. PoF Summary Stats & Params'!$O$14)^('B. PoF Summary Stats & Params'!$M$14-1)), "Choose Model")) -> 0.6518493276 | D53: =IF('B. PoF Summary Stats & Params'!$C$12="C", B53*'B. PoF Summary Stats & Params'!$I$8*'B. PoF Summary Stats & Params'!$I$6*A53^('B. PoF Summary Stats & Params'!$I$6-1), IF('B. PoF Summary Stats & Params'!$C$12="W", B53*(('B. PoF Summary Stats & Params'!$M$6/'B. PoF Summary Stats & Params'!$M$8)*((A53)/'B. PoF Summary Stats & Params'!$M$8)^('B. PoF Summary Stats & Params'!$M$6-1)), "Choose Model")) -> 0.1648510386 | E53: =IF('B. PoF Summary Stats & Params'!$C$12="C", B53*'B. PoF Summary Stats & Params'!$I$8*'B. PoF Summary Stats & Params'!$I$12*A53^('B. PoF Summary Stats & Params'!$I$12-1), IF('B. PoF Summary Stats & Params'!$C$12="W", B53*(('B. PoF Summary Stats & Params'!$M$12/'B. PoF Summary Stats & Params'!$O$12)*((A53)/'B. PoF Summary Stats & Params'!$O$12)^('B. PoF Summary Stats & Params'!$M$12-1)), "Choose Model")) -> 0.03922190357
A54: 50 | B54: 1 | C54: =IF('B. PoF Summary Stats & Params'!$C$12="C", B54*'B. PoF Summary Stats & Params'!$I$8*'B. PoF Summary Stats & Params'!$I$10*A54^('B. PoF Summary Stats & Params'!$I$10-1), IF('B. PoF Summary Stats & Params'!$C$12="W", B54*(('B. PoF Summary Stats & Params'!$M$14/'B. PoF Summary Stats & Params'!$O$14)*((A54)/'B. PoF Summary Stats & Params'!$O$14)^('B. PoF Summary Stats & Params'!$M$14-1)), "Choose Model")) -> 0.6587201553 | D54: =IF('B. PoF Summary Stats & Params'!$C$12="C", B54*'B. PoF Summary Stats & Params'!$I$8*'B. PoF Summary Stats & Params'!$I$6*A54^('B. PoF Summary Stats & Params'!$I$6-1), IF('B. PoF Summary Stats & Params'!$C$12="W", B54*(('B. PoF Summary Stats & Params'!$M$6/'B. PoF Summary Stats & Params'!$M$8)*((A54)/'B. PoF Summary Stats & Params'!$M$8)^('B. PoF Summary Stats & Params'!$M$6-1)), "Choose Model")) -> 0.1655911298 | E54: =IF('B. PoF Summary Stats & Params'!$C$12="C", B54*'B. PoF Summary Stats & Params'!$I$8*'B. PoF Summary Stats & Params'!$I$12*A54^('B. PoF Summary Stats & Params'!$I$12-1), IF('B. PoF Summary Stats & Params'!$C$12="W", B54*(('B. PoF Summary Stats & Params'!$M$12/'B. PoF Summary Stats & Params'!$O$12)*((A54)/'B. PoF Summary Stats & Params'!$O$12)^('B. PoF Summary Stats & Params'!$M$12-1)), "Choose Model")) -> 0.03916207554
A55: 51 | B55: 1 | C55: =IF('B. PoF Summary Stats & Params'!$C$12="C", B55*'B. PoF Summary Stats & Params'!$I$8*'B. PoF Summary Stats & Params'!$I$10*A55^('B. PoF Summary Stats & Params'!$I$10-1), IF('B. PoF Summary Stats & Params'!$C$12="W", B55*(('B. PoF Summary Stats & Params'!$M$14/'B. PoF Summary Stats & Params'!$O$14)*((A55)/'B. PoF Summary Stats & Params'!$O$14)^('B. PoF Summary Stats & Params'!$M$14-1)), "Choose Model")) -> 0.6655251981 | D55: =IF('B. PoF Summary Stats & Params'!$C$12="C", B55*'B. PoF Summary Stats & Params'!$I$8*'B. PoF Summary Stats & Params'!$I$6*A55^('B. PoF Summary Stats & Params'!$I$6-1), IF('B. PoF Summary Stats & Params'!$C$12="W", B55*(('B. PoF Summary Stats & Params'!$M$6/'B. PoF Summary Stats & Params'!$M$8)*((A55)/'B. PoF Summary Stats & Params'!$M$8)^('B. PoF Summary Stats & Params'!$M$6-1)), "Choose Model")) -> 0.1663197893 | E55: =IF('B. PoF Summary Stats & Params'!$C$12="C", B55*'B. PoF Summary Stats & Params'!$I$8*'B. PoF Summary Stats & Params'!$I$12*A55^('B. PoF Summary Stats & Params'!$I$12-1), IF('B. PoF Summary Stats & Params'!$C$12="W", B55*(('B. PoF Summary Stats & Params'!$M$12/'B. PoF Summary Stats & Params'!$O$12)*((A55)/'B. PoF Summary Stats & Params'!$O$12)^('B. PoF Summary Stats & Params'!$M$12-1)), "Choose Model")) -> 0.03910352087
A56: 52 | B56: 1 | C56: =IF('B. PoF Summary Stats & Params'!$C$12="C", B56*'B. PoF Summary Stats & Params'!$I$8*'B. PoF Summary Stats & Params'!$I$10*A56^('B. PoF Summary Stats & Params'!$I$10-1), IF('B. PoF Summary Stats & Params'!$C$12="W", B56*(('B. PoF Summary Stats & Params'!$M$14/'B. PoF Summary Stats & Params'!$O$14)*((A56)/'B. PoF Summary Stats & Params'!$O$14)^('B. PoF Summary Stats & Params'!$M$14-1)), "Choose Model")) -> 0.6722663577 | D56: =IF('B. PoF Summary Stats & Params'!$C$12="C", B56*'B. PoF Summary Stats & Params'!$I$8*'B. PoF Summary Stats & Params'!$I$6*A56^('B. PoF Summary Stats & Params'!$I$6-1), IF('B. PoF Summary Stats & Params'!$C$12="W", B56*(('B. PoF Summary Stats & Params'!$M$6/'B. PoF Summary Stats & Params'!$M$8)*((A56)/'B. PoF Summary Stats & Params'!$M$8)^('B. PoF Summary Stats & Params'!$M$6-1)), "Choose Model")) -> 0.1670374126 | E56: =IF('B. PoF Summary Stats & Params'!$C$12="C", B56*'B. PoF Summary Stats & Params'!$I$8*'B. PoF Summary Stats & Params'!$I$12*A56^('B. PoF Summary Stats & Params'!$I$12-1), IF('B. PoF Summary Stats & Params'!$C$12="W", B56*(('B. PoF Summary Stats & Params'!$M$12/'B. PoF Summary Stats & Params'!$O$12)*((A56)/'B. PoF Summary Stats & Params'!$O$12)^('B. PoF Summary Stats & Params'!$M$12-1)), "Choose Model")) -> 0.03904618828
A57: 53 | B57: 1 | C57: =IF('B. PoF Summary Stats & Params'!$C$12="C", B57*'B. PoF Summary Stats & Params'!$I$8*'B. PoF Summary Stats & Params'!$I$10*A57^('B. PoF Summary Stats & Params'!$I$10-1), IF('B. PoF Summary Stats & Params'!$C$12="W", B57*(('B. PoF Summary Stats & Params'!$M$14/'B. PoF Summary Stats & Params'!$O$14)*((A57)/'B. PoF Summary Stats & Params'!$O$14)^('B. PoF Summary Stats & Params'!$M$14-1)), "Choose Model")) -> 0.6789454452 | D57: =IF('B. PoF Summary Stats & Params'!$C$12="C", B57*'B. PoF Summary Stats & Params'!$I$8*'B. PoF Summary Stats & Params'!$I$6*A57^('B. PoF Summary Stats & Params'!$I$6-1), IF('B. PoF Summary Stats & Params'!$C$12="W", B57*(('B. PoF Summary Stats & Params'!$M$6/'B. PoF Summary Stats & Params'!$M$8)*((A57)/'B. PoF Summary Stats & Params'!$M$8)^('B. PoF Summary Stats & Params'!$M$6-1)), "Choose Model")) -> 0.1677443744 | E57: =IF('B. PoF Summary Stats & Params'!$C$12="C", B57*'B. PoF Summary Stats & Params'!$I$8*'B. PoF Summary Stats & Params'!$I$12*A57^('B. PoF Summary Stats & Params'!$I$12-1), IF('B. PoF Summary Stats & Params'!$C$12="W", B57*(('B. PoF Summary Stats & Params'!$M$12/'B. PoF Summary Stats & Params'!$O$12)*((A57)/'B. PoF Summary Stats & Params'!$O$12)^('B. PoF Summary Stats & Params'!$M$12-1)), "Choose Model")) -> 0.03899002947
A58: 54 | B58: 1 | C58: =IF('B. PoF Summary Stats & Params'!$C$12="C", B58*'B. PoF Summary Stats & Params'!$I$8*'B. PoF Summary Stats & Params'!$I$10*A58^('B. PoF Summary Stats & Params'!$I$10-1), IF('B. PoF Summary Stats & Params'!$C$12="W", B58*(('B. PoF Summary Stats & Params'!$M$14/'B. PoF Summary Stats & Params'!$O$14)*((A58)/'B. PoF Summary Stats & Params'!$O$14)^('B. PoF Summary Stats & Params'!$M$14-1)), "Choose Model")) -> 0.6855641876 | D58: =IF('B. PoF Summary Stats & Params'!$C$12="C", B58*'B. PoF Summary Stats & Params'!$I$8*'B. PoF Summary Stats & Params'!$I$6*A58^('B. PoF Summary Stats & Params'!$I$6-1), IF('B. PoF Summary Stats & Params'!$C$12="W", B58*(('B. PoF Summary Stats & Params'!$M$6/'B. PoF Summary Stats & Params'!$M$8)*((A58)/'B. PoF Summary Stats & Params'!$M$8)^('B. PoF Summary Stats & Params'!$M$6-1)), "Choose Model")) -> 0.1684410298 | E58: =IF('B. PoF Summary Stats & Params'!$C$12="C", B58*'B. PoF Summary Stats & Params'!$I$8*'B. PoF Summary Stats & Params'!$I$12*A58^('B. PoF Summary Stats & Params'!$I$12-1), IF('B. PoF Summary Stats & Params'!$C$12="W", B58*(('B. PoF Summary Stats & Params'!$M$12/'B. PoF Summary Stats & Params'!$O$12)*((A58)/'B. PoF Summary Stats & Params'!$O$12)^('B. PoF Summary Stats & Params'!$M$12-1)), "Choose Model")) -> 0.03893499894
A59: 55 | B59: 1 | C59: =IF('B. PoF Summary Stats & Params'!$C$12="C", B59*'B. PoF Summary Stats & Params'!$I$8*'B. PoF Summary Stats & Params'!$I$10*A59^('B. PoF Summary Stats & Params'!$I$10-1), IF('B. PoF Summary Stats & Params'!$C$12="W", B59*(('B. PoF Summary Stats & Params'!$M$14/'B. PoF Summary Stats & Params'!$O$14)*((A59)/'B. PoF Summary Stats & Params'!$O$14)^('B. PoF Summary Stats & Params'!$M$14-1)), "Choose Model")) -> 0.6921242326 | D59: =IF('B. PoF Summary Stats & Params'!$C$12="C", B59*'B. PoF Summary Stats & Params'!$I$8*'B. PoF Summary Stats & Params'!$I$6*A59^('B. PoF Summary Stats & Params'!$I$6-1), IF('B. PoF Summary Stats & Params'!$C$12="W", B59*(('B. PoF Summary Stats & Params'!$M$6/'B. PoF Summary Stats & Params'!$M$8)*((A59)/'B. PoF Summary Stats & Params'!$M$8)^('B. PoF Summary Stats & Params'!$M$6-1)), "Choose Model")) -> 0.1691277159 | E59: =IF('B. PoF Summary Stats & Params'!$C$12="C", B59*'B. PoF Summary Stats & Params'!$I$8*'B. PoF Summary Stats & Params'!$I$12*A59^('B. PoF Summary Stats & Params'!$I$12-1), IF('B. PoF Summary Stats & Params'!$C$12="W", B59*(('B. PoF Summary Stats & Params'!$M$12/'B. PoF Summary Stats & Params'!$O$12)*((A59)/'B. PoF Summary Stats & Params'!$O$12)^('B. PoF Summary Stats & Params'!$M$12-1)), "Choose Model")) -> 0.03888105376
A60: 56 | B60: 1 | C60: =IF('B. PoF Summary Stats & Params'!$C$12="C", B60*'B. PoF Summary Stats & Params'!$I$8*'B. PoF Summary Stats & Params'!$I$10*A60^('B. PoF Summary Stats & Params'!$I$10-1), IF('B. PoF Summary Stats & Params'!$C$12="W", B60*(('B. PoF Summary Stats & Params'!$M$14/'B. PoF Summary Stats & Params'!$O$14)*((A60)/'B. PoF Summary Stats & Params'!$O$14)^('B. PoF Summary Stats & Params'!$M$14-1)), "Choose Model")) -> 0.6986271542 | D60: =IF('B. PoF Summary Stats & Params'!$C$12="C", B60*'B. PoF Summary Stats & Params'!$I$8*'B. PoF Summary Stats & Params'!$I$6*A60^('B. PoF Summary Stats & Params'!$I$6-1), IF('B. PoF Summary Stats & Params'!$C$12="W", B60*(('B. PoF Summary Stats & Params'!$M$6/'B. PoF Summary Stats & Params'!$M$8)*((A60)/'B. PoF Summary Stats & Params'!$M$8)^('B. PoF Summary Stats & Params'!$M$6-1)), "Choose Model")) -> 0.1698047528 | E60: =IF('B. PoF Summary Stats & Params'!$C$12="C", B60*'B. PoF Summary Stats & Params'!$I$8*'B. PoF Summary Stats & Params'!$I$12*A60^('B. PoF Summary Stats & Params'!$I$12-1), IF('B. PoF Summary Stats & Params'!$C$12="W", B60*(('B. PoF Summary Stats & Params'!$M$12/'B. PoF Summary Stats & Params'!$O$12)*((A60)/'B. PoF Summary Stats & Params'!$O$12)^('B. PoF Summary Stats & Params'!$M$12-1)), "Choose Model")) -> 0.03882815334
A61: 57 | B61: 1 | C61: =IF('B. PoF Summary Stats & Params'!$C$12="C", B61*'B. PoF Summary Stats & Params'!$I$8*'B. PoF Summary Stats & Params'!$I$10*A61^('B. PoF Summary Stats & Params'!$I$10-1), IF('B. PoF Summary Stats & Params'!$C$12="W", B61*(('B. PoF Summary Stats & Params'!$M$14/'B. PoF Summary Stats & Params'!$O$14)*((A61)/'B. PoF Summary Stats & Params'!$O$14)^('B. PoF Summary Stats & Params'!$M$14-1)), "Choose Model")) -> 0.7050744567 | D61: =IF('B. PoF Summary Stats & Params'!$C$12="C", B61*'B. PoF Summary Stats & Params'!$I$8*'B. PoF Summary Stats & Params'!$I$6*A61^('B. PoF Summary Stats & Params'!$I$6-1), IF('B. PoF Summary Stats & Params'!$C$12="W", B61*(('B. PoF Summary Stats & Params'!$M$6/'B. PoF Summary Stats & Params'!$M$8)*((A61)/'B. PoF Summary Stats & Params'!$M$8)^('B. PoF Summary Stats & Params'!$M$6-1)), "Choose Model")) -> 0.1704724447 | E61: =IF('B. PoF Summary Stats & Params'!$C$12="C", B61*'B. PoF Summary Stats & Params'!$I$8*'B. PoF Summary Stats & Params'!$I$12*A61^('B. PoF Summary Stats & Params'!$I$12-1), IF('B. PoF Summary Stats & Params'!$C$12="W", B61*(('B. PoF Summary Stats & Params'!$M$12/'B. PoF Summary Stats & Params'!$O$12)*((A61)/'B. PoF Summary Stats & Params'!$O$12)^('B. PoF Summary Stats & Params'!$M$12-1)), "Choose Model")) -> 0.03877625934
A62: 58 | B62: 1 | C62: =IF('B. PoF Summary Stats & Params'!$C$12="C", B62*'B. PoF Summary Stats & Params'!$I$8*'B. PoF Summary Stats & Params'!$I$10*A62^('B. PoF Summary Stats & Params'!$I$10-1), IF('B. PoF Summary Stats & Params'!$C$12="W", B62*(('B. PoF Summary Stats & Params'!$M$14/'B. PoF Summary Stats & Params'!$O$14)*((A62)/'B. PoF Summary Stats & Params'!$O$14)^('B. PoF Summary Stats & Params'!$M$14-1)), "Choose Model")) -> 0.7114675793 | D62: =IF('B. PoF Summary Stats & Params'!$C$12="C", B62*'B. PoF Summary Stats & Params'!$I$8*'B. PoF Summary Stats & Params'!$I$6*A62^('B. PoF Summary Stats & Params'!$I$6-1), IF('B. PoF Summary Stats & Params'!$C$12="W", B62*(('B. PoF Summary Stats & Params'!$M$6/'B. PoF Summary Stats & Params'!$M$8)*((A62)/'B. PoF Summary Stats & Params'!$M$8)^('B. PoF Summary Stats & Params'!$M$6-1)), "Choose Model")) -> 0.1711310813 | E62: =IF('B. PoF Summary Stats & Params'!$C$12="C", B62*'B. PoF Summary Stats & Params'!$I$8*'B. PoF Summary Stats & Params'!$I$12*A62^('B. PoF Summary Stats & Params'!$I$12-1), IF('B. PoF Summary Stats & Params'!$C$12="W", B62*(('B. PoF Summary Stats & Params'!$M$12/'B. PoF Summary Stats & Params'!$O$12)*((A62)/'B. PoF Summary Stats & Params'!$O$12)^('B. PoF Summary Stats & Params'!$M$12-1)), "Choose Model")) -> 0.03872533545
A63: 59 | B63: 1 | C63: =IF('B. PoF Summary Stats & Params'!$C$12="C", B63*'B. PoF Summary Stats & Params'!$I$8*'B. PoF Summary Stats & Params'!$I$10*A63^('B. PoF Summary Stats & Params'!$I$10-1), IF('B. PoF Summary Stats & Params'!$C$12="W", B63*(('B. PoF Summary Stats & Params'!$M$14/'B. PoF Summary Stats & Params'!$O$14)*((A63)/'B. PoF Summary Stats & Params'!$O$14)^('B. PoF Summary Stats & Params'!$M$14-1)), "Choose Model")) -> 0.7178078999 | D63: =IF('B. PoF Summary Stats & Params'!$C$12="C", B63*'B. PoF Summary Stats & Params'!$I$8*'B. PoF Summary Stats & Params'!$I$6*A63^('B. PoF Summary Stats & Params'!$I$6-1), IF('B. PoF Summary Stats & Params'!$C$12="W", B63*(('B. PoF Summary Stats & Params'!$M$6/'B. PoF Summary Stats & Params'!$M$8)*((A63)/'B. PoF Summary Stats & Params'!$M$8)^('B. PoF Summary Stats & Params'!$M$6-1)), "Choose Model")) -> 0.1717809383 | E63: =IF('B. PoF Summary Stats & Params'!$C$12="C", B63*'B. PoF Summary Stats & Params'!$I$8*'B. PoF Summary Stats & Params'!$I$12*A63^('B. PoF Summary Stats & Params'!$I$12-1), IF('B. PoF Summary Stats & Params'!$C$12="W", B63*(('B. PoF Summary Stats & Params'!$M$12/'B. PoF Summary Stats & Params'!$O$12)*((A63)/'B. PoF Summary Stats & Params'!$O$12)^('B. PoF Summary Stats & Params'!$M$12-1)), "Choose Model")) -> 0.03867534727
A64: 60 | B64: 1 | C64: =IF('B. PoF Summary Stats & Params'!$C$12="C", B64*'B. PoF Summary Stats & Params'!$I$8*'B. PoF Summary Stats & Params'!$I$10*A64^('B. PoF Summary Stats & Params'!$I$10-1), IF('B. PoF Summary Stats & Params'!$C$12="W", B64*(('B. PoF Summary Stats & Params'!$M$14/'B. PoF Summary Stats & Params'!$O$14)*((A64)/'B. PoF Summary Stats & Params'!$O$14)^('B. PoF Summary Stats & Params'!$M$14-1)), "Choose Model")) -> 0.7240967386 | D64: =IF('B. PoF Summary Stats & Params'!$C$12="C", B64*'B. PoF Summary Stats & Params'!$I$8*'B. PoF Summary Stats & Params'!$I$6*A64^('B. PoF Summary Stats & Params'!$I$6-1), IF('B. PoF Summary Stats & Params'!$C$12="W", B64*(('B. PoF Summary Stats & Params'!$M$6/'B. PoF Summary Stats & Params'!$M$8)*((A64)/'B. PoF Summary Stats & Params'!$M$8)^('B. PoF Summary Stats & Params'!$M$6-1)), "Choose Model")) -> 0.1724222788 | E64: =IF('B. PoF Summary Stats & Params'!$C$12="C", B64*'B. PoF Summary Stats & Params'!$I$8*'B. PoF Summary Stats & Params'!$I$12*A64^('B. PoF Summary Stats & Params'!$I$12-1), IF('B. PoF Summary Stats & Params'!$C$12="W", B64*(('B. PoF Summary Stats & Params'!$M$12/'B. PoF Summary Stats & Params'!$O$12)*((A64)/'B. PoF Summary Stats & Params'!$O$12)^('B. PoF Summary Stats & Params'!$M$12-1)), "Choose Model")) -> 0.03862626217
A65: 61 | B65: 1 | C65: =IF('B. PoF Summary Stats & Params'!$C$12="C", B65*'B. PoF Summary Stats & Params'!$I$8*'B. PoF Summary Stats & Params'!$I$10*A65^('B. PoF Summary Stats & Params'!$I$10-1), IF('B. PoF Summary Stats & Params'!$C$12="W", B65*(('B. PoF Summary Stats & Params'!$M$14/'B. PoF Summary Stats & Params'!$O$14)*((A65)/'B. PoF Summary Stats & Params'!$O$14)^('B. PoF Summary Stats & Params'!$M$14-1)), "Choose Model")) -> 0.7303353612 | D65: =IF('B. PoF Summary Stats & Params'!$C$12="C", B65*'B. PoF Summary Stats & Params'!$I$8*'B. PoF Summary Stats & Params'!$I$6*A65^('B. PoF Summary Stats & Params'!$I$6-1), IF('B. PoF Summary Stats & Params'!$C$12="W", B65*(('B. PoF Summary Stats & Params'!$M$6/'B. PoF Summary Stats & Params'!$M$8)*((A65)/'B. PoF Summary Stats & Params'!$M$8)^('B. PoF Summary Stats & Params'!$M$6-1)), "Choose Model")) -> 0.1730553534 | E65: =IF('B. PoF Summary Stats & Params'!$C$12="C", B65*'B. PoF Summary Stats & Params'!$I$8*'B. PoF Summary Stats & Params'!$I$12*A65^('B. PoF Summary Stats & Params'!$I$12-1), IF('B. PoF Summary Stats & Params'!$C$12="W", B65*(('B. PoF Summary Stats & Params'!$M$12/'B. PoF Summary Stats & Params'!$O$12)*((A65)/'B. PoF Summary Stats & Params'!$O$12)^('B. PoF Summary Stats & Params'!$M$12-1)), "Choose Model")) -> 0.0385780492
A66: 62 | B66: 1 | C66: =IF('B. PoF Summary Stats & Params'!$C$12="C", B66*'B. PoF Summary Stats & Params'!$I$8*'B. PoF Summary Stats & Params'!$I$10*A66^('B. PoF Summary Stats & Params'!$I$10-1), IF('B. PoF Summary Stats & Params'!$C$12="W", B66*(('B. PoF Summary Stats & Params'!$M$14/'B. PoF Summary Stats & Params'!$O$14)*((A66)/'B. PoF Summary Stats & Params'!$O$14)^('B. PoF Summary Stats & Params'!$M$14-1)), "Choose Model")) -> 0.7365249822 | D66: =IF('B. PoF Summary Stats & Params'!$C$12="C", B66*'B. PoF Summary Stats & Params'!$I$8*'B. PoF Summary Stats & Params'!$I$6*A66^('B. PoF Summary Stats & Params'!$I$6-1), IF('B. PoF Summary Stats & Params'!$C$12="W", B66*(('B. PoF Summary Stats & Params'!$M$6/'B. PoF Summary Stats & Params'!$M$8)*((A66)/'B. PoF Summary Stats & Params'!$M$8)^('B. PoF Summary Stats & Params'!$M$6-1)), "Choose Model")) -> 0.1736804017 | E66: =IF('B. PoF Summary Stats & Params'!$C$12="C", B66*'B. PoF Summary Stats & Params'!$I$8*'B. PoF Summary Stats & Params'!$I$12*A66^('B. PoF Summary Stats & Params'!$I$12-1), IF('B. PoF Summary Stats & Params'!$C$12="W", B66*(('B. PoF Summary Stats & Params'!$M$12/'B. PoF Summary Stats & Params'!$O$12)*((A66)/'B. PoF Summary Stats & Params'!$O$12)^('B. PoF Summary Stats & Params'!$M$12-1)), "Choose Model")) -> 0.03853067893
A67: 63 | B67: 1 | C67: =IF('B. PoF Summary Stats & Params'!$C$12="C", B67*'B. PoF Summary Stats & Params'!$I$8*'B. PoF Summary Stats & Params'!$I$10*A67^('B. PoF Summary Stats & Params'!$I$10-1), IF('B. PoF Summary Stats & Params'!$C$12="W", B67*(('B. PoF Summary Stats & Params'!$M$14/'B. PoF Summary Stats & Params'!$O$14)*((A67)/'B. PoF Summary Stats & Params'!$O$14)^('B. PoF Summary Stats & Params'!$M$14-1)), "Choose Model")) -> 0.7426667677 | D67: =IF('B. PoF Summary Stats & Params'!$C$12="C", B67*'B. PoF Summary Stats & Params'!$I$8*'B. PoF Summary Stats & Params'!$I$6*A67^('B. PoF Summary Stats & Params'!$I$6-1), IF('B. PoF Summary Stats & Params'!$C$12="W", B67*(('B. PoF Summary Stats & Params'!$M$6/'B. PoF Summary Stats & Params'!$M$8)*((A67)/'B. PoF Summary Stats & Params'!$M$8)^('B. PoF Summary Stats & Params'!$M$6-1)), "Choose Model")) -> 0.1742976524 | E67: =IF('B. PoF Summary Stats & Params'!$C$12="C", B67*'B. PoF Summary Stats & Params'!$I$8*'B. PoF Summary Stats & Params'!$I$12*A67^('B. PoF Summary Stats & Params'!$I$12-1), IF('B. PoF Summary Stats & Params'!$C$12="W", B67*(('B. PoF Summary Stats & Params'!$M$12/'B. PoF Summary Stats & Params'!$O$12)*((A67)/'B. PoF Summary Stats & Params'!$O$12)^('B. PoF Summary Stats & Params'!$M$12-1)), "Choose Model")) -> 0.0384841234
A68: 64 | B68: 1 | C68: =IF('B. PoF Summary Stats & Params'!$C$12="C", B68*'B. PoF Summary Stats & Params'!$I$8*'B. PoF Summary Stats & Params'!$I$10*A68^('B. PoF Summary Stats & Params'!$I$10-1), IF('B. PoF Summary Stats & Params'!$C$12="W", B68*(('B. PoF Summary Stats & Params'!$M$14/'B. PoF Summary Stats & Params'!$O$14)*((A68)/'B. PoF Summary Stats & Params'!$O$14)^('B. PoF Summary Stats & Params'!$M$14-1)), "Choose Model")) -> 0.748761838 | D68: =IF('B. PoF Summary Stats & Params'!$C$12="C", B68*'B. PoF Summary Stats & Params'!$I$8*'B. PoF Summary Stats & Params'!$I$6*A68^('B. PoF Summary Stats & Params'!$I$6-1), IF('B. PoF Summary Stats & Params'!$C$12="W", B68*(('B. PoF Summary Stats & Params'!$M$6/'B. PoF Summary Stats & Params'!$M$8)*((A68)/'B. PoF Summary Stats & Params'!$M$8)^('B. PoF Summary Stats & Params'!$M$6-1)), "Choose Model")) -> 0.1749073243 | E68: =IF('B. PoF Summary Stats & Params'!$C$12="C", B68*'B. PoF Summary Stats & Params'!$I$8*'B. PoF Summary Stats & Params'!$I$12*A68^('B. PoF Summary Stats & Params'!$I$12-1), IF('B. PoF Summary Stats & Params'!$C$12="W", B68*(('B. PoF Summary Stats & Params'!$M$12/'B. PoF Summary Stats & Params'!$O$12)*((A68)/'B. PoF Summary Stats & Params'!$O$12)^('B. PoF Summary Stats & Params'!$M$12-1)), "Choose Model")) -> 0.03843835598
A69: 65 | B69: 1 | C69: =IF('B. PoF Summary Stats & Params'!$C$12="C", B69*'B. PoF Summary Stats & Params'!$I$8*'B. PoF Summary Stats & Params'!$I$10*A69^('B. PoF Summary Stats & Params'!$I$10-1), IF('B. PoF Summary Stats & Params'!$C$12="W", B69*(('B. PoF Summary Stats & Params'!$M$14/'B. PoF Summary Stats & Params'!$O$14)*((A69)/'B. PoF Summary Stats & Params'!$O$14)^('B. PoF Summary Stats & Params'!$M$14-1)), "Choose Model")) -> 0.75481127 | D69: =IF('B. PoF Summary Stats & Params'!$C$12="C", B69*'B. PoF Summary Stats & Params'!$I$8*'B. PoF Summary Stats & Params'!$I$6*A69^('B. PoF Summary Stats & Params'!$I$6-1), IF('B. PoF Summary Stats & Params'!$C$12="W", B69*(('B. PoF Summary Stats & Params'!$M$6/'B. PoF Summary Stats & Params'!$M$8)*((A69)/'B. PoF Summary Stats & Params'!$M$8)^('B. PoF Summary Stats & Params'!$M$6-1)), "Choose Model")) -> 0.1755096267 | E69: =IF('B. PoF Summary Stats & Params'!$C$12="C", B69*'B. PoF Summary Stats & Params'!$I$8*'B. PoF Summary Stats & Params'!$I$12*A69^('B. PoF Summary Stats & Params'!$I$12-1), IF('B. PoF Summary Stats & Params'!$C$12="W", B69*(('B. PoF Summary Stats & Params'!$M$12/'B. PoF Summary Stats & Params'!$O$12)*((A69)/'B. PoF Summary Stats & Params'!$O$12)^('B. PoF Summary Stats & Params'!$M$12-1)), "Choose Model")) -> 0.03839335134
A70: 66 | B70: 1 | C70: =IF('B. PoF Summary Stats & Params'!$C$12="C", B70*'B. PoF Summary Stats & Params'!$I$8*'B. PoF Summary Stats & Params'!$I$10*A70^('B. PoF Summary Stats & Params'!$I$10-1), IF('B. PoF Summary Stats & Params'!$C$12="W", B70*(('B. PoF Summary Stats & Params'!$M$14/'B. PoF Summary Stats & Params'!$O$14)*((A70)/'B. PoF Summary Stats & Params'!$O$14)^('B. PoF Summary Stats & Params'!$M$14-1)), "Choose Model")) -> 0.7608161 | D70: =IF('B. PoF Summary Stats & Params'!$C$12="C", B70*'B. PoF Summary Stats & Params'!$I$8*'B. PoF Summary Stats & Params'!$I$6*A70^('B. PoF Summary Stats & Params'!$I$6-1), IF('B. PoF Summary Stats & Params'!$C$12="W", B70*(('B. PoF Summary Stats & Params'!$M$6/'B. PoF Summary Stats & Params'!$M$8)*((A70)/'B. PoF Summary Stats & Params'!$M$8)^('B. PoF Summary Stats & Params'!$M$6-1)), "Choose Model")) -> 0.17610476 | E70: =IF('B. PoF Summary Stats & Params'!$C$12="C", B70*'B. PoF Summary Stats & Params'!$I$8*'B. PoF Summary Stats & Params'!$I$12*A70^('B. PoF Summary Stats & Params'!$I$12-1), IF('B. PoF Summary Stats & Params'!$C$12="W", B70*(('B. PoF Summary Stats & Params'!$M$12/'B. PoF Summary Stats & Params'!$O$12)*((A70)/'B. PoF Summary Stats & Params'!$O$12)^('B. PoF Summary Stats & Params'!$M$12-1)), "Choose Model")) -> 0.03834908531
A71: 67 | B71: 1 | C71: =IF('B. PoF Summary Stats & Params'!$C$12="C", B71*'B. PoF Summary Stats & Params'!$I$8*'B. PoF Summary Stats & Params'!$I$10*A71^('B. PoF Summary Stats & Params'!$I$10-1), IF('B. PoF Summary Stats & Params'!$C$12="W", B71*(('B. PoF Summary Stats & Params'!$M$14/'B. PoF Summary Stats & Params'!$O$14)*((A71)/'B. PoF Summary Stats & Params'!$O$14)^('B. PoF Summary Stats & Params'!$M$14-1)), "Choose Model")) -> 0.7667773252 | D71: =IF('B. PoF Summary Stats & Params'!$C$12="C", B71*'B. PoF Summary Stats & Params'!$I$8*'B. PoF Summary Stats & Params'!$I$6*A71^('B. PoF Summary Stats & Params'!$I$6-1), IF('B. PoF Summary Stats & Params'!$C$12="W", B71*(('B. PoF Summary Stats & Params'!$M$6/'B. PoF Summary Stats & Params'!$M$8)*((A71)/'B. PoF Summary Stats & Params'!$M$8)^('B. PoF Summary Stats & Params'!$M$6-1)), "Choose Model")) -> 0.1766929164 | E71: =IF('B. PoF Summary Stats & Params'!$C$12="C", B71*'B. PoF Summary Stats & Params'!$I$8*'B. PoF Summary Stats & Params'!$I$12*A71^('B. PoF Summary Stats & Params'!$I$12-1), IF('B. PoF Summary Stats & Params'!$C$12="W", B71*(('B. PoF Summary Stats & Params'!$M$12/'B. PoF Summary Stats & Params'!$O$12)*((A71)/'B. PoF Summary Stats & Params'!$O$12)^('B. PoF Summary Stats & Params'!$M$12-1)), "Choose Model")) -> 0.03830553485
A72: 68 | B72: 1 | C72: =IF('B. PoF Summary Stats & Params'!$C$12="C", B72*'B. PoF Summary Stats & Params'!$I$8*'B. PoF Summary Stats & Params'!$I$10*A72^('B. PoF Summary Stats & Params'!$I$10-1), IF('B. PoF Summary Stats & Params'!$C$12="W", B72*(('B. PoF Summary Stats & Params'!$M$14/'B. PoF Summary Stats & Params'!$O$14)*((A72)/'B. PoF Summary Stats & Params'!$O$14)^('B. PoF Summary Stats & Params'!$M$14-1)), "Choose Model")) -> 0.7726959061 | D72: =IF('B. PoF Summary Stats & Params'!$C$12="C", B72*'B. PoF Summary Stats & Params'!$I$8*'B. PoF Summary Stats & Params'!$I$6*A72^('B. PoF Summary Stats & Params'!$I$6-1), IF('B. PoF Summary Stats & Params'!$C$12="W", B72*(('B. PoF Summary Stats & Params'!$M$6/'B. PoF Summary Stats & Params'!$M$8)*((A72)/'B. PoF Summary Stats & Params'!$M$8)^('B. PoF Summary Stats & Params'!$M$6-1)), "Choose Model")) -> 0.1772742799 | E72: =IF('B. PoF Summary Stats & Params'!$C$12="C", B72*'B. PoF Summary Stats & Params'!$I$8*'B. PoF Summary Stats & Params'!$I$12*A72^('B. PoF Summary Stats & Params'!$I$12-1), IF('B. PoF Summary Stats & Params'!$C$12="W", B72*(('B. PoF Summary Stats & Params'!$M$12/'B. PoF Summary Stats & Params'!$O$12)*((A72)/'B. PoF Summary Stats & Params'!$O$12)^('B. PoF Summary Stats & Params'!$M$12-1)), "Choose Model")) -> 0.03826267797
A73: 69 | B73: 1 | C73: =IF('B. PoF Summary Stats & Params'!$C$12="C", B73*'B. PoF Summary Stats & Params'!$I$8*'B. PoF Summary Stats & Params'!$I$10*A73^('B. PoF Summary Stats & Params'!$I$10-1), IF('B. PoF Summary Stats & Params'!$C$12="W", B73*(('B. PoF Summary Stats & Params'!$M$14/'B. PoF Summary Stats & Params'!$O$14)*((A73)/'B. PoF Summary Stats & Params'!$O$14)^('B. PoF Summary Stats & Params'!$M$14-1)), "Choose Model")) -> 0.7785727682 | D73: =IF('B. PoF Summary Stats & Params'!$C$12="C", B73*'B. PoF Summary Stats & Params'!$I$8*'B. PoF Summary Stats & Params'!$I$6*A73^('B. PoF Summary Stats & Params'!$I$6-1), IF('B. PoF Summary Stats & Params'!$C$12="W", B73*(('B. PoF Summary Stats & Params'!$M$6/'B. PoF Summary Stats & Params'!$M$8)*((A73)/'B. PoF Summary Stats & Params'!$M$8)^('B. PoF Summary Stats & Params'!$M$6-1)), "Choose Model")) -> 0.1778490271 | E73: =IF('B. PoF Summary Stats & Params'!$C$12="C", B73*'B. PoF Summary Stats & Params'!$I$8*'B. PoF Summary Stats & Params'!$I$12*A73^('B. PoF Summary Stats & Params'!$I$12-1), IF('B. PoF Summary Stats & Params'!$C$12="W", B73*(('B. PoF Summary Stats & Params'!$M$12/'B. PoF Summary Stats & Params'!$O$12)*((A73)/'B. PoF Summary Stats & Params'!$O$12)^('B. PoF Summary Stats & Params'!$M$12-1)), "Choose Model")) -> 0.03822049367
A74: 70 | B74: 1 | C74: =IF('B. PoF Summary Stats & Params'!$C$12="C", B74*'B. PoF Summary Stats & Params'!$I$8*'B. PoF Summary Stats & Params'!$I$10*A74^('B. PoF Summary Stats & Params'!$I$10-1), IF('B. PoF Summary Stats & Params'!$C$12="W", B74*(('B. PoF Summary Stats & Params'!$M$14/'B. PoF Summary Stats & Params'!$O$14)*((A74)/'B. PoF Summary Stats & Params'!$O$14)^('B. PoF Summary Stats & Params'!$M$14-1)), "Choose Model")) -> 0.784408804 | D74: =IF('B. PoF Summary Stats & Params'!$C$12="C", B74*'B. PoF Summary Stats & Params'!$I$8*'B. PoF Summary Stats & Params'!$I$6*A74^('B. PoF Summary Stats & Params'!$I$6-1), IF('B. PoF Summary Stats & Params'!$C$12="W", B74*(('B. PoF Summary Stats & Params'!$M$6/'B. PoF Summary Stats & Params'!$M$8)*((A74)/'B. PoF Summary Stats & Params'!$M$8)^('B. PoF Summary Stats & Params'!$M$6-1)), "Choose Model")) -> 0.1784173276 | E74: =IF('B. PoF Summary Stats & Params'!$C$12="C", B74*'B. PoF Summary Stats & Params'!$I$8*'B. PoF Summary Stats & Params'!$I$12*A74^('B. PoF Summary Stats & Params'!$I$12-1), IF('B. PoF Summary Stats & Params'!$C$12="W", B74*(('B. PoF Summary Stats & Params'!$M$12/'B. PoF Summary Stats & Params'!$O$12)*((A74)/'B. PoF Summary Stats & Params'!$O$12)^('B. PoF Summary Stats & Params'!$M$12-1)), "Choose Model")) -> 0.03817896186
A75: 71 | B75: 1 | C75: =IF('B. PoF Summary Stats & Params'!$C$12="C", B75*'B. PoF Summary Stats & Params'!$I$8*'B. PoF Summary Stats & Params'!$I$10*A75^('B. PoF Summary Stats & Params'!$I$10-1), IF('B. PoF Summary Stats & Params'!$C$12="W", B75*(('B. PoF Summary Stats & Params'!$M$14/'B. PoF Summary Stats & Params'!$O$14)*((A75)/'B. PoF Summary Stats & Params'!$O$14)^('B. PoF Summary Stats & Params'!$M$14-1)), "Choose Model")) -> 0.7902048742 | D75: =IF('B. PoF Summary Stats & Params'!$C$12="C", B75*'B. PoF Summary Stats & Params'!$I$8*'B. PoF Summary Stats & Params'!$I$6*A75^('B. PoF Summary Stats & Params'!$I$6-1), IF('B. PoF Summary Stats & Params'!$C$12="W", B75*(('B. PoF Summary Stats & Params'!$M$6/'B. PoF Summary Stats & Params'!$M$8)*((A75)/'B. PoF Summary Stats & Params'!$M$8)^('B. PoF Summary Stats & Params'!$M$6-1)), "Choose Model")) -> 0.1789793444 | E75: =IF('B. PoF Summary Stats & Params'!$C$12="C", B75*'B. PoF Summary Stats & Params'!$I$8*'B. PoF Summary Stats & Params'!$I$12*A75^('B. PoF Summary Stats & Params'!$I$12-1), IF('B. PoF Summary Stats & Params'!$C$12="W", B75*(('B. PoF Summary Stats & Params'!$M$12/'B. PoF Summary Stats & Params'!$O$12)*((A75)/'B. PoF Summary Stats & Params'!$O$12)^('B. PoF Summary Stats & Params'!$M$12-1)), "Choose Model")) -> 0.03813806336
A76: 72 | B76: 1 | C76: =IF('B. PoF Summary Stats & Params'!$C$12="C", B76*'B. PoF Summary Stats & Params'!$I$8*'B. PoF Summary Stats & Params'!$I$10*A76^('B. PoF Summary Stats & Params'!$I$10-1), IF('B. PoF Summary Stats & Params'!$C$12="W", B76*(('B. PoF Summary Stats & Params'!$M$14/'B. PoF Summary Stats & Params'!$O$14)*((A76)/'B. PoF Summary Stats & Params'!$O$14)^('B. PoF Summary Stats & Params'!$M$14-1)), "Choose Model")) -> 0.7959618097 | D76: =IF('B. PoF Summary Stats & Params'!$C$12="C", B76*'B. PoF Summary Stats & Params'!$I$8*'B. PoF Summary Stats & Params'!$I$6*A76^('B. PoF Summary Stats & Params'!$I$6-1), IF('B. PoF Summary Stats & Params'!$C$12="W", B76*(('B. PoF Summary Stats & Params'!$M$6/'B. PoF Summary Stats & Params'!$M$8)*((A76)/'B. PoF Summary Stats & Params'!$M$8)^('B. PoF Summary Stats & Params'!$M$6-1)), "Choose Model")) -> 0.1795352339 | E76: =IF('B. PoF Summary Stats & Params'!$C$12="C", B76*'B. PoF Summary Stats & Params'!$I$8*'B. PoF Summary Stats & Params'!$I$12*A76^('B. PoF Summary Stats & Params'!$I$12-1), IF('B. PoF Summary Stats & Params'!$C$12="W", B76*(('B. PoF Summary Stats & Params'!$M$12/'B. PoF Summary Stats & Params'!$O$12)*((A76)/'B. PoF Summary Stats & Params'!$O$12)^('B. PoF Summary Stats & Params'!$M$12-1)), "Choose Model")) -> 0.03809777977
A77: 73 | B77: 1 | C77: =IF('B. PoF Summary Stats & Params'!$C$12="C", B77*'B. PoF Summary Stats & Params'!$I$8*'B. PoF Summary Stats & Params'!$I$10*A77^('B. PoF Summary Stats & Params'!$I$10-1), IF('B. PoF Summary Stats & Params'!$C$12="W", B77*(('B. PoF Summary Stats & Params'!$M$14/'B. PoF Summary Stats & Params'!$O$14)*((A77)/'B. PoF Summary Stats & Params'!$O$14)^('B. PoF Summary Stats & Params'!$M$14-1)), "Choose Model")) -> 0.801680413 | D77: =IF('B. PoF Summary Stats & Params'!$C$12="C", B77*'B. PoF Summary Stats & Params'!$I$8*'B. PoF Summary Stats & Params'!$I$6*A77^('B. PoF Summary Stats & Params'!$I$6-1), IF('B. PoF Summary Stats & Params'!$C$12="W", B77*(('B. PoF Summary Stats & Params'!$M$6/'B. PoF Summary Stats & Params'!$M$8)*((A77)/'B. PoF Summary Stats & Params'!$M$8)^('B. PoF Summary Stats & Params'!$M$6-1)), "Choose Model")) -> 0.1800851466 | E77: =IF('B. PoF Summary Stats & Params'!$C$12="C", B77*'B. PoF Summary Stats & Params'!$I$8*'B. PoF Summary Stats & Params'!$I$12*A77^('B. PoF Summary Stats & Params'!$I$12-1), IF('B. PoF Summary Stats & Params'!$C$12="W", B77*(('B. PoF Summary Stats & Params'!$M$12/'B. PoF Summary Stats & Params'!$O$12)*((A77)/'B. PoF Summary Stats & Params'!$O$12)^('B. PoF Summary Stats & Params'!$M$12-1)), "Choose Model")) -> 0.03805809351
A78: 74 | B78: 1 | C78: =IF('B. PoF Summary Stats & Params'!$C$12="C", B78*'B. PoF Summary Stats & Params'!$I$8*'B. PoF Summary Stats & Params'!$I$10*A78^('B. PoF Summary Stats & Params'!$I$10-1), IF('B. PoF Summary Stats & Params'!$C$12="W", B78*(('B. PoF Summary Stats & Params'!$M$14/'B. PoF Summary Stats & Params'!$O$14)*((A78)/'B. PoF Summary Stats & Params'!$O$14)^('B. PoF Summary Stats & Params'!$M$14-1)), "Choose Model")) -> 0.8073614591 | D78: =IF('B. PoF Summary Stats & Params'!$C$12="C", B78*'B. PoF Summary Stats & Params'!$I$8*'B. PoF Summary Stats & Params'!$I$6*A78^('B. PoF Summary Stats & Params'!$I$6-1), IF('B. PoF Summary Stats & Params'!$C$12="W", B78*(('B. PoF Summary Stats & Params'!$M$6/'B. PoF Summary Stats & Params'!$M$8)*((A78)/'B. PoF Summary Stats & Params'!$M$8)^('B. PoF Summary Stats & Params'!$M$6-1)), "Choose Model")) -> 0.1806292274 | E78: =IF('B. PoF Summary Stats & Params'!$C$12="C", B78*'B. PoF Summary Stats & Params'!$I$8*'B. PoF Summary Stats & Params'!$I$12*A78^('B. PoF Summary Stats & Params'!$I$12-1), IF('B. PoF Summary Stats & Params'!$C$12="W", B78*(('B. PoF Summary Stats & Params'!$M$12/'B. PoF Summary Stats & Params'!$O$12)*((A78)/'B. PoF Summary Stats & Params'!$O$12)^('B. PoF Summary Stats & Params'!$M$12-1)), "Choose Model")) -> 0.03801898772
A79: 75 | B79: 1 | C79: =IF('B. PoF Summary Stats & Params'!$C$12="C", B79*'B. PoF Summary Stats & Params'!$I$8*'B. PoF Summary Stats & Params'!$I$10*A79^('B. PoF Summary Stats & Params'!$I$10-1), IF('B. PoF Summary Stats & Params'!$C$12="W", B79*(('B. PoF Summary Stats & Params'!$M$14/'B. PoF Summary Stats & Params'!$O$14)*((A79)/'B. PoF Summary Stats & Params'!$O$14)^('B. PoF Summary Stats & Params'!$M$14-1)), "Choose Model")) -> 0.8130056974 | D79: =IF('B. PoF Summary Stats & Params'!$C$12="C", B79*'B. PoF Summary Stats & Params'!$I$8*'B. PoF Summary Stats & Params'!$I$6*A79^('B. PoF Summary Stats & Params'!$I$6-1), IF('B. PoF Summary Stats & Params'!$C$12="W", B79*(('B. PoF Summary Stats & Params'!$M$6/'B. PoF Summary Stats & Params'!$M$8)*((A79)/'B. PoF Summary Stats & Params'!$M$8)^('B. PoF Summary Stats & Params'!$M$6-1)), "Choose Model")) -> 0.1811676158 | E79: =IF('B. PoF Summary Stats & Params'!$C$12="C", B79*'B. PoF Summary Stats & Params'!$I$8*'B. PoF Summary Stats & Params'!$I$12*A79^('B. PoF Summary Stats & Params'!$I$12-1), IF('B. PoF Summary Stats & Params'!$C$12="W", B79*(('B. PoF Summary Stats & Params'!$M$12/'B. PoF Summary Stats & Params'!$O$12)*((A79)/'B. PoF Summary Stats & Params'!$O$12)^('B. PoF Summary Stats & Params'!$M$12-1)), "Choose Model")) -> 0.03798044624
A80: 76 | B80: 1 | C80: =IF('B. PoF Summary Stats & Params'!$C$12="C", B80*'B. PoF Summary Stats & Params'!$I$8*'B. PoF Summary Stats & Params'!$I$10*A80^('B. PoF Summary Stats & Params'!$I$10-1), IF('B. PoF Summary Stats & Params'!$C$12="W", B80*(('B. PoF Summary Stats & Params'!$M$14/'B. PoF Summary Stats & Params'!$O$14)*((A80)/'B. PoF Summary Stats & Params'!$O$14)^('B. PoF Summary Stats & Params'!$M$14-1)), "Choose Model")) -> 0.8186138523 | D80: =IF('B. PoF Summary Stats & Params'!$C$12="C", B80*'B. PoF Summary Stats & Params'!$I$8*'B. PoF Summary Stats & Params'!$I$6*A80^('B. PoF Summary Stats & Params'!$I$6-1), IF('B. PoF Summary Stats & Params'!$C$12="W", B80*(('B. PoF Summary Stats & Params'!$M$6/'B. PoF Summary Stats & Params'!$M$8)*((A80)/'B. PoF Summary Stats & Params'!$M$8)^('B. PoF Summary Stats & Params'!$M$6-1)), "Choose Model")) -> 0.1817004459 | E80: =IF('B. PoF Summary Stats & Params'!$C$12="C", B80*'B. PoF Summary Stats & Params'!$I$8*'B. PoF Summary Stats & Params'!$I$12*A80^('B. PoF Summary Stats & Params'!$I$12-1), IF('B. PoF Summary Stats & Params'!$C$12="W", B80*(('B. PoF Summary Stats & Params'!$M$12/'B. PoF Summary Stats & Params'!$O$12)*((A80)/'B. PoF Summary Stats & Params'!$O$12)^('B. PoF Summary Stats & Params'!$M$12-1)), "Choose Model")) -> 0.03794245354
A81: 77 | B81: 1 | C81: =IF('B. PoF Summary Stats & Params'!$C$12="C", B81*'B. PoF Summary Stats & Params'!$I$8*'B. PoF Summary Stats & Params'!$I$10*A81^('B. PoF Summary Stats & Params'!$I$10-1), IF('B. PoF Summary Stats & Params'!$C$12="W", B81*(('B. PoF Summary Stats & Params'!$M$14/'B. PoF Summary Stats & Params'!$O$14)*((A81)/'B. PoF Summary Stats & Params'!$O$14)^('B. PoF Summary Stats & Params'!$M$14-1)), "Choose Model")) -> 0.8241866248 | D81: =IF('B. PoF Summary Stats & Params'!$C$12="C", B81*'B. PoF Summary Stats & Params'!$I$8*'B. PoF Summary Stats & Params'!$I$6*A81^('B. PoF Summary Stats & Params'!$I$6-1), IF('B. PoF Summary Stats & Params'!$C$12="W", B81*(('B. PoF Summary Stats & Params'!$M$6/'B. PoF Summary Stats & Params'!$M$8)*((A81)/'B. PoF Summary Stats & Params'!$M$8)^('B. PoF Summary Stats & Params'!$M$6-1)), "Choose Model")) -> 0.1822278472 | E81: =IF('B. PoF Summary Stats & Params'!$C$12="C", B81*'B. PoF Summary Stats & Params'!$I$8*'B. PoF Summary Stats & Params'!$I$12*A81^('B. PoF Summary Stats & Params'!$I$12-1), IF('B. PoF Summary Stats & Params'!$C$12="W", B81*(('B. PoF Summary Stats & Params'!$M$12/'B. PoF Summary Stats & Params'!$O$12)*((A81)/'B. PoF Summary Stats & Params'!$O$12)^('B. PoF Summary Stats & Params'!$M$12-1)), "Choose Model")) -> 0.03790499477
A82: 78 | B82: 1 | C82: =IF('B. PoF Summary Stats & Params'!$C$12="C", B82*'B. PoF Summary Stats & Params'!$I$8*'B. PoF Summary Stats & Params'!$I$10*A82^('B. PoF Summary Stats & Params'!$I$10-1), IF('B. PoF Summary Stats & Params'!$C$12="W", B82*(('B. PoF Summary Stats & Params'!$M$14/'B. PoF Summary Stats & Params'!$O$14)*((A82)/'B. PoF Summary Stats & Params'!$O$14)^('B. PoF Summary Stats & Params'!$M$14-1)), "Choose Model")) -> 0.8297246935 | D82: =IF('B. PoF Summary Stats & Params'!$C$12="C", B82*'B. PoF Summary Stats & Params'!$I$8*'B. PoF Summary Stats & Params'!$I$6*A82^('B. PoF Summary Stats & Params'!$I$6-1), IF('B. PoF Summary Stats & Params'!$C$12="W", B82*(('B. PoF Summary Stats & Params'!$M$6/'B. PoF Summary Stats & Params'!$M$8)*((A82)/'B. PoF Summary Stats & Params'!$M$8)^('B. PoF Summary Stats & Params'!$M$6-1)), "Choose Model")) -> 0.1827499445 | E82: =IF('B. PoF Summary Stats & Params'!$C$12="C", B82*'B. PoF Summary Stats & Params'!$I$8*'B. PoF Summary Stats & Params'!$I$12*A82^('B. PoF Summary Stats & Params'!$I$12-1), IF('B. PoF Summary Stats & Params'!$C$12="W", B82*(('B. PoF Summary Stats & Params'!$M$12/'B. PoF Summary Stats & Params'!$O$12)*((A82)/'B. PoF Summary Stats & Params'!$O$12)^('B. PoF Summary Stats & Params'!$M$12-1)), "Choose Model")) -> 0.03786805561
A83: 79 | B83: 1 | C83: =IF('B. PoF Summary Stats & Params'!$C$12="C", B83*'B. PoF Summary Stats & Params'!$I$8*'B. PoF Summary Stats & Params'!$I$10*A83^('B. PoF Summary Stats & Params'!$I$10-1), IF('B. PoF Summary Stats & Params'!$C$12="W", B83*(('B. PoF Summary Stats & Params'!$M$14/'B. PoF Summary Stats & Params'!$O$14)*((A83)/'B. PoF Summary Stats & Params'!$O$14)^('B. PoF Summary Stats & Params'!$M$14-1)), "Choose Model")) -> 0.8352287151 | D83: =IF('B. PoF Summary Stats & Params'!$C$12="C", B83*'B. PoF Summary Stats & Params'!$I$8*'B. PoF Summary Stats & Params'!$I$6*A83^('B. PoF Summary Stats & Params'!$I$6-1), IF('B. PoF Summary Stats & Params'!$C$12="W", B83*(('B. PoF Summary Stats & Params'!$M$6/'B. PoF Summary Stats & Params'!$M$8)*((A83)/'B. PoF Summary Stats & Params'!$M$8)^('B. PoF Summary Stats & Params'!$M$6-1)), "Choose Model")) -> 0.183266858 | E83: =IF('B. PoF Summary Stats & Params'!$C$12="C", B83*'B. PoF Summary Stats & Params'!$I$8*'B. PoF Summary Stats & Params'!$I$12*A83^('B. PoF Summary Stats & Params'!$I$12-1), IF('B. PoF Summary Stats & Params'!$C$12="W", B83*(('B. PoF Summary Stats & Params'!$M$12/'B. PoF Summary Stats & Params'!$O$12)*((A83)/'B. PoF Summary Stats & Params'!$O$12)^('B. PoF Summary Stats & Params'!$M$12-1)), "Choose Model")) -> 0.03783162235
A84: 80 | B84: 1 | C84: =IF('B. PoF Summary Stats & Params'!$C$12="C", B84*'B. PoF Summary Stats & Params'!$I$8*'B. PoF Summary Stats & Params'!$I$10*A84^('B. PoF Summary Stats & Params'!$I$10-1), IF('B. PoF Summary Stats & Params'!$C$12="W", B84*(('B. PoF Summary Stats & Params'!$M$14/'B. PoF Summary Stats & Params'!$O$14)*((A84)/'B. PoF Summary Stats & Params'!$O$14)^('B. PoF Summary Stats & Params'!$M$14-1)), "Choose Model")) -> 0.8406993261 | D84: =IF('B. PoF Summary Stats & Params'!$C$12="C", B84*'B. PoF Summary Stats & Params'!$I$8*'B. PoF Summary Stats & Params'!$I$6*A84^('B. PoF Summary Stats & Params'!$I$6-1), IF('B. PoF Summary Stats & Params'!$C$12="W", B84*(('B. PoF Summary Stats & Params'!$M$6/'B. PoF Summary Stats & Params'!$M$8)*((A84)/'B. PoF Summary Stats & Params'!$M$8)^('B. PoF Summary Stats & Params'!$M$6-1)), "Choose Model")) -> 0.1837787039 | E84: =IF('B. PoF Summary Stats & Params'!$C$12="C", B84*'B. PoF Summary Stats & Params'!$I$8*'B. PoF Summary Stats & Params'!$I$12*A84^('B. PoF Summary Stats & Params'!$I$12-1), IF('B. PoF Summary Stats & Params'!$C$12="W", B84*(('B. PoF Summary Stats & Params'!$M$12/'B. PoF Summary Stats & Params'!$O$12)*((A84)/'B. PoF Summary Stats & Params'!$O$12)^('B. PoF Summary Stats & Params'!$M$12-1)), "Choose Model")) -> 0.03779568176
A85: 81 | B85: 1 | C85: =IF('B. PoF Summary Stats & Params'!$C$12="C", B85*'B. PoF Summary Stats & Params'!$I$8*'B. PoF Summary Stats & Params'!$I$10*A85^('B. PoF Summary Stats & Params'!$I$10-1), IF('B. PoF Summary Stats & Params'!$C$12="W", B85*(('B. PoF Summary Stats & Params'!$M$14/'B. PoF Summary Stats & Params'!$O$14)*((A85)/'B. PoF Summary Stats & Params'!$O$14)^('B. PoF Summary Stats & Params'!$M$14-1)), "Choose Model")) -> 0.8461371432 | D85: =IF('B. PoF Summary Stats & Params'!$C$12="C", B85*'B. PoF Summary Stats & Params'!$I$8*'B. PoF Summary Stats & Params'!$I$6*A85^('B. PoF Summary Stats & Params'!$I$6-1), IF('B. PoF Summary Stats & Params'!$C$12="W", B85*(('B. PoF Summary Stats & Params'!$M$6/'B. PoF Summary Stats & Params'!$M$8)*((A85)/'B. PoF Summary Stats & Params'!$M$8)^('B. PoF Summary Stats & Params'!$M$6-1)), "Choose Model")) -> 0.1842855943 | E85: =IF('B. PoF Summary Stats & Params'!$C$12="C", B85*'B. PoF Summary Stats & Params'!$I$8*'B. PoF Summary Stats & Params'!$I$12*A85^('B. PoF Summary Stats & Params'!$I$12-1), IF('B. PoF Summary Stats & Params'!$C$12="W", B85*(('B. PoF Summary Stats & Params'!$M$12/'B. PoF Summary Stats & Params'!$O$12)*((A85)/'B. PoF Summary Stats & Params'!$O$12)^('B. PoF Summary Stats & Params'!$M$12-1)), "Choose Model")) -> 0.03776022117
A86: 82 | B86: 1 | C86: =IF('B. PoF Summary Stats & Params'!$C$12="C", B86*'B. PoF Summary Stats & Params'!$I$8*'B. PoF Summary Stats & Params'!$I$10*A86^('B. PoF Summary Stats & Params'!$I$10-1), IF('B. PoF Summary Stats & Params'!$C$12="W", B86*(('B. PoF Summary Stats & Params'!$M$14/'B. PoF Summary Stats & Params'!$O$14)*((A86)/'B. PoF Summary Stats & Params'!$O$14)^('B. PoF Summary Stats & Params'!$M$14-1)), "Choose Model")) -> 0.8515427643 | D86: =IF('B. PoF Summary Stats & Params'!$C$12="C", B86*'B. PoF Summary Stats & Params'!$I$8*'B. PoF Summary Stats & Params'!$I$6*A86^('B. PoF Summary Stats & Params'!$I$6-1), IF('B. PoF Summary Stats & Params'!$C$12="W", B86*(('B. PoF Summary Stats & Params'!$M$6/'B. PoF Summary Stats & Params'!$M$8)*((A86)/'B. PoF Summary Stats & Params'!$M$8)^('B. PoF Summary Stats & Params'!$M$6-1)), "Choose Model")) -> 0.1847876375 | E86: =IF('B. PoF Summary Stats & Params'!$C$12="C", B86*'B. PoF Summary Stats & Params'!$I$8*'B. PoF Summary Stats & Params'!$I$12*A86^('B. PoF Summary Stats & Params'!$I$12-1), IF('B. PoF Summary Stats & Params'!$C$12="W", B86*(('B. PoF Summary Stats & Params'!$M$12/'B. PoF Summary Stats & Params'!$O$12)*((A86)/'B. PoF Summary Stats & Params'!$O$12)^('B. PoF Summary Stats & Params'!$M$12-1)), "Choose Model")) -> 0.03772522835
A87: 83 | B87: 1 | C87: =IF('B. PoF Summary Stats & Params'!$C$12="C", B87*'B. PoF Summary Stats & Params'!$I$8*'B. PoF Summary Stats & Params'!$I$10*A87^('B. PoF Summary Stats & Params'!$I$10-1), IF('B. PoF Summary Stats & Params'!$C$12="W", B87*(('B. PoF Summary Stats & Params'!$M$14/'B. PoF Summary Stats & Params'!$O$14)*((A87)/'B. PoF Summary Stats & Params'!$O$14)^('B. PoF Summary Stats & Params'!$M$14-1)), "Choose Model")) -> 0.856916769 | D87: =IF('B. PoF Summary Stats & Params'!$C$12="C", B87*'B. PoF Summary Stats & Params'!$I$8*'B. PoF Summary Stats & Params'!$I$6*A87^('B. PoF Summary Stats & Params'!$I$6-1), IF('B. PoF Summary Stats & Params'!$C$12="W", B87*(('B. PoF Summary Stats & Params'!$M$6/'B. PoF Summary Stats & Params'!$M$8)*((A87)/'B. PoF Summary Stats & Params'!$M$8)^('B. PoF Summary Stats & Params'!$M$6-1)), "Choose Model")) -> 0.185284938 | E87: =IF('B. PoF Summary Stats & Params'!$C$12="C", B87*'B. PoF Summary Stats & Params'!$I$8*'B. PoF Summary Stats & Params'!$I$12*A87^('B. PoF Summary Stats & Params'!$I$12-1), IF('B. PoF Summary Stats & Params'!$C$12="W", B87*(('B. PoF Summary Stats & Params'!$M$12/'B. PoF Summary Stats & Params'!$O$12)*((A87)/'B. PoF Summary Stats & Params'!$O$12)^('B. PoF Summary Stats & Params'!$M$12-1)), "Choose Model")) -> 0.03769069154
A88: 84 | B88: 1 | C88: =IF('B. PoF Summary Stats & Params'!$C$12="C", B88*'B. PoF Summary Stats & Params'!$I$8*'B. PoF Summary Stats & Params'!$I$10*A88^('B. PoF Summary Stats & Params'!$I$10-1), IF('B. PoF Summary Stats & Params'!$C$12="W", B88*(('B. PoF Summary Stats & Params'!$M$14/'B. PoF Summary Stats & Params'!$O$14)*((A88)/'B. PoF Summary Stats & Params'!$O$14)^('B. PoF Summary Stats & Params'!$M$14-1)), "Choose Model")) -> 0.8622597201 | D88: =IF('B. PoF Summary Stats & Params'!$C$12="C", B88*'B. PoF Summary Stats & Params'!$I$8*'B. PoF Summary Stats & Params'!$I$6*A88^('B. PoF Summary Stats & Params'!$I$6-1), IF('B. PoF Summary Stats & Params'!$C$12="W", B88*(('B. PoF Summary Stats & Params'!$M$6/'B. PoF Summary Stats & Params'!$M$8)*((A88)/'B. PoF Summary Stats & Params'!$M$8)^('B. PoF Summary Stats & Params'!$M$6-1)), "Choose Model")) -> 0.1857775971 | E88: =IF('B. PoF Summary Stats & Params'!$C$12="C", B88*'B. PoF Summary Stats & Params'!$I$8*'B. PoF Summary Stats & Params'!$I$12*A88^('B. PoF Summary Stats & Params'!$I$12-1), IF('B. PoF Summary Stats & Params'!$C$12="W", B88*(('B. PoF Summary Stats & Params'!$M$12/'B. PoF Summary Stats & Params'!$O$12)*((A88)/'B. PoF Summary Stats & Params'!$O$12)^('B. PoF Summary Stats & Params'!$M$12-1)), "Choose Model")) -> 0.0376565994
A89: 85 | B89: 1 | C89: =IF('B. PoF Summary Stats & Params'!$C$12="C", B89*'B. PoF Summary Stats & Params'!$I$8*'B. PoF Summary Stats & Params'!$I$10*A89^('B. PoF Summary Stats & Params'!$I$10-1), IF('B. PoF Summary Stats & Params'!$C$12="W", B89*(('B. PoF Summary Stats & Params'!$M$14/'B. PoF Summary Stats & Params'!$O$14)*((A89)/'B. PoF Summary Stats & Params'!$O$14)^('B. PoF Summary Stats & Params'!$M$14-1)), "Choose Model")) -> 0.8675721633 | D89: =IF('B. PoF Summary Stats & Params'!$C$12="C", B89*'B. PoF Summary Stats & Params'!$I$8*'B. PoF Summary Stats & Params'!$I$6*A89^('B. PoF Summary Stats & Params'!$I$6-1), IF('B. PoF Summary Stats & Params'!$C$12="W", B89*(('B. PoF Summary Stats & Params'!$M$6/'B. PoF Summary Stats & Params'!$M$8)*((A89)/'B. PoF Summary Stats & Params'!$M$8)^('B. PoF Summary Stats & Params'!$M$6-1)), "Choose Model")) -> 0.1862657126 | E89: =IF('B. PoF Summary Stats & Params'!$C$12="C", B89*'B. PoF Summary Stats & Params'!$I$8*'B. PoF Summary Stats & Params'!$I$12*A89^('B. PoF Summary Stats & Params'!$I$12-1), IF('B. PoF Summary Stats & Params'!$C$12="W", B89*(('B. PoF Summary Stats & Params'!$M$12/'B. PoF Summary Stats & Params'!$O$12)*((A89)/'B. PoF Summary Stats & Params'!$O$12)^('B. PoF Summary Stats & Params'!$M$12-1)), "Choose Model")) -> 0.03762294102
A90: 86 | B90: 1 | C90: =IF('B. PoF Summary Stats & Params'!$C$12="C", B90*'B. PoF Summary Stats & Params'!$I$8*'B. PoF Summary Stats & Params'!$I$10*A90^('B. PoF Summary Stats & Params'!$I$10-1), IF('B. PoF Summary Stats & Params'!$C$12="W", B90*(('B. PoF Summary Stats & Params'!$M$14/'B. PoF Summary Stats & Params'!$O$14)*((A90)/'B. PoF Summary Stats & Params'!$O$14)^('B. PoF Summary Stats & Params'!$M$14-1)), "Choose Model")) -> 0.8728546289 | D90: =IF('B. PoF Summary Stats & Params'!$C$12="C", B90*'B. PoF Summary Stats & Params'!$I$8*'B. PoF Summary Stats & Params'!$I$6*A90^('B. PoF Summary Stats & Params'!$I$6-1), IF('B. PoF Summary Stats & Params'!$C$12="W", B90*(('B. PoF Summary Stats & Params'!$M$6/'B. PoF Summary Stats & Params'!$M$8)*((A90)/'B. PoF Summary Stats & Params'!$M$8)^('B. PoF Summary Stats & Params'!$M$6-1)), "Choose Model")) -> 0.186749379 | E90: =IF('B. PoF Summary Stats & Params'!$C$12="C", B90*'B. PoF Summary Stats & Params'!$I$8*'B. PoF Summary Stats & Params'!$I$12*A90^('B. PoF Summary Stats & Params'!$I$12-1), IF('B. PoF Summary Stats & Params'!$C$12="W", B90*(('B. PoF Summary Stats & Params'!$M$12/'B. PoF Summary Stats & Params'!$O$12)*((A90)/'B. PoF Summary Stats & Params'!$O$12)^('B. PoF Summary Stats & Params'!$M$12-1)), "Choose Model")) -> 0.03758970588
A91: 87 | B91: 1 | C91: =IF('B. PoF Summary Stats & Params'!$C$12="C", B91*'B. PoF Summary Stats & Params'!$I$8*'B. PoF Summary Stats & Params'!$I$10*A91^('B. PoF Summary Stats & Params'!$I$10-1), IF('B. PoF Summary Stats & Params'!$C$12="W", B91*(('B. PoF Summary Stats & Params'!$M$14/'B. PoF Summary Stats & Params'!$O$14)*((A91)/'B. PoF Summary Stats & Params'!$O$14)^('B. PoF Summary Stats & Params'!$M$14-1)), "Choose Model")) -> 0.8781076317 | D91: =IF('B. PoF Summary Stats & Params'!$C$12="C", B91*'B. PoF Summary Stats & Params'!$I$8*'B. PoF Summary Stats & Params'!$I$6*A91^('B. PoF Summary Stats & Params'!$I$6-1), IF('B. PoF Summary Stats & Params'!$C$12="W", B91*(('B. PoF Summary Stats & Params'!$M$6/'B. PoF Summary Stats & Params'!$M$8)*((A91)/'B. PoF Summary Stats & Params'!$M$8)^('B. PoF Summary Stats & Params'!$M$6-1)), "Choose Model")) -> 0.187228688 | E91: =IF('B. PoF Summary Stats & Params'!$C$12="C", B91*'B. PoF Summary Stats & Params'!$I$8*'B. PoF Summary Stats & Params'!$I$12*A91^('B. PoF Summary Stats & Params'!$I$12-1), IF('B. PoF Summary Stats & Params'!$C$12="W", B91*(('B. PoF Summary Stats & Params'!$M$12/'B. PoF Summary Stats & Params'!$O$12)*((A91)/'B. PoF Summary Stats & Params'!$O$12)^('B. PoF Summary Stats & Params'!$M$12-1)), "Choose Model")) -> 0.03755688381
A92: 88 | B92: 1 | C92: =IF('B. PoF Summary Stats & Params'!$C$12="C", B92*'B. PoF Summary Stats & Params'!$I$8*'B. PoF Summary Stats & Params'!$I$10*A92^('B. PoF Summary Stats & Params'!$I$10-1), IF('B. PoF Summary Stats & Params'!$C$12="W", B92*(('B. PoF Summary Stats & Params'!$M$14/'B. PoF Summary Stats & Params'!$O$14)*((A92)/'B. PoF Summary Stats & Params'!$O$14)^('B. PoF Summary Stats & Params'!$M$14-1)), "Choose Model")) -> 0.8833316717 | D92: =IF('B. PoF Summary Stats & Params'!$C$12="C", B92*'B. PoF Summary Stats & Params'!$I$8*'B. PoF Summary Stats & Params'!$I$6*A92^('B. PoF Summary Stats & Params'!$I$6-1), IF('B. PoF Summary Stats & Params'!$C$12="W", B92*(('B. PoF Summary Stats & Params'!$M$6/'B. PoF Summary Stats & Params'!$M$8)*((A92)/'B. PoF Summary Stats & Params'!$M$8)^('B. PoF Summary Stats & Params'!$M$6-1)), "Choose Model")) -> 0.1877037282 | E92: =IF('B. PoF Summary Stats & Params'!$C$12="C", B92*'B. PoF Summary Stats & Params'!$I$8*'B. PoF Summary Stats & Params'!$I$12*A92^('B. PoF Summary Stats & Params'!$I$12-1), IF('B. PoF Summary Stats & Params'!$C$12="W", B92*(('B. PoF Summary Stats & Params'!$M$12/'B. PoF Summary Stats & Params'!$O$12)*((A92)/'B. PoF Summary Stats & Params'!$O$12)^('B. PoF Summary Stats & Params'!$M$12-1)), "Choose Model")) -> 0.03752446504
A93: 89 | B93: 1 | C93: =IF('B. PoF Summary Stats & Params'!$C$12="C", B93*'B. PoF Summary Stats & Params'!$I$8*'B. PoF Summary Stats & Params'!$I$10*A93^('B. PoF Summary Stats & Params'!$I$10-1), IF('B. PoF Summary Stats & Params'!$C$12="W", B93*(('B. PoF Summary Stats & Params'!$M$14/'B. PoF Summary Stats & Params'!$O$14)*((A93)/'B. PoF Summary Stats & Params'!$O$14)^('B. PoF Summary Stats & Params'!$M$14-1)), "Choose Model")) -> 0.8885272352 | D93: =IF('B. PoF Summary Stats & Params'!$C$12="C", B93*'B. PoF Summary Stats & Params'!$I$8*'B. PoF Summary Stats & Params'!$I$6*A93^('B. PoF Summary Stats & Params'!$I$6-1), IF('B. PoF Summary Stats & Params'!$C$12="W", B93*(('B. PoF Summary Stats & Params'!$M$6/'B. PoF Summary Stats & Params'!$M$8)*((A93)/'B. PoF Summary Stats & Params'!$M$8)^('B. PoF Summary Stats & Params'!$M$6-1)), "Choose Model")) -> 0.1881745855 | E93: =IF('B. PoF Summary Stats & Params'!$C$12="C", B93*'B. PoF Summary Stats & Params'!$I$8*'B. PoF Summary Stats & Params'!$I$12*A93^('B. PoF Summary Stats & Params'!$I$12-1), IF('B. PoF Summary Stats & Params'!$C$12="W", B93*(('B. PoF Summary Stats & Params'!$M$12/'B. PoF Summary Stats & Params'!$O$12)*((A93)/'B. PoF Summary Stats & Params'!$O$12)^('B. PoF Summary Stats & Params'!$M$12-1)), "Choose Model")) -> 0.03749244009
A94: 90 | B94: 1 | C94: =IF('B. PoF Summary Stats & Params'!$C$12="C", B94*'B. PoF Summary Stats & Params'!$I$8*'B. PoF Summary Stats & Params'!$I$10*A94^('B. PoF Summary Stats & Params'!$I$10-1), IF('B. PoF Summary Stats & Params'!$C$12="W", B94*(('B. PoF Summary Stats & Params'!$M$14/'B. PoF Summary Stats & Params'!$O$14)*((A94)/'B. PoF Summary Stats & Params'!$O$14)^('B. PoF Summary Stats & Params'!$M$14-1)), "Choose Model")) -> 0.8936947947 | D94: =IF('B. PoF Summary Stats & Params'!$C$12="C", B94*'B. PoF Summary Stats & Params'!$I$8*'B. PoF Summary Stats & Params'!$I$6*A94^('B. PoF Summary Stats & Params'!$I$6-1), IF('B. PoF Summary Stats & Params'!$C$12="W", B94*(('B. PoF Summary Stats & Params'!$M$6/'B. PoF Summary Stats & Params'!$M$8)*((A94)/'B. PoF Summary Stats & Params'!$M$8)^('B. PoF Summary Stats & Params'!$M$6-1)), "Choose Model")) -> 0.1886413432 | E94: =IF('B. PoF Summary Stats & Params'!$C$12="C", B94*'B. PoF Summary Stats & Params'!$I$8*'B. PoF Summary Stats & Params'!$I$12*A94^('B. PoF Summary Stats & Params'!$I$12-1), IF('B. PoF Summary Stats & Params'!$C$12="W", B94*(('B. PoF Summary Stats & Params'!$M$12/'B. PoF Summary Stats & Params'!$O$12)*((A94)/'B. PoF Summary Stats & Params'!$O$12)^('B. PoF Summary Stats & Params'!$M$12-1)), "Choose Model")) -> 0.03746079985
A95: 91 | B95: 1 | C95: =IF('B. PoF Summary Stats & Params'!$C$12="C", B95*'B. PoF Summary Stats & Params'!$I$8*'B. PoF Summary Stats & Params'!$I$10*A95^('B. PoF Summary Stats & Params'!$I$10-1), IF('B. PoF Summary Stats & Params'!$C$12="W", B95*(('B. PoF Summary Stats & Params'!$M$14/'B. PoF Summary Stats & Params'!$O$14)*((A95)/'B. PoF Summary Stats & Params'!$O$14)^('B. PoF Summary Stats & Params'!$M$14-1)), "Choose Model")) -> 0.8988348099 | D95: =IF('B. PoF Summary Stats & Params'!$C$12="C", B95*'B. PoF Summary Stats & Params'!$I$8*'B. PoF Summary Stats & Params'!$I$6*A95^('B. PoF Summary Stats & Params'!$I$6-1), IF('B. PoF Summary Stats & Params'!$C$12="W", B95*(('B. PoF Summary Stats & Params'!$M$6/'B. PoF Summary Stats & Params'!$M$8)*((A95)/'B. PoF Summary Stats & Params'!$M$8)^('B. PoF Summary Stats & Params'!$M$6-1)), "Choose Model")) -> 0.1891040819 | E95: =IF('B. PoF Summary Stats & Params'!$C$12="C", B95*'B. PoF Summary Stats & Params'!$I$8*'B. PoF Summary Stats & Params'!$I$12*A95^('B. PoF Summary Stats & Params'!$I$12-1), IF('B. PoF Summary Stats & Params'!$C$12="W", B95*(('B. PoF Summary Stats & Params'!$M$12/'B. PoF Summary Stats & Params'!$O$12)*((A95)/'B. PoF Summary Stats & Params'!$O$12)^('B. PoF Summary Stats & Params'!$M$12-1)), "Choose Model")) -> 0.0374295355
A96: 92 | B96: 1 | C96: =IF('B. PoF Summary Stats & Params'!$C$12="C", B96*'B. PoF Summary Stats & Params'!$I$8*'B. PoF Summary Stats & Params'!$I$10*A96^('B. PoF Summary Stats & Params'!$I$10-1), IF('B. PoF Summary Stats & Params'!$C$12="W", B96*(('B. PoF Summary Stats & Params'!$M$14/'B. PoF Summary Stats & Params'!$O$14)*((A96)/'B. PoF Summary Stats & Params'!$O$14)^('B. PoF Summary Stats & Params'!$M$14-1)), "Choose Model")) -> 0.9039477278 | D96: =IF('B. PoF Summary Stats & Params'!$C$12="C", B96*'B. PoF Summary Stats & Params'!$I$8*'B. PoF Summary Stats & Params'!$I$6*A96^('B. PoF Summary Stats & Params'!$I$6-1), IF('B. PoF Summary Stats & Params'!$C$12="W", B96*(('B. PoF Summary Stats & Params'!$M$6/'B. PoF Summary Stats & Params'!$M$8)*((A96)/'B. PoF Summary Stats & Params'!$M$8)^('B. PoF Summary Stats & Params'!$M$6-1)), "Choose Model")) -> 0.1895628797 | E96: =IF('B. PoF Summary Stats & Params'!$C$12="C", B96*'B. PoF Summary Stats & Params'!$I$8*'B. PoF Summary Stats & Params'!$I$12*A96^('B. PoF Summary Stats & Params'!$I$12-1), IF('B. PoF Summary Stats & Params'!$C$12="W", B96*(('B. PoF Summary Stats & Params'!$M$12/'B. PoF Summary Stats & Params'!$O$12)*((A96)/'B. PoF Summary Stats & Params'!$O$12)^('B. PoF Summary Stats & Params'!$M$12-1)), "Choose Model")) -> 0.0373986385
A97: 93 | B97: 1 | C97: =IF('B. PoF Summary Stats & Params'!$C$12="C", B97*'B. PoF Summary Stats & Params'!$I$8*'B. PoF Summary Stats & Params'!$I$10*A97^('B. PoF Summary Stats & Params'!$I$10-1), IF('B. PoF Summary Stats & Params'!$C$12="W", B97*(('B. PoF Summary Stats & Params'!$M$14/'B. PoF Summary Stats & Params'!$O$14)*((A97)/'B. PoF Summary Stats & Params'!$O$14)^('B. PoF Summary Stats & Params'!$M$14-1)), "Choose Model")) -> 0.9090339836 | D97: =IF('B. PoF Summary Stats & Params'!$C$12="C", B97*'B. PoF Summary Stats & Params'!$I$8*'B. PoF Summary Stats & Params'!$I$6*A97^('B. PoF Summary Stats & Params'!$I$6-1), IF('B. PoF Summary Stats & Params'!$C$12="W", B97*(('B. PoF Summary Stats & Params'!$M$6/'B. PoF Summary Stats & Params'!$M$8)*((A97)/'B. PoF Summary Stats & Params'!$M$8)^('B. PoF Summary Stats & Params'!$M$6-1)), "Choose Model")) -> 0.1900178126 | E97: =IF('B. PoF Summary Stats & Params'!$C$12="C", B97*'B. PoF Summary Stats & Params'!$I$8*'B. PoF Summary Stats & Params'!$I$12*A97^('B. PoF Summary Stats & Params'!$I$12-1), IF('B. PoF Summary Stats & Params'!$C$12="W", B97*(('B. PoF Summary Stats & Params'!$M$12/'B. PoF Summary Stats & Params'!$O$12)*((A97)/'B. PoF Summary Stats & Params'!$O$12)^('B. PoF Summary Stats & Params'!$M$12-1)), "Choose Model")) -> 0.03736810063
A98: 94 | B98: 1 | C98: =IF('B. PoF Summary Stats & Params'!$C$12="C", B98*'B. PoF Summary Stats & Params'!$I$8*'B. PoF Summary Stats & Params'!$I$10*A98^('B. PoF Summary Stats & Params'!$I$10-1), IF('B. PoF Summary Stats & Params'!$C$12="W", B98*(('B. PoF Summary Stats & Params'!$M$14/'B. PoF Summary Stats & Params'!$O$14)*((A98)/'B. PoF Summary Stats & Params'!$O$14)^('B. PoF Summary Stats & Params'!$M$14-1)), "Choose Model")) -> 0.9140940007 | D98: =IF('B. PoF Summary Stats & Params'!$C$12="C", B98*'B. PoF Summary Stats & Params'!$I$8*'B. PoF Summary Stats & Params'!$I$6*A98^('B. PoF Summary Stats & Params'!$I$6-1), IF('B. PoF Summary Stats & Params'!$C$12="W", B98*(('B. PoF Summary Stats & Params'!$M$6/'B. PoF Summary Stats & Params'!$M$8)*((A98)/'B. PoF Summary Stats & Params'!$M$8)^('B. PoF Summary Stats & Params'!$M$6-1)), "Choose Model")) -> 0.1904689542 | E98: =IF('B. PoF Summary Stats & Params'!$C$12="C", B98*'B. PoF Summary Stats & Params'!$I$8*'B. PoF Summary Stats & Params'!$I$12*A98^('B. PoF Summary Stats & Params'!$I$12-1), IF('B. PoF Summary Stats & Params'!$C$12="W", B98*(('B. PoF Summary Stats & Params'!$M$12/'B. PoF Summary Stats & Params'!$O$12)*((A98)/'B. PoF Summary Stats & Params'!$O$12)^('B. PoF Summary Stats & Params'!$M$12-1)), "Choose Model")) -> 0.0373379139
A99: 95 | B99: 1 | C99: =IF('B. PoF Summary Stats & Params'!$C$12="C", B99*'B. PoF Summary Stats & Params'!$I$8*'B. PoF Summary Stats & Params'!$I$10*A99^('B. PoF Summary Stats & Params'!$I$10-1), IF('B. PoF Summary Stats & Params'!$C$12="W", B99*(('B. PoF Summary Stats & Params'!$M$14/'B. PoF Summary Stats & Params'!$O$14)*((A99)/'B. PoF Summary Stats & Params'!$O$14)^('B. PoF Summary Stats & Params'!$M$14-1)), "Choose Model")) -> 0.9191281915 | D99: =IF('B. PoF Summary Stats & Params'!$C$12="C", B99*'B. PoF Summary Stats & Params'!$I$8*'B. PoF Summary Stats & Params'!$I$6*A99^('B. PoF Summary Stats & Params'!$I$6-1), IF('B. PoF Summary Stats & Params'!$C$12="W", B99*(('B. PoF Summary Stats & Params'!$M$6/'B. PoF Summary Stats & Params'!$M$8)*((A99)/'B. PoF Summary Stats & Params'!$M$8)^('B. PoF Summary Stats & Params'!$M$6-1)), "Choose Model")) -> 0.1909163758 | E99: =IF('B. PoF Summary Stats & Params'!$C$12="C", B99*'B. PoF Summary Stats & Params'!$I$8*'B. PoF Summary Stats & Params'!$I$12*A99^('B. PoF Summary Stats & Params'!$I$12-1), IF('B. PoF Summary Stats & Params'!$C$12="W", B99*(('B. PoF Summary Stats & Params'!$M$12/'B. PoF Summary Stats & Params'!$O$12)*((A99)/'B. PoF Summary Stats & Params'!$O$12)^('B. PoF Summary Stats & Params'!$M$12-1)), "Choose Model")) -> 0.03730807062
A100: 96 | B100: 1 | C100: =IF('B. PoF Summary Stats & Params'!$C$12="C", B100*'B. PoF Summary Stats & Params'!$I$8*'B. PoF Summary Stats & Params'!$I$10*A100^('B. PoF Summary Stats & Params'!$I$10-1), IF('B. PoF Summary Stats & Params'!$C$12="W", B100*(('B. PoF Summary Stats & Params'!$M$14/'B. PoF Summary Stats & Params'!$O$14)*((A100)/'B. PoF Summary Stats & Params'!$O$14)^('B. PoF Summary Stats & Params'!$M$14-1)), "Choose Model")) -> 0.9241369576 | D100: =IF('B. PoF Summary Stats & Params'!$C$12="C", B100*'B. PoF Summary Stats & Params'!$I$8*'B. PoF Summary Stats & Params'!$I$6*A100^('B. PoF Summary Stats & Params'!$I$6-1), IF('B. PoF Summary Stats & Params'!$C$12="W", B100*(('B. PoF Summary Stats & Params'!$M$6/'B. PoF Summary Stats & Params'!$M$8)*((A100)/'B. PoF Summary Stats & Params'!$M$8)^('B. PoF Summary Stats & Params'!$M$6-1)), "Choose Model")) -> 0.1913601468 | E100: =IF('B. PoF Summary Stats & Params'!$C$12="C", B100*'B. PoF Summary Stats & Params'!$I$8*'B. PoF Summary Stats & Params'!$I$12*A100^('B. PoF Summary Stats & Params'!$I$12-1), IF('B. PoF Summary Stats & Params'!$C$12="W", B100*(('B. PoF Summary Stats & Params'!$M$12/'B. PoF Summary Stats & Params'!$O$12)*((A100)/'B. PoF Summary Stats & Params'!$O$12)^('B. PoF Summary Stats & Params'!$M$12-1)), "Choose Model")) -> 0.03727856332
A101: 97 | B101: 1 | C101: =IF('B. PoF Summary Stats & Params'!$C$12="C", B101*'B. PoF Summary Stats & Params'!$I$8*'B. PoF Summary Stats & Params'!$I$10*A101^('B. PoF Summary Stats & Params'!$I$10-1), IF('B. PoF Summary Stats & Params'!$C$12="W", B101*(('B. PoF Summary Stats & Params'!$M$14/'B. PoF Summary Stats & Params'!$O$14)*((A101)/'B. PoF Summary Stats & Params'!$O$14)^('B. PoF Summary Stats & Params'!$M$14-1)), "Choose Model")) -> 0.9291206903 | D101: =IF('B. PoF Summary Stats & Params'!$C$12="C", B101*'B. PoF Summary Stats & Params'!$I$8*'B. PoF Summary Stats & Params'!$I$6*A101^('B. PoF Summary Stats & Params'!$I$6-1), IF('B. PoF Summary Stats & Params'!$C$12="W", B101*(('B. PoF Summary Stats & Params'!$M$6/'B. PoF Summary Stats & Params'!$M$8)*((A101)/'B. PoF Summary Stats & Params'!$M$8)^('B. PoF Summary Stats & Params'!$M$6-1)), "Choose Model")) -> 0.1918003347 | E101: =IF('B. PoF Summary Stats & Params'!$C$12="C", B101*'B. PoF Summary Stats & Params'!$I$8*'B. PoF Summary Stats & Params'!$I$12*A101^('B. PoF Summary Stats & Params'!$I$12-1), IF('B. PoF Summary Stats & Params'!$C$12="W", B101*(('B. PoF Summary Stats & Params'!$M$12/'B. PoF Summary Stats & Params'!$O$12)*((A101)/'B. PoF Summary Stats & Params'!$O$12)^('B. PoF Summary Stats & Params'!$M$12-1)), "Choose Model")) -> 0.03724938478
A102: 98 | B102: 1 | C102: =IF('B. PoF Summary Stats & Params'!$C$12="C", B102*'B. PoF Summary Stats & Params'!$I$8*'B. PoF Summary Stats & Params'!$I$10*A102^('B. PoF Summary Stats & Params'!$I$10-1), IF('B. PoF Summary Stats & Params'!$C$12="W", B102*(('B. PoF Summary Stats & Params'!$M$14/'B. PoF Summary Stats & Params'!$O$14)*((A102)/'B. PoF Summary Stats & Params'!$O$14)^('B. PoF Summary Stats & Params'!$M$14-1)), "Choose Model")) -> 0.9340797709 | D102: =IF('B. PoF Summary Stats & Params'!$C$12="C", B102*'B. PoF Summary Stats & Params'!$I$8*'B. PoF Summary Stats & Params'!$I$6*A102^('B. PoF Summary Stats & Params'!$I$6-1), IF('B. PoF Summary Stats & Params'!$C$12="W", B102*(('B. PoF Summary Stats & Params'!$M$6/'B. PoF Summary Stats & Params'!$M$8)*((A102)/'B. PoF Summary Stats & Params'!$M$8)^('B. PoF Summary Stats & Params'!$M$6-1)), "Choose Model")) -> 0.1922370047 | E102: =IF('B. PoF Summary Stats & Params'!$C$12="C", B102*'B. PoF Summary Stats & Params'!$I$8*'B. PoF Summary Stats & Params'!$I$12*A102^('B. PoF Summary Stats & Params'!$I$12-1), IF('B. PoF Summary Stats & Params'!$C$12="W", B102*(('B. PoF Summary Stats & Params'!$M$12/'B. PoF Summary Stats & Params'!$O$12)*((A102)/'B. PoF Summary Stats & Params'!$O$12)^('B. PoF Summary Stats & Params'!$M$12-1)), "Choose Model")) -> 0.03722052799
A103: 99 | B103: 1 | C103: =IF('B. PoF Summary Stats & Params'!$C$12="C", B103*'B. PoF Summary Stats & Params'!$I$8*'B. PoF Summary Stats & Params'!$I$10*A103^('B. PoF Summary Stats & Params'!$I$10-1), IF('B. PoF Summary Stats & Params'!$C$12="W", B103*(('B. PoF Summary Stats & Params'!$M$14/'B. PoF Summary Stats & Params'!$O$14)*((A103)/'B. PoF Summary Stats & Params'!$O$14)^('B. PoF Summary Stats & Params'!$M$14-1)), "Choose Model")) -> 0.9390145709 | D103: =IF('B. PoF Summary Stats & Params'!$C$12="C", B103*'B. PoF Summary Stats & Params'!$I$8*'B. PoF Summary Stats & Params'!$I$6*A103^('B. PoF Summary Stats & Params'!$I$6-1), IF('B. PoF Summary Stats & Params'!$C$12="W", B103*(('B. PoF Summary Stats & Params'!$M$6/'B. PoF Summary Stats & Params'!$M$8)*((A103)/'B. PoF Summary Stats & Params'!$M$8)^('B. PoF Summary Stats & Params'!$M$6-1)), "Choose Model")) -> 0.1926702205 | E103: =IF('B. PoF Summary Stats & Params'!$C$12="C", B103*'B. PoF Summary Stats & Params'!$I$8*'B. PoF Summary Stats & Params'!$I$12*A103^('B. PoF Summary Stats & Params'!$I$12-1), IF('B. PoF Summary Stats & Params'!$C$12="W", B103*(('B. PoF Summary Stats & Params'!$M$12/'B. PoF Summary Stats & Params'!$O$12)*((A103)/'B. PoF Summary Stats & Params'!$O$12)^('B. PoF Summary Stats & Params'!$M$12-1)), "Choose Model")) -> 0.03719198619
A104: 100 | B104: 1 | C104: =IF('B. PoF Summary Stats & Params'!$C$12="C", B104*'B. PoF Summary Stats & Params'!$I$8*'B. PoF Summary Stats & Params'!$I$10*A104^('B. PoF Summary Stats & Params'!$I$10-1), IF('B. PoF Summary Stats & Params'!$C$12="W", B104*(('B. PoF Summary Stats & Params'!$M$14/'B. PoF Summary Stats & Params'!$O$14)*((A104)/'B. PoF Summary Stats & Params'!$O$14)^('B. PoF Summary Stats & Params'!$M$14-1)), "Choose Model")) -> 0.9439254528 | D104: =IF('B. PoF Summary Stats & Params'!$C$12="C", B104*'B. PoF Summary Stats & Params'!$I$8*'B. PoF Summary Stats & Params'!$I$6*A104^('B. PoF Summary Stats & Params'!$I$6-1), IF('B. PoF Summary Stats & Params'!$C$12="W", B104*(('B. PoF Summary Stats & Params'!$M$6/'B. PoF Summary Stats & Params'!$M$8)*((A104)/'B. PoF Summary Stats & Params'!$M$8)^('B. PoF Summary Stats & Params'!$M$6-1)), "Choose Model")) -> 0.193100044 | E104: =IF('B. PoF Summary Stats & Params'!$C$12="C", B104*'B. PoF Summary Stats & Params'!$I$8*'B. PoF Summary Stats & Params'!$I$12*A104^('B. PoF Summary Stats & Params'!$I$12-1), IF('B. PoF Summary Stats & Params'!$C$12="W", B104*(('B. PoF Summary Stats & Params'!$M$12/'B. PoF Summary Stats & Params'!$O$12)*((A104)/'B. PoF Summary Stats & Params'!$O$12)^('B. PoF Summary Stats & Params'!$M$12-1)), "Choose Model")) -> 0.03716375281

Sheet B. PoF Summary Stats & Params
C1: PoF Summary Statistics and Parameters
B3: Summary Statisitics | E3: Failure Model Parameters | H3: Crow-AMSAA Parameters | L3: Weibull Parameters | R3: Health Index Parameters
J4: 0.05612242192
B5: Number of PoF Adjustment Factors | C5: =COUNTIF('B. Population PoF Scores'!$O$5:$S$5,">"&0) -> 2
B6: Min Score | C6: =C5*1 -> 2 | E6: βavg | F6: =IF($C$12="C", I6, IF($C$12="W", M6, "Choose Model")) -> 1.221723099 | H6: βavg | I6: 1.221723099 | L6: βavg | S6: Earliest Age Asset Considered (Years) | V6: 0.5 | X6: Min PoF | Y6: =IF($C$12="C", I8*I12*V6^(I12-1), IF($C$12="W", (($M12/$O12)*((V6)/$O12)^(M12-1)), "Choose Model")) -> 0.05546100962
B7: Max Score | C7: =C5*5 -> 10 | E7: 95%CI Adj (β) | F7: =(F6-F14)/F6 -> 0.2433318435 | S7: Asset Standard Life (Years) | V7: 52.07 | X7: Max PoF | Y7: =MAX('A. Initial PoF'!D4:D104) -> 0.193100044
B8: No. of Z-Scores | C8: =5^C5 -> 25 | F8: =F6*F7 -> 0.2972841338 | H8: λavg | I8: 0.05693291107 | L8: havg | S8: Asset Standard Life Addition (%) | V8: 0.1 | X8: HI Categories | Y8: 10
E9: Std. Dev | F9: =SQRT(_xlfn.STDEV.P(({1;2;3;4;5}*'B. Population PoF Scores'!O5))^2+_xlfn.STDEV.P(({1;2;3;4;5}*'B. Population PoF Scores'!P5))^2+_xlfn.STDEV.P(({1;2;3;4;5}*'B. Population PoF Scores'!Q5))^2+_xlfn.STDEV.P(({1;2;3;4;5}*'B. Population PoF Scores'!R5))^2+_xlfn.STDEV.P(({1;2;3;4;5}*'B. Population PoF Scores'!S5))^2) -> 2 | S9: Asset Standard Life + Addition (%) | V9: =ROUND(V7*(1+V8), 0) -> 57 | X9: Delta per Cat. | Y9: =(Y7-Y6)/Y8 -> 0.01376390344
B10: Reference Date | C10: 2018 | E10: Max Std. Dev | F10: =(SUM('B. Population PoF Scores'!O5:S5)-F11)/F9*-1 -> 2 | H10: βpoor | I10: 1.519007232 | L10: b
E11: Average PoF Factor Score | F11: =SUM('B. Population PoF Scores'!O5:S5)*3 -> 6
B12: Crow-AMSAA or Weibull Failure Model | C12: C | E12: β ZCF Scalar | F12: =F8/F10 -> 0.1486420669 | H12: βgood | I12: 0.9244389648 | L12: βgood | N12: hgood | S12: HEALTH INDEX | T12: PoF Range
S13: 1 | T13: 0 | U13: =$Y$6+S13*$Y$9 -> 0.06922491305
B14: Replacement Type | C14: Not Applicable | E14: βgood | F14: =IF($C$12="C", I12, IF($C$12="W", M12, "Choose Model")) -> 0.9244389648 | L14: βpoor | N14: hpoor | S14: 2 | T14: =U13 -> 0.06922491305 | U14: 0.08298881649
E15: βpoor | F15: =IF($C$12="C", I10, IF($C$12="W", M14, "Choose Model")) -> 1.519007232 | S15: 3 | T15: 0.08298881649 | U15: 0.09675271992
E16: λpopulation | F16: =IF($C$12="C", I8, "Not Applicable") -> 0.05693291107 | S16: 4 | T16: 0.09675271992 | U16: 0.1105166234
S17: 5 | T17: 0.1105166234 | U17: 0.1242805268
E18: havg | F18: =IF($C$12="C", "Not Applicable", M8) -> Not Applicable | S18: 6 | T18: 0.1242805268 | U18: 0.1380444302
E19: Intercept (b) | F19: =IF($C$12="C", "Not Applicable", M10) -> Not Applicable | S19: 7 | T19: 0.1380444302 | U19: 0.1518083337
E20: hgood | F20: =IF($C$12="C", "Not Applicable", O12) -> Not Applicable | S20: 8 | T20: 0.1518083337 | U20: 0.1655722371
E21: 95%CI Adj (hgood) | F21: =IF($C$12="C", "Not Applicable", (F20-M8)/M8) -> Not Applicable | S21: 9 | T21: 0.1655722371 | U21: 0.1793361405
S22: 10 | T22: 0.1793361405 | U22: 0.193100044
E23: hpoor | F23: =IF($C$12="C", "Not Applicable", O14) -> Not Applicable
E24: 95%CI Adj (hpoor) | F24: =IF($C$12="C", "Not Applicable", (F23-M8)/M8) -> Not Applicable
E26: Replacement Asset PoF | F26: 0

Sheet B. PoF Adj Factor Scoring
C1: PoF Adjustment Factors and Scores
B3: PoF Affect | C3: PoF Score | E3: Factor 1 | H3: Factor 2 | K3: LVConductor_construction | N3: Factor 4 | Q3: Age | T3: ='B. Population PoF Scores'!B4 -> 0 | V3: ='B. Population PoF Scores'!C4 -> 0 | X3: ='B. Population PoF Scores'!D4 -> LVConductor_construction | Z3: ='B. Population PoF Scores'!E4 -> 0 | AB3: ='B. Population PoF Scores'!F4 -> Age
T4: Factor Value | U4: PoF Score | V4: Factor Value | W4: PoF Score | X4: Factor Value | Y4: PoF Score | Z4: Factor Value | AA4: PoF Score | AB4: Factor Value | AC4: PoF Score
T5: 0 | U5: 3 | V5: 0 | W5: 3 | X5: Bare | Y5: 4 | Z5: 0 | AA5: 3 | AB5: 0 | AC5: 1
B6: Insignificant | C6: 1 | K6: Insulated | L6: 1 | Q6: 0 | R6: 1 | X6: Insulated | Y6: 1 | AB6: 20 | AC6: 2
B7: Minor | C7: 2 | K7: Bare | L7: 4 | Q7: 20 | R7: 2 | AB7: 40 | AC7: 3
B8: Moderate | C8: 3 | Q8: 40 | R8: 3 | AB8: 50 | AC8: 4
B9: Major | C9: 4 | Q9: 50 | R9: 4 | AB9: 60 | AC9: 5
B10: Severe | C10: 5 | Q10: 60 | R10: 5

Sheet B. Population PoF Scores
C1: Population PoF Scores
A3: Asset Identifier | B3: POF ADJUSTMENT FACTORS | G3: POF SCORES
B4: ='A. Population Info'!G5 -> 0 | C4: ='A. Population Info'!H5 -> 0 | D4: ='A. Population Info'!I5 -> LVConductor_construction | E4: ='A. Population Info'!J5 -> 0 | F4: ='A. Population Info'!K5 -> Age | G4: =B4 -> 0 | H4: =C4 -> 0 | I4: =D4 -> LVConductor_construction | J4: =E4 -> 0 | K4: =F4 -> Age | O4: =B4 -> 0 | P4: =C4 -> 0 | Q4: =D4 -> LVConductor_construction | R4: =E4 -> 0 | S4: =F4 -> Age
G5: =O5 -> 0 | H5: =P5 -> 0 | I5: =Q5 -> 1 | J5: =R5 -> 0 | K5: =S5 -> 1 | N5: Weighting 1 | O5: 0 | P5: 0 | Q5: 1 | R5: 0 | S5: 1
A6: ='A. Population Info'!A6 -> 1 | B6: ='A. Population Info'!G6 -> 0 | C6: ='A. Population Info'!H6 -> 0 | D6: ='A. Population Info'!I6 -> Bare | E6: ='A. Population Info'!J6 -> 0 | F6: ='A. Population Info'!K6 -> 0 | G6: =IFERROR(VLOOKUP(B:B,OFFSET('B. PoF Adj Factor Scoring'!$T$5:$U$282,,MATCH(G$4,'B. PoF Adj Factor Scoring'!$T$3:$AC$3,0)-1),2,TRUE),3) -> 3 | H6: =IFERROR(VLOOKUP(C:C,OFFSET('B. PoF Adj Factor Scoring'!$T$5:$U$282,,MATCH(H$4,'B. PoF Adj Factor Scoring'!$T$3:$AC$3,0)-1),2,TRUE),3) -> 3 | I6: =IFERROR(VLOOKUP(D:D,OFFSET('B. PoF Adj Factor Scoring'!$T$5:$U$282,,MATCH(I$4,'B. PoF Adj Factor Scoring'!$T$3:$AC$3,0)-1),2,TRUE),3) -> 4 | J6: =IFERROR(VLOOKUP(E:E,OFFSET('B. PoF Adj Factor Scoring'!$T$5:$U$282,,MATCH(J$4,'B. PoF Adj Factor Scoring'!$T$3:$AC$3,0)-1),2,TRUE),3) -> 3 | K6: =IFERROR(VLOOKUP(F:F,OFFSET('B. PoF Adj Factor Scoring'!$T$5:$U$282,,MATCH(K$4,'B. PoF Adj Factor Scoring'!$T$3:$AC$3,0)-1),2,TRUE),3) -> 1
A7: ='A. Population Info'!A7 -> 2 | B7: ='A. Population Info'!G7 -> 0 | C7: ='A. Population Info'!H7 -> 0 | D7: ='A. Population Info'!I7 -> Bare | E7: ='A. Population Info'!J7 -> 0 | F7: ='A. Population Info'!K7 -> 0 | G7: =IFERROR(VLOOKUP(B:B,OFFSET('B. PoF Adj Factor Scoring'!$T$5:$U$282,,MATCH(G$4,'B. PoF Adj Factor Scoring'!$T$3:$AC$3,0)-1),2,TRUE),3) -> 3 | H7: =IFERROR(VLOOKUP(C:C,OFFSET('B. PoF Adj Factor Scoring'!$T$5:$U$282,,MATCH(H$4,'B. PoF Adj Factor Scoring'!$T$3:$AC$3,0)-1),2,TRUE),3) -> 3 | I7: =IFERROR(VLOOKUP(D:D,OFFSET('B. PoF Adj Factor Scoring'!$T$5:$U$282,,MATCH(I$4,'B. PoF Adj Factor Scoring'!$T$3:$AC$3,0)-1),2,TRUE),3) -> 4 | J7: =IFERROR(VLOOKUP(E:E,OFFSET('B. PoF Adj Factor Scoring'!$T$5:$U$282,,MATCH(J$4,'B. PoF Adj Factor Scoring'!$T$3:$AC$3,0)-1),2,TRUE),3) -> 3 | K7: =IFERROR(VLOOKUP(F:F,OFFSET('B. PoF Adj Factor Scoring'!$T$5:$U$282,,MATCH(K$4,'B. PoF Adj Factor Scoring'!$T$3:$AC$3,0)-1),2,TRUE),3) -> 1
A8: ='A. Population Info'!A8 -> 3 | B8: ='A. Population Info'!G8 -> 0 | C8: ='A. Population Info'!H8 -> 0 | D8: ='A. Population Info'!I8 -> Bare | E8: ='A. Population Info'!J8 -> 0 | F8: ='A. Population Info'!K8 -> 0 | G8: =IFERROR(VLOOKUP(B:B,OFFSET('B. PoF Adj Factor Scoring'!$T$5:$U$282,,MATCH(G$4,'B. PoF Adj Factor Scoring'!$T$3:$AC$3,0)-1),2,TRUE),3) -> 3 | H8: =IFERROR(VLOOKUP(C:C,OFFSET('B. PoF Adj Factor Scoring'!$T$5:$U$282,,MATCH(H$4,'B. PoF Adj Factor Scoring'!$T$3:$AC$3,0)-1),2,TRUE),3) -> 3 | I8: =IFERROR(VLOOKUP(D:D,OFFSET('B. PoF Adj Factor Scoring'!$T$5:$U$282,,MATCH(I$4,'B. PoF Adj Factor Scoring'!$T$3:$AC$3,0)-1),2,TRUE),3) -> 4 | J8: =IFERROR(VLOOKUP(E:E,OFFSET('B. PoF Adj Factor Scoring'!$T$5:$U$282,,MATCH(J$4,'B. PoF Adj Factor Scoring'!$T$3:$AC$3,0)-1),2,TRUE),3) -> 3 | K8: =IFERROR(VLOOKUP(F:F,OFFSET('B. PoF Adj Factor Scoring'!$T$5:$U$282,,MATCH(K$4,'B. PoF Adj Factor Scoring'!$T$3:$AC$3,0)-1),2,TRUE),3) -> 1
A9: ='A. Population Info'!A9 -> 4 | B9: ='A. Population Info'!G9 -> 0 | C9: ='A. Population Info'!H9 -> 0 | D9: ='A. Population Info'!I9 -> Insulated | E9: ='A. Population Info'!J9 -> 0 | F9: ='A. Population Info'!K9 -> 0 | G9: =IFERROR(VLOOKUP(B:B,OFFSET('B. PoF Adj Factor Scoring'!$T$5:$U$282,,MATCH(G$4,'B. PoF Adj Factor Scoring'!$T$3:$AC$3,0)-1),2,TRUE),3) -> 3 | H9: =IFERROR(VLOOKUP(C:C,OFFSET('B. PoF Adj Factor Scoring'!$T$5:$U$282,,MATCH(H$4,'B. PoF Adj Factor Scoring'!$T$3:$AC$3,0)-1),2,TRUE),3) -> 3 | I9: =IFERROR(VLOOKUP(D:D,OFFSET('B. PoF Adj Factor Scoring'!$T$5:$U$282,,MATCH(I$4,'B. PoF Adj Factor Scoring'!$T$3:$AC$3,0)-1),2,TRUE),3) -> 1 | J9: =IFERROR(VLOOKUP(E:E,OFFSET('B. PoF Adj Factor Scoring'!$T$5:$U$282,,MATCH(J$4,'B. PoF Adj Factor Scoring'!$T$3:$AC$3,0)-1),2,TRUE),3) -> 3 | K9: =IFERROR(VLOOKUP(F:F,OFFSET('B. PoF Adj Factor Scoring'!$T$5:$U$282,,MATCH(K$4,'B. PoF Adj Factor Scoring'!$T$3:$AC$3,0)-1),2,TRUE),3) -> 1
A10: ='A. Population Info'!A10 -> 5 | B10: ='A. Population Info'!G10 -> 0 | C10: ='A. Population Info'!H10 -> 0 | D10: ='A. Population Info'!I10 -> Insulated | E10: ='A. Population Info'!J10 -> 0 | F10: ='A. Population Info'!K10 -> 0 | G10: =IFERROR(VLOOKUP(B:B,OFFSET('B. PoF Adj Factor Scoring'!$T$5:$U$282,,MATCH(G$4,'B. PoF Adj Factor Scoring'!$T$3:$AC$3,0)-1),2,TRUE),3) -> 3 | H10: =IFERROR(VLOOKUP(C:C,OFFSET('B. PoF Adj Factor Scoring'!$T$5:$U$282,,MATCH(H$4,'B. PoF Adj Factor Scoring'!$T$3:$AC$3,0)-1),2,TRUE),3) -> 3 | I10: =IFERROR(VLOOKUP(D:D,OFFSET('B. PoF Adj Factor Scoring'!$T$5:$U$282,,MATCH(I$4,'B. PoF Adj Factor Scoring'!$T$3:$AC$3,0)-1),2,TRUE),3) -> 1 | J10: =IFERROR(VLOOKUP(E:E,OFFSET('B. PoF Adj Factor Scoring'!$T$5:$U$282,,MATCH(J$4,'B. PoF Adj Factor Scoring'!$T$3:$AC$3,0)-1),2,TRUE),3) -> 3 | K10: =IFERROR(VLOOKUP(F:F,OFFSET('B. PoF Adj Factor Scoring'!$T$5:$U$282,,MATCH(K$4,'B. PoF Adj Factor Scoring'!$T$3:$AC$3,0)-1),2,TRUE),3) -> 1
A11: ='A. Population Info'!A11 -> 6 | B11: ='A. Population Info'!G11 -> 0 | C11: ='A. Population Info'!H11 -> 0 | D11: ='A. Population Info'!I11 -> Insulated | E11: ='A. Population Info'!J11 -> 0 | F11: ='A. Population Info'!K11 -> 0 | G11: =IFERROR(VLOOKUP(B:B,OFFSET('B. PoF Adj Factor Scoring'!$T$5:$U$282,,MATCH(G$4,'B. PoF Adj Factor Scoring'!$T$3:$AC$3,0)-1),2,TRUE),3) -> 3 | H11: =IFERROR(VLOOKUP(C:C,OFFSET('B. PoF Adj Factor Scoring'!$T$5:$U$282,,MATCH(H$4,'B. PoF Adj Factor Scoring'!$T$3:$AC$3,0)-1),2,TRUE),3) -> 3 | I11: =IFERROR(VLOOKUP(D:D,OFFSET('B. PoF Adj Factor Scoring'!$T$5:$U$282,,MATCH(I$4,'B. PoF Adj Factor Scoring'!$T$3:$AC$3,0)-1),2,TRUE),3) -> 1 | J11: =IFERROR(VLOOKUP(E:E,OFFSET('B. PoF Adj Factor Scoring'!$T$5:$U$282,,MATCH(J$4,'B. PoF Adj Factor Scoring'!$T$3:$AC$3,0)-1),2,TRUE),3) -> 3 | K11: =IFERROR(VLOOKUP(F:F,OFFSET('B. PoF Adj Factor Scoring'!$T$5:$U$282,,MATCH(K$4,'B. PoF Adj Factor Scoring'!$T$3:$AC$3,0)-1),2,TRUE),3) -> 1
A12: ='A. Population Info'!A12 -> 7 | B12: ='A. Population Info'!G12 -> 0 | C12: ='A. Population Info'!H12 -> 0 | D12: ='A. Population Info'!I12 -> Bare | E12: ='A. Population Info'!J12 -> 0 | F12: ='A. Population Info'!K12 -> 0 | G12: =IFERROR(VLOOKUP(B:B,OFFSET('B. PoF Adj Factor Scoring'!$T$5:$U$282,,MATCH(G$4,'B. PoF Adj Factor Scoring'!$T$3:$AC$3,0)-1),2,TRUE),3) -> 3 | H12: =IFERROR(VLOOKUP(C:C,OFFSET('B. PoF Adj Factor Scoring'!$T$5:$U$282,,MATCH(H$4,'B. PoF Adj Factor Scoring'!$T$3:$AC$3,0)-1),2,TRUE),3) -> 3 | I12: =IFERROR(VLOOKUP(D:D,OFFSET('B. PoF Adj Factor Scoring'!$T$5:$U$282,,MATCH(I$4,'B. PoF Adj Factor Scoring'!$T$3:$AC$3,0)-1),2,TRUE),3) -> 4 | J12: =IFERROR(VLOOKUP(E:E,OFFSET('B. PoF Adj Factor Scoring'!$T$5:$U$282,,MATCH(J$4,'B. PoF Adj Factor Scoring'!$T$3:$AC$3,0)-1),2,TRUE),3) -> 3 | K12: =IFERROR(VLOOKUP(F:F,OFFSET('B. PoF Adj Factor Scoring'!$T$5:$U$282,,MATCH(K$4,'B. PoF Adj Factor Scoring'!$T$3:$AC$3,0)-1),2,TRUE),3) -> 1
A13: ='A. Population Info'!A13 -> 8 | B13: ='A. Population Info'!G13 -> 0 | C13: ='A. Population Info'!H13 -> 0 | D13: ='A. Population Info'!I13 -> Bare | E13: ='A. Population Info'!J13 -> 0 | F13: ='A. Population Info'!K13 -> 0 | G13: =IFERROR(VLOOKUP(B:B,OFFSET('B. PoF Adj Factor Scoring'!$T$5:$U$282,,MATCH(G$4,'B. PoF Adj Factor Scoring'!$T$3:$AC$3,0)-1),2,TRUE),3) -> 3 | H13: =IFERROR(VLOOKUP(C:C,OFFSET('B. PoF Adj Factor Scoring'!$T$5:$U$282,,MATCH(H$4,'B. PoF Adj Factor Scoring'!$T$3:$AC$3,0)-1),2,TRUE),3) -> 3 | I13: =IFERROR(VLOOKUP(D:D,OFFSET('B. PoF Adj Factor Scoring'!$T$5:$U$282,,MATCH(I$4,'B. PoF Adj Factor Scoring'!$T$3:$AC$3,0)-1),2,TRUE),3) -> 4 | J13: =IFERROR(VLOOKUP(E:E,OFFSET('B. PoF Adj Factor Scoring'!$T$5:$U$282,,MATCH(J$4,'B. PoF Adj Factor Scoring'!$T$3:$AC$3,0)-1),2,TRUE),3) -> 3 | K13: =IFERROR(VLOOKUP(F:F,OFFSET('B. PoF Adj Factor Scoring'!$T$5:$U$282,,MATCH(K$4,'B. PoF Adj Factor Scoring'!$T$3:$AC$3,0)-1),2,TRUE),3) -> 1
A14: ='A. Population Info'!A14 -> 9 | B14: ='A. Population Info'!G14 -> 0 | C14: ='A. Population Info'!H14 -> 0 | D14: ='A. Population Info'!I14 -> Bare | E14: ='A. Population Info'!J14 -> 0 | F14: ='A. Population Info'!K14 -> 0 | G14: =IFERROR(VLOOKUP(B:B,OFFSET('B. PoF Adj Factor Scoring'!$T$5:$U$282,,MATCH(G$4,'B. PoF Adj Factor Scoring'!$T$3:$AC$3,0)-1),2,TRUE),3) -> 3 | H14: =IFERROR(VLOOKUP(C:C,OFFSET('B. PoF Adj Factor Scoring'!$T$5:$U$282,,MATCH(H$4,'B. PoF Adj Factor Scoring'!$T$3:$AC$3,0)-1),2,TRUE),3) -> 3 | I14: =IFERROR(VLOOKUP(D:D,OFFSET('B. PoF Adj Factor Scoring'!$T$5:$U$282,,MATCH(I$4,'B. PoF Adj Factor Scoring'!$T$3:$AC$3,0)-1),2,TRUE),3) -> 4 | J14: =IFERROR(VLOOKUP(E:E,OFFSET('B. PoF Adj Factor Scoring'!$T$5:$U$282,,MATCH(J$4,'B. PoF Adj Factor Scoring'!$T$3:$AC$3,0)-1),2,TRUE),3) -> 3 | K14: =IFERROR(VLOOKUP(F:F,OFFSET('B. PoF Adj Factor Scoring'!$T$5:$U$282,,MATCH(K$4,'B. PoF Adj Factor Scoring'!$T$3:$AC$3,0)-1),2,TRUE),3) -> 1
A15: ='A. Population Info'!A15 -> 10 | B15: ='A. Population Info'!G15 -> 0 | C15: ='A. Population Info'!H15 -> 0 | D15: ='A. Population Info'!I15 -> Insulated | E15: ='A. Population Info'!J15 -> 0 | F15: ='A. Population Info'!K15 -> 0 | G15: =IFERROR(VLOOKUP(B:B,OFFSET('B. PoF Adj Factor Scoring'!$T$5:$U$282,,MATCH(G$4,'B. PoF Adj Factor Scoring'!$T$3:$AC$3,0)-1),2,TRUE),3) -> 3 | H15: =IFERROR(VLOOKUP(C:C,OFFSET('B. PoF Adj Factor Scoring'!$T$5:$U$282,,MATCH(H$4,'B. PoF Adj Factor Scoring'!$T$3:$AC$3,0)-1),2,TRUE),3) -> 3 | I15: =IFERROR(VLOOKUP(D:D,OFFSET('B. PoF Adj Factor Scoring'!$T$5:$U$282,,MATCH(I$4,'B. PoF Adj Factor Scoring'!$T$3:$AC$3,0)-1),2,TRUE),3) -> 1 | J15: =IFERROR(VLOOKUP(E:E,OFFSET('B. PoF Adj Factor Scoring'!$T$5:$U$282,,MATCH(J$4,'B. PoF Adj Factor Scoring'!$T$3:$AC$3,0)-1),2,TRUE),3) -> 3 | K15: =IFERROR(VLOOKUP(F:F,OFFSET('B. PoF Adj Factor Scoring'!$T$5:$U$282,,MATCH(K$4,'B. PoF Adj Factor Scoring'!$T$3:$AC$3,0)-1),2,TRUE),3) -> 1
A16: ='A. Population Info'!A16 -> 11 | B16: ='A. Population Info'!G16 -> 0 | C16: ='A. Population Info'!H16 -> 0 | D16: ='A. Population Info'!I16 -> Bare | E16: ='A. Population Info'!J16 -> 0 | F16: ='A. Population Info'!K16 -> 0 | G16: =IFERROR(VLOOKUP(B:B,OFFSET('B. PoF Adj Factor Scoring'!$T$5:$U$282,,MATCH(G$4,'B. PoF Adj Factor Scoring'!$T$3:$AC$3,0)-1),2,TRUE),3) -> 3 | H16: =IFERROR(VLOOKUP(C:C,OFFSET('B. PoF Adj Factor Scoring'!$T$5:$U$282,,MATCH(H$4,'B. PoF Adj Factor Scoring'!$T$3:$AC$3,0)-1),2,TRUE),3) -> 3 | I16: =IFERROR(VLOOKUP(D:D,OFFSET('B. PoF Adj Factor Scoring'!$T$5:$U$282,,MATCH(I$4,'B. PoF Adj Factor Scoring'!$T$3:$AC$3,0)-1),2,TRUE),3) -> 4 | J16: =IFERROR(VLOOKUP(E:E,OFFSET('B. PoF Adj Factor Scoring'!$T$5:$U$282,,MATCH(J$4,'B. PoF Adj Factor Scoring'!$T$3:$AC$3,0)-1),2,TRUE),3) -> 3 | K16: =IFERROR(VLOOKUP(F:F,OFFSET('B. PoF Adj Factor Scoring'!$T$5:$U$282,,MATCH(K$4,'B. PoF Adj Factor Scoring'!$T$3:$AC$3,0)-1),2,TRUE),3) -> 1
A17: ='A. Population Info'!A17 -> 12 | B17: ='A. Population Info'!G17 -> 0 | C17: ='A. Population Info'!H17 -> 0 | D17: ='A. Population Info'!I17 -> Bare | E17: ='A. Population Info'!J17 -> 0 | F17: ='A. Population Info'!K17 -> 0 | G17: =IFERROR(VLOOKUP(B:B,OFFSET('B. PoF Adj Factor Scoring'!$T$5:$U$282,,MATCH(G$4,'B. PoF Adj Factor Scoring'!$T$3:$AC$3,0)-1),2,TRUE),3) -> 3 | H17: =IFERROR(VLOOKUP(C:C,OFFSET('B. PoF Adj Factor Scoring'!$T$5:$U$282,,MATCH(H$4,'B. PoF Adj Factor Scoring'!$T$3:$AC$3,0)-1),2,TRUE),3) -> 3 | I17: =IFERROR(VLOOKUP(D:D,OFFSET('B. PoF Adj Factor Scoring'!$T$5:$U$282,,MATCH(I$4,'B. PoF Adj Factor Scoring'!$T$3:$AC$3,0)-1),2,TRUE),3) -> 4 | J17: =IFERROR(VLOOKUP(E:E,OFFSET('B. PoF Adj Factor Scoring'!$T$5:$U$282,,MATCH(J$4,'B. PoF Adj Factor Scoring'!$T$3:$AC$3,0)-1),2,TRUE),3) -> 3 | K17: =IFERROR(VLOOKUP(F:F,OFFSET('B. PoF Adj Factor Scoring'!$T$5:$U$282,,MATCH(K$4,'B. PoF Adj Factor Scoring'!$T$3:$AC$3,0)-1),2,TRUE),3) -> 1
A18: ='A. Population Info'!A18 -> 13 | B18: ='A. Population Info'!G18 -> 0 | C18: ='A. Population Info'!H18 -> 0 | D18: ='A. Population Info'!I18 -> Bare | E18: ='A. Population Info'!J18 -> 0 | F18: ='A. Population Info'!K18 -> 0 | G18: =IFERROR(VLOOKUP(B:B,OFFSET('B. PoF Adj Factor Scoring'!$T$5:$U$282,,MATCH(G$4,'B. PoF Adj Factor Scoring'!$T$3:$AC$3,0)-1),2,TRUE),3) -> 3 | H18: =IFERROR(VLOOKUP(C:C,OFFSET('B. PoF Adj Factor Scoring'!$T$5:$U$282,,MATCH(H$4,'B. PoF Adj Factor Scoring'!$T$3:$AC$3,0)-1),2,TRUE),3) -> 3 | I18: =IFERROR(VLOOKUP(D:D,OFFSET('B. PoF Adj Factor Scoring'!$T$5:$U$282,,MATCH(I$4,'B. PoF Adj Factor Scoring'!$T$3:$AC$3,0)-1),2,TRUE),3) -> 4 | J18: =IFERROR(VLOOKUP(E:E,OFFSET('B. PoF Adj Factor Scoring'!$T$5:$U$282,,MATCH(J$4,'B. PoF Adj Factor Scoring'!$T$3:$AC$3,0)-1),2,TRUE),3) -> 3 | K18: =IFERROR(VLOOKUP(F:F,OFFSET('B. PoF Adj Factor Scoring'!$T$5:$U$282,,MATCH(K$4,'B. PoF Adj Factor Scoring'!$T$3:$AC$3,0)-1),2,TRUE),3) -> 1
A19: ='A. Population Info'!A19 -> 14 | B19: ='A. Population Info'!G19 -> 0 | C19: ='A. Population Info'!H19 -> 0 | D19: ='A. Population Info'!I19 -> Bare | E19: ='A. Population Info'!J19 -> 0 | F19: ='A. Population Info'!K19 -> 0 | G19: =IFERROR(VLOOKUP(B:B,OFFSET('B. PoF Adj Factor Scoring'!$T$5:$U$282,,MATCH(G$4,'B. PoF Adj Factor Scoring'!$T$3:$AC$3,0)-1),2,TRUE),3) -> 3 | H19: =IFERROR(VLOOKUP(C:C,OFFSET('B. PoF Adj Factor Scoring'!$T$5:$U$282,,MATCH(H$4,'B. PoF Adj Factor Scoring'!$T$3:$AC$3,0)-1),2,TRUE),3) -> 3 | I19: =IFERROR(VLOOKUP(D:D,OFFSET('B. PoF Adj Factor Scoring'!$T$5:$U$282,,MATCH(I$4,'B. PoF Adj Factor Scoring'!$T$3:$AC$3,0)-1),2,TRUE),3) -> 4 | J19: =IFERROR(VLOOKUP(E:E,OFFSET('B. PoF Adj Factor Scoring'!$T$5:$U$282,,MATCH(J$4,'B. PoF Adj Factor Scoring'!$T$3:$AC$3,0)-1),2,TRUE),3) -> 3 | K19: =IFERROR(VLOOKUP(F:F,OFFSET('B. PoF Adj Factor Scoring'!$T$5:$U$282,,MATCH(K$4,'B. PoF Adj Factor Scoring'!$T$3:$AC$3,0)-1),2,TRUE),3) -> 1
A20: ='A. Population Info'!A20 -> 15 | B20: ='A. Population Info'!G20 -> 0 | C20: ='A. Population Info'!H20 -> 0 | D20: ='A. Population Info'!I20 -> Insulated | E20: ='A. Population Info'!J20 -> 0 | F20: ='A. Population Info'!K20 -> 0 | G20: =IFERROR(VLOOKUP(B:B,OFFSET('B. PoF Adj Factor Scoring'!$T$5:$U$282,,MATCH(G$4,'B. PoF Adj Factor Scoring'!$T$3:$AC$3,0)-1),2,TRUE),3) -> 3 | H20: =IFERROR(VLOOKUP(C:C,OFFSET('B. PoF Adj Factor Scoring'!$T$5:$U$282,,MATCH(H$4,'B. PoF Adj Factor Scoring'!$T$3:$AC$3,0)-1),2,TRUE),3) -> 3 | I20: =IFERROR(VLOOKUP(D:D,OFFSET('B. PoF Adj Factor Scoring'!$T$5:$U$282,,MATCH(I$4,'B. PoF Adj Factor Scoring'!$T$3:$AC$3,0)-1),2,TRUE),3) -> 1 | J20: =IFERROR(VLOOKUP(E:E,OFFSET('B. PoF Adj Factor Scoring'!$T$5:$U$282,,MATCH(J$4,'B. PoF Adj Factor Scoring'!$T$3:$AC$3,0)-1),2,TRUE),3) -> 3 | K20: =IFERROR(VLOOKUP(F:F,OFFSET('B. PoF Adj Factor Scoring'!$T$5:$U$282,,MATCH(K$4,'B. PoF Adj Factor Scoring'!$T$3:$AC$3,0)-1),2,TRUE),3) -> 1
A21: ='A. Population Info'!A21 -> 16 | B21: ='A. Population Info'!G21 -> 0 | C21: ='A. Population Info'!H21 -> 0 | D21: ='A. Population Info'!I21 -> Insulated | E21: ='A. Population Info'!J21 -> 0 | F21: ='A. Population Info'!K21 -> 0 | G21: =IFERROR(VLOOKUP(B:B,OFFSET('B. PoF Adj Factor Scoring'!$T$5:$U$282,,MATCH(G$4,'B. PoF Adj Factor Scoring'!$T$3:$AC$3,0)-1),2,TRUE),3) -> 3 | H21: =IFERROR(VLOOKUP(C:C,OFFSET('B. PoF Adj Factor Scoring'!$T$5:$U$282,,MATCH(H$4,'B. PoF Adj Factor Scoring'!$T$3:$AC$3,0)-1),2,TRUE),3) -> 3 | I21: =IFERROR(VLOOKUP(D:D,OFFSET('B. PoF Adj Factor Scoring'!$T$5:$U$282,,MATCH(I$4,'B. PoF Adj Factor Scoring'!$T$3:$AC$3,0)-1),2,TRUE),3) -> 1 | J21: =IFERROR(VLOOKUP(E:E,OFFSET('B. PoF Adj Factor Scoring'!$T$5:$U$282,,MATCH(J$4,'B. PoF Adj Factor Scoring'!$T$3:$AC$3,0)-1),2,TRUE),3) -> 3 | K21: =IFERROR(VLOOKUP(F:F,OFFSET('B. PoF Adj Factor Scoring'!$T$5:$U$282,,MATCH(K$4,'B. PoF Adj Factor Scoring'!$T$3:$AC$3,0)-1),2,TRUE),3) -> 1
A22: ='A. Population Info'!A22 -> 17 | B22: ='A. Population Info'!G22 -> 0 | C22: ='A. Population Info'!H22 -> 0 | D22: ='A. Population Info'!I22 -> Insulated | E22: ='A. Population Info'!J22 -> 0 | F22: ='A. Population Info'!K22 -> 0 | G22: =IFERROR(VLOOKUP(B:B,OFFSET('B. PoF Adj Factor Scoring'!$T$5:$U$282,,MATCH(G$4,'B. PoF Adj Factor Scoring'!$T$3:$AC$3,0)-1),2,TRUE),3) -> 3 | H22: =IFERROR(VLOOKUP(C:C,OFFSET('B. PoF Adj Factor Scoring'!$T$5:$U$282,,MATCH(H$4,'B. PoF Adj Factor Scoring'!$T$3:$AC$3,0)-1),2,TRUE),3) -> 3 | I22: =IFERROR(VLOOKUP(D:D,OFFSET('B. PoF Adj Factor Scoring'!$T$5:$U$282,,MATCH(I$4,'B. PoF Adj Factor Scoring'!$T$3:$AC$3,0)-1),2,TRUE),3) -> 1 | J22: =IFERROR(VLOOKUP(E:E,OFFSET('B. PoF Adj Factor Scoring'!$T$5:$U$282,,MATCH(J$4,'B. PoF Adj Factor Scoring'!$T$3:$AC$3,0)-1),2,TRUE),3) -> 3 | K22: =IFERROR(VLOOKUP(F:F,OFFSET('B. PoF Adj Factor Scoring'!$T$5:$U$282,,MATCH(K$4,'B. PoF Adj Factor Scoring'!$T$3:$AC$3,0)-1),2,TRUE),3) -> 1
A23: ='A. Population Info'!A23 -> 18 | B23: ='A. Population Info'!G23 -> 0 | C23: ='A. Population Info'!H23 -> 0 | D23: ='A. Population Info'!I23 -> Bare | E23: ='A. Population Info'!J23 -> 0 | F23: ='A. Population Info'!K23 -> 0 | G23: =IFERROR(VLOOKUP(B:B,OFFSET('B. PoF Adj Factor Scoring'!$T$5:$U$282,,MATCH(G$4,'B. PoF Adj Factor Scoring'!$T$3:$AC$3,0)-1),2,TRUE),3) -> 3 | H23: =IFERROR(VLOOKUP(C:C,OFFSET('B. PoF Adj Factor Scoring'!$T$5:$U$282,,MATCH(H$4,'B. PoF Adj Factor Scoring'!$T$3:$AC$3,0)-1),2,TRUE),3) -> 3 | I23: =IFERROR(VLOOKUP(D:D,OFFSET('B. PoF Adj Factor Scoring'!$T$5:$U$282,,MATCH(I$4,'B. PoF Adj Factor Scoring'!$T$3:$AC$3,0)-1),2,TRUE),3) -> 4 | J23: =IFERROR(VLOOKUP(E:E,OFFSET('B. PoF Adj Factor Scoring'!$T$5:$U$282,,MATCH(J$4,'B. PoF Adj Factor Scoring'!$T$3:$AC$3,0)-1),2,TRUE),3) -> 3 | K23: =IFERROR(VLOOKUP(F:F,OFFSET('B. PoF Adj Factor Scoring'!$T$5:$U$282,,MATCH(K$4,'B. PoF Adj Factor Scoring'!$T$3:$AC$3,0)-1),2,TRUE),3) -> 1
A24: ='A. Population Info'!A24 -> 19 | B24: ='A. Population Info'!G24 -> 0 | C24: ='A. Population Info'!H24 -> 0 | D24: ='A. Population Info'!I24 -> Bare | E24: ='A. Population Info'!J24 -> 0 | F24: ='A. Population Info'!K24 -> 0 | G24: =IFERROR(VLOOKUP(B:B,OFFSET('B. PoF Adj Factor Scoring'!$T$5:$U$282,,MATCH(G$4,'B. PoF Adj Factor Scoring'!$T$3:$AC$3,0)-1),2,TRUE),3) -> 3 | H24: =IFERROR(VLOOKUP(C:C,OFFSET('B. PoF Adj Factor Scoring'!$T$5:$U$282,,MATCH(H$4,'B. PoF Adj Factor Scoring'!$T$3:$AC$3,0)-1),2,TRUE),3) -> 3 | I24: =IFERROR(VLOOKUP(D:D,OFFSET('B. PoF Adj Factor Scoring'!$T$5:$U$282,,MATCH(I$4,'B. PoF Adj Factor Scoring'!$T$3:$AC$3,0)-1),2,TRUE),3) -> 4 | J24: =IFERROR(VLOOKUP(E:E,OFFSET('B. PoF Adj Factor Scoring'!$T$5:$U$282,,MATCH(J$4,'B. PoF Adj Factor Scoring'!$T$3:$AC$3,0)-1),2,TRUE),3) -> 3 | K24: =IFERROR(VLOOKUP(F:F,OFFSET('B. PoF Adj Factor Scoring'!$T$5:$U$282,,MATCH(K$4,'B. PoF Adj Factor Scoring'!$T$3:$AC$3,0)-1),2,TRUE),3) -> 1
A25: ='A. Population Info'!A25 -> 20 | B25: ='A. Population Info'!G25 -> 0 | C25: ='A. Population Info'!H25 -> 0 | D25: ='A. Population Info'!I25 -> Bare | E25: ='A. Population Info'!J25 -> 0 | F25: ='A. Population Info'!K25 -> 0 | G25: =IFERROR(VLOOKUP(B:B,OFFSET('B. PoF Adj Factor Scoring'!$T$5:$U$282,,MATCH(G$4,'B. PoF Adj Factor Scoring'!$T$3:$AC$3,0)-1),2,TRUE),3) -> 3 | H25: =IFERROR(VLOOKUP(C:C,OFFSET('B. PoF Adj Factor Scoring'!$T$5:$U$282,,MATCH(H$4,'B. PoF Adj Factor Scoring'!$T$3:$AC$3,0)-1),2,TRUE),3) -> 3 | I25: =IFERROR(VLOOKUP(D:D,OFFSET('B. PoF Adj Factor Scoring'!$T$5:$U$282,,MATCH(I$4,'B. PoF Adj Factor Scoring'!$T$3:$AC$3,0)-1),2,TRUE),3) -> 4 | J25: =IFERROR(VLOOKUP(E:E,OFFSET('B. PoF Adj Factor Scoring'!$T$5:$U$282,,MATCH(J$4,'B. PoF Adj Factor Scoring'!$T$3:$AC$3,0)-1),2,TRUE),3) -> 3 | K25: =IFERROR(VLOOKUP(F:F,OFFSET('B. PoF Adj Factor Scoring'!$T$5:$U$282,,MATCH(K$4,'B. PoF Adj Factor Scoring'!$T$3:$AC$3,0)-1),2,TRUE),3) -> 1
A26: ='A. Population Info'!A26 -> 21 | B26: ='A. Population Info'!G26 -> 0 | C26: ='A. Population Info'!H26 -> 0 | D26: ='A. Population Info'!I26 -> Insulated | E26: ='A. Population Info'!J26 -> 0 | F26: ='A. Population Info'!K26 -> 0 | G26: =IFERROR(VLOOKUP(B:B,OFFSET('B. PoF Adj Factor Scoring'!$T$5:$U$282,,MATCH(G$4,'B. PoF Adj Factor Scoring'!$T$3:$AC$3,0)-1),2,TRUE),3) -> 3 | H26: =IFERROR(VLOOKUP(C:C,OFFSET('B. PoF Adj Factor Scoring'!$T$5:$U$282,,MATCH(H$4,'B. PoF Adj Factor Scoring'!$T$3:$AC$3,0)-1),2,TRUE),3) -> 3 | I26: =IFERROR(VLOOKUP(D:D,OFFSET('B. PoF Adj Factor Scoring'!$T$5:$U$282,,MATCH(I$4,'B. PoF Adj Factor Scoring'!$T$3:$AC$3,0)-1),2,TRUE),3) -> 1 | J26: =IFERROR(VLOOKUP(E:E,OFFSET('B. PoF Adj Factor Scoring'!$T$5:$U$282,,MATCH(J$4,'B. PoF Adj Factor Scoring'!$T$3:$AC$3,0)-1),2,TRUE),3) -> 3 | K26: =IFERROR(VLOOKUP(F:F,OFFSET('B. PoF Adj Factor Scoring'!$T$5:$U$282,,MATCH(K$4,'B. PoF Adj Factor Scoring'!$T$3:$AC$3,0)-1),2,TRUE),3) -> 1
A27: ='A. Population Info'!A27 -> 22 | B27: ='A. Population Info'!G27 -> 0 | C27: ='A. Population Info'!H27 -> 0 | D27: ='A. Population Info'!I27 -> Insulated | E27: ='A. Population Info'!J27 -> 0 | F27: ='A. Population Info'!K27 -> 0 | G27: =IFERROR(VLOOKUP(B:B,OFFSET('B. PoF Adj Factor Scoring'!$T$5:$U$282,,MATCH(G$4,'B. PoF Adj Factor Scoring'!$T$3:$AC$3,0)-1),2,TRUE),3) -> 3 | H27: =IFERROR(VLOOKUP(C:C,OFFSET('B. PoF Adj Factor Scoring'!$T$5:$U$282,,MATCH(H$4,'B. PoF Adj Factor Scoring'!$T$3:$AC$3,0)-1),2,TRUE),3) -> 3 | I27: =IFERROR(VLOOKUP(D:D,OFFSET('B. PoF Adj Factor Scoring'!$T$5:$U$282,,MATCH(I$4,'B. PoF Adj Factor Scoring'!$T$3:$AC$3,0)-1),2,TRUE),3) -> 1 | J27: =IFERROR(VLOOKUP(E:E,OFFSET('B. PoF Adj Factor Scoring'!$T$5:$U$282,,MATCH(J$4,'B. PoF Adj Factor Scoring'!$T$3:$AC$3,0)-1),2,TRUE),3) -> 3 | K27: =IFERROR(VLOOKUP(F:F,OFFSET('B. PoF Adj Factor Scoring'!$T$5:$U$282,,MATCH(K$4,'B. PoF Adj Factor Scoring'!$T$3:$AC$3,0)-1),2,TRUE),3) -> 1
A28: ='A. Population Info'!A28 -> 23 | B28: ='A. Population Info'!G28 -> 0 | C28: ='A. Population Info'!H28 -> 0 | D28: ='A. Population Info'!I28 -> Bare | E28: ='A. Population Info'!J28 -> 0 | F28: ='A. Population Info'!K28 -> 0 | G28: =IFERROR(VLOOKUP(B:B,OFFSET('B. PoF Adj Factor Scoring'!$T$5:$U$282,,MATCH(G$4,'B. PoF Adj Factor Scoring'!$T$3:$AC$3,0)-1),2,TRUE),3) -> 3 | H28: =IFERROR(VLOOKUP(C:C,OFFSET('B. PoF Adj Factor Scoring'!$T$5:$U$282,,MATCH(H$4,'B. PoF Adj Factor Scoring'!$T$3:$AC$3,0)-1),2,TRUE),3) -> 3 | I28: =IFERROR(VLOOKUP(D:D,OFFSET('B. PoF Adj Factor Scoring'!$T$5:$U$282,,MATCH(I$4,'B. PoF Adj Factor Scoring'!$T$3:$AC$3,0)-1),2,TRUE),3) -> 4 | J28: =IFERROR(VLOOKUP(E:E,OFFSET('B. PoF Adj Factor Scoring'!$T$5:$U$282,,MATCH(J$4,'B. PoF Adj Factor Scoring'!$T$3:$AC$3,0)-1),2,TRUE),3) -> 3 | K28: =IFERROR(VLOOKUP(F:F,OFFSET('B. PoF Adj Factor Scoring'!$T$5:$U$282,,MATCH(K$4,'B. PoF Adj Factor Scoring'!$T$3:$AC$3,0)-1),2,TRUE),3) -> 1
A29: ='A. Population Info'!A29 -> 24 | B29: ='A. Population Info'!G29 -> 0 | C29: ='A. Population Info'!H29 -> 0 | D29: ='A. Population Info'!I29 -> Bare | E29: ='A. Population Info'!J29 -> 0 | F29: ='A. Population Info'!K29 -> 0 | G29: =IFERROR(VLOOKUP(B:B,OFFSET('B. PoF Adj Factor Scoring'!$T$5:$U$282,,MATCH(G$4,'B. PoF Adj Factor Scoring'!$T$3:$AC$3,0)-1),2,TRUE),3) -> 3 | H29: =IFERROR(VLOOKUP(C:C,OFFSET('B. PoF Adj Factor Scoring'!$T$5:$U$282,,MATCH(H$4,'B. PoF Adj Factor Scoring'!$T$3:$AC$3,0)-1),2,TRUE),3) -> 3 | I29: =IFERROR(VLOOKUP(D:D,OFFSET('B. PoF Adj Factor Scoring'!$T$5:$U$282,,MATCH(I$4,'B. PoF Adj Factor Scoring'!$T$3:$AC$3,0)-1),2,TRUE),3) -> 4 | J29: =IFERROR(VLOOKUP(E:E,OFFSET('B. PoF Adj Factor Scoring'!$T$5:$U$282,,MATCH(J$4,'B. PoF Adj Factor Scoring'!$T$3:$AC$3,0)-1),2,TRUE),3) -> 3 | K29: =IFERROR(VLOOKUP(F:F,OFFSET('B. PoF Adj Factor Scoring'!$T$5:$U$282,,MATCH(K$4,'B. PoF Adj Factor Scoring'!$T$3:$AC$3,0)-1),2,TRUE),3) -> 1
A30: ='A. Population Info'!A30 -> 25 | B30: ='A. Population Info'!G30 -> 0 | C30: ='A. Population Info'!H30 -> 0 | D30: ='A. Population Info'!I30 -> Bare | E30: ='A. Population Info'!J30 -> 0 | F30: ='A. Population Info'!K30 -> 0 | G30: =IFERROR(VLOOKUP(B:B,OFFSET('B. PoF Adj Factor Scoring'!$T$5:$U$282,,MATCH(G$4,'B. PoF Adj Factor Scoring'!$T$3:$AC$3,0)-1),2,TRUE),3) -> 3 | H30: =IFERROR(VLOOKUP(C:C,OFFSET('B. PoF Adj Factor Scoring'!$T$5:$U$282,,MATCH(H$4,'B. PoF Adj Factor Scoring'!$T$3:$AC$3,0)-1),2,TRUE),3) -> 3 | I30: =IFERROR(VLOOKUP(D:D,OFFSET('B. PoF Adj Factor Scoring'!$T$5:$U$282,,MATCH(I$4,'B. PoF Adj Factor Scoring'!$T$3:$AC$3,0)-1),2,TRUE),3) -> 4 | J30: =IFERROR(VLOOKUP(E:E,OFFSET('B. PoF Adj Factor Scoring'!$T$5:$U$282,,MATCH(J$4,'B. PoF Adj Factor Scoring'!$T$3:$AC$3,0)-1),2,TRUE),3) -> 3 | K30: =IFERROR(VLOOKUP(F:F,OFFSET('B. PoF Adj Factor Scoring'!$T$5:$U$282,,MATCH(K$4,'B. PoF Adj Factor Scoring'!$T$3:$AC$3,0)-1),2,TRUE),3) -> 1
A31: ='A. Population Info'!A31 -> 26 | B31: ='A. Population Info'!G31 -> 0 | C31: ='A. Population Info'!H31 -> 0 | D31: ='A. Population Info'!I31 -> Insulated | E31: ='A. Population Info'!J31 -> 0 | F31: ='A. Population Info'!K31 -> 0 | G31: =IFERROR(VLOOKUP(B:B,OFFSET('B. PoF Adj Factor Scoring'!$T$5:$U$282,,MATCH(G$4,'B. PoF Adj Factor Scoring'!$T$3:$AC$3,0)-1),2,TRUE),3) -> 3 | H31: =IFERROR(VLOOKUP(C:C,OFFSET('B. PoF Adj Factor Scoring'!$T$5:$U$282,,MATCH(H$4,'B. PoF Adj Factor Scoring'!$T$3:$AC$3,0)-1),2,TRUE),3) -> 3 | I31: =IFERROR(VLOOKUP(D:D,OFFSET('B. PoF Adj Factor Scoring'!$T$5:$U$282,,MATCH(I$4,'B. PoF Adj Factor Scoring'!$T$3:$AC$3,0)-1),2,TRUE),3) -> 1 | J31: =IFERROR(VLOOKUP(E:E,OFFSET('B. PoF Adj Factor Scoring'!$T$5:$U$282,,MATCH(J$4,'B. PoF Adj Factor Scoring'!$T$3:$AC$3,0)-1),2,TRUE),3) -> 3 | K31: =IFERROR(VLOOKUP(F:F,OFFSET('B. PoF Adj Factor Scoring'!$T$5:$U$282,,MATCH(K$4,'B. PoF Adj Factor Scoring'!$T$3:$AC$3,0)-1),2,TRUE),3) -> 1
A32: ='A. Population Info'!A32 -> 27 | B32: ='A. Population Info'!G32 -> 0 | C32: ='A. Population Info'!H32 -> 0 | D32: ='A. Population Info'!I32 -> Insulated | E32: ='A. Population Info'!J32 -> 0 | F32: ='A. Population Info'!K32 -> 0 | G32: =IFERROR(VLOOKUP(B:B,OFFSET('B. PoF Adj Factor Scoring'!$T$5:$U$282,,MATCH(G$4,'B. PoF Adj Factor Scoring'!$T$3:$AC$3,0)-1),2,TRUE),3) -> 3 | H32: =IFERROR(VLOOKUP(C:C,OFFSET('B. PoF Adj Factor Scoring'!$T$5:$U$282,,MATCH(H$4,'B. PoF Adj Factor Scoring'!$T$3:$AC$3,0)-1),2,TRUE),3) -> 3 | I32: =IFERROR(VLOOKUP(D:D,OFFSET('B. PoF Adj Factor Scoring'!$T$5:$U$282,,MATCH(I$4,'B. PoF Adj Factor Scoring'!$T$3:$AC$3,0)-1),2,TRUE),3) -> 1 | J32: =IFERROR(VLOOKUP(E:E,OFFSET('B. PoF Adj Factor Scoring'!$T$5:$U$282,,MATCH(J$4,'B. PoF Adj Factor Scoring'!$T$3:$AC$3,0)-1),2,TRUE),3) -> 3 | K32: =IFERROR(VLOOKUP(F:F,OFFSET('B. PoF Adj Factor Scoring'!$T$5:$U$282,,MATCH(K$4,'B. PoF Adj Factor Scoring'!$T$3:$AC$3,0)-1),2,TRUE),3) -> 1
A33: ='A. Population Info'!A33 -> 28 | B33: ='A. Population Info'!G33 -> 0 | C33: ='A. Population Info'!H33 -> 0 | D33: ='A. Population Info'!I33 -> Insulated | E33: ='A. Population Info'!J33 -> 0 | F33: ='A. Population Info'!K33 -> 0 | G33: =IFERROR(VLOOKUP(B:B,OFFSET('B. PoF Adj Factor Scoring'!$T$5:$U$282,,MATCH(G$4,'B. PoF Adj Factor Scoring'!$T$3:$AC$3,0)-1),2,TRUE),3) -> 3 | H33: =IFERROR(VLOOKUP(C:C,OFFSET('B. PoF Adj Factor Scoring'!$T$5:$U$282,,MATCH(H$4,'B. PoF Adj Factor Scoring'!$T$3:$AC$3,0)-1),2,TRUE),3) -> 3 | I33: =IFERROR(VLOOKUP(D:D,OFFSET('B. PoF Adj Factor Scoring'!$T$5:$U$282,,MATCH(I$4,'B. PoF Adj Factor Scoring'!$T$3:$AC$3,0)-1),2,TRUE),3) -> 1 | J33: =IFERROR(VLOOKUP(E:E,OFFSET('B. PoF Adj Factor Scoring'!$T$5:$U$282,,MATCH(J$4,'B. PoF Adj Factor Scoring'!$T$3:$AC$3,0)-1),2,TRUE),3) -> 3 | K33: =IFERROR(VLOOKUP(F:F,OFFSET('B. PoF Adj Factor Scoring'!$T$5:$U$282,,MATCH(K$4,'B. PoF Adj Factor Scoring'!$T$3:$AC$3,0)-1),2,TRUE),3) -> 1
A34: ='A. Population Info'!A34 -> 29 | B34: ='A. Population Info'!G34 -> 0 | C34: ='A. Population Info'!H34 -> 0 | D34: ='A. Population Info'!I34 -> Bare | E34: ='A. Population Info'!J34 -> 0 | F34: ='A. Population Info'!K34 -> 0 | G34: =IFERROR(VLOOKUP(B:B,OFFSET('B. PoF Adj Factor Scoring'!$T$5:$U$282,,MATCH(G$4,'B. PoF Adj Factor Scoring'!$T$3:$AC$3,0)-1),2,TRUE),3) -> 3 | H34: =IFERROR(VLOOKUP(C:C,OFFSET('B. PoF Adj Factor Scoring'!$T$5:$U$282,,MATCH(H$4,'B. PoF Adj Factor Scoring'!$T$3:$AC$3,0)-1),2,TRUE),3) -> 3 | I34: =IFERROR(VLOOKUP(D:D,OFFSET('B. PoF Adj Factor Scoring'!$T$5:$U$282,,MATCH(I$4,'B. PoF Adj Factor Scoring'!$T$3:$AC$3,0)-1),2,TRUE),3) -> 4 | J34: =IFERROR(VLOOKUP(E:E,OFFSET('B. PoF Adj Factor Scoring'!$T$5:$U$282,,MATCH(J$4,'B. PoF Adj Factor Scoring'!$T$3:$AC$3,0)-1),2,TRUE),3) -> 3 | K34: =IFERROR(VLOOKUP(F:F,OFFSET('B. PoF Adj Factor Scoring'!$T$5:$U$282,,MATCH(K$4,'B. PoF Adj Factor Scoring'!$T$3:$AC$3,0)-1),2,TRUE),3) -> 1
A35: ='A. Population Info'!A35 -> 30 | B35: ='A. Population Info'!G35 -> 0 | C35: ='A. Population Info'!H35 -> 0 | D35: ='A. Population Info'!I35 -> Bare | E35: ='A. Population Info'!J35 -> 0 | F35: ='A. Population Info'!K35 -> 0 | G35: =IFERROR(VLOOKUP(B:B,OFFSET('B. PoF Adj Factor Scoring'!$T$5:$U$282,,MATCH(G$4,'B. PoF Adj Factor Scoring'!$T$3:$AC$3,0)-1),2,TRUE),3) -> 3 | H35: =IFERROR(VLOOKUP(C:C,OFFSET('B. PoF Adj Factor Scoring'!$T$5:$U$282,,MATCH(H$4,'B. PoF Adj Factor Scoring'!$T$3:$AC$3,0)-1),2,TRUE),3) -> 3 | I35: =IFERROR(VLOOKUP(D:D,OFFSET('B. PoF Adj Factor Scoring'!$T$5:$U$282,,MATCH(I$4,'B. PoF Adj Factor Scoring'!$T$3:$AC$3,0)-1),2,TRUE),3) -> 4 | J35: =IFERROR(VLOOKUP(E:E,OFFSET('B. PoF Adj Factor Scoring'!$T$5:$U$282,,MATCH(J$4,'B. PoF Adj Factor Scoring'!$T$3:$AC$3,0)-1),2,TRUE),3) -> 3 | K35: =IFERROR(VLOOKUP(F:F,OFFSET('B. PoF Adj Factor Scoring'!$T$5:$U$282,,MATCH(K$4,'B. PoF Adj Factor Scoring'!$T$3:$AC$3,0)-1),2,TRUE),3) -> 1
A36: ='A. Population Info'!A36 -> 31 | B36: ='A. Population Info'!G36 -> 0 | C36: ='A. Population Info'!H36 -> 0 | D36: ='A. Population Info'!I36 -> Bare | E36: ='A. Population Info'!J36 -> 0 | F36: ='A. Population Info'!K36 -> 0 | G36: =IFERROR(VLOOKUP(B:B,OFFSET('B. PoF Adj Factor Scoring'!$T$5:$U$282,,MATCH(G$4,'B. PoF Adj Factor Scoring'!$T$3:$AC$3,0)-1),2,TRUE),3) -> 3 | H36: =IFERROR(VLOOKUP(C:C,OFFSET('B. PoF Adj Factor Scoring'!$T$5:$U$282,,MATCH(H$4,'B. PoF Adj Factor Scoring'!$T$3:$AC$3,0)-1),2,TRUE),3) -> 3 | I36: =IFERROR(VLOOKUP(D:D,OFFSET('B. PoF Adj Factor Scoring'!$T$5:$U$282,,MATCH(I$4,'B. PoF Adj Factor Scoring'!$T$3:$AC$3,0)-1),2,TRUE),3) -> 4 | J36: =IFERROR(VLOOKUP(E:E,OFFSET('B. PoF Adj Factor Scoring'!$T$5:$U$282,,MATCH(J$4,'B. PoF Adj Factor Scoring'!$T$3:$AC$3,0)-1),2,TRUE),3) -> 3 | K36: =IFERROR(VLOOKUP(F:F,OFFSET('B. PoF Adj Factor Scoring'!$T$5:$U$282,,MATCH(K$4,'B. PoF Adj Factor Scoring'!$T$3:$AC$3,0)-1),2,TRUE),3) -> 1
A37: ='A. Population Info'!A37 -> 32 | B37: ='A. Population Info'!G37 -> 0 | C37: ='A. Population Info'!H37 -> 0 | D37: ='A. Population Info'!I37 -> Insulated | E37: ='A. Population Info'!J37 -> 0 | F37: ='A. Population Info'!K37 -> 0 | G37: =IFERROR(VLOOKUP(B:B,OFFSET('B. PoF Adj Factor Scoring'!$T$5:$U$282,,MATCH(G$4,'B. PoF Adj Factor Scoring'!$T$3:$AC$3,0)-1),2,TRUE),3) -> 3 | H37: =IFERROR(VLOOKUP(C:C,OFFSET('B. PoF Adj Factor Scoring'!$T$5:$U$282,,MATCH(H$4,'B. PoF Adj Factor Scoring'!$T$3:$AC$3,0)-1),2,TRUE),3) -> 3 | I37: =IFERROR(VLOOKUP(D:D,OFFSET('B. PoF Adj Factor Scoring'!$T$5:$U$282,,MATCH(I$4,'B. PoF Adj Factor Scoring'!$T$3:$AC$3,0)-1),2,TRUE),3) -> 1 | J37: =IFERROR(VLOOKUP(E:E,OFFSET('B. PoF Adj Factor Scoring'!$T$5:$U$282,,MATCH(J$4,'B. PoF Adj Factor Scoring'!$T$3:$AC$3,0)-1),2,TRUE),3) -> 3 | K37: =IFERROR(VLOOKUP(F:F,OFFSET('B. PoF Adj Factor Scoring'!$T$5:$U$282,,MATCH(K$4,'B. PoF Adj Factor Scoring'!$T$3:$AC$3,0)-1),2,TRUE),3) -> 1
A38: ='A. Population Info'!A38 -> 33 | B38: ='A. Population Info'!G38 -> 0 | C38: ='A. Population Info'!H38 -> 0 | D38: ='A. Population Info'!I38 -> Insulated | E38: ='A. Population Info'!J38 -> 0 | F38: ='A. Population Info'!K38 -> 0 | G38: =IFERROR(VLOOKUP(B:B,OFFSET('B. PoF Adj Factor Scoring'!$T$5:$U$282,,MATCH(G$4,'B. PoF Adj Factor Scoring'!$T$3:$AC$3,0)-1),2,TRUE),3) -> 3 | H38: =IFERROR(VLOOKUP(C:C,OFFSET('B. PoF Adj Factor Scoring'!$T$5:$U$282,,MATCH(H$4,'B. PoF Adj Factor Scoring'!$T$3:$AC$3,0)-1),2,TRUE),3) -> 3 | I38: =IFERROR(VLOOKUP(D:D,OFFSET('B. PoF Adj Factor Scoring'!$T$5:$U$282,,MATCH(I$4,'B. PoF Adj Factor Scoring'!$T$3:$AC$3,0)-1),2,TRUE),3) -> 1 | J38: =IFERROR(VLOOKUP(E:E,OFFSET('B. PoF Adj Factor Scoring'!$T$5:$U$282,,MATCH(J$4,'B. PoF Adj Factor Scoring'!$T$3:$AC$3,0)-1),2,TRUE),3) -> 3 | K38: =IFERROR(VLOOKUP(F:F,OFFSET('B. PoF Adj Factor Scoring'!$T$5:$U$282,,MATCH(K$4,'B. PoF Adj Factor Scoring'!$T$3:$AC$3,0)-1),2,TRUE),3) -> 1
A39: ='A. Population Info'!A39 -> 34 | B39: ='A. Population Info'!G39 -> 0 | C39: ='A. Population Info'!H39 -> 0 | D39: ='A. Population Info'!I39 -> Bare | E39: ='A. Population Info'!J39 -> 0 | F39: ='A. Population Info'!K39 -> 0 | G39: =IFERROR(VLOOKUP(B:B,OFFSET('B. PoF Adj Factor Scoring'!$T$5:$U$282,,MATCH(G$4,'B. PoF Adj Factor Scoring'!$T$3:$AC$3,0)-1),2,TRUE),3) -> 3 | H39: =IFERROR(VLOOKUP(C:C,OFFSET('B. PoF Adj Factor Scoring'!$T$5:$U$282,,MATCH(H$4,'B. PoF Adj Factor Scoring'!$T$3:$AC$3,0)-1),2,TRUE),3) -> 3 | I39: =IFERROR(VLOOKUP(D:D,OFFSET('B. PoF Adj Factor Scoring'!$T$5:$U$282,,MATCH(I$4,'B. PoF Adj Factor Scoring'!$T$3:$AC$3,0)-1),2,TRUE),3) -> 4 | J39: =IFERROR(VLOOKUP(E:E,OFFSET('B. PoF Adj Factor Scoring'!$T$5:$U$282,,MATCH(J$4,'B. PoF Adj Factor Scoring'!$T$3:$AC$3,0)-1),2,TRUE),3) -> 3 | K39: =IFERROR(VLOOKUP(F:F,OFFSET('B. PoF Adj Factor Scoring'!$T$5:$U$282,,MATCH(K$4,'B. PoF Adj Factor Scoring'!$T$3:$AC$3,0)-1),2,TRUE),3) -> 1
A40: ='A. Population Info'!A40 -> 35 | B40: ='A. Population Info'!G40 -> 0 | C40: ='A. Population Info'!H40 -> 0 | D40: ='A. Population Info'!I40 -> Bare | E40: ='A. Population Info'!J40 -> 0 | F40: ='A. Population Info'!K40 -> 0 | G40: =IFERROR(VLOOKUP(B:B,OFFSET('B. PoF Adj Factor Scoring'!$T$5:$U$282,,MATCH(G$4,'B. PoF Adj Factor Scoring'!$T$3:$AC$3,0)-1),2,TRUE),3) -> 3 | H40: =IFERROR(VLOOKUP(C:C,OFFSET('B. PoF Adj Factor Scoring'!$T$5:$U$282,,MATCH(H$4,'B. PoF Adj Factor Scoring'!$T$3:$AC$3,0)-1),2,TRUE),3) -> 3 | I40: =IFERROR(VLOOKUP(D:D,OFFSET('B. PoF Adj Factor Scoring'!$T$5:$U$282,,MATCH(I$4,'B. PoF Adj Factor Scoring'!$T$3:$AC$3,0)-1),2,TRUE),3) -> 4 | J40: =IFERROR(VLOOKUP(E:E,OFFSET('B. PoF Adj Factor Scoring'!$T$5:$U$282,,MATCH(J$4,'B. PoF Adj Factor Scoring'!$T$3:$AC$3,0)-1),2,TRUE),3) -> 3 | K40: =IFERROR(VLOOKUP(F:F,OFFSET('B. PoF Adj Factor Scoring'!$T$5:$U$282,,MATCH(K$4,'B. PoF Adj Factor Scoring'!$T$3:$AC$3,0)-1),2,TRUE),3) -> 1
A41: ='A. Population Info'!A41 -> 36 | B41: ='A. Population Info'!G41 -> 0 | C41: ='A. Population Info'!H41 -> 0 | D41: ='A. Population Info'!I41 -> Bare | E41: ='A. Population Info'!J41 -> 0 | F41: ='A. Population Info'!K41 -> 0 | G41: =IFERROR(VLOOKUP(B:B,OFFSET('B. PoF Adj Factor Scoring'!$T$5:$U$282,,MATCH(G$4,'B. PoF Adj Factor Scoring'!$T$3:$AC$3,0)-1),2,TRUE),3) -> 3 | H41: =IFERROR(VLOOKUP(C:C,OFFSET('B. PoF Adj Factor Scoring'!$T$5:$U$282,,MATCH(H$4,'B. PoF Adj Factor Scoring'!$T$3:$AC$3,0)-1),2,TRUE),3) -> 3 | I41: =IFERROR(VLOOKUP(D:D,OFFSET('B. PoF Adj Factor Scoring'!$T$5:$U$282,,MATCH(I$4,'B. PoF Adj Factor Scoring'!$T$3:$AC$3,0)-1),2,TRUE),3) -> 4 | J41: =IFERROR(VLOOKUP(E:E,OFFSET('B. PoF Adj Factor Scoring'!$T$5:$U$282,,MATCH(J$4,'B. PoF Adj Factor Scoring'!$T$3:$AC$3,0)-1),2,TRUE),3) -> 3 | K41: =IFERROR(VLOOKUP(F:F,OFFSET('B. PoF Adj Factor Scoring'!$T$5:$U$282,,MATCH(K$4,'B. PoF Adj Factor Scoring'!$T$3:$AC$3,0)-1),2,TRUE),3) -> 1
A42: ='A. Population Info'!A42 -> 37 | B42: ='A. Population Info'!G42 -> 0 | C42: ='A. Population Info'!H42 -> 0 | D42: ='A. Population Info'!I42 -> Bare | E42: ='A. Population Info'!J42 -> 0 | F42: ='A. Population Info'!K42 -> 0 | G42: =IFERROR(VLOOKUP(B:B,OFFSET('B. PoF Adj Factor Scoring'!$T$5:$U$282,,MATCH(G$4,'B. PoF Adj Factor Scoring'!$T$3:$AC$3,0)-1),2,TRUE),3) -> 3 | H42: =IFERROR(VLOOKUP(C:C,OFFSET('B. PoF Adj Factor Scoring'!$T$5:$U$282,,MATCH(H$4,'B. PoF Adj Factor Scoring'!$T$3:$AC$3,0)-1),2,TRUE),3) -> 3 | I42: =IFERROR(VLOOKUP(D:D,OFFSET('B. PoF Adj Factor Scoring'!$T$5:$U$282,,MATCH(I$4,'B. PoF Adj Factor Scoring'!$T$3:$AC$3,0)-1),2,TRUE),3) -> 4 | J42: =IFERROR(VLOOKUP(E:E,OFFSET('B. PoF Adj Factor Scoring'!$T$5:$U$282,,MATCH(J$4,'B. PoF Adj Factor Scoring'!$T$3:$AC$3,0)-1),2,TRUE),3) -> 3 | K42: =IFERROR(VLOOKUP(F:F,OFFSET('B. PoF Adj Factor Scoring'!$T$5:$U$282,,MATCH(K$4,'B. PoF Adj Factor Scoring'!$T$3:$AC$3,0)-1),2,TRUE),3) -> 1
A43: ='A. Population Info'!A43 -> 38 | B43: ='A. Population Info'!G43 -> 0 | C43: ='A. Population Info'!H43 -> 0 | D43: ='A. Population Info'!I43 -> Insulated | E43: ='A. Population Info'!J43 -> 0 | F43: ='A. Population Info'!K43 -> 0 | G43: =IFERROR(VLOOKUP(B:B,OFFSET('B. PoF Adj Factor Scoring'!$T$5:$U$282,,MATCH(G$4,'B. PoF Adj Factor Scoring'!$T$3:$AC$3,0)-1),2,TRUE),3) -> 3 | H43: =IFERROR(VLOOKUP(C:C,OFFSET('B. PoF Adj Factor Scoring'!$T$5:$U$282,,MATCH(H$4,'B. PoF Adj Factor Scoring'!$T$3:$AC$3,0)-1),2,TRUE),3) -> 3 | I43: =IFERROR(VLOOKUP(D:D,OFFSET('B. PoF Adj Factor Scoring'!$T$5:$U$282,,MATCH(I$4,'B. PoF Adj Factor Scoring'!$T$3:$AC$3,0)-1),2,TRUE),3) -> 1 | J43: =IFERROR(VLOOKUP(E:E,OFFSET('B. PoF Adj Factor Scoring'!$T$5:$U$282,,MATCH(J$4,'B. PoF Adj Factor Scoring'!$T$3:$AC$3,0)-1),2,TRUE),3) -> 3 | K43: =IFERROR(VLOOKUP(F:F,OFFSET('B. PoF Adj Factor Scoring'!$T$5:$U$282,,MATCH(K$4,'B. PoF Adj Factor Scoring'!$T$3:$AC$3,0)-1),2,TRUE),3) -> 1
A44: ='A. Population Info'!A44 -> 39 | B44: ='A. Population Info'!G44 -> 0 | C44: ='A. Population Info'!H44 -> 0 | D44: ='A. Population Info'!I44 -> Insulated | E44: ='A. Population Info'!J44 -> 0 | F44: ='A. Population Info'!K44 -> 0 | G44: =IFERROR(VLOOKUP(B:B,OFFSET('B. PoF Adj Factor Scoring'!$T$5:$U$282,,MATCH(G$4,'B. PoF Adj Factor Scoring'!$T$3:$AC$3,0)-1),2,TRUE),3) -> 3 | H44: =IFERROR(VLOOKUP(C:C,OFFSET('B. PoF Adj Factor Scoring'!$T$5:$U$282,,MATCH(H$4,'B. PoF Adj Factor Scoring'!$T$3:$AC$3,0)-1),2,TRUE),3) -> 3 | I44: =IFERROR(VLOOKUP(D:D,OFFSET('B. PoF Adj Factor Scoring'!$T$5:$U$282,,MATCH(I$4,'B. PoF Adj Factor Scoring'!$T$3:$AC$3,0)-1),2,TRUE),3) -> 1 | J44: =IFERROR(VLOOKUP(E:E,OFFSET('B. PoF Adj Factor Scoring'!$T$5:$U$282,,MATCH(J$4,'B. PoF Adj Factor Scoring'!$T$3:$AC$3,0)-1),2,TRUE),3) -> 3 | K44: =IFERROR(VLOOKUP(F:F,OFFSET('B. PoF Adj Factor Scoring'!$T$5:$U$282,,MATCH(K$4,'B. PoF Adj Factor Scoring'!$T$3:$AC$3,0)-1),2,TRUE),3) -> 1
A45: ='A. Population Info'!A45 -> 40 | B45: ='A. Population Info'!G45 -> 0 | C45: ='A. Population Info'!H45 -> 0 | D45: ='A. Population Info'!I45 -> Insulated | E45: ='A. Population Info'!J45 -> 0 | F45: ='A. Population Info'!K45 -> 0 | G45: =IFERROR(VLOOKUP(B:B,OFFSET('B. PoF Adj Factor Scoring'!$T$5:$U$282,,MATCH(G$4,'B. PoF Adj Factor Scoring'!$T$3:$AC$3,0)-1),2,TRUE),3) -> 3 | H45: =IFERROR(VLOOKUP(C:C,OFFSET('B. PoF Adj Factor Scoring'!$T$5:$U$282,,MATCH(H$4,'B. PoF Adj Factor Scoring'!$T$3:$AC$3,0)-1),2,TRUE),3) -> 3 | I45: =IFERROR(VLOOKUP(D:D,OFFSET('B. PoF Adj Factor Scoring'!$T$5:$U$282,,MATCH(I$4,'B. PoF Adj Factor Scoring'!$T$3:$AC$3,0)-1),2,TRUE),3) -> 1 | J45: =IFERROR(VLOOKUP(E:E,OFFSET('B. PoF Adj Factor Scoring'!$T$5:$U$282,,MATCH(J$4,'B. PoF Adj Factor Scoring'!$T$3:$AC$3,0)-1),2,TRUE),3) -> 3 | K45: =IFERROR(VLOOKUP(F:F,OFFSET('B. PoF Adj Factor Scoring'!$T$5:$U$282,,MATCH(K$4,'B. PoF Adj Factor Scoring'!$T$3:$AC$3,0)-1),2,TRUE),3) -> 1
A46: ='A. Population Info'!A46 -> 41 | B46: ='A. Population Info'!G46 -> 0 | C46: ='A. Population Info'!H46 -> 0 | D46: ='A. Population Info'!I46 -> Bare | E46: ='A. Population Info'!J46 -> 0 | F46: ='A. Population Info'!K46 -> 0 | G46: =IFERROR(VLOOKUP(B:B,OFFSET('B. PoF Adj Factor Scoring'!$T$5:$U$282,,MATCH(G$4,'B. PoF Adj Factor Scoring'!$T$3:$AC$3,0)-1),2,TRUE),3) -> 3 | H46: =IFERROR(VLOOKUP(C:C,OFFSET('B. PoF Adj Factor Scoring'!$T$5:$U$282,,MATCH(H$4,'B. PoF Adj Factor Scoring'!$T$3:$AC$3,0)-1),2,TRUE),3) -> 3 | I46: =IFERROR(VLOOKUP(D:D,OFFSET('B. PoF Adj Factor Scoring'!$T$5:$U$282,,MATCH(I$4,'B. PoF Adj Factor Scoring'!$T$3:$AC$3,0)-1),2,TRUE),3) -> 4 | J46: =IFERROR(VLOOKUP(E:E,OFFSET('B. PoF Adj Factor Scoring'!$T$5:$U$282,,MATCH(J$4,'B. PoF Adj Factor Scoring'!$T$3:$AC$3,0)-1),2,TRUE),3) -> 3 | K46: =IFERROR(VLOOKUP(F:F,OFFSET('B. PoF Adj Factor Scoring'!$T$5:$U$282,,MATCH(K$4,'B. PoF Adj Factor Scoring'!$T$3:$AC$3,0)-1),2,TRUE),3) -> 1
A47: ='A. Population Info'!A47 -> 42 | B47: ='A. Population Info'!G47 -> 0 | C47: ='A. Population Info'!H47 -> 0 | D47: ='A. Population Info'!I47 -> Bare | E47: ='A. Population Info'!J47 -> 0 | F47: ='A. Population Info'!K47 -> 0 | G47: =IFERROR(VLOOKUP(B:B,OFFSET('B. PoF Adj Factor Scoring'!$T$5:$U$282,,MATCH(G$4,'B. PoF Adj Factor Scoring'!$T$3:$AC$3,0)-1),2,TRUE),3) -> 3 | H47: =IFERROR(VLOOKUP(C:C,OFFSET('B. PoF Adj Factor Scoring'!$T$5:$U$282,,MATCH(H$4,'B. PoF Adj Factor Scoring'!$T$3:$AC$3,0)-1),2,TRUE),3) -> 3 | I47: =IFERROR(VLOOKUP(D:D,OFFSET('B. PoF Adj Factor Scoring'!$T$5:$U$282,,MATCH(I$4,'B. PoF Adj Factor Scoring'!$T$3:$AC$3,0)-1),2,TRUE),3) -> 4 | J47: =IFERROR(VLOOKUP(E:E,OFFSET('B. PoF Adj Factor Scoring'!$T$5:$U$282,,MATCH(J$4,'B. PoF Adj Factor Scoring'!$T$3:$AC$3,0)-1),2,TRUE),3) -> 3 | K47: =IFERROR(VLOOKUP(F:F,OFFSET('B. PoF Adj Factor Scoring'!$T$5:$U$282,,MATCH(K$4,'B. PoF Adj Factor Scoring'!$T$3:$AC$3,0)-1),2,TRUE),3) -> 1
A48: ='A. Population Info'!A48 -> 43 | B48: ='A. Population Info'!G48 -> 0 | C48: ='A. Population Info'!H48 -> 0 | D48: ='A. Population Info'!I48 -> Bare | E48: ='A. Population Info'!J48 -> 0 | F48: ='A. Population Info'!K48 -> 0 | G48: =IFERROR(VLOOKUP(B:B,OFFSET('B. PoF Adj Factor Scoring'!$T$5:$U$282,,MATCH(G$4,'B. PoF Adj Factor Scoring'!$T$3:$AC$3,0)-1),2,TRUE),3) -> 3 | H48: =IFERROR(VLOOKUP(C:C,OFFSET('B. PoF Adj Factor Scoring'!$T$5:$U$282,,MATCH(H$4,'B. PoF Adj Factor Scoring'!$T$3:$AC$3,0)-1),2,TRUE),3) -> 3 | I48: =IFERROR(VLOOKUP(D:D,OFFSET('B. PoF Adj Factor Scoring'!$T$5:$U$282,,MATCH(I$4,'B. PoF Adj Factor Scoring'!$T$3:$AC$3,0)-1),2,TRUE),3) -> 4 | J48: =IFERROR(VLOOKUP(E:E,OFFSET('B. PoF Adj Factor Scoring'!$T$5:$U$282,,MATCH(J$4,'B. PoF Adj Factor Scoring'!$T$3:$AC$3,0)-1),2,TRUE),3) -> 3 | K48: =IFERROR(VLOOKUP(F:F,OFFSET('B. PoF Adj Factor Scoring'!$T$5:$U$282,,MATCH(K$4,'B. PoF Adj Factor Scoring'!$T$3:$AC$3,0)-1),2,TRUE),3) -> 1
A49: ='A. Population Info'!A49 -> 44 | B49: ='A. Population Info'!G49 -> 0 | C49: ='A. Population Info'!H49 -> 0 | D49: ='A. Population Info'!I49 -> Insulated | E49: ='A. Population Info'!J49 -> 0 | F49: ='A. Population Info'!K49 -> 0 | G49: =IFERROR(VLOOKUP(B:B,OFFSET('B. PoF Adj Factor Scoring'!$T$5:$U$282,,MATCH(G$4,'B. PoF Adj Factor Scoring'!$T$3:$AC$3,0)-1),2,TRUE),3) -> 3 | H49: =IFERROR(VLOOKUP(C:C,OFFSET('B. PoF Adj Factor Scoring'!$T$5:$U$282,,MATCH(H$4,'B. PoF Adj Factor Scoring'!$T$3:$AC$3,0)-1),2,TRUE),3) -> 3 | I49: =IFERROR(VLOOKUP(D:D,OFFSET('B. PoF Adj Factor Scoring'!$T$5:$U$282,,MATCH(I$4,'B. PoF Adj Factor Scoring'!$T$3:$AC$3,0)-1),2,TRUE),3) -> 1 | J49: =IFERROR(VLOOKUP(E:E,OFFSET('B. PoF Adj Factor Scoring'!$T$5:$U$282,,MATCH(J$4,'B. PoF Adj Factor Scoring'!$T$3:$AC$3,0)-1),2,TRUE),3) -> 3 | K49: =IFERROR(VLOOKUP(F:F,OFFSET('B. PoF Adj Factor Scoring'!$T$5:$U$282,,MATCH(K$4,'B. PoF Adj Factor Scoring'!$T$3:$AC$3,0)-1),2,TRUE),3) -> 1
A50: ='A. Population Info'!A50 -> 45 | B50: ='A. Population Info'!G50 -> 0 | C50: ='A. Population Info'!H50 -> 0 | D50: ='A. Population Info'!I50 -> Insulated | E50: ='A. Population Info'!J50 -> 0 | F50: ='A. Population Info'!K50 -> 0 | G50: =IFERROR(VLOOKUP(B:B,OFFSET('B. PoF Adj Factor Scoring'!$T$5:$U$282,,MATCH(G$4,'B. PoF Adj Factor Scoring'!$T$3:$AC$3,0)-1),2,TRUE),3) -> 3 | H50: =IFERROR(VLOOKUP(C:C,OFFSET('B. PoF Adj Factor Scoring'!$T$5:$U$282,,MATCH(H$4,'B. PoF Adj Factor Scoring'!$T$3:$AC$3,0)-1),2,TRUE),3) -> 3 | I50: =IFERROR(VLOOKUP(D:D,OFFSET('B. PoF Adj Factor Scoring'!$T$5:$U$282,,MATCH(I$4,'B. PoF Adj Factor Scoring'!$T$3:$AC$3,0)-1),2,TRUE),3) -> 1 | J50: =IFERROR(VLOOKUP(E:E,OFFSET('B. PoF Adj Factor Scoring'!$T$5:$U$282,,MATCH(J$4,'B. PoF Adj Factor Scoring'!$T$3:$AC$3,0)-1),2,TRUE),3) -> 3 | K50: =IFERROR(VLOOKUP(F:F,OFFSET('B. PoF Adj Factor Scoring'!$T$5:$U$282,,MATCH(K$4,'B. PoF Adj Factor Scoring'!$T$3:$AC$3,0)-1),2,TRUE),3) -> 1
A51: ='A. Population Info'!A51 -> 46 | B51: ='A. Population Info'!G51 -> 0 | C51: ='A. Population Info'!H51 -> 0 | D51: ='A. Population Info'!I51 -> Bare | E51: ='A. Population Info'!J51 -> 0 | F51: ='A. Population Info'!K51 -> 0 | G51: =IFERROR(VLOOKUP(B:B,OFFSET('B. PoF Adj Factor Scoring'!$T$5:$U$282,,MATCH(G$4,'B. PoF Adj Factor Scoring'!$T$3:$AC$3,0)-1),2,TRUE),3) -> 3 | H51: =IFERROR(VLOOKUP(C:C,OFFSET('B. PoF Adj Factor Scoring'!$T$5:$U$282,,MATCH(H$4,'B. PoF Adj Factor Scoring'!$T$3:$AC$3,0)-1),2,TRUE),3) -> 3 | I51: =IFERROR(VLOOKUP(D:D,OFFSET('B. PoF Adj Factor Scoring'!$T$5:$U$282,,MATCH(I$4,'B. PoF Adj Factor Scoring'!$T$3:$AC$3,0)-1),2,TRUE),3) -> 4 | J51: =IFERROR(VLOOKUP(E:E,OFFSET('B. PoF Adj Factor Scoring'!$T$5:$U$282,,MATCH(J$4,'B. PoF Adj Factor Scoring'!$T$3:$AC$3,0)-1),2,TRUE),3) -> 3 | K51: =IFERROR(VLOOKUP(F:F,OFFSET('B. PoF Adj Factor Scoring'!$T$5:$U$282,,MATCH(K$4,'B. PoF Adj Factor Scoring'!$T$3:$AC$3,0)-1),2,TRUE),3) -> 1
A52: ='A. Population Info'!A52 -> 47 | B52: ='A. Population Info'!G52 -> 0 | C52: ='A. Population Info'!H52 -> 0 | D52: ='A. Population Info'!I52 -> Insulated | E52: ='A. Population Info'!J52 -> 0 | F52: ='A. Population Info'!K52 -> 0 | G52: =IFERROR(VLOOKUP(B:B,OFFSET('B. PoF Adj Factor Scoring'!$T$5:$U$282,,MATCH(G$4,'B. PoF Adj Factor Scoring'!$T$3:$AC$3,0)-1),2,TRUE),3) -> 3 | H52: =IFERROR(VLOOKUP(C:C,OFFSET('B. PoF Adj Factor Scoring'!$T$5:$U$282,,MATCH(H$4,'B. PoF Adj Factor Scoring'!$T$3:$AC$3,0)-1),2,TRUE),3) -> 3 | I52: =IFERROR(VLOOKUP(D:D,OFFSET('B. PoF Adj Factor Scoring'!$T$5:$U$282,,MATCH(I$4,'B. PoF Adj Factor Scoring'!$T$3:$AC$3,0)-1),2,TRUE),3) -> 1 | J52: =IFERROR(VLOOKUP(E:E,OFFSET('B. PoF Adj Factor Scoring'!$T$5:$U$282,,MATCH(J$4,'B. PoF Adj Factor Scoring'!$T$3:$AC$3,0)-1),2,TRUE),3) -> 3 | K52: =IFERROR(VLOOKUP(F:F,OFFSET('B. PoF Adj Factor Scoring'!$T$5:$U$282,,MATCH(K$4,'B. PoF Adj Factor Scoring'!$T$3:$AC$3,0)-1),2,TRUE),3) -> 1
A53: ='A. Population Info'!A53 -> 48 | B53: ='A. Population Info'!G53 -> 0 | C53: ='A. Population Info'!H53 -> 0 | D53: ='A. Population Info'!I53 -> Insulated | E53: ='A. Population Info'!J53 -> 0 | F53: ='A. Population Info'!K53 -> 1 | G53: =IFERROR(VLOOKUP(B:B,OFFSET('B. PoF Adj Factor Scoring'!$T$5:$U$282,,MATCH(G$4,'B. PoF Adj Factor Scoring'!$T$3:$AC$3,0)-1),2,TRUE),3) -> 3 | H53: =IFERROR(VLOOKUP(C:C,OFFSET('B. PoF Adj Factor Scoring'!$T$5:$U$282,,MATCH(H$4,'B. PoF Adj Factor Scoring'!$T$3:$AC$3,0)-1),2,TRUE),3) -> 3 | I53: =IFERROR(VLOOKUP(D:D,OFFSET('B. PoF Adj Factor Scoring'!$T$5:$U$282,,MATCH(I$4,'B. PoF Adj Factor Scoring'!$T$3:$AC$3,0)-1),2,TRUE),3) -> 1 | J53: =IFERROR(VLOOKUP(E:E,OFFSET('B. PoF Adj Factor Scoring'!$T$5:$U$282,,MATCH(J$4,'B. PoF Adj Factor Scoring'!$T$3:$AC$3,0)-1),2,TRUE),3) -> 3 | K53: =IFERROR(VLOOKUP(F:F,OFFSET('B. PoF Adj Factor Scoring'!$T$5:$U$282,,MATCH(K$4,'B. PoF Adj Factor Scoring'!$T$3:$AC$3,0)-1),2,TRUE),3) -> 1
A54: ='A. Population Info'!A54 -> 49 | B54: ='A. Population Info'!G54 -> 0 | C54: ='A. Population Info'!H54 -> 0 | D54: ='A. Population Info'!I54 -> Insulated | E54: ='A. Population Info'!J54 -> 0 | F54: ='A. Population Info'!K54 -> 1 | G54: =IFERROR(VLOOKUP(B:B,OFFSET('B. PoF Adj Factor Scoring'!$T$5:$U$282,,MATCH(G$4,'B. PoF Adj Factor Scoring'!$T$3:$AC$3,0)-1),2,TRUE),3) -> 3 | H54: =IFERROR(VLOOKUP(C:C,OFFSET('B. PoF Adj Factor Scoring'!$T$5:$U$282,,MATCH(H$4,'B. PoF Adj Factor Scoring'!$T$3:$AC$3,0)-1),2,TRUE),3) -> 3 | I54: =IFERROR(VLOOKUP(D:D,OFFSET('B. PoF Adj Factor Scoring'!$T$5:$U$282,,MATCH(I$4,'B. PoF Adj Factor Scoring'!$T$3:$AC$3,0)-1),2,TRUE),3) -> 1 | J54: =IFERROR(VLOOKUP(E:E,OFFSET('B. PoF Adj Factor Scoring'!$T$5:$U$282,,MATCH(J$4,'B. PoF Adj Factor Scoring'!$T$3:$AC$3,0)-1),2,TRUE),3) -> 3 | K54: =IFERROR(VLOOKUP(F:F,OFFSET('B. PoF Adj Factor Scoring'!$T$5:$U$282,,MATCH(K$4,'B. PoF Adj Factor Scoring'!$T$3:$AC$3,0)-1),2,TRUE),3) -> 1
A55: ='A. Population Info'!A55 -> 50 | B55: ='A. Population Info'!G55 -> 0 | C55: ='A. Population Info'!H55 -> 0 | D55: ='A. Population Info'!I55 -> Bare | E55: ='A. Population Info'!J55 -> 0 | F55: ='A. Population Info'!K55 -> 1 | G55: =IFERROR(VLOOKUP(B:B,OFFSET('B. PoF Adj Factor Scoring'!$T$5:$U$282,,MATCH(G$4,'B. PoF Adj Factor Scoring'!$T$3:$AC$3,0)-1),2,TRUE),3) -> 3 | H55: =IFERROR(VLOOKUP(C:C,OFFSET('B. PoF Adj Factor Scoring'!$T$5:$U$282,,MATCH(H$4,'B. PoF Adj Factor Scoring'!$T$3:$AC$3,0)-1),2,TRUE),3) -> 3 | I55: =IFERROR(VLOOKUP(D:D,OFFSET('B. PoF Adj Factor Scoring'!$T$5:$U$282,,MATCH(I$4,'B. PoF Adj Factor Scoring'!$T$3:$AC$3,0)-1),2,TRUE),3) -> 4 | J55: =IFERROR(VLOOKUP(E:E,OFFSET('B. PoF Adj Factor Scoring'!$T$5:$U$282,,MATCH(J$4,'B. PoF Adj Factor Scoring'!$T$3:$AC$3,0)-1),2,TRUE),3) -> 3 | K55: =IFERROR(VLOOKUP(F:F,OFFSET('B. PoF Adj Factor Scoring'!$T$5:$U$282,,MATCH(K$4,'B. PoF Adj Factor Scoring'!$T$3:$AC$3,0)-1),2,TRUE),3) -> 1
A56: ='A. Population Info'!A56 -> 51 | B56: ='A. Population Info'!G56 -> 0 | C56: ='A. Population Info'!H56 -> 0 | D56: ='A. Population Info'!I56 -> Insulated | E56: ='A. Population Info'!J56 -> 0 | F56: ='A. Population Info'!K56 -> 1 | G56: =IFERROR(VLOOKUP(B:B,OFFSET('B. PoF Adj Factor Scoring'!$T$5:$U$282,,MATCH(G$4,'B. PoF Adj Factor Scoring'!$T$3:$AC$3,0)-1),2,TRUE),3) -> 3 | H56: =IFERROR(VLOOKUP(C:C,OFFSET('B. PoF Adj Factor Scoring'!$T$5:$U$282,,MATCH(H$4,'B. PoF Adj Factor Scoring'!$T$3:$AC$3,0)-1),2,TRUE),3) -> 3 | I56: =IFERROR(VLOOKUP(D:D,OFFSET('B. PoF Adj Factor Scoring'!$T$5:$U$282,,MATCH(I$4,'B. PoF Adj Factor Scoring'!$T$3:$AC$3,0)-1),2,TRUE),3) -> 1 | J56: =IFERROR(VLOOKUP(E:E,OFFSET('B. PoF Adj Factor Scoring'!$T$5:$U$282,,MATCH(J$4,'B. PoF Adj Factor Scoring'!$T$3:$AC$3,0)-1),2,TRUE),3) -> 3 | K56: =IFERROR(VLOOKUP(F:F,OFFSET('B. PoF Adj Factor Scoring'!$T$5:$U$282,,MATCH(K$4,'B. PoF Adj Factor Scoring'!$T$3:$AC$3,0)-1),2,TRUE),3) -> 1
A57: ='A. Population Info'!A57 -> 52 | B57: ='A. Population Info'!G57 -> 0 | C57: ='A. Population Info'!H57 -> 0 | D57: ='A. Population Info'!I57 -> Insulated | E57: ='A. Population Info'!J57 -> 0 | F57: ='A. Population Info'!K57 -> 1 | G57: =IFERROR(VLOOKUP(B:B,OFFSET('B. PoF Adj Factor Scoring'!$T$5:$U$282,,MATCH(G$4,'B. PoF Adj Factor Scoring'!$T$3:$AC$3,0)-1),2,TRUE),3) -> 3 | H57: =IFERROR(VLOOKUP(C:C,OFFSET('B. PoF Adj Factor Scoring'!$T$5:$U$282,,MATCH(H$4,'B. PoF Adj Factor Scoring'!$T$3:$AC$3,0)-1),2,TRUE),3) -> 3 | I57: =IFERROR(VLOOKUP(D:D,OFFSET('B. PoF Adj Factor Scoring'!$T$5:$U$282,,MATCH(I$4,'B. PoF Adj Factor Scoring'!$T$3:$AC$3,0)-1),2,TRUE),3) -> 1 | J57: =IFERROR(VLOOKUP(E:E,OFFSET('B. PoF Adj Factor Scoring'!$T$5:$U$282,,MATCH(J$4,'B. PoF Adj Factor Scoring'!$T$3:$AC$3,0)-1),2,TRUE),3) -> 3 | K57: =IFERROR(VLOOKUP(F:F,OFFSET('B. PoF Adj Factor Scoring'!$T$5:$U$282,,MATCH(K$4,'B. PoF Adj Factor Scoring'!$T$3:$AC$3,0)-1),2,TRUE),3) -> 1
A58: ='A. Population Info'!A58 -> 53 | B58: ='A. Population Info'!G58 -> 0 | C58: ='A. Population Info'!H58 -> 0 | D58: ='A. Population Info'!I58 -> Insulated | E58: ='A. Population Info'!J58 -> 0 | F58: ='A. Population Info'!K58 -> 1 | G58: =IFERROR(VLOOKUP(B:B,OFFSET('B. PoF Adj Factor Scoring'!$T$5:$U$282,,MATCH(G$4,'B. PoF Adj Factor Scoring'!$T$3:$AC$3,0)-1),2,TRUE),3) -> 3 | H58: =IFERROR(VLOOKUP(C:C,OFFSET('B. PoF Adj Factor Scoring'!$T$5:$U$282,,MATCH(H$4,'B. PoF Adj Factor Scoring'!$T$3:$AC$3,0)-1),2,TRUE),3) -> 3 | I58: =IFERROR(VLOOKUP(D:D,OFFSET('B. PoF Adj Factor Scoring'!$T$5:$U$282,,MATCH(I$4,'B. PoF Adj Factor Scoring'!$T$3:$AC$3,0)-1),2,TRUE),3) -> 1 | J58: =IFERROR(VLOOKUP(E:E,OFFSET('B. PoF Adj Factor Scoring'!$T$5:$U$282,,MATCH(J$4,'B. PoF Adj Factor Scoring'!$T$3:$AC$3,0)-1),2,TRUE),3) -> 3 | K58: =IFERROR(VLOOKUP(F:F,OFFSET('B. PoF Adj Factor Scoring'!$T$5:$U$282,,MATCH(K$4,'B. PoF Adj Factor Scoring'!$T$3:$AC$3,0)-1),2,TRUE),3) -> 1
A59: ='A. Population Info'!A59 -> 54 | B59: ='A. Population Info'!G59 -> 0 | C59: ='A. Population Info'!H59 -> 0 | D59: ='A. Population Info'!I59 -> Insulated | E59: ='A. Population Info'!J59 -> 0 | F59: ='A. Population Info'!K59 -> 1 | G59: =IFERROR(VLOOKUP(B:B,OFFSET('B. PoF Adj Factor Scoring'!$T$5:$U$282,,MATCH(G$4,'B. PoF Adj Factor Scoring'!$T$3:$AC$3,0)-1),2,TRUE),3) -> 3 | H59: =IFERROR(VLOOKUP(C:C,OFFSET('B. PoF Adj Factor Scoring'!$T$5:$U$282,,MATCH(H$4,'B. PoF Adj Factor Scoring'!$T$3:$AC$3,0)-1),2,TRUE),3) -> 3 | I59: =IFERROR(VLOOKUP(D:D,OFFSET('B. PoF Adj Factor Scoring'!$T$5:$U$282,,MATCH(I$4,'B. PoF Adj Factor Scoring'!$T$3:$AC$3,0)-1),2,TRUE),3) -> 1 | J59: =IFERROR(VLOOKUP(E:E,OFFSET('B. PoF Adj Factor Scoring'!$T$5:$U$282,,MATCH(J$4,'B. PoF Adj Factor Scoring'!$T$3:$AC$3,0)-1),2,TRUE),3) -> 3 | K59: =IFERROR(VLOOKUP(F:F,OFFSET('B. PoF Adj Factor Scoring'!$T$5:$U$282,,MATCH(K$4,'B. PoF Adj Factor Scoring'!$T$3:$AC$3,0)-1),2,TRUE),3) -> 1
A60: ='A. Population Info'!A60 -> 55 | B60: ='A. Population Info'!G60 -> 0 | C60: ='A. Population Info'!H60 -> 0 | D60: ='A. Population Info'!I60 -> Bare | E60: ='A. Population Info'!J60 -> 0 | F60: ='A. Population Info'!K60 -> 2 | G60: =IFERROR(VLOOKUP(B:B,OFFSET('B. PoF Adj Factor Scoring'!$T$5:$U$282,,MATCH(G$4,'B. PoF Adj Factor Scoring'!$T$3:$AC$3,0)-1),2,TRUE),3) -> 3 | H60: =IFERROR(VLOOKUP(C:C,OFFSET('B. PoF Adj Factor Scoring'!$T$5:$U$282,,MATCH(H$4,'B. PoF Adj Factor Scoring'!$T$3:$AC$3,0)-1),2,TRUE),3) -> 3 | I60: =IFERROR(VLOOKUP(D:D,OFFSET('B. PoF Adj Factor Scoring'!$T$5:$U$282,,MATCH(I$4,'B. PoF Adj Factor Scoring'!$T$3:$AC$3,0)-1),2,TRUE),3) -> 4 | J60: =IFERROR(VLOOKUP(E:E,OFFSET('B. PoF Adj Factor Scoring'!$T$5:$U$282,,MATCH(J$4,'B. PoF Adj Factor Scoring'!$T$3:$AC$3,0)-1),2,TRUE),3) -> 3 | K60: =IFERROR(VLOOKUP(F:F,OFFSET('B. PoF Adj Factor Scoring'!$T$5:$U$282,,MATCH(K$4,'B. PoF Adj Factor Scoring'!$T$3:$AC$3,0)-1),2,TRUE),3) -> 1
A61: ='A. Population Info'!A61 -> 56 | B61: ='A. Population Info'!G61 -> 0 | C61: ='A. Population Info'!H61 -> 0 | D61: ='A. Population Info'!I61 -> Insulated | E61: ='A. Population Info'!J61 -> 0 | F61: ='A. Population Info'!K61 -> 2 | G61: =IFERROR(VLOOKUP(B:B,OFFSET('B. PoF Adj Factor Scoring'!$T$5:$U$282,,MATCH(G$4,'B. PoF Adj Factor Scoring'!$T$3:$AC$3,0)-1),2,TRUE),3) -> 3 | H61: =IFERROR(VLOOKUP(C:C,OFFSET('B. PoF Adj Factor Scoring'!$T$5:$U$282,,MATCH(H$4,'B. PoF Adj Factor Scoring'!$T$3:$AC$3,0)-1),2,TRUE),3) -> 3 | I61: =IFERROR(VLOOKUP(D:D,OFFSET('B. PoF Adj Factor Scoring'!$T$5:$U$282,,MATCH(I$4,'B. PoF Adj Factor Scoring'!$T$3:$AC$3,0)-1),2,TRUE),3) -> 1 | J61: =IFERROR(VLOOKUP(E:E,OFFSET('B. PoF Adj Factor Scoring'!$T$5:$U$282,,MATCH(J$4,'B. PoF Adj Factor Scoring'!$T$3:$AC$3,0)-1),2,TRUE),3) -> 3 | K61: =IFERROR(VLOOKUP(F:F,OFFSET('B. PoF Adj Factor Scoring'!$T$5:$U$282,,MATCH(K$4,'B. PoF Adj Factor Scoring'!$T$3:$AC$3,0)-1),2,TRUE),3) -> 1
A62: ='A. Population Info'!A62 -> 57 | B62: ='A. Population Info'!G62 -> 0 | C62: ='A. Population Info'!H62 -> 0 | D62: ='A. Population Info'!I62 -> Insulated | E62: ='A. Population Info'!J62 -> 0 | F62: ='A. Population Info'!K62 -> 2 | G62: =IFERROR(VLOOKUP(B:B,OFFSET('B. PoF Adj Factor Scoring'!$T$5:$U$282,,MATCH(G$4,'B. PoF Adj Factor Scoring'!$T$3:$AC$3,0)-1),2,TRUE),3) -> 3 | H62: =IFERROR(VLOOKUP(C:C,OFFSET('B. PoF Adj Factor Scoring'!$T$5:$U$282,,MATCH(H$4,'B. PoF Adj Factor Scoring'!$T$3:$AC$3,0)-1),2,TRUE),3) -> 3 | I62: =IFERROR(VLOOKUP(D:D,OFFSET('B. PoF Adj Factor Scoring'!$T$5:$U$282,,MATCH(I$4,'B. PoF Adj Factor Scoring'!$T$3:$AC$3,0)-1),2,TRUE),3) -> 1 | J62: =IFERROR(VLOOKUP(E:E,OFFSET('B. PoF Adj Factor Scoring'!$T$5:$U$282,,MATCH(J$4,'B. PoF Adj Factor Scoring'!$T$3:$AC$3,0)-1),2,TRUE),3) -> 3 | K62: =IFERROR(VLOOKUP(F:F,OFFSET('B. PoF Adj Factor Scoring'!$T$5:$U$282,,MATCH(K$4,'B. PoF Adj Factor Scoring'!$T$3:$AC$3,0)-1),2,TRUE),3) -> 1
A63: ='A. Population Info'!A63 -> 58 | B63: ='A. Population Info'!G63 -> 0 | C63: ='A. Population Info'!H63 -> 0 | D63: ='A. Population Info'!I63 -> Insulated | E63: ='A. Population Info'!J63 -> 0 | F63: ='A. Population Info'!K63 -> 2 | G63: =IFERROR(VLOOKUP(B:B,OFFSET('B. PoF Adj Factor Scoring'!$T$5:$U$282,,MATCH(G$4,'B. PoF Adj Factor Scoring'!$T$3:$AC$3,0)-1),2,TRUE),3) -> 3 | H63: =IFERROR(VLOOKUP(C:C,OFFSET('B. PoF Adj Factor Scoring'!$T$5:$U$282,,MATCH(H$4,'B. PoF Adj Factor Scoring'!$T$3:$AC$3,0)-1),2,TRUE),3) -> 3 | I63: =IFERROR(VLOOKUP(D:D,OFFSET('B. PoF Adj Factor Scoring'!$T$5:$U$282,,MATCH(I$4,'B. PoF Adj Factor Scoring'!$T$3:$AC$3,0)-1),2,TRUE),3) -> 1 | J63: =IFERROR(VLOOKUP(E:E,OFFSET('B. PoF Adj Factor Scoring'!$T$5:$U$282,,MATCH(J$4,'B. PoF Adj Factor Scoring'!$T$3:$AC$3,0)-1),2,TRUE),3) -> 3 | K63: =IFERROR(VLOOKUP(F:F,OFFSET('B. PoF Adj Factor Scoring'!$T$5:$U$282,,MATCH(K$4,'B. PoF Adj Factor Scoring'!$T$3:$AC$3,0)-1),2,TRUE),3) -> 1
A64: ='A. Population Info'!A64 -> 59 | B64: ='A. Population Info'!G64 -> 0 | C64: ='A. Population Info'!H64 -> 0 | D64: ='A. Population Info'!I64 -> Insulated | E64: ='A. Population Info'!J64 -> 0 | F64: ='A. Population Info'!K64 -> 2 | G64: =IFERROR(VLOOKUP(B:B,OFFSET('B. PoF Adj Factor Scoring'!$T$5:$U$282,,MATCH(G$4,'B. PoF Adj Factor Scoring'!$T$3:$AC$3,0)-1),2,TRUE),3) -> 3 | H64: =IFERROR(VLOOKUP(C:C,OFFSET('B. PoF Adj Factor Scoring'!$T$5:$U$282,,MATCH(H$4,'B. PoF Adj Factor Scoring'!$T$3:$AC$3,0)-1),2,TRUE),3) -> 3 | I64: =IFERROR(VLOOKUP(D:D,OFFSET('B. PoF Adj Factor Scoring'!$T$5:$U$282,,MATCH(I$4,'B. PoF Adj Factor Scoring'!$T$3:$AC$3,0)-1),2,TRUE),3) -> 1 | J64: =IFERROR(VLOOKUP(E:E,OFFSET('B. PoF Adj Factor Scoring'!$T$5:$U$282,,MATCH(J$4,'B. PoF Adj Factor Scoring'!$T$3:$AC$3,0)-1),2,TRUE),3) -> 3 | K64: =IFERROR(VLOOKUP(F:F,OFFSET('B. PoF Adj Factor Scoring'!$T$5:$U$282,,MATCH(K$4,'B. PoF Adj Factor Scoring'!$T$3:$AC$3,0)-1),2,TRUE),3) -> 1
A65: ='A. Population Info'!A65 -> 60 | B65: ='A. Population Info'!G65 -> 0 | C65: ='A. Population Info'!H65 -> 0 | D65: ='A. Population Info'!I65 -> Insulated | E65: ='A. Population Info'!J65 -> 0 | F65: ='A. Population Info'!K65 -> 2 | G65: =IFERROR(VLOOKUP(B:B,OFFSET('B. PoF Adj Factor Scoring'!$T$5:$U$282,,MATCH(G$4,'B. PoF Adj Factor Scoring'!$T$3:$AC$3,0)-1),2,TRUE),3) -> 3 | H65: =IFERROR(VLOOKUP(C:C,OFFSET('B. PoF Adj Factor Scoring'!$T$5:$U$282,,MATCH(H$4,'B. PoF Adj Factor Scoring'!$T$3:$AC$3,0)-1),2,TRUE),3) -> 3 | I65: =IFERROR(VLOOKUP(D:D,OFFSET('B. PoF Adj Factor Scoring'!$T$5:$U$282,,MATCH(I$4,'B. PoF Adj Factor Scoring'!$T$3:$AC$3,0)-1),2,TRUE),3) -> 1 | J65: =IFERROR(VLOOKUP(E:E,OFFSET('B. PoF Adj Factor Scoring'!$T$5:$U$282,,MATCH(J$4,'B. PoF Adj Factor Scoring'!$T$3:$AC$3,0)-1),2,TRUE),3) -> 3 | K65: =IFERROR(VLOOKUP(F:F,OFFSET('B. PoF Adj Factor Scoring'!$T$5:$U$282,,MATCH(K$4,'B. PoF Adj Factor Scoring'!$T$3:$AC$3,0)-1),2,TRUE),3) -> 1
A66: ='A. Population Info'!A66 -> 61 | B66: ='A. Population Info'!G66 -> 0 | C66: ='A. Population Info'!H66 -> 0 | D66: ='A. Population Info'!I66 -> Insulated | E66: ='A. Population Info'!J66 -> 0 | F66: ='A. Population Info'!K66 -> 2 | G66: =IFERROR(VLOOKUP(B:B,OFFSET('B. PoF Adj Factor Scoring'!$T$5:$U$282,,MATCH(G$4,'B. PoF Adj Factor Scoring'!$T$3:$AC$3,0)-1),2,TRUE),3) -> 3 | H66: =IFERROR(VLOOKUP(C:C,OFFSET('B. PoF Adj Factor Scoring'!$T$5:$U$282,,MATCH(H$4,'B. PoF Adj Factor Scoring'!$T$3:$AC$3,0)-1),2,TRUE),3) -> 3 | I66: =IFERROR(VLOOKUP(D:D,OFFSET('B. PoF Adj Factor Scoring'!$T$5:$U$282,,MATCH(I$4,'B. PoF Adj Factor Scoring'!$T$3:$AC$3,0)-1),2,TRUE),3) -> 1 | J66: =IFERROR(VLOOKUP(E:E,OFFSET('B. PoF Adj Factor Scoring'!$T$5:$U$282,,MATCH(J$4,'B. PoF Adj Factor Scoring'!$T$3:$AC$3,0)-1),2,TRUE),3) -> 3 | K66: =IFERROR(VLOOKUP(F:F,OFFSET('B. PoF Adj Factor Scoring'!$T$5:$U$282,,MATCH(K$4,'B. PoF Adj Factor Scoring'!$T$3:$AC$3,0)-1),2,TRUE),3) -> 1
A67: ='A. Population Info'!A67 -> 62 | B67: ='A. Population Info'!G67 -> 0 | C67: ='A. Population Info'!H67 -> 0 | D67: ='A. Population Info'!I67 -> Insulated | E67: ='A. Population Info'!J67 -> 0 | F67: ='A. Population Info'!K67 -> 3 | G67: =IFERROR(VLOOKUP(B:B,OFFSET('B. PoF Adj Factor Scoring'!$T$5:$U$282,,MATCH(G$4,'B. PoF Adj Factor Scoring'!$T$3:$AC$3,0)-1),2,TRUE),3) -> 3 | H67: =IFERROR(VLOOKUP(C:C,OFFSET('B. PoF Adj Factor Scoring'!$T$5:$U$282,,MATCH(H$4,'B. PoF Adj Factor Scoring'!$T$3:$AC$3,0)-1),2,TRUE),3) -> 3 | I67: =IFERROR(VLOOKUP(D:D,OFFSET('B. PoF Adj Factor Scoring'!$T$5:$U$282,,MATCH(I$4,'B. PoF Adj Factor Scoring'!$T$3:$AC$3,0)-1),2,TRUE),3) -> 1 | J67: =IFERROR(VLOOKUP(E:E,OFFSET('B. PoF Adj Factor Scoring'!$T$5:$U$282,,MATCH(J$4,'B. PoF Adj Factor Scoring'!$T$3:$AC$3,0)-1),2,TRUE),3) -> 3 | K67: =IFERROR(VLOOKUP(F:F,OFFSET('B. PoF Adj Factor Scoring'!$T$5:$U$282,,MATCH(K$4,'B. PoF Adj Factor Scoring'!$T$3:$AC$3,0)-1),2,TRUE),3) -> 1
A68: ='A. Population Info'!A68 -> 63 | B68: ='A. Population Info'!G68 -> 0 | C68: ='A. Population Info'!H68 -> 0 | D68: ='A. Population Info'!I68 -> Insulated | E68: ='A. Population Info'!J68 -> 0 | F68: ='A. Population Info'!K68 -> 3 | G68: =IFERROR(VLOOKUP(B:B,OFFSET('B. PoF Adj Factor Scoring'!$T$5:$U$282,,MATCH(G$4,'B. PoF Adj Factor Scoring'!$T$3:$AC$3,0)-1),2,TRUE),3) -> 3 | H68: =IFERROR(VLOOKUP(C:C,OFFSET('B. PoF Adj Factor Scoring'!$T$5:$U$282,,MATCH(H$4,'B. PoF Adj Factor Scoring'!$T$3:$AC$3,0)-1),2,TRUE),3) -> 3 | I68: =IFERROR(VLOOKUP(D:D,OFFSET('B. PoF Adj Factor Scoring'!$T$5:$U$282,,MATCH(I$4,'B. PoF Adj Factor Scoring'!$T$3:$AC$3,0)-1),2,TRUE),3) -> 1 | J68: =IFERROR(VLOOKUP(E:E,OFFSET('B. PoF Adj Factor Scoring'!$T$5:$U$282,,MATCH(J$4,'B. PoF Adj Factor Scoring'!$T$3:$AC$3,0)-1),2,TRUE),3) -> 3 | K68: =IFERROR(VLOOKUP(F:F,OFFSET('B. PoF Adj Factor Scoring'!$T$5:$U$282,,MATCH(K$4,'B. PoF Adj Factor Scoring'!$T$3:$AC$3,0)-1),2,TRUE),3) -> 1
A69: ='A. Population Info'!A69 -> 64 | B69: ='A. Population Info'!G69 -> 0 | C69: ='A. Population Info'!H69 -> 0 | D69: ='A. Population Info'!I69 -> Insulated | E69: ='A. Population Info'!J69 -> 0 | F69: ='A. Population Info'!K69 -> 3 | G69: =IFERROR(VLOOKUP(B:B,OFFSET('B. PoF Adj Factor Scoring'!$T$5:$U$282,,MATCH(G$4,'B. PoF Adj Factor Scoring'!$T$3:$AC$3,0)-1),2,TRUE),3) -> 3 | H69: =IFERROR(VLOOKUP(C:C,OFFSET('B. PoF Adj Factor Scoring'!$T$5:$U$282,,MATCH(H$4,'B. PoF Adj Factor Scoring'!$T$3:$AC$3,0)-1),2,TRUE),3) -> 3 | I69: =IFERROR(VLOOKUP(D:D,OFFSET('B. PoF Adj Factor Scoring'!$T$5:$U$282,,MATCH(I$4,'B. PoF Adj Factor Scoring'!$T$3:$AC$3,0)-1),2,TRUE),3) -> 1 | J69: =IFERROR(VLOOKUP(E:E,OFFSET('B. PoF Adj Factor Scoring'!$T$5:$U$282,,MATCH(J$4,'B. PoF Adj Factor Scoring'!$T$3:$AC$3,0)-1),2,TRUE),3) -> 3 | K69: =IFERROR(VLOOKUP(F:F,OFFSET('B. PoF Adj Factor Scoring'!$T$5:$U$282,,MATCH(K$4,'B. PoF Adj Factor Scoring'!$T$3:$AC$3,0)-1),2,TRUE),3) -> 1
A70: ='A. Population Info'!A70 -> 65 | B70: ='A. Population Info'!G70 -> 0 | C70: ='A. Population Info'!H70 -> 0 | D70: ='A. Population Info'!I70 -> Insulated | E70: ='A. Population Info'!J70 -> 0 | F70: ='A. Population Info'!K70 -> 3 | G70: =IFERROR(VLOOKUP(B:B,OFFSET('B. PoF Adj Factor Scoring'!$T$5:$U$282,,MATCH(G$4,'B. PoF Adj Factor Scoring'!$T$3:$AC$3,0)-1),2,TRUE),3) -> 3 | H70: =IFERROR(VLOOKUP(C:C,OFFSET('B. PoF Adj Factor Scoring'!$T$5:$U$282,,MATCH(H$4,'B. PoF Adj Factor Scoring'!$T$3:$AC$3,0)-1),2,TRUE),3) -> 3 | I70: =IFERROR(VLOOKUP(D:D,OFFSET('B. PoF Adj Factor Scoring'!$T$5:$U$282,,MATCH(I$4,'B. PoF Adj Factor Scoring'!$T$3:$AC$3,0)-1),2,TRUE),3) -> 1 | J70: =IFERROR(VLOOKUP(E:E,OFFSET('B. PoF Adj Factor Scoring'!$T$5:$U$282,,MATCH(J$4,'B. PoF Adj Factor Scoring'!$T$3:$AC$3,0)-1),2,TRUE),3) -> 3 | K70: =IFERROR(VLOOKUP(F:F,OFFSET('B. PoF Adj Factor Scoring'!$T$5:$U$282,,MATCH(K$4,'B. PoF Adj Factor Scoring'!$T$3:$AC$3,0)-1),2,TRUE),3) -> 1
A71: ='A. Population Info'!A71 -> 66 | B71: ='A. Population Info'!G71 -> 0 | C71: ='A. Population Info'!H71 -> 0 | D71: ='A. Population Info'!I71 -> Insulated | E71: ='A. Population Info'!J71 -> 0 | F71: ='A. Population Info'!K71 -> 3 | G71: =IFERROR(VLOOKUP(B:B,OFFSET('B. PoF Adj Factor Scoring'!$T$5:$U$282,,MATCH(G$4,'B. PoF Adj Factor Scoring'!$T$3:$AC$3,0)-1),2,TRUE),3) -> 3 | H71: =IFERROR(VLOOKUP(C:C,OFFSET('B. PoF Adj Factor Scoring'!$T$5:$U$282,,MATCH(H$4,'B. PoF Adj Factor Scoring'!$T$3:$AC$3,0)-1),2,TRUE),3) -> 3 | I71: =IFERROR(VLOOKUP(D:D,OFFSET('B. PoF Adj Factor Scoring'!$T$5:$U$282,,MATCH(I$4,'B. PoF Adj Factor Scoring'!$T$3:$AC$3,0)-1),2,TRUE),3) -> 1 | J71: =IFERROR(VLOOKUP(E:E,OFFSET('B. PoF Adj Factor Scoring'!$T$5:$U$282,,MATCH(J$4,'B. PoF Adj Factor Scoring'!$T$3:$AC$3,0)-1),2,TRUE),3) -> 3 | K71: =IFERROR(VLOOKUP(F:F,OFFSET('B. PoF Adj Factor Scoring'!$T$5:$U$282,,MATCH(K$4,'B. PoF Adj Factor Scoring'!$T$3:$AC$3,0)-1),2,TRUE),3) -> 1
A72: ='A. Population Info'!A72 -> 67 | B72: ='A. Population Info'!G72 -> 0 | C72: ='A. Population Info'!H72 -> 0 | D72: ='A. Population Info'!I72 -> Insulated | E72: ='A. Population Info'!J72 -> 0 | F72: ='A. Population Info'!K72 -> 3 | G72: =IFERROR(VLOOKUP(B:B,OFFSET('B. PoF Adj Factor Scoring'!$T$5:$U$282,,MATCH(G$4,'B. PoF Adj Factor Scoring'!$T$3:$AC$3,0)-1),2,TRUE),3) -> 3 | H72: =IFERROR(VLOOKUP(C:C,OFFSET('B. PoF Adj Factor Scoring'!$T$5:$U$282,,MATCH(H$4,'B. PoF Adj Factor Scoring'!$T$3:$AC$3,0)-1),2,TRUE),3) -> 3 | I72: =IFERROR(VLOOKUP(D:D,OFFSET('B. PoF Adj Factor Scoring'!$T$5:$U$282,,MATCH(I$4,'B. PoF Adj Factor Scoring'!$T$3:$AC$3,0)-1),2,TRUE),3) -> 1 | J72: =IFERROR(VLOOKUP(E:E,OFFSET('B. PoF Adj Factor Scoring'!$T$5:$U$282,,MATCH(J$4,'B. PoF Adj Factor Scoring'!$T$3:$AC$3,0)-1),2,TRUE),3) -> 3 | K72: =IFERROR(VLOOKUP(F:F,OFFSET('B. PoF Adj Factor Scoring'!$T$5:$U$282,,MATCH(K$4,'B. PoF Adj Factor Scoring'!$T$3:$AC$3,0)-1),2,TRUE),3) -> 1
A73: ='A. Population Info'!A73 -> 68 | B73: ='A. Population Info'!G73 -> 0 | C73: ='A. Population Info'!H73 -> 0 | D73: ='A. Population Info'!I73 -> Bare | E73: ='A. Population Info'!J73 -> 0 | F73: ='A. Population Info'!K73 -> 3 | G73: =IFERROR(VLOOKUP(B:B,OFFSET('B. PoF Adj Factor Scoring'!$T$5:$U$282,,MATCH(G$4,'B. PoF Adj Factor Scoring'!$T$3:$AC$3,0)-1),2,TRUE),3) -> 3 | H73: =IFERROR(VLOOKUP(C:C,OFFSET('B. PoF Adj Factor Scoring'!$T$5:$U$282,,MATCH(H$4,'B. PoF Adj Factor Scoring'!$T$3:$AC$3,0)-1),2,TRUE),3) -> 3 | I73: =IFERROR(VLOOKUP(D:D,OFFSET('B. PoF Adj Factor Scoring'!$T$5:$U$282,,MATCH(I$4,'B. PoF Adj Factor Scoring'!$T$3:$AC$3,0)-1),2,TRUE),3) -> 4 | J73: =IFERROR(VLOOKUP(E:E,OFFSET('B. PoF Adj Factor Scoring'!$T$5:$U$282,,MATCH(J$4,'B. PoF Adj Factor Scoring'!$T$3:$AC$3,0)-1),2,TRUE),3) -> 3 | K73: =IFERROR(VLOOKUP(F:F,OFFSET('B. PoF Adj Factor Scoring'!$T$5:$U$282,,MATCH(K$4,'B. PoF Adj Factor Scoring'!$T$3:$AC$3,0)-1),2,TRUE),3) -> 1
A74: ='A. Population Info'!A74 -> 69 | B74: ='A. Population Info'!G74 -> 0 | C74: ='A. Population Info'!H74 -> 0 | D74: ='A. Population Info'!I74 -> Insulated | E74: ='A. Population Info'!J74 -> 0 | F74: ='A. Population Info'!K74 -> 3 | G74: =IFERROR(VLOOKUP(B:B,OFFSET('B. PoF Adj Factor Scoring'!$T$5:$U$282,,MATCH(G$4,'B. PoF Adj Factor Scoring'!$T$3:$AC$3,0)-1),2,TRUE),3) -> 3 | H74: =IFERROR(VLOOKUP(C:C,OFFSET('B. PoF Adj Factor Scoring'!$T$5:$U$282,,MATCH(H$4,'B. PoF Adj Factor Scoring'!$T$3:$AC$3,0)-1),2,TRUE),3) -> 3 | I74: =IFERROR(VLOOKUP(D:D,OFFSET('B. PoF Adj Factor Scoring'!$T$5:$U$282,,MATCH(I$4,'B. PoF Adj Factor Scoring'!$T$3:$AC$3,0)-1),2,TRUE),3) -> 1 | J74: =IFERROR(VLOOKUP(E:E,OFFSET('B. PoF Adj Factor Scoring'!$T$5:$U$282,,MATCH(J$4,'B. PoF Adj Factor Scoring'!$T$3:$AC$3,0)-1),2,TRUE),3) -> 3 | K74: =IFERROR(VLOOKUP(F:F,OFFSET('B. PoF Adj Factor Scoring'!$T$5:$U$282,,MATCH(K$4,'B. PoF Adj Factor Scoring'!$T$3:$AC$3,0)-1),2,TRUE),3) -> 1
A75: ='A. Population Info'!A75 -> 70 | B75: ='A. Population Info'!G75 -> 0 | C75: ='A. Population Info'!H75 -> 0 | D75: ='A. Population Info'!I75 -> Insulated | E75: ='A. Population Info'!J75 -> 0 | F75: ='A. Population Info'!K75 -> 3 | G75: =IFERROR(VLOOKUP(B:B,OFFSET('B. PoF Adj Factor Scoring'!$T$5:$U$282,,MATCH(G$4,'B. PoF Adj Factor Scoring'!$T$3:$AC$3,0)-1),2,TRUE),3) -> 3 | H75: =IFERROR(VLOOKUP(C:C,OFFSET('B. PoF Adj Factor Scoring'!$T$5:$U$282,,MATCH(H$4,'B. PoF Adj Factor Scoring'!$T$3:$AC$3,0)-1),2,TRUE),3) -> 3 | I75: =IFERROR(VLOOKUP(D:D,OFFSET('B. PoF Adj Factor Scoring'!$T$5:$U$282,,MATCH(I$4,'B. PoF Adj Factor Scoring'!$T$3:$AC$3,0)-1),2,TRUE),3) -> 1 | J75: =IFERROR(VLOOKUP(E:E,OFFSET('B. PoF Adj Factor Scoring'!$T$5:$U$282,,MATCH(J$4,'B. PoF Adj Factor Scoring'!$T$3:$AC$3,0)-1),2,TRUE),3) -> 3 | K75: =IFERROR(VLOOKUP(F:F,OFFSET('B. PoF Adj Factor Scoring'!$T$5:$U$282,,MATCH(K$4,'B. PoF Adj Factor Scoring'!$T$3:$AC$3,0)-1),2,TRUE),3) -> 1
A76: ='A. Population Info'!A76 -> 71 | B76: ='A. Population Info'!G76 -> 0 | C76: ='A. Population Info'!H76 -> 0 | D76: ='A. Population Info'!I76 -> Insulated | E76: ='A. Population Info'!J76 -> 0 | F76: ='A. Population Info'!K76 -> 4 | G76: =IFERROR(VLOOKUP(B:B,OFFSET('B. PoF Adj Factor Scoring'!$T$5:$U$282,,MATCH(G$4,'B. PoF Adj Factor Scoring'!$T$3:$AC$3,0)-1),2,TRUE),3) -> 3 | H76: =IFERROR(VLOOKUP(C:C,OFFSET('B. PoF Adj Factor Scoring'!$T$5:$U$282,,MATCH(H$4,'B. PoF Adj Factor Scoring'!$T$3:$AC$3,0)-1),2,TRUE),3) -> 3 | I76: =IFERROR(VLOOKUP(D:D,OFFSET('B. PoF Adj Factor Scoring'!$T$5:$U$282,,MATCH(I$4,'B. PoF Adj Factor Scoring'!$T$3:$AC$3,0)-1),2,TRUE),3) -> 1 | J76: =IFERROR(VLOOKUP(E:E,OFFSET('B. PoF Adj Factor Scoring'!$T$5:$U$282,,MATCH(J$4,'B. PoF Adj Factor Scoring'!$T$3:$AC$3,0)-1),2,TRUE),3) -> 3 | K76: =IFERROR(VLOOKUP(F:F,OFFSET('B. PoF Adj Factor Scoring'!$T$5:$U$282,,MATCH(K$4,'B. PoF Adj Factor Scoring'!$T$3:$AC$3,0)-1),2,TRUE),3) -> 1
A77: ='A. Population Info'!A77 -> 72 | B77: ='A. Population Info'!G77 -> 0 | C77: ='A. Population Info'!H77 -> 0 | D77: ='A. Population Info'!I77 -> Insulated | E77: ='A. Population Info'!J77 -> 0 | F77: ='A. Population Info'!K77 -> 4 | G77: =IFERROR(VLOOKUP(B:B,OFFSET('B. PoF Adj Factor Scoring'!$T$5:$U$282,,MATCH(G$4,'B. PoF Adj Factor Scoring'!$T$3:$AC$3,0)-1),2,TRUE),3) -> 3 | H77: =IFERROR(VLOOKUP(C:C,OFFSET('B. PoF Adj Factor Scoring'!$T$5:$U$282,,MATCH(H$4,'B. PoF Adj Factor Scoring'!$T$3:$AC$3,0)-1),2,TRUE),3) -> 3 | I77: =IFERROR(VLOOKUP(D:D,OFFSET('B. PoF Adj Factor Scoring'!$T$5:$U$282,,MATCH(I$4,'B. PoF Adj Factor Scoring'!$T$3:$AC$3,0)-1),2,TRUE),3) -> 1 | J77: =IFERROR(VLOOKUP(E:E,OFFSET('B. PoF Adj Factor Scoring'!$T$5:$U$282,,MATCH(J$4,'B. PoF Adj Factor Scoring'!$T$3:$AC$3,0)-1),2,TRUE),3) -> 3 | K77: =IFERROR(VLOOKUP(F:F,OFFSET('B. PoF Adj Factor Scoring'!$T$5:$U$282,,MATCH(K$4,'B. PoF Adj Factor Scoring'!$T$3:$AC$3,0)-1),2,TRUE),3) -> 1
